Workbook

Sheet Einleitung

Sheet Prognosen für die Gruppenphase
C2: Prognosen für die Gruppenphase
X3: 3rd Teams
C4: Gruppe | D4: Mannschaften | E4: Anpassung der Gesamtleistung | F4: Absolvierte Spiele | G4: Siege | H4: Unentschieden | I4: Niederlagen | J4: Erzielte Tore | K4: Erhaltene Tore | L4: +/- | M4: Punkte | N4: Diff. Platz | O4: Platzierung in Gruppe (1. und 2. qualifiziert) | P4: Rang innerhalb von Dritteln | Q4: Points (if ranked third) | X4: 3rd Teams | Y4: Round of 16
C5: A | D5: Frankreich | E5: 0% | F5: =COUNTIF('Spiele in diesem Jahr'!$E$5:$G$41, D5) -> 3 | G5: =COUNTIF('Spiele in diesem Jahr'!I:I, D5) -> 2 | H5: =COUNTIFS('Spiele in diesem Jahr'!E:E, D5, 'Spiele in diesem Jahr'!I:I, "Zeichnen")+COUNTIFS('Spiele in diesem Jahr'!G:G, D5, 'Spiele in diesem Jahr'!I:I, "Zeichnen") -> 0 | I5: =F5-SUM(G5:H5) -> 1 | J5: =SUM(SUMIF('Spiele in diesem Jahr'!E:E, D5,'Spiele in diesem Jahr'!L:L), SUMIF('Spiele in diesem Jahr'!G:G,D5,'Spiele in diesem Jahr'!M:M)) -> 6.14 | K5: =SUM(SUMIFS('Spiele in diesem Jahr'!M:M,'Spiele in diesem Jahr'!E:E,'Prognosen für die Gruppenphase'!D5), SUMIFS('Spiele in diesem Jahr'!F:F, 'Spiele in diesem Jahr'!L:L, 'Prognosen für die Gruppenphase'!D5)) -> 3.10 | L5: =J5-K5 -> 3.04 | M5: =(G5*3)+(H5*1) -> 6 | N5: =M5+(L5*0.001)+(J5*0.0001) -> 6.00 | O5: =RANK(N5,N$5:N$8) -> 1 | P5: =IF(Q5:Q28=0,"",RANK(Q5:Q28,Q5:Q28)) ->  | Q5: =IF('Prognosen für die Gruppenphase'!$O$5:$O$28=3,'Prognosen für die Gruppenphase'!$N$5:$N$28,0) -> 0.00 | X5: A | Y5: =SUM(Rank3A)<=4 -> TRUE
C6: A | D6: Koreanische Republik | E6: 0% | F6: =COUNTIF('Spiele in diesem Jahr'!$E$5:$G$41, D6) -> 3 | G6: =COUNTIF('Spiele in diesem Jahr'!I:I, D6) -> 0 | H6: =COUNTIFS('Spiele in diesem Jahr'!E:E, D6, 'Spiele in diesem Jahr'!I:I, "Zeichnen")+COUNTIFS('Spiele in diesem Jahr'!G:G, D6, 'Spiele in diesem Jahr'!I:I, "Zeichnen") -> 0 | I6: 3 | J6: =SUM(SUMIF('Spiele in diesem Jahr'!E:E, D6,'Spiele in diesem Jahr'!L:L), SUMIF('Spiele in diesem Jahr'!G:G,D6,'Spiele in diesem Jahr'!M:M)) -> 4.52 | K6: =SUM(SUMIFS('Spiele in diesem Jahr'!M:M,'Spiele in diesem Jahr'!E:E,'Prognosen für die Gruppenphase'!D6), SUMIFS('Spiele in diesem Jahr'!F:F, 'Spiele in diesem Jahr'!L:L, 'Prognosen für die Gruppenphase'!D6)) -> 1.50 | L6: =J6-K6 -> 3.02 | M6: 0 | N6: =M6+(L6*0.001)+(J6*0.0001) -> 0.00 | O6: =RANK(N6,N$5:N$8) -> 4 | Q6: 0.00 | X6: B | Y6: =SUM(Rank3B)<=4 -> TRUE
C7: A | D7: Nigeria | E7: 0% | F7: =COUNTIF('Spiele in diesem Jahr'!$E$5:$G$41, D7) -> 3 | G7: =COUNTIF('Spiele in diesem Jahr'!I:I, D7) -> 2 | H7: =COUNTIFS('Spiele in diesem Jahr'!E:E, D7, 'Spiele in diesem Jahr'!I:I, "Zeichnen")+COUNTIFS('Spiele in diesem Jahr'!G:G, D7, 'Spiele in diesem Jahr'!I:I, "Zeichnen") -> 0 | I7: 1 | J7: =SUM(SUMIF('Spiele in diesem Jahr'!E:E, D7,'Spiele in diesem Jahr'!L:L), SUMIF('Spiele in diesem Jahr'!G:G,D7,'Spiele in diesem Jahr'!M:M)) -> 3.58 | K7: =SUM(SUMIFS('Spiele in diesem Jahr'!M:M,'Spiele in diesem Jahr'!E:E,'Prognosen für die Gruppenphase'!D7), SUMIFS('Spiele in diesem Jahr'!F:F, 'Spiele in diesem Jahr'!L:L, 'Prognosen für die Gruppenphase'!D7)) -> 4.52 | L7: -0.94 | M7: 6 | N7: 6.00 | O7: =RANK(N7,N$5:N$8) -> 3 | P7: 1 | Q7: 6.00 | X7: C | Y7: =SUM(Rank3C)<=4 -> TRUE
C8: A | D8: Norwegen | E8: 0% | F8: =COUNTIF('Spiele in diesem Jahr'!$E$5:$G$41, D8) -> 3 | G8: =COUNTIF('Spiele in diesem Jahr'!I:I, D8) -> 2 | H8: =COUNTIFS('Spiele in diesem Jahr'!E:E, D8, 'Spiele in diesem Jahr'!I:I, "Zeichnen")+COUNTIFS('Spiele in diesem Jahr'!G:G, D8, 'Spiele in diesem Jahr'!I:I, "Zeichnen") -> 0 | I8: 1 | J8: =SUM(SUMIF('Spiele in diesem Jahr'!E:E, D8,'Spiele in diesem Jahr'!L:L), SUMIF('Spiele in diesem Jahr'!G:G,D8,'Spiele in diesem Jahr'!M:M)) -> 4.28 | K8: =SUM(SUMIFS('Spiele in diesem Jahr'!M:M,'Spiele in diesem Jahr'!E:E,'Prognosen für die Gruppenphase'!D8), SUMIFS('Spiele in diesem Jahr'!F:F, 'Spiele in diesem Jahr'!L:L, 'Prognosen für die Gruppenphase'!D8)) -> 1.58 | L8: 2.70 | M8: 6 | N8: 6.00 | O8: =RANK(N8,N$5:N$8) -> 2 | Q8: 0.00 | X8: D | Y8: =SUM(Rank3D)<=4 -> FALSE
C9: B | D9: China VR | E9: 0% | F9: =COUNTIF('Spiele in diesem Jahr'!$E$5:$G$41, D9) -> 3 | G9: =COUNTIF('Spiele in diesem Jahr'!I:I, D9) -> 0 | H9: =COUNTIFS('Spiele in diesem Jahr'!E:E, D9, 'Spiele in diesem Jahr'!I:I, "Zeichnen")+COUNTIFS('Spiele in diesem Jahr'!G:G, D9, 'Spiele in diesem Jahr'!I:I, "Zeichnen") -> 0 | I9: 3 | J9: =SUM(SUMIF('Spiele in diesem Jahr'!E:E, D9,'Spiele in diesem Jahr'!L:L), SUMIF('Spiele in diesem Jahr'!G:G,D9,'Spiele in diesem Jahr'!M:M)) -> 4.24 | K9: =SUM(SUMIFS('Spiele in diesem Jahr'!M:M,'Spiele in diesem Jahr'!E:E,'Prognosen für die Gruppenphase'!D9), SUMIFS('Spiele in diesem Jahr'!F:F, 'Spiele in diesem Jahr'!L:L, 'Prognosen für die Gruppenphase'!D9)) -> 1.52 | L9: 2.72 | M9: 0 | N9: 0.00 | O9: =RANK(N9,$N$9:$N$12) -> 4 | Q9: 0.00 | X9: E | Y9: =SUM(Rank3E)<=4 -> TRUE
C10: B | D10: Deutschland | E10: 0% | F10: =COUNTIF('Spiele in diesem Jahr'!$E$5:$G$41, D10) -> 3 | G10: =COUNTIF('Spiele in diesem Jahr'!I:I, D10) -> 3 | H10: =COUNTIFS('Spiele in diesem Jahr'!E:E, D10, 'Spiele in diesem Jahr'!I:I, "Zeichnen")+COUNTIFS('Spiele in diesem Jahr'!G:G, D10, 'Spiele in diesem Jahr'!I:I, "Zeichnen") -> 0 | I10: 0 | J10: =SUM(SUMIF('Spiele in diesem Jahr'!E:E, D10,'Spiele in diesem Jahr'!L:L), SUMIF('Spiele in diesem Jahr'!G:G,D10,'Spiele in diesem Jahr'!M:M)) -> 4.48 | K10: =SUM(SUMIFS('Spiele in diesem Jahr'!M:M,'Spiele in diesem Jahr'!E:E,'Prognosen für die Gruppenphase'!D10), SUMIFS('Spiele in diesem Jahr'!F:F, 'Spiele in diesem Jahr'!L:L, 'Prognosen für die Gruppenphase'!D10)) -> 2.82 | L10: =J10-K10 -> 1.66 | M10: 9 | N10: 9.00 | O10: =RANK(N10,$N$9:$N$12) -> 1 | Q10: 0.00 | X10: F | Y10: =SUM(Rank3F)<=4 -> FALSE
C11: B | D11: Südafrika | E11: 0% | F11: =COUNTIF('Spiele in diesem Jahr'!$E$5:$G$41, D11) -> 3 | G11: =COUNTIF('Spiele in diesem Jahr'!I:I, D11) -> 1 | H11: =COUNTIFS('Spiele in diesem Jahr'!E:E, D11, 'Spiele in diesem Jahr'!I:I, "Zeichnen")+COUNTIFS('Spiele in diesem Jahr'!G:G, D11, 'Spiele in diesem Jahr'!I:I, "Zeichnen") -> 0 | I11: 2 | J11: =SUM(SUMIF('Spiele in diesem Jahr'!E:E, D11,'Spiele in diesem Jahr'!L:L), SUMIF('Spiele in diesem Jahr'!G:G,D11,'Spiele in diesem Jahr'!M:M)) -> 4.30 | K11: =SUM(SUMIFS('Spiele in diesem Jahr'!M:M,'Spiele in diesem Jahr'!E:E,'Prognosen für die Gruppenphase'!D11), SUMIFS('Spiele in diesem Jahr'!F:F, 'Spiele in diesem Jahr'!L:L, 'Prognosen für die Gruppenphase'!D11)) -> 2.84 | L11: =J11-K11 -> 1.46 | M11: 3 | N11: 3.00 | O11: =RANK(N11,$N$9:$N$12) -> 3 | P11: 4 | Q11: 3.00
C12: B | D12: Spanien | E12: 0% | F12: =COUNTIF('Spiele in diesem Jahr'!$E$5:$G$41, D12) -> 3 | G12: =COUNTIF('Spiele in diesem Jahr'!I:I, D12) -> 2 | H12: =COUNTIFS('Spiele in diesem Jahr'!E:E, D12, 'Spiele in diesem Jahr'!I:I, "Zeichnen")+COUNTIFS('Spiele in diesem Jahr'!G:G, D12, 'Spiele in diesem Jahr'!I:I, "Zeichnen") -> 0 | I12: 1 | J12: =SUM(SUMIF('Spiele in diesem Jahr'!E:E, D12,'Spiele in diesem Jahr'!L:L), SUMIF('Spiele in diesem Jahr'!G:G,D12,'Spiele in diesem Jahr'!M:M)) -> 4.48 | K12: =SUM(SUMIFS('Spiele in diesem Jahr'!M:M,'Spiele in diesem Jahr'!E:E,'Prognosen für die Gruppenphase'!D12), SUMIFS('Spiele in diesem Jahr'!F:F, 'Spiele in diesem Jahr'!L:L, 'Prognosen für die Gruppenphase'!D12)) -> 1.38 | L12: =J12-K12 -> 3.10 | M12: 6 | N12: 6.00 | O12: =RANK(N12,$N$9:$N$12) -> 2 | Q12: 0.00 | X12: Case | Y12: =Y10*1+Y9*10+Y8*100+Y7*1000+Y6*10000+Y5*100000 -> 111010
C13: C | D13: Australien | E13: 0% | F13: =COUNTIF('Spiele in diesem Jahr'!$E$5:$G$41, D13) -> 3 | G13: =COUNTIF('Spiele in diesem Jahr'!I:I, D13) -> 0 | H13: =COUNTIFS('Spiele in diesem Jahr'!E:E, D13, 'Spiele in diesem Jahr'!I:I, "Zeichnen")+COUNTIFS('Spiele in diesem Jahr'!G:G, D13, 'Spiele in diesem Jahr'!I:I, "Zeichnen") -> 0 | I13: 3 | J13: =SUM(SUMIF('Spiele in diesem Jahr'!E:E, D13,'Spiele in diesem Jahr'!L:L), SUMIF('Spiele in diesem Jahr'!G:G,D13,'Spiele in diesem Jahr'!M:M)) -> 3.64 | K13: =SUM(SUMIFS('Spiele in diesem Jahr'!M:M,'Spiele in diesem Jahr'!E:E,'Prognosen für die Gruppenphase'!D13), SUMIFS('Spiele in diesem Jahr'!F:F, 'Spiele in diesem Jahr'!L:L, 'Prognosen für die Gruppenphase'!D13)) -> 2.92 | L13: 0.72 | M13: =(G13*3)+(H13*1) -> 0 | N13: 0.00 | O13: =RANK(N13, N$13:N$16) -> 4 | Q13: 0.00
C14: C | D14: Brasilien | E14: 0% | F14: =COUNTIF('Spiele in diesem Jahr'!$E$5:$G$41, D14) -> 3 | G14: =COUNTIF('Spiele in diesem Jahr'!I:I, D14) -> 1 | H14: =COUNTIFS('Spiele in diesem Jahr'!E:E, D14, 'Spiele in diesem Jahr'!I:I, "Zeichnen")+COUNTIFS('Spiele in diesem Jahr'!G:G, D14, 'Spiele in diesem Jahr'!I:I, "Zeichnen") -> 0 | I14: 2 | J14: =SUM(SUMIF('Spiele in diesem Jahr'!E:E, D14,'Spiele in diesem Jahr'!L:L), SUMIF('Spiele in diesem Jahr'!G:G,D14,'Spiele in diesem Jahr'!M:M)) -> 4.08 | K14: =SUM(SUMIFS('Spiele in diesem Jahr'!M:M,'Spiele in diesem Jahr'!E:E,'Prognosen für die Gruppenphase'!D14), SUMIFS('Spiele in diesem Jahr'!F:F, 'Spiele in diesem Jahr'!L:L, 'Prognosen für die Gruppenphase'!D14)) -> 1.58 | L14: 2.50 | M14: 3 | N14: 3.00 | O14: =RANK(N14, N$13:N$16) -> 3 | P14: 3 | Q14: 3.00
C15: C | D15: Italien | E15: 0% | F15: =COUNTIF('Spiele in diesem Jahr'!$E$5:$G$41, D15) -> 3 | G15: =COUNTIF('Spiele in diesem Jahr'!I:I, D15) -> 2 | H15: =COUNTIFS('Spiele in diesem Jahr'!E:E, D15, 'Spiele in diesem Jahr'!I:I, "Zeichnen")+COUNTIFS('Spiele in diesem Jahr'!G:G, D15, 'Spiele in diesem Jahr'!I:I, "Zeichnen") -> 0 | I15: 1 | J15: =SUM(SUMIF('Spiele in diesem Jahr'!E:E, D15,'Spiele in diesem Jahr'!L:L), SUMIF('Spiele in diesem Jahr'!G:G,D15,'Spiele in diesem Jahr'!M:M)) -> 4.32 | K15: =SUM(SUMIFS('Spiele in diesem Jahr'!M:M,'Spiele in diesem Jahr'!E:E,'Prognosen für die Gruppenphase'!D15), SUMIFS('Spiele in diesem Jahr'!F:F, 'Spiele in diesem Jahr'!L:L, 'Prognosen für die Gruppenphase'!D15)) -> 1.06 | L15: 3.26 | M15: 6 | N15: 6.00 | O15: =RANK(N15, N$13:N$16) -> 2 | Q15: 0.00
C16: C | D16: Jamaika | E16: 0% | F16: =COUNTIF('Spiele in diesem Jahr'!$E$5:$G$41, D16) -> 3 | G16: =COUNTIF('Spiele in diesem Jahr'!I:I, D16) -> 3 | H16: =COUNTIFS('Spiele in diesem Jahr'!E:E, D16, 'Spiele in diesem Jahr'!I:I, "Zeichnen")+COUNTIFS('Spiele in diesem Jahr'!G:G, D16, 'Spiele in diesem Jahr'!I:I, "Zeichnen") -> 0 | I16: 0 | J16: =SUM(SUMIF('Spiele in diesem Jahr'!E:E, D16,'Spiele in diesem Jahr'!L:L), SUMIF('Spiele in diesem Jahr'!G:G,D16,'Spiele in diesem Jahr'!M:M)) -> 4.70 | K16: =SUM(SUMIFS('Spiele in diesem Jahr'!M:M,'Spiele in diesem Jahr'!E:E,'Prognosen für die Gruppenphase'!D16), SUMIFS('Spiele in diesem Jahr'!F:F, 'Spiele in diesem Jahr'!L:L, 'Prognosen für die Gruppenphase'!D16)) -> 2.82 | L16: 1.88 | M16: 9 | N16: 9.00 | O16: =RANK(N16, N$13:N$16) -> 1 | Q16: 0.00
C17: D | D17: Argentinien | E17: 0% | F17: =COUNTIF('Spiele in diesem Jahr'!$E$5:$G$41, D17) -> 3 | G17: =COUNTIF('Spiele in diesem Jahr'!I:I, D17) -> 1 | H17: =COUNTIFS('Spiele in diesem Jahr'!E:E, D17, 'Spiele in diesem Jahr'!I:I, "Zeichnen")+COUNTIFS('Spiele in diesem Jahr'!G:G, D17, 'Spiele in diesem Jahr'!I:I, "Zeichnen") -> 0 | I17: 2 | J17: =SUM(SUMIF('Spiele in diesem Jahr'!E:E, D17,'Spiele in diesem Jahr'!L:L), SUMIF('Spiele in diesem Jahr'!G:G,D17,'Spiele in diesem Jahr'!M:M)) -> 2.30 | K17: =SUM(SUMIFS('Spiele in diesem Jahr'!M:M,'Spiele in diesem Jahr'!E:E,'Prognosen für die Gruppenphase'!D17), SUMIFS('Spiele in diesem Jahr'!F:F, 'Spiele in diesem Jahr'!L:L, 'Prognosen für die Gruppenphase'!D17)) -> 3.14 | L17: -0.84 | M17: 3 | N17: 3.00 | O17: =RANK(N17, N$17:N$20) -> 3 | P17: 5 | Q17: 3.00
C18: D | D18: England | E18: 0% | F18: =COUNTIF('Spiele in diesem Jahr'!$E$5:$G$41, D18) -> 3 | G18: =COUNTIF('Spiele in diesem Jahr'!I:I, D18) -> 2 | H18: =COUNTIFS('Spiele in diesem Jahr'!E:E, D18, 'Spiele in diesem Jahr'!I:I, "Zeichnen")+COUNTIFS('Spiele in diesem Jahr'!G:G, D18, 'Spiele in diesem Jahr'!I:I, "Zeichnen") -> 0 | I18: 1 | J18: =SUM(SUMIF('Spiele in diesem Jahr'!E:E, D18,'Spiele in diesem Jahr'!L:L), SUMIF('Spiele in diesem Jahr'!G:G,D18,'Spiele in diesem Jahr'!M:M)) -> 6.18 | K18: =SUM(SUMIFS('Spiele in diesem Jahr'!M:M,'Spiele in diesem Jahr'!E:E,'Prognosen für die Gruppenphase'!D18), SUMIFS('Spiele in diesem Jahr'!F:F, 'Spiele in diesem Jahr'!L:L, 'Prognosen für die Gruppenphase'!D18)) -> 2.00 | L18: 4.18 | M18: 6 | N18: 6.00 | O18: =RANK(N18, N$17:N$20) -> 1 | Q18: 0.00
C19: D | D19: Japan | E19: 0% | F19: =COUNTIF('Spiele in diesem Jahr'!$E$5:$G$41, D19) -> 3 | G19: =COUNTIF('Spiele in diesem Jahr'!I:I, D19) -> 2 | H19: =COUNTIFS('Spiele in diesem Jahr'!E:E, D19, 'Spiele in diesem Jahr'!I:I, "Zeichnen")+COUNTIFS('Spiele in diesem Jahr'!G:G, D19, 'Spiele in diesem Jahr'!I:I, "Zeichnen") -> 0 | I19: 1 | J19: =SUM(SUMIF('Spiele in diesem Jahr'!E:E, D19,'Spiele in diesem Jahr'!L:L), SUMIF('Spiele in diesem Jahr'!G:G,D19,'Spiele in diesem Jahr'!M:M)) -> 6.20 | K19: =SUM(SUMIFS('Spiele in diesem Jahr'!M:M,'Spiele in diesem Jahr'!E:E,'Prognosen für die Gruppenphase'!D19), SUMIFS('Spiele in diesem Jahr'!F:F, 'Spiele in diesem Jahr'!L:L, 'Prognosen für die Gruppenphase'!D19)) -> 2.62 | L19: 3.58 | M19: 6 | N19: 6.00 | O19: =RANK(N19, N$17:N$20) -> 2 | Q19: 0.00
C20: D | D20: Schottland | E20: 0% | F20: =COUNTIF('Spiele in diesem Jahr'!$E$5:$G$41, D20) -> 3 | G20: =COUNTIF('Spiele in diesem Jahr'!I:I, D20) -> 0 | H20: =COUNTIFS('Spiele in diesem Jahr'!E:E, D20, 'Spiele in diesem Jahr'!I:I, "Zeichnen")+COUNTIFS('Spiele in diesem Jahr'!G:G, D20, 'Spiele in diesem Jahr'!I:I, "Zeichnen") -> 0 | I20: 3 | J20: =SUM(SUMIF('Spiele in diesem Jahr'!E:E, D20,'Spiele in diesem Jahr'!L:L), SUMIF('Spiele in diesem Jahr'!G:G,D20,'Spiele in diesem Jahr'!M:M)) -> 4.30 | K20: =SUM(SUMIFS('Spiele in diesem Jahr'!M:M,'Spiele in diesem Jahr'!E:E,'Prognosen für die Gruppenphase'!D20), SUMIFS('Spiele in diesem Jahr'!F:F, 'Spiele in diesem Jahr'!L:L, 'Prognosen für die Gruppenphase'!D20)) -> 1.60 | L20: 2.70 | M20: 0 | N20: 0.00 | O20: =RANK(N20, N$17:N$20) -> 4 | Q20: 0.00
C21: E | D21: Kamerun | E21: 0% | F21: =COUNTIF('Spiele in diesem Jahr'!$E$5:$G$41, D21) -> 3 | G21: =COUNTIF('Spiele in diesem Jahr'!I:I, D21) -> 1 | H21: =COUNTIFS('Spiele in diesem Jahr'!E:E, D21, 'Spiele in diesem Jahr'!I:I, "Zeichnen")+COUNTIFS('Spiele in diesem Jahr'!G:G, D21, 'Spiele in diesem Jahr'!I:I, "Zeichnen") -> 0 | I21: 2 | J21: =SUM(SUMIF('Spiele in diesem Jahr'!E:E, D21,'Spiele in diesem Jahr'!L:L), SUMIF('Spiele in diesem Jahr'!G:G,D21,'Spiele in diesem Jahr'!M:M)) -> 4.56 | K21: =SUM(SUMIFS('Spiele in diesem Jahr'!M:M,'Spiele in diesem Jahr'!E:E,'Prognosen für die Gruppenphase'!D21), SUMIFS('Spiele in diesem Jahr'!F:F, 'Spiele in diesem Jahr'!L:L, 'Prognosen für die Gruppenphase'!D21)) -> 1.54 | L21: 3.02 | M21: =(G21*3)+(H21*1) -> 3 | N21: 3.00 | O21: =RANK(N21, N$21:N$24) -> 3 | P21: 2 | Q21: 3.00
C22: E | D22: Kanada | E22: 0% | F22: =COUNTIF('Spiele in diesem Jahr'!$E$5:$G$41, D22) -> 3 | G22: =COUNTIF('Spiele in diesem Jahr'!I:I, D22) -> 1 | H22: =COUNTIFS('Spiele in diesem Jahr'!E:E, D22, 'Spiele in diesem Jahr'!I:I, "Zeichnen")+COUNTIFS('Spiele in diesem Jahr'!G:G, D22, 'Spiele in diesem Jahr'!I:I, "Zeichnen") -> 0 | I22: 2 | J22: =SUM(SUMIF('Spiele in diesem Jahr'!E:E, D22,'Spiele in diesem Jahr'!L:L), SUMIF('Spiele in diesem Jahr'!G:G,D22,'Spiele in diesem Jahr'!M:M)) -> 4.38 | K22: =SUM(SUMIFS('Spiele in diesem Jahr'!M:M,'Spiele in diesem Jahr'!E:E,'Prognosen für die Gruppenphase'!D22), SUMIFS('Spiele in diesem Jahr'!F:F, 'Spiele in diesem Jahr'!L:L, 'Prognosen für die Gruppenphase'!D22)) -> 3.04 | L22: 1.34 | M22: 3 | N22: 3.00 | O22: =RANK(N22, N$21:N$24) -> 4 | Q22: 0.00
C23: E | D23: Niederlande | E23: 0% | F23: =COUNTIF('Spiele in diesem Jahr'!$E$5:$G$41, D23) -> 3 | G23: =COUNTIF('Spiele in diesem Jahr'!I:I, D23) -> 2 | H23: =COUNTIFS('Spiele in diesem Jahr'!E:E, D23, 'Spiele in diesem Jahr'!I:I, "Zeichnen")+COUNTIFS('Spiele in diesem Jahr'!G:G, D23, 'Spiele in diesem Jahr'!I:I, "Zeichnen") -> 0 | I23: 1 | J23: =SUM(SUMIF('Spiele in diesem Jahr'!E:E, D23,'Spiele in diesem Jahr'!L:L), SUMIF('Spiele in diesem Jahr'!G:G,D23,'Spiele in diesem Jahr'!M:M)) -> 4.56 | K23: =SUM(SUMIFS('Spiele in diesem Jahr'!M:M,'Spiele in diesem Jahr'!E:E,'Prognosen für die Gruppenphase'!D23), SUMIFS('Spiele in diesem Jahr'!F:F, 'Spiele in diesem Jahr'!L:L, 'Prognosen für die Gruppenphase'!D23)) -> 2.76 | L23: 1.80 | M23: 6 | N23: 6.00 | O23: =RANK(N23, N$21:N$24) -> 2 | Q23: 0.00
C24: E | D24: Neuseeland | E24: 0% | F24: =COUNTIF('Spiele in diesem Jahr'!$E$5:$G$41, D24) -> 3 | G24: =COUNTIF('Spiele in diesem Jahr'!I:I, D24) -> 2 | H24: =COUNTIFS('Spiele in diesem Jahr'!E:E, D24, 'Spiele in diesem Jahr'!I:I, "Zeichnen")+COUNTIFS('Spiele in diesem Jahr'!G:G, D24, 'Spiele in diesem Jahr'!I:I, "Zeichnen") -> 0 | I24: 1 | J24: =SUM(SUMIF('Spiele in diesem Jahr'!E:E, D24,'Spiele in diesem Jahr'!L:L), SUMIF('Spiele in diesem Jahr'!G:G,D24,'Spiele in diesem Jahr'!M:M)) -> 4.90 | K24: =SUM(SUMIFS('Spiele in diesem Jahr'!M:M,'Spiele in diesem Jahr'!E:E,'Prognosen für die Gruppenphase'!D24), SUMIFS('Spiele in diesem Jahr'!F:F, 'Spiele in diesem Jahr'!L:L, 'Prognosen für die Gruppenphase'!D24)) -> 1.48 | L24: 3.42 | M24: 6 | N24: 6.00 | O24: =RANK(N24, N$21:N$24) -> 1 | Q24: 0.00
C25: F | D25: Chile | E25: 0% | F25: =COUNTIF('Spiele in diesem Jahr'!$E$5:$G$41, D25) -> 3 | G25: =COUNTIF('Spiele in diesem Jahr'!I:I, D25) -> 0 | H25: =COUNTIFS('Spiele in diesem Jahr'!E:E, D25, 'Spiele in diesem Jahr'!I:I, "Zeichnen")+COUNTIFS('Spiele in diesem Jahr'!G:G, D25, 'Spiele in diesem Jahr'!I:I, "Zeichnen") -> 0 | I25: 3 | J25: =SUM(SUMIF('Spiele in diesem Jahr'!E:E, D25,'Spiele in diesem Jahr'!L:L), SUMIF('Spiele in diesem Jahr'!G:G,D25,'Spiele in diesem Jahr'!M:M)) -> 2.16 | K25: =SUM(SUMIFS('Spiele in diesem Jahr'!M:M,'Spiele in diesem Jahr'!E:E,'Prognosen für die Gruppenphase'!D25), SUMIFS('Spiele in diesem Jahr'!F:F, 'Spiele in diesem Jahr'!L:L, 'Prognosen für die Gruppenphase'!D25)) -> 3.12 | L25: -0.96 | M25: 0 | N25: -0.00 | O25: =RANK(N25, N$25:N$28) -> 4 | Q25: 0.00
C26: F | D26: Schweden | E26: 0% | F26: =COUNTIF('Spiele in diesem Jahr'!$E$5:$G$41, D26) -> 3 | G26: =COUNTIF('Spiele in diesem Jahr'!I:I, D26) -> 3 | H26: =COUNTIFS('Spiele in diesem Jahr'!E:E, D26, 'Spiele in diesem Jahr'!I:I, "Zeichnen")+COUNTIFS('Spiele in diesem Jahr'!G:G, D26, 'Spiele in diesem Jahr'!I:I, "Zeichnen") -> 0 | I26: 0 | J26: =SUM(SUMIF('Spiele in diesem Jahr'!E:E, D26,'Spiele in diesem Jahr'!L:L), SUMIF('Spiele in diesem Jahr'!G:G,D26,'Spiele in diesem Jahr'!M:M)) -> 7.78 | K26: =SUM(SUMIFS('Spiele in diesem Jahr'!M:M,'Spiele in diesem Jahr'!E:E,'Prognosen für die Gruppenphase'!D26), SUMIFS('Spiele in diesem Jahr'!F:F, 'Spiele in diesem Jahr'!L:L, 'Prognosen für die Gruppenphase'!D26)) -> 1.70 | L26: 6.08 | M26: 9 | N26: 9.01 | O26: =RANK(N26, N$25:N$28) -> 1 | Q26: 0.00
C27: F | D27: Thailand | E27: 0% | F27: =COUNTIF('Spiele in diesem Jahr'!$E$5:$G$41, D27) -> 3 | G27: =COUNTIF('Spiele in diesem Jahr'!I:I, D27) -> 0 | H27: =COUNTIFS('Spiele in diesem Jahr'!E:E, D27, 'Spiele in diesem Jahr'!I:I, "Zeichnen")+COUNTIFS('Spiele in diesem Jahr'!G:G, D27, 'Spiele in diesem Jahr'!I:I, "Zeichnen") -> 0 | I27: 3 | J27: =SUM(SUMIF('Spiele in diesem Jahr'!E:E, D27,'Spiele in diesem Jahr'!L:L), SUMIF('Spiele in diesem Jahr'!G:G,D27,'Spiele in diesem Jahr'!M:M)) -> 2.14 | K27: =SUM(SUMIFS('Spiele in diesem Jahr'!M:M,'Spiele in diesem Jahr'!E:E,'Prognosen für die Gruppenphase'!D27), SUMIFS('Spiele in diesem Jahr'!F:F, 'Spiele in diesem Jahr'!L:L, 'Prognosen für die Gruppenphase'!D27)) -> 1.38 | L27: 0.76 | M27: 0 | N27: 0.00 | O27: =RANK(N27, N$25:N$28) -> 3 | P27: 6 | Q27: 0.00
C28: F | D28: Vereinigte Staaten von Amerika | E28: 0% | F28: =COUNTIF('Spiele in diesem Jahr'!$E$5:$G$41, D28) -> 3 | G28: =COUNTIF('Spiele in diesem Jahr'!I:I, D28) -> 2 | H28: =COUNTIFS('Spiele in diesem Jahr'!E:E, D28, 'Spiele in diesem Jahr'!I:I, "Zeichnen")+COUNTIFS('Spiele in diesem Jahr'!G:G, D28, 'Spiele in diesem Jahr'!I:I, "Zeichnen") -> 0 | I28: 1 | J28: =SUM(SUMIF('Spiele in diesem Jahr'!E:E, D28,'Spiele in diesem Jahr'!L:L), SUMIF('Spiele in diesem Jahr'!G:G,D28,'Spiele in diesem Jahr'!M:M)) -> 7.02 | K28: =SUM(SUMIFS('Spiele in diesem Jahr'!M:M,'Spiele in diesem Jahr'!E:E,'Prognosen für die Gruppenphase'!D28), SUMIFS('Spiele in diesem Jahr'!F:F, 'Spiele in diesem Jahr'!L:L, 'Prognosen für die Gruppenphase'!D28)) -> 0.70 | L28: 6.32 | M28: 6 | N28: 6.01 | O28: =RANK(N28, N$25:N$28) -> 2 | Q28: 0.00

Sheet Spiele in diesem Jahr
C2: Spiele in diesem Jahr
C4: Spiele 2019 | J4: Ihre Anpassungen | L4: Hidden Colum A | M4: Hidden Columb B | O4: Inputs from Your Previous Steps | Q4: Simulation Results -->
C5: Datum | D5: Gruppe | E5: Mannschaft A | F5: Prognose Tore A | G5: Mannschaft B | H5: Prognose Tore B | I5: Gewinner | J5: Prognosen Mannschaft A | K5: Prognosen Mannschaft B | L5: Column1 | M5: Column2 | N5: Column3 | O5: Team A Average Goals Scored | P5: Team B Average Goals Scored | Q5: Team A Iteration 1 | R5: Team A Iteration 2 | S5: Team A Iteration 3 | T5: Team A Iteration 4 | U5: Team A Iteration 5 | V5: Team A Iteration 6 | W5: Team A Iteration 7 | X5: Team A Iteration 8 | Y5: Team A Iteration 9 | Z5: Team A Iteration 10 | AA5: Team A Iteration 11 | AB5: Team A Iteration 12 | AC5: Team A Iteration 13 | AD5: Team A Iteration 14 | AE5: Team A Iteration 15 | AF5: Team A Iteration 16 | AG5: Team A Iteration 17 | AH5: Team A Iteration 18 | AI5: Team A Iteration 19 | AJ5: Team A Iteration 20 | AK5: Team A Iteration 21 | AL5: Team A Iteration 22 | AM5: Team A Iteration 23 | AN5: Team A Iteration 24 | AO5: Team A Iteration 25 | AP5: Team A Iteration 26 | AQ5: Team A Iteration 27 | AR5: Team A Iteration 28 | AS5: Team A Iteration 29 | AT5: Team A Iteration 30 | AU5: Team A Iteration 31 | AV5: Team A Iteration 32 | AW5: Team A Iteration 33 | AX5: Team A Iteration 34 | AY5: Team A Iteration 35 | AZ5: Team A Iteration 36 | BA5: Team A Iteration 37 | BB5: Team A Iteration 38 | BC5: Team A Iteration 39 | BD5: Team A Iteration 40 | BE5: Team A Iteration 41 | BF5: Team A Iteration 42 | BG5: Team A Iteration 43 | BH5: Team A Iteration 44 | BI5: Team A Iteration 45 | BJ5: Team A Iteration 46 | BK5: Team A Iteration 47 | BL5: Team A Iteration 48 | BM5: Team A Iteration 49 | BN5: Team A Iteration 50 | BP5: Team B Iteration 1 | BQ5: Team B Iteration 2 | BR5: Team B Iteration 3 | BS5: Team B Iteration 4 | BT5: Team B Iteration 5 | BU5: Team B Iteration 6 | BV5: Team B Iteration 7 | BW5: Team B Iteration 8 | BX5: Team B Iteration 9 | BY5: Team B Iteration 10 | BZ5: Team B Iteration 11 | CA5: Team B Iteration 12 | CB5: Team B Iteration 13 | CC5: Team B Iteration 14 | CD5: Team B Iteration 15 | CE5: Team B Iteration 16 | CF5: Team B Iteration 17 | CG5: Team B Iteration 18 | CH5: Team B Iteration 19 | CI5: Team B Iteration 20 | CJ5: Team B Iteration 21 | CK5: Team B Iteration 22 | CL5: Team B Iteration 23 | CM5: Team B Iteration 24 | CN5: Team B Iteration 25 | CO5: Team B Iteration 26 | CP5: Team B Iteration 27 | CQ5: Team B Iteration 28 | CR5: Team B Iteration 29 | CS5: Team B Iteration 30 | CT5: Team B Iteration 31 | CU5: Team B Iteration 32 | CV5: Team B Iteration 33 | CW5: Team B Iteration 34 | CX5: Team B Iteration 35 | CY5: Team B Iteration 36 | CZ5: Team B Iteration 37 | DA5: Team B Iteration 38 | DB5: Team B Iteration 39 | DC5: Team B Iteration 40 | DD5: Team B Iteration 41 | DE5: Team B Iteration 42 | DF5: Team B Iteration 43 | DG5: Team B Iteration 44 | DH5: Team B Iteration 45 | DI5: Team B Iteration 46 | DJ5: Team B Iteration 47 | DK5: Team B Iteration 48 | DL5: Team B Iteration 49 | DM5: Team B Iteration 50
C6: 2019-06-07 | D6: A | E6: Frankreich | F6: =(AVERAGE(Q6:BN6))*(1+INDEX('Prognosen für die Gruppenphase'!$C$4:$O$28, MATCH('Spiele in diesem Jahr'!E6,'Prognosen für die Gruppenphase'!$D$4:$D$28,0),3)) -> 1.84 | G6: Koreanische Republik | H6: =(AVERAGE(BP6:DM6))*(1+INDEX('Prognosen für die Gruppenphase'!$C$4:$O$28, MATCH('Spiele in diesem Jahr'!G6,'Prognosen für die Gruppenphase'!$D$4:$D$28,0),3)) -> 1.62 | I6: =IF(L6>M6,E6,IF(L6=M6,"Unentschieden",G6)) -> Frankreich | L6: =IF(ISBLANK(J6), F6,J6) -> 1.84 | M6: =IF(ISBLANK(K6), H6,K6) -> 1.62 | N6: =IF(L6>M6,E6,IF(L6=M6,"Zeichnen",G6)) -> Frankreich | O6: =(OFFSET('Anhang 3 – Tore je Gruppe'!$C$13,(INDEX('Anhang 1 – Mannschaftsdaten'!$C$13:$F$112,MATCH(G6,'Anhang 1 – Mannschaftsdaten'!$C$13:$C$112,0),4)/10),(INDEX('Anhang 1 – Mannschaftsdaten'!$C$13:$F$112,MATCH(E6,'Anhang 1 – Mannschaftsdaten'!$C$13:$C$112,0),4)/10))) -> 1.50 | P6: =OFFSET('Anhang 3 – Tore je Gruppe'!$C$13,(INDEX('Anhang 1 – Mannschaftsdaten'!$C$13:$F$112, MATCH(E6,'Anhang 1 – Mannschaftsdaten'!$C$13:$C$112,0),4)/10), (INDEX('Anhang 1 – Mannschaftsdaten'!$C$13:$F$112, MATCH(G6, 'Anhang 1 – Mannschaftsdaten'!$C$13:$C$112,0),4)/10)) -> 1.50 | Q6: =_xlfn.IFNA(MATCH(RAND(), _xlfn.POISSON.DIST({0,1,2,3,4,5,6,7,8,9},$O6, TRUE),1), 0) -> 3 | R6: =_xlfn.IFNA(MATCH(RAND(), _xlfn.POISSON.DIST({0,1,2,3,4,5,6,7,8,9},$O6, TRUE),1), 0) -> 3 | S6: =_xlfn.IFNA(MATCH(RAND(), _xlfn.POISSON.DIST({0,1,2,3,4,5,6,7,8,9},$O6, TRUE),1), 0) -> 1 | T6: =_xlfn.IFNA(MATCH(RAND(), _xlfn.POISSON.DIST({0,1,2,3,4,5,6,7,8,9},$O6, TRUE),1), 0) -> 1 | U6: =_xlfn.IFNA(MATCH(RAND(), _xlfn.POISSON.DIST({0,1,2,3,4,5,6,7,8,9},$O6, TRUE),1), 0) -> 4 | V6: =_xlfn.IFNA(MATCH(RAND(), _xlfn.POISSON.DIST({0,1,2,3,4,5,6,7,8,9},$O6, TRUE),1), 0) -> 1 | W6: =_xlfn.IFNA(MATCH(RAND(), _xlfn.POISSON.DIST({0,1,2,3,4,5,6,7,8,9},$O6, TRUE),1), 0) -> 2 | X6: =_xlfn.IFNA(MATCH(RAND(), _xlfn.POISSON.DIST({0,1,2,3,4,5,6,7,8,9},$O6, TRUE),1), 0) -> 2 | Y6: =_xlfn.IFNA(MATCH(RAND(), _xlfn.POISSON.DIST({0,1,2,3,4,5,6,7,8,9},$O6, TRUE),1), 0) -> 5 | Z6: =_xlfn.IFNA(MATCH(RAND(), _xlfn.POISSON.DIST({0,1,2,3,4,5,6,7,8,9},$O6, TRUE),1), 0) -> 2 | AA6: =_xlfn.IFNA(MATCH(RAND(), _xlfn.POISSON.DIST({0,1,2,3,4,5,6,7,8,9},$O6, TRUE),1), 0) -> 1 | AB6: =_xlfn.IFNA(MATCH(RAND(), _xlfn.POISSON.DIST({0,1,2,3,4,5,6,7,8,9},$O6, TRUE),1), 0) -> 0 | AC6: =_xlfn.IFNA(MATCH(RAND(), _xlfn.POISSON.DIST({0,1,2,3,4,5,6,7,8,9},$O6, TRUE),1), 0) -> 3 | AD6: =_xlfn.IFNA(MATCH(RAND(), _xlfn.POISSON.DIST({0,1,2,3,4,5,6,7,8,9},$O6, TRUE),1), 0) -> 1 | AE6: =_xlfn.IFNA(MATCH(RAND(), _xlfn.POISSON.DIST({0,1,2,3,4,5,6,7,8,9},$O6, TRUE),1), 0) -> 0 | AF6: =_xlfn.IFNA(MATCH(RAND(), _xlfn.POISSON.DIST({0,1,2,3,4,5,6,7,8,9},$O6, TRUE),1), 0) -> 1 | AG6: =_xlfn.IFNA(MATCH(RAND(), _xlfn.POISSON.DIST({0,1,2,3,4,5,6,7,8,9},$O6, TRUE),1), 0) -> 3 | AH6: =_xlfn.IFNA(MATCH(RAND(), _xlfn.POISSON.DIST({0,1,2,3,4,5,6,7,8,9},$O6, TRUE),1), 0) -> 4 | AI6: =_xlfn.IFNA(MATCH(RAND(), _xlfn.POISSON.DIST({0,1,2,3,4,5,6,7,8,9},$O6, TRUE),1), 0) -> 3 | AJ6: =_xlfn.IFNA(MATCH(RAND(), _xlfn.POISSON.DIST({0,1,2,3,4,5,6,7,8,9},$O6, TRUE),1), 0) -> 2 | AK6: =_xlfn.IFNA(MATCH(RAND(), _xlfn.POISSON.DIST({0,1,2,3,4,5,6,7,8,9},$O6, TRUE),1), 0) -> 3 | AL6: =_xlfn.IFNA(MATCH(RAND(), _xlfn.POISSON.DIST({0,1,2,3,4,5,6,7,8,9},$O6, TRUE),1), 0) -> 1 | AM6: =_xlfn.IFNA(MATCH(RAND(), _xlfn.POISSON.DIST({0,1,2,3,4,5,6,7,8,9},$O6, TRUE),1), 0) -> 1 | AN6: =_xlfn.IFNA(MATCH(RAND(), _xlfn.POISSON.DIST({0,1,2,3,4,5,6,7,8,9},$O6, TRUE),1), 0) -> 2 | AO6: =_xlfn.IFNA(MATCH(RAND(), _xlfn.POISSON.DIST({0,1,2,3,4,5,6,7,8,9},$O6, TRUE),1), 0) -> 0 | AP6: =_xlfn.IFNA(MATCH(RAND(), _xlfn.POISSON.DIST({0,1,2,3,4,5,6,7,8,9},$O6, TRUE),1), 0) -> 3 | AQ6: =_xlfn.IFNA(MATCH(RAND(), _xlfn.POISSON.DIST({0,1,2,3,4,5,6,7,8,9},$O6, TRUE),1), 0) -> 2 | AR6: =_xlfn.IFNA(MATCH(RAND(), _xlfn.POISSON.DIST({0,1,2,3,4,5,6,7,8,9},$O6, TRUE),1), 0) -> 1 | AS6: =_xlfn.IFNA(MATCH(RAND(), _xlfn.POISSON.DIST({0,1,2,3,4,5,6,7,8,9},$O6, TRUE),1), 0) -> 1 | AT6: =_xlfn.IFNA(MATCH(RAND(), _xlfn.POISSON.DIST({0,1,2,3,4,5,6,7,8,9},$O6, TRUE),1), 0) -> 2 | AU6: =_xlfn.IFNA(MATCH(RAND(), _xlfn.POISSON.DIST({0,1,2,3,4,5,6,7,8,9},$O6, TRUE),1), 0) -> 4 | AV6: =_xlfn.IFNA(MATCH(RAND(), _xlfn.POISSON.DIST({0,1,2,3,4,5,6,7,8,9},$O6, TRUE),1), 0) -> 1 | AW6: =_xlfn.IFNA(MATCH(RAND(), _xlfn.POISSON.DIST({0,1,2,3,4,5,6,7,8,9},$O6, TRUE),1), 0) -> 0 | AX6: =_xlfn.IFNA(MATCH(RAND(), _xlfn.POISSON.DIST({0,1,2,3,4,5,6,7,8,9},$O6, TRUE),1), 0) -> 1 | AY6: =_xlfn.IFNA(MATCH(RAND(), _xlfn.POISSON.DIST({0,1,2,3,4,5,6,7,8,9},$O6, TRUE),1), 0) -> 0 | AZ6: =_xlfn.IFNA(MATCH(RAND(), _xlfn.POISSON.DIST({0,1,2,3,4,5,6,7,8,9},$O6, TRUE),1), 0) -> 1 | BA6: =_xlfn.IFNA(MATCH(RAND(), _xlfn.POISSON.DIST({0,1,2,3,4,5,6,7,8,9},$O6, TRUE),1), 0) -> 1 | BB6: =_xlfn.IFNA(MATCH(RAND(), _xlfn.POISSON.DIST({0,1,2,3,4,5,6,7,8,9},$O6, TRUE),1), 0) -> 2 | BC6: =_xlfn.IFNA(MATCH(RAND(), _xlfn.POISSON.DIST({0,1,2,3,4,5,6,7,8,9},$O6, TRUE),1), 0) -> 4 | BD6: =_xlfn.IFNA(MATCH(RAND(), _xlfn.POISSON.DIST({0,1,2,3,4,5,6,7,8,9},$O6, TRUE),1), 0) -> 1 | BE6: =_xlfn.IFNA(MATCH(RAND(), _xlfn.POISSON.DIST({0,1,2,3,4,5,6,7,8,9},$O6, TRUE),1), 0) -> 3 | BF6: =_xlfn.IFNA(MATCH(RAND(), _xlfn.POISSON.DIST({0,1,2,3,4,5,6,7,8,9},$O6, TRUE),1), 0) -> 2 | BG6: =_xlfn.IFNA(MATCH(RAND(), _xlfn.POISSON.DIST({0,1,2,3,4,5,6,7,8,9},$O6, TRUE),1), 0) -> 1 | BH6: =_xlfn.IFNA(MATCH(RAND(), _xlfn.POISSON.DIST({0,1,2,3,4,5,6,7,8,9},$O6, TRUE),1), 0) -> 0 | BI6: =_xlfn.IFNA(MATCH(RAND(), _xlfn.POISSON.DIST({0,1,2,3,4,5,6,7,8,9},$O6, TRUE),1), 0) -> 1 | BJ6: =_xlfn.IFNA(MATCH(RAND(), _xlfn.POISSON.DIST({0,1,2,3,4,5,6,7,8,9},$O6, TRUE),1), 0) -> 5 | BK6: =_xlfn.IFNA(MATCH(RAND(), _xlfn.POISSON.DIST({0,1,2,3,4,5,6,7,8,9},$O6, TRUE),1), 0) -> 4 | BL6: =_xlfn.IFNA(MATCH(RAND(), _xlfn.POISSON.DIST({0,1,2,3,4,5,6,7,8,9},$O6, TRUE),1), 0) -> 2 | BM6: =_xlfn.IFNA(MATCH(RAND(), _xlfn.POISSON.DIST({0,1,2,3,4,5,6,7,8,9},$O6, TRUE),1), 0) -> 0 | BN6: =_xlfn.IFNA(MATCH(RAND(), _xlfn.POISSON.DIST({0,1,2,3,4,5,6,7,8,9},$O6, TRUE),1), 0) -> 1 | BP6: =_xlfn.IFNA(MATCH(RAND(), _xlfn.POISSON.DIST({0,1,2,3,4,5,6,7,8,9},$P6, TRUE),1), 0) -> 0 | BQ6: =_xlfn.IFNA(MATCH(RAND(), _xlfn.POISSON.DIST({0,1,2,3,4,5,6,7,8,9},$P6, TRUE),1), 0) -> 3 | BR6: =_xlfn.IFNA(MATCH(RAND(), _xlfn.POISSON.DIST({0,1,2,3,4,5,6,7,8,9},$P6, TRUE),1), 0) -> 0 | BS6: =_xlfn.IFNA(MATCH(RAND(), _xlfn.POISSON.DIST({0,1,2,3,4,5,6,7,8,9},$P6, TRUE),1), 0) -> 2 | BT6: =_xlfn.IFNA(MATCH(RAND(), _xlfn.POISSON.DIST({0,1,2,3,4,5,6,7,8,9},$P6, TRUE),1), 0) -> 4 | BU6: =_xlfn.IFNA(MATCH(RAND(), _xlfn.POISSON.DIST({0,1,2,3,4,5,6,7,8,9},$P6, TRUE),1), 0) -> 2 | BV6: =_xlfn.IFNA(MATCH(RAND(), _xlfn.POISSON.DIST({0,1,2,3,4,5,6,7,8,9},$P6, TRUE),1), 0) -> 1 | BW6: =_xlfn.IFNA(MATCH(RAND(), _xlfn.POISSON.DIST({0,1,2,3,4,5,6,7,8,9},$P6, TRUE),1), 0) -> 2 | BX6: =_xlfn.IFNA(MATCH(RAND(), _xlfn.POISSON.DIST({0,1,2,3,4,5,6,7,8,9},$P6, TRUE),1), 0) -> 2 | BY6: =_xlfn.IFNA(MATCH(RAND(), _xlfn.POISSON.DIST({0,1,2,3,4,5,6,7,8,9},$P6, TRUE),1), 0) -> 3 | BZ6: =_xlfn.IFNA(MATCH(RAND(), _xlfn.POISSON.DIST({0,1,2,3,4,5,6,7,8,9},$P6, TRUE),1), 0) -> 1 | CA6: =_xlfn.IFNA(MATCH(RAND(), _xlfn.POISSON.DIST({0,1,2,3,4,5,6,7,8,9},$P6, TRUE),1), 0) -> 1 | CB6: =_xlfn.IFNA(MATCH(RAND(), _xlfn.POISSON.DIST({0,1,2,3,4,5,6,7,8,9},$P6, TRUE),1), 0) -> 1 | CC6: =_xlfn.IFNA(MATCH(RAND(), _xlfn.POISSON.DIST({0,1,2,3,4,5,6,7,8,9},$P6, TRUE),1), 0) -> 0 | CD6: =_xlfn.IFNA(MATCH(RAND(), _xlfn.POISSON.DIST({0,1,2,3,4,5,6,7,8,9},$P6, TRUE),1), 0) -> 1 | CE6: =_xlfn.IFNA(MATCH(RAND(), _xlfn.POISSON.DIST({0,1,2,3,4,5,6,7,8,9},$P6, TRUE),1), 0) -> 2 | CF6: =_xlfn.IFNA(MATCH(RAND(), _xlfn.POISSON.DIST({0,1,2,3,4,5,6,7,8,9},$P6, TRUE),1), 0) -> 1 | CG6: =_xlfn.IFNA(MATCH(RAND(), _xlfn.POISSON.DIST({0,1,2,3,4,5,6,7,8,9},$P6, TRUE),1), 0) -> 0 | CH6: =_xlfn.IFNA(MATCH(RAND(), _xlfn.POISSON.DIST({0,1,2,3,4,5,6,7,8,9},$P6, TRUE),1), 0) -> 1 | CI6: =_xlfn.IFNA(MATCH(RAND(), _xlfn.POISSON.DIST({0,1,2,3,4,5,6,7,8,9},$P6, TRUE),1), 0) -> 2 | CJ6: =_xlfn.IFNA(MATCH(RAND(), _xlfn.POISSON.DIST({0,1,2,3,4,5,6,7,8,9},$P6, TRUE),1), 0) -> 0 | CK6: =_xlfn.IFNA(MATCH(RAND(), _xlfn.POISSON.DIST({0,1,2,3,4,5,6,7,8,9},$P6, TRUE),1), 0) -> 3 | CL6: =_xlfn.IFNA(MATCH(RAND(), _xlfn.POISSON.DIST({0,1,2,3,4,5,6,7,8,9},$P6, TRUE),1), 0) -> 1 | CM6: =_xlfn.IFNA(MATCH(RAND(), _xlfn.POISSON.DIST({0,1,2,3,4,5,6,7,8,9},$P6, TRUE),1), 0) -> 2 | CN6: =_xlfn.IFNA(MATCH(RAND(), _xlfn.POISSON.DIST({0,1,2,3,4,5,6,7,8,9},$P6, TRUE),1), 0) -> 2 | CO6: =_xlfn.IFNA(MATCH(RAND(), _xlfn.POISSON.DIST({0,1,2,3,4,5,6,7,8,9},$P6, TRUE),1), 0) -> 2 | CP6: =_xlfn.IFNA(MATCH(RAND(), _xlfn.POISSON.DIST({0,1,2,3,4,5,6,7,8,9},$P6, TRUE),1), 0) -> 3 | CQ6: =_xlfn.IFNA(MATCH(RAND(), _xlfn.POISSON.DIST({0,1,2,3,4,5,6,7,8,9},$P6, TRUE),1), 0) -> 2 | CR6: =_xlfn.IFNA(MATCH(RAND(), _xlfn.POISSON.DIST({0,1,2,3,4,5,6,7,8,9},$P6, TRUE),1), 0) -> 3 | CS6: =_xlfn.IFNA(MATCH(RAND(), _xlfn.POISSON.DIST({0,1,2,3,4,5,6,7,8,9},$P6, TRUE),1), 0) -> 1 | CT6: =_xlfn.IFNA(MATCH(RAND(), _xlfn.POISSON.DIST({0,1,2,3,4,5,6,7,8,9},$P6, TRUE),1), 0) -> 3 | CU6: =_xlfn.IFNA(MATCH(RAND(), _xlfn.POISSON.DIST({0,1,2,3,4,5,6,7,8,9},$P6, TRUE),1), 0) -> 0 | CV6: =_xlfn.IFNA(MATCH(RAND(), _xlfn.POISSON.DIST({0,1,2,3,4,5,6,7,8,9},$P6, TRUE),1), 0) -> 1 | CW6: =_xlfn.IFNA(MATCH(RAND(), _xlfn.POISSON.DIST({0,1,2,3,4,5,6,7,8,9},$P6, TRUE),1), 0) -> 2 | CX6: =_xlfn.IFNA(MATCH(RAND(), _xlfn.POISSON.DIST({0,1,2,3,4,5,6,7,8,9},$P6, TRUE),1), 0) -> 1 | CY6: =_xlfn.IFNA(MATCH(RAND(), _xlfn.POISSON.DIST({0,1,2,3,4,5,6,7,8,9},$P6, TRUE),1), 0) -> 2 | CZ6: =_xlfn.IFNA(MATCH(RAND(), _xlfn.POISSON.DIST({0,1,2,3,4,5,6,7,8,9},$P6, TRUE),1), 0) -> 0 | DA6: =_xlfn.IFNA(MATCH(RAND(), _xlfn.POISSON.DIST({0,1,2,3,4,5,6,7,8,9},$P6, TRUE),1), 0) -> 3 | DB6: =_xlfn.IFNA(MATCH(RAND(), _xlfn.POISSON.DIST({0,1,2,3,4,5,6,7,8,9},$P6, TRUE),1), 0) -> 4 | DC6: =_xlfn.IFNA(MATCH(RAND(), _xlfn.POISSON.DIST({0,1,2,3,4,5,6,7,8,9},$P6, TRUE),1), 0) -> 2 | DD6: =_xlfn.IFNA(MATCH(RAND(), _xlfn.POISSON.DIST({0,1,2,3,4,5,6,7,8,9},$P6, TRUE),1), 0) -> 1 | DE6: =_xlfn.IFNA(MATCH(RAND(), _xlfn.POISSON.DIST({0,1,2,3,4,5,6,7,8,9},$P6, TRUE),1), 0) -> 1 | DF6: =_xlfn.IFNA(MATCH(RAND(), _xlfn.POISSON.DIST({0,1,2,3,4,5,6,7,8,9},$P6, TRUE),1), 0) -> 0 | DG6: =_xlfn.IFNA(MATCH(RAND(), _xlfn.POISSON.DIST({0,1,2,3,4,5,6,7,8,9},$P6, TRUE),1), 0) -> 2 | DH6: =_xlfn.IFNA(MATCH(RAND(), _xlfn.POISSON.DIST({0,1,2,3,4,5,6,7,8,9},$P6, TRUE),1), 0) -> 1 | DI6: =_xlfn.IFNA(MATCH(RAND(), _xlfn.POISSON.DIST({0,1,2,3,4,5,6,7,8,9},$P6, TRUE),1), 0) -> 5 | DJ6: =_xlfn.IFNA(MATCH(RAND(), _xlfn.POISSON.DIST({0,1,2,3,4,5,6,7,8,9},$P6, TRUE),1), 0) -> 3 | DK6: =_xlfn.IFNA(MATCH(RAND(), _xlfn.POISSON.DIST({0,1,2,3,4,5,6,7,8,9},$P6, TRUE),1), 0) -> 0 | DL6: =_xlfn.IFNA(MATCH(RAND(), _xlfn.POISSON.DIST({0,1,2,3,4,5,6,7,8,9},$P6, TRUE),1), 0) -> 1 | DM6: =_xlfn.IFNA(MATCH(RAND(), _xlfn.POISSON.DIST({0,1,2,3,4,5,6,7,8,9},$P6, TRUE),1), 0) -> 1
C7: 2019-06-08 | D7: B | E7: Deutschland | F7: =(AVERAGE(Q7:BN7))*(1+INDEX('Prognosen für die Gruppenphase'!$C$4:$O$28, MATCH('Spiele in diesem Jahr'!E7,'Prognosen für die Gruppenphase'!$D$4:$D$28,0),3)) -> 1.56 | G7: China VR | H7: =(AVERAGE(BP7:DM7))*(1+INDEX('Prognosen für die Gruppenphase'!$C$4:$O$28, MATCH('Spiele in diesem Jahr'!G7,'Prognosen für die Gruppenphase'!$D$4:$D$28,0),3)) -> 1.40 | I7: Deutschland | L7: 1.56 | M7: 1.4 | N7: Deutschland | O7: =(OFFSET('Anhang 3 – Tore je Gruppe'!$C$13,(INDEX('Anhang 1 – Mannschaftsdaten'!$C$13:$F$112,MATCH(G7,'Anhang 1 – Mannschaftsdaten'!$C$13:$C$112,0),4)/10),(INDEX('Anhang 1 – Mannschaftsdaten'!$C$13:$F$112,MATCH(E7,'Anhang 1 – Mannschaftsdaten'!$C$13:$C$112,0),4)/10))) -> 1.50 | P7: =OFFSET('Anhang 3 – Tore je Gruppe'!$C$13,(INDEX('Anhang 1 – Mannschaftsdaten'!$C$13:$F$112, MATCH(E7,'Anhang 1 – Mannschaftsdaten'!$C$13:$C$112,0),4)/10), (INDEX('Anhang 1 – Mannschaftsdaten'!$C$13:$F$112, MATCH(G7, 'Anhang 1 – Mannschaftsdaten'!$C$13:$C$112,0),4)/10)) -> 1.50 | Q7: =_xlfn.IFNA(MATCH(RAND(), _xlfn.POISSON.DIST({0,1,2,3,4,5,6,7,8,9},$O7, TRUE),1), 0) -> 0 | R7: =_xlfn.IFNA(MATCH(RAND(), _xlfn.POISSON.DIST({0,1,2,3,4,5,6,7,8,9},$O7, TRUE),1), 0) -> 1 | S7: =_xlfn.IFNA(MATCH(RAND(), _xlfn.POISSON.DIST({0,1,2,3,4,5,6,7,8,9},$O7, TRUE),1), 0) -> 3 | T7: =_xlfn.IFNA(MATCH(RAND(), _xlfn.POISSON.DIST({0,1,2,3,4,5,6,7,8,9},$O7, TRUE),1), 0) -> 1 | U7: =_xlfn.IFNA(MATCH(RAND(), _xlfn.POISSON.DIST({0,1,2,3,4,5,6,7,8,9},$O7, TRUE),1), 0) -> 3 | V7: =_xlfn.IFNA(MATCH(RAND(), _xlfn.POISSON.DIST({0,1,2,3,4,5,6,7,8,9},$O7, TRUE),1), 0) -> 3 | W7: =_xlfn.IFNA(MATCH(RAND(), _xlfn.POISSON.DIST({0,1,2,3,4,5,6,7,8,9},$O7, TRUE),1), 0) -> 0 | X7: =_xlfn.IFNA(MATCH(RAND(), _xlfn.POISSON.DIST({0,1,2,3,4,5,6,7,8,9},$O7, TRUE),1), 0) -> 1 | Y7: =_xlfn.IFNA(MATCH(RAND(), _xlfn.POISSON.DIST({0,1,2,3,4,5,6,7,8,9},$O7, TRUE),1), 0) -> 2 | Z7: =_xlfn.IFNA(MATCH(RAND(), _xlfn.POISSON.DIST({0,1,2,3,4,5,6,7,8,9},$O7, TRUE),1), 0) -> 1 | AA7: =_xlfn.IFNA(MATCH(RAND(), _xlfn.POISSON.DIST({0,1,2,3,4,5,6,7,8,9},$O7, TRUE),1), 0) -> 0 | AB7: =_xlfn.IFNA(MATCH(RAND(), _xlfn.POISSON.DIST({0,1,2,3,4,5,6,7,8,9},$O7, TRUE),1), 0) -> 1 | AC7: =_xlfn.IFNA(MATCH(RAND(), _xlfn.POISSON.DIST({0,1,2,3,4,5,6,7,8,9},$O7, TRUE),1), 0) -> 1 | AD7: =_xlfn.IFNA(MATCH(RAND(), _xlfn.POISSON.DIST({0,1,2,3,4,5,6,7,8,9},$O7, TRUE),1), 0) -> 2 | AE7: =_xlfn.IFNA(MATCH(RAND(), _xlfn.POISSON.DIST({0,1,2,3,4,5,6,7,8,9},$O7, TRUE),1), 0) -> 2 | AF7: =_xlfn.IFNA(MATCH(RAND(), _xlfn.POISSON.DIST({0,1,2,3,4,5,6,7,8,9},$O7, TRUE),1), 0) -> 2 | AG7: =_xlfn.IFNA(MATCH(RAND(), _xlfn.POISSON.DIST({0,1,2,3,4,5,6,7,8,9},$O7, TRUE),1), 0) -> 2 | AH7: =_xlfn.IFNA(MATCH(RAND(), _xlfn.POISSON.DIST({0,1,2,3,4,5,6,7,8,9},$O7, TRUE),1), 0) -> 1 | AI7: =_xlfn.IFNA(MATCH(RAND(), _xlfn.POISSON.DIST({0,1,2,3,4,5,6,7,8,9},$O7, TRUE),1), 0) -> 2 | AJ7: =_xlfn.IFNA(MATCH(RAND(), _xlfn.POISSON.DIST({0,1,2,3,4,5,6,7,8,9},$O7, TRUE),1), 0) -> 3 | AK7: =_xlfn.IFNA(MATCH(RAND(), _xlfn.POISSON.DIST({0,1,2,3,4,5,6,7,8,9},$O7, TRUE),1), 0) -> 0 | AL7: =_xlfn.IFNA(MATCH(RAND(), _xlfn.POISSON.DIST({0,1,2,3,4,5,6,7,8,9},$O7, TRUE),1), 0) -> 1 | AM7: =_xlfn.IFNA(MATCH(RAND(), _xlfn.POISSON.DIST({0,1,2,3,4,5,6,7,8,9},$O7, TRUE),1), 0) -> 2 | AN7: =_xlfn.IFNA(MATCH(RAND(), _xlfn.POISSON.DIST({0,1,2,3,4,5,6,7,8,9},$O7, TRUE),1), 0) -> 1 | AO7: =_xlfn.IFNA(MATCH(RAND(), _xlfn.POISSON.DIST({0,1,2,3,4,5,6,7,8,9},$O7, TRUE),1), 0) -> 4 | AP7: =_xlfn.IFNA(MATCH(RAND(), _xlfn.POISSON.DIST({0,1,2,3,4,5,6,7,8,9},$O7, TRUE),1), 0) -> 2 | AQ7: =_xlfn.IFNA(MATCH(RAND(), _xlfn.POISSON.DIST({0,1,2,3,4,5,6,7,8,9},$O7, TRUE),1), 0) -> 1 | AR7: =_xlfn.IFNA(MATCH(RAND(), _xlfn.POISSON.DIST({0,1,2,3,4,5,6,7,8,9},$O7, TRUE),1), 0) -> 1 | AS7: =_xlfn.IFNA(MATCH(RAND(), _xlfn.POISSON.DIST({0,1,2,3,4,5,6,7,8,9},$O7, TRUE),1), 0) -> 1 | AT7: =_xlfn.IFNA(MATCH(RAND(), _xlfn.POISSON.DIST({0,1,2,3,4,5,6,7,8,9},$O7, TRUE),1), 0) -> 1 | AU7: =_xlfn.IFNA(MATCH(RAND(), _xlfn.POISSON.DIST({0,1,2,3,4,5,6,7,8,9},$O7, TRUE),1), 0) -> 0 | AV7: =_xlfn.IFNA(MATCH(RAND(), _xlfn.POISSON.DIST({0,1,2,3,4,5,6,7,8,9},$O7, TRUE),1), 0) -> 1 | AW7: =_xlfn.IFNA(MATCH(RAND(), _xlfn.POISSON.DIST({0,1,2,3,4,5,6,7,8,9},$O7, TRUE),1), 0) -> 0 | AX7: =_xlfn.IFNA(MATCH(RAND(), _xlfn.POISSON.DIST({0,1,2,3,4,5,6,7,8,9},$O7, TRUE),1), 0) -> 1 | AY7: =_xlfn.IFNA(MATCH(RAND(), _xlfn.POISSON.DIST({0,1,2,3,4,5,6,7,8,9},$O7, TRUE),1), 0) -> 3 | AZ7: =_xlfn.IFNA(MATCH(RAND(), _xlfn.POISSON.DIST({0,1,2,3,4,5,6,7,8,9},$O7, TRUE),1), 0) -> 2 | BA7: =_xlfn.IFNA(MATCH(RAND(), _xlfn.POISSON.DIST({0,1,2,3,4,5,6,7,8,9},$O7, TRUE),1), 0) -> 1 | BB7: =_xlfn.IFNA(MATCH(RAND(), _xlfn.POISSON.DIST({0,1,2,3,4,5,6,7,8,9},$O7, TRUE),1), 0) -> 2 | BC7: =_xlfn.IFNA(MATCH(RAND(), _xlfn.POISSON.DIST({0,1,2,3,4,5,6,7,8,9},$O7, TRUE),1), 0) -> 5 | BD7: =_xlfn.IFNA(MATCH(RAND(), _xlfn.POISSON.DIST({0,1,2,3,4,5,6,7,8,9},$O7, TRUE),1), 0) -> 0 | BE7: =_xlfn.IFNA(MATCH(RAND(), _xlfn.POISSON.DIST({0,1,2,3,4,5,6,7,8,9},$O7, TRUE),1), 0) -> 4 | BF7: =_xlfn.IFNA(MATCH(RAND(), _xlfn.POISSON.DIST({0,1,2,3,4,5,6,7,8,9},$O7, TRUE),1), 0) -> 3 | BG7: =_xlfn.IFNA(MATCH(RAND(), _xlfn.POISSON.DIST({0,1,2,3,4,5,6,7,8,9},$O7, TRUE),1), 0) -> 0 | BH7: =_xlfn.IFNA(MATCH(RAND(), _xlfn.POISSON.DIST({0,1,2,3,4,5,6,7,8,9},$O7, TRUE),1), 0) -> 1 | BI7: =_xlfn.IFNA(MATCH(RAND(), _xlfn.POISSON.DIST({0,1,2,3,4,5,6,7,8,9},$O7, TRUE),1), 0) -> 2 | BJ7: =_xlfn.IFNA(MATCH(RAND(), _xlfn.POISSON.DIST({0,1,2,3,4,5,6,7,8,9},$O7, TRUE),1), 0) -> 3 | BK7: =_xlfn.IFNA(MATCH(RAND(), _xlfn.POISSON.DIST({0,1,2,3,4,5,6,7,8,9},$O7, TRUE),1), 0) -> 0 | BL7: =_xlfn.IFNA(MATCH(RAND(), _xlfn.POISSON.DIST({0,1,2,3,4,5,6,7,8,9},$O7, TRUE),1), 0) -> 3 | BM7: =_xlfn.IFNA(MATCH(RAND(), _xlfn.POISSON.DIST({0,1,2,3,4,5,6,7,8,9},$O7, TRUE),1), 0) -> 1 | BN7: =_xlfn.IFNA(MATCH(RAND(), _xlfn.POISSON.DIST({0,1,2,3,4,5,6,7,8,9},$O7, TRUE),1), 0) -> 1 | BP7: =_xlfn.IFNA(MATCH(RAND(), _xlfn.POISSON.DIST({0,1,2,3,4,5,6,7,8,9},$P7, TRUE),1), 0) -> 1 | BQ7: =_xlfn.IFNA(MATCH(RAND(), _xlfn.POISSON.DIST({0,1,2,3,4,5,6,7,8,9},$P7, TRUE),1), 0) -> 2 | BR7: =_xlfn.IFNA(MATCH(RAND(), _xlfn.POISSON.DIST({0,1,2,3,4,5,6,7,8,9},$P7, TRUE),1), 0) -> 2 | BS7: =_xlfn.IFNA(MATCH(RAND(), _xlfn.POISSON.DIST({0,1,2,3,4,5,6,7,8,9},$P7, TRUE),1), 0) -> 2 | BT7: =_xlfn.IFNA(MATCH(RAND(), _xlfn.POISSON.DIST({0,1,2,3,4,5,6,7,8,9},$P7, TRUE),1), 0) -> 0 | BU7: =_xlfn.IFNA(MATCH(RAND(), _xlfn.POISSON.DIST({0,1,2,3,4,5,6,7,8,9},$P7, TRUE),1), 0) -> 2 | BV7: =_xlfn.IFNA(MATCH(RAND(), _xlfn.POISSON.DIST({0,1,2,3,4,5,6,7,8,9},$P7, TRUE),1), 0) -> 1 | BW7: =_xlfn.IFNA(MATCH(RAND(), _xlfn.POISSON.DIST({0,1,2,3,4,5,6,7,8,9},$P7, TRUE),1), 0) -> 1 | BX7: =_xlfn.IFNA(MATCH(RAND(), _xlfn.POISSON.DIST({0,1,2,3,4,5,6,7,8,9},$P7, TRUE),1), 0) -> 3 | BY7: =_xlfn.IFNA(MATCH(RAND(), _xlfn.POISSON.DIST({0,1,2,3,4,5,6,7,8,9},$P7, TRUE),1), 0) -> 3 | BZ7: =_xlfn.IFNA(MATCH(RAND(), _xlfn.POISSON.DIST({0,1,2,3,4,5,6,7,8,9},$P7, TRUE),1), 0) -> 2 | CA7: =_xlfn.IFNA(MATCH(RAND(), _xlfn.POISSON.DIST({0,1,2,3,4,5,6,7,8,9},$P7, TRUE),1), 0) -> 3 | CB7: =_xlfn.IFNA(MATCH(RAND(), _xlfn.POISSON.DIST({0,1,2,3,4,5,6,7,8,9},$P7, TRUE),1), 0) -> 2 | CC7: =_xlfn.IFNA(MATCH(RAND(), _xlfn.POISSON.DIST({0,1,2,3,4,5,6,7,8,9},$P7, TRUE),1), 0) -> 3 | CD7: =_xlfn.IFNA(MATCH(RAND(), _xlfn.POISSON.DIST({0,1,2,3,4,5,6,7,8,9},$P7, TRUE),1), 0) -> 0 | CE7: =_xlfn.IFNA(MATCH(RAND(), _xlfn.POISSON.DIST({0,1,2,3,4,5,6,7,8,9},$P7, TRUE),1), 0) -> 1 | CF7: =_xlfn.IFNA(MATCH(RAND(), _xlfn.POISSON.DIST({0,1,2,3,4,5,6,7,8,9},$P7, TRUE),1), 0) -> 2 | CG7: =_xlfn.IFNA(MATCH(RAND(), _xlfn.POISSON.DIST({0,1,2,3,4,5,6,7,8,9},$P7, TRUE),1), 0) -> 0 | CH7: =_xlfn.IFNA(MATCH(RAND(), _xlfn.POISSON.DIST({0,1,2,3,4,5,6,7,8,9},$P7, TRUE),1), 0) -> 2 | CI7: =_xlfn.IFNA(MATCH(RAND(), _xlfn.POISSON.DIST({0,1,2,3,4,5,6,7,8,9},$P7, TRUE),1), 0) -> 2 | CJ7: =_xlfn.IFNA(MATCH(RAND(), _xlfn.POISSON.DIST({0,1,2,3,4,5,6,7,8,9},$P7, TRUE),1), 0) -> 2 | CK7: =_xlfn.IFNA(MATCH(RAND(), _xlfn.POISSON.DIST({0,1,2,3,4,5,6,7,8,9},$P7, TRUE),1), 0) -> 1 | CL7: =_xlfn.IFNA(MATCH(RAND(), _xlfn.POISSON.DIST({0,1,2,3,4,5,6,7,8,9},$P7, TRUE),1), 0) -> 2 | CM7: =_xlfn.IFNA(MATCH(RAND(), _xlfn.POISSON.DIST({0,1,2,3,4,5,6,7,8,9},$P7, TRUE),1), 0) -> 0 | CN7: =_xlfn.IFNA(MATCH(RAND(), _xlfn.POISSON.DIST({0,1,2,3,4,5,6,7,8,9},$P7, TRUE),1), 0) -> 2 | CO7: =_xlfn.IFNA(MATCH(RAND(), _xlfn.POISSON.DIST({0,1,2,3,4,5,6,7,8,9},$P7, TRUE),1), 0) -> 0 | CP7: =_xlfn.IFNA(MATCH(RAND(), _xlfn.POISSON.DIST({0,1,2,3,4,5,6,7,8,9},$P7, TRUE),1), 0) -> 0 | CQ7: =_xlfn.IFNA(MATCH(RAND(), _xlfn.POISSON.DIST({0,1,2,3,4,5,6,7,8,9},$P7, TRUE),1), 0) -> 3 | CR7: =_xlfn.IFNA(MATCH(RAND(), _xlfn.POISSON.DIST({0,1,2,3,4,5,6,7,8,9},$P7, TRUE),1), 0) -> 0 | CS7: =_xlfn.IFNA(MATCH(RAND(), _xlfn.POISSON.DIST({0,1,2,3,4,5,6,7,8,9},$P7, TRUE),1), 0) -> 0 | CT7: =_xlfn.IFNA(MATCH(RAND(), _xlfn.POISSON.DIST({0,1,2,3,4,5,6,7,8,9},$P7, TRUE),1), 0) -> 1 | CU7: =_xlfn.IFNA(MATCH(RAND(), _xlfn.POISSON.DIST({0,1,2,3,4,5,6,7,8,9},$P7, TRUE),1), 0) -> 0 | CV7: =_xlfn.IFNA(MATCH(RAND(), _xlfn.POISSON.DIST({0,1,2,3,4,5,6,7,8,9},$P7, TRUE),1), 0) -> 1 | CW7: =_xlfn.IFNA(MATCH(RAND(), _xlfn.POISSON.DIST({0,1,2,3,4,5,6,7,8,9},$P7, TRUE),1), 0) -> 2 | CX7: =_xlfn.IFNA(MATCH(RAND(), _xlfn.POISSON.DIST({0,1,2,3,4,5,6,7,8,9},$P7, TRUE),1), 0) -> 2 | CY7: =_xlfn.IFNA(MATCH(RAND(), _xlfn.POISSON.DIST({0,1,2,3,4,5,6,7,8,9},$P7, TRUE),1), 0) -> 0 | CZ7: =_xlfn.IFNA(MATCH(RAND(), _xlfn.POISSON.DIST({0,1,2,3,4,5,6,7,8,9},$P7, TRUE),1), 0) -> 2 | DA7: =_xlfn.IFNA(MATCH(RAND(), _xlfn.POISSON.DIST({0,1,2,3,4,5,6,7,8,9},$P7, TRUE),1), 0) -> 1 | DB7: =_xlfn.IFNA(MATCH(RAND(), _xlfn.POISSON.DIST({0,1,2,3,4,5,6,7,8,9},$P7, TRUE),1), 0) -> 3 | DC7: =_xlfn.IFNA(MATCH(RAND(), _xlfn.POISSON.DIST({0,1,2,3,4,5,6,7,8,9},$P7, TRUE),1), 0) -> 2 | DD7: =_xlfn.IFNA(MATCH(RAND(), _xlfn.POISSON.DIST({0,1,2,3,4,5,6,7,8,9},$P7, TRUE),1), 0) -> 0 | DE7: =_xlfn.IFNA(MATCH(RAND(), _xlfn.POISSON.DIST({0,1,2,3,4,5,6,7,8,9},$P7, TRUE),1), 0) -> 0 | DF7: =_xlfn.IFNA(MATCH(RAND(), _xlfn.POISSON.DIST({0,1,2,3,4,5,6,7,8,9},$P7, TRUE),1), 0) -> 2 | DG7: =_xlfn.IFNA(MATCH(RAND(), _xlfn.POISSON.DIST({0,1,2,3,4,5,6,7,8,9},$P7, TRUE),1), 0) -> 1 | DH7: =_xlfn.IFNA(MATCH(RAND(), _xlfn.POISSON.DIST({0,1,2,3,4,5,6,7,8,9},$P7, TRUE),1), 0) -> 1 | DI7: =_xlfn.IFNA(MATCH(RAND(), _xlfn.POISSON.DIST({0,1,2,3,4,5,6,7,8,9},$P7, TRUE),1), 0) -> 6 | DJ7: =_xlfn.IFNA(MATCH(RAND(), _xlfn.POISSON.DIST({0,1,2,3,4,5,6,7,8,9},$P7, TRUE),1), 0) -> 1 | DK7: =_xlfn.IFNA(MATCH(RAND(), _xlfn.POISSON.DIST({0,1,2,3,4,5,6,7,8,9},$P7, TRUE),1), 0) -> 0 | DL7: =_xlfn.IFNA(MATCH(RAND(), _xlfn.POISSON.DIST({0,1,2,3,4,5,6,7,8,9},$P7, TRUE),1), 0) -> 1 | DM7: =_xlfn.IFNA(MATCH(RAND(), _xlfn.POISSON.DIST({0,1,2,3,4,5,6,7,8,9},$P7, TRUE),1), 0) -> 0
C8: 2019-06-08 | D8: B | E8: Spanien | F8: =(AVERAGE(Q8:BN8))*(1+INDEX('Prognosen für die Gruppenphase'!$C$4:$O$28, MATCH('Spiele in diesem Jahr'!E8,'Prognosen für die Gruppenphase'!$D$4:$D$28,0),3)) -> 1.54 | G8: Südafrika | H8: =(AVERAGE(BP8:DM8))*(1+INDEX('Prognosen für die Gruppenphase'!$C$4:$O$28, MATCH('Spiele in diesem Jahr'!G8,'Prognosen für die Gruppenphase'!$D$4:$D$28,0),3)) -> 1.38 | I8: Spanien | L8: 1.54 | M8: 1.38 | N8: Spanien | O8: =(OFFSET('Anhang 3 – Tore je Gruppe'!$C$13,(INDEX('Anhang 1 – Mannschaftsdaten'!$C$13:$F$112,MATCH(G8,'Anhang 1 – Mannschaftsdaten'!$C$13:$C$112,0),4)/10),(INDEX('Anhang 1 – Mannschaftsdaten'!$C$13:$F$112,MATCH(E8,'Anhang 1 – Mannschaftsdaten'!$C$13:$C$112,0),4)/10))) -> 1.50 | P8: =OFFSET('Anhang 3 – Tore je Gruppe'!$C$13,(INDEX('Anhang 1 – Mannschaftsdaten'!$C$13:$F$112, MATCH(E8,'Anhang 1 – Mannschaftsdaten'!$C$13:$C$112,0),4)/10), (INDEX('Anhang 1 – Mannschaftsdaten'!$C$13:$F$112, MATCH(G8, 'Anhang 1 – Mannschaftsdaten'!$C$13:$C$112,0),4)/10)) -> 1.50 | Q8: =_xlfn.IFNA(MATCH(RAND(), _xlfn.POISSON.DIST({0,1,2,3,4,5,6,7,8,9},$O8, TRUE),1), 0) -> 1 | R8: =_xlfn.IFNA(MATCH(RAND(), _xlfn.POISSON.DIST({0,1,2,3,4,5,6,7,8,9},$O8, TRUE),1), 0) -> 0 | S8: =_xlfn.IFNA(MATCH(RAND(), _xlfn.POISSON.DIST({0,1,2,3,4,5,6,7,8,9},$O8, TRUE),1), 0) -> 2 | T8: =_xlfn.IFNA(MATCH(RAND(), _xlfn.POISSON.DIST({0,1,2,3,4,5,6,7,8,9},$O8, TRUE),1), 0) -> 1 | U8: =_xlfn.IFNA(MATCH(RAND(), _xlfn.POISSON.DIST({0,1,2,3,4,5,6,7,8,9},$O8, TRUE),1), 0) -> 1 | V8: =_xlfn.IFNA(MATCH(RAND(), _xlfn.POISSON.DIST({0,1,2,3,4,5,6,7,8,9},$O8, TRUE),1), 0) -> 1 | W8: =_xlfn.IFNA(MATCH(RAND(), _xlfn.POISSON.DIST({0,1,2,3,4,5,6,7,8,9},$O8, TRUE),1), 0) -> 2 | X8: =_xlfn.IFNA(MATCH(RAND(), _xlfn.POISSON.DIST({0,1,2,3,4,5,6,7,8,9},$O8, TRUE),1), 0) -> 2 | Y8: =_xlfn.IFNA(MATCH(RAND(), _xlfn.POISSON.DIST({0,1,2,3,4,5,6,7,8,9},$O8, TRUE),1), 0) -> 2 | Z8: =_xlfn.IFNA(MATCH(RAND(), _xlfn.POISSON.DIST({0,1,2,3,4,5,6,7,8,9},$O8, TRUE),1), 0) -> 2 | AA8: =_xlfn.IFNA(MATCH(RAND(), _xlfn.POISSON.DIST({0,1,2,3,4,5,6,7,8,9},$O8, TRUE),1), 0) -> 1 | AB8: =_xlfn.IFNA(MATCH(RAND(), _xlfn.POISSON.DIST({0,1,2,3,4,5,6,7,8,9},$O8, TRUE),1), 0) -> 3 | AC8: =_xlfn.IFNA(MATCH(RAND(), _xlfn.POISSON.DIST({0,1,2,3,4,5,6,7,8,9},$O8, TRUE),1), 0) -> 0 | AD8: =_xlfn.IFNA(MATCH(RAND(), _xlfn.POISSON.DIST({0,1,2,3,4,5,6,7,8,9},$O8, TRUE),1), 0) -> 1 | AE8: =_xlfn.IFNA(MATCH(RAND(), _xlfn.POISSON.DIST({0,1,2,3,4,5,6,7,8,9},$O8, TRUE),1), 0) -> 3 | AF8: =_xlfn.IFNA(MATCH(RAND(), _xlfn.POISSON.DIST({0,1,2,3,4,5,6,7,8,9},$O8, TRUE),1), 0) -> 1 | AG8: =_xlfn.IFNA(MATCH(RAND(), _xlfn.POISSON.DIST({0,1,2,3,4,5,6,7,8,9},$O8, TRUE),1), 0) -> 1 | AH8: =_xlfn.IFNA(MATCH(RAND(), _xlfn.POISSON.DIST({0,1,2,3,4,5,6,7,8,9},$O8, TRUE),1), 0) -> 2 | AI8: =_xlfn.IFNA(MATCH(RAND(), _xlfn.POISSON.DIST({0,1,2,3,4,5,6,7,8,9},$O8, TRUE),1), 0) -> 1 | AJ8: =_xlfn.IFNA(MATCH(RAND(), _xlfn.POISSON.DIST({0,1,2,3,4,5,6,7,8,9},$O8, TRUE),1), 0) -> 4 | AK8: =_xlfn.IFNA(MATCH(RAND(), _xlfn.POISSON.DIST({0,1,2,3,4,5,6,7,8,9},$O8, TRUE),1), 0) -> 2 | AL8: =_xlfn.IFNA(MATCH(RAND(), _xlfn.POISSON.DIST({0,1,2,3,4,5,6,7,8,9},$O8, TRUE),1), 0) -> 1 | AM8: =_xlfn.IFNA(MATCH(RAND(), _xlfn.POISSON.DIST({0,1,2,3,4,5,6,7,8,9},$O8, TRUE),1), 0) -> 0 | AN8: =_xlfn.IFNA(MATCH(RAND(), _xlfn.POISSON.DIST({0,1,2,3,4,5,6,7,8,9},$O8, TRUE),1), 0) -> 3 | AO8: =_xlfn.IFNA(MATCH(RAND(), _xlfn.POISSON.DIST({0,1,2,3,4,5,6,7,8,9},$O8, TRUE),1), 0) -> 1 | AP8: =_xlfn.IFNA(MATCH(RAND(), _xlfn.POISSON.DIST({0,1,2,3,4,5,6,7,8,9},$O8, TRUE),1), 0) -> 2 | AQ8: =_xlfn.IFNA(MATCH(RAND(), _xlfn.POISSON.DIST({0,1,2,3,4,5,6,7,8,9},$O8, TRUE),1), 0) -> 3 | AR8: =_xlfn.IFNA(MATCH(RAND(), _xlfn.POISSON.DIST({0,1,2,3,4,5,6,7,8,9},$O8, TRUE),1), 0) -> 2 | AS8: =_xlfn.IFNA(MATCH(RAND(), _xlfn.POISSON.DIST({0,1,2,3,4,5,6,7,8,9},$O8, TRUE),1), 0) -> 0 | AT8: =_xlfn.IFNA(MATCH(RAND(), _xlfn.POISSON.DIST({0,1,2,3,4,5,6,7,8,9},$O8, TRUE),1), 0) -> 5 | AU8: =_xlfn.IFNA(MATCH(RAND(), _xlfn.POISSON.DIST({0,1,2,3,4,5,6,7,8,9},$O8, TRUE),1), 0) -> 1 | AV8: =_xlfn.IFNA(MATCH(RAND(), _xlfn.POISSON.DIST({0,1,2,3,4,5,6,7,8,9},$O8, TRUE),1), 0) -> 2 | AW8: =_xlfn.IFNA(MATCH(RAND(), _xlfn.POISSON.DIST({0,1,2,3,4,5,6,7,8,9},$O8, TRUE),1), 0) -> 1 | AX8: =_xlfn.IFNA(MATCH(RAND(), _xlfn.POISSON.DIST({0,1,2,3,4,5,6,7,8,9},$O8, TRUE),1), 0) -> 2 | AY8: =_xlfn.IFNA(MATCH(RAND(), _xlfn.POISSON.DIST({0,1,2,3,4,5,6,7,8,9},$O8, TRUE),1), 0) -> 1 | AZ8: =_xlfn.IFNA(MATCH(RAND(), _xlfn.POISSON.DIST({0,1,2,3,4,5,6,7,8,9},$O8, TRUE),1), 0) -> 0 | BA8: =_xlfn.IFNA(MATCH(RAND(), _xlfn.POISSON.DIST({0,1,2,3,4,5,6,7,8,9},$O8, TRUE),1), 0) -> 0 | BB8: =_xlfn.IFNA(MATCH(RAND(), _xlfn.POISSON.DIST({0,1,2,3,4,5,6,7,8,9},$O8, TRUE),1), 0) -> 0 | BC8: =_xlfn.IFNA(MATCH(RAND(), _xlfn.POISSON.DIST({0,1,2,3,4,5,6,7,8,9},$O8, TRUE),1), 0) -> 2 | BD8: =_xlfn.IFNA(MATCH(RAND(), _xlfn.POISSON.DIST({0,1,2,3,4,5,6,7,8,9},$O8, TRUE),1), 0) -> 1 | BE8: =_xlfn.IFNA(MATCH(RAND(), _xlfn.POISSON.DIST({0,1,2,3,4,5,6,7,8,9},$O8, TRUE),1), 0) -> 2 | BF8: =_xlfn.IFNA(MATCH(RAND(), _xlfn.POISSON.DIST({0,1,2,3,4,5,6,7,8,9},$O8, TRUE),1), 0) -> 0 | BG8: =_xlfn.IFNA(MATCH(RAND(), _xlfn.POISSON.DIST({0,1,2,3,4,5,6,7,8,9},$O8, TRUE),1), 0) -> 3 | BH8: =_xlfn.IFNA(MATCH(RAND(), _xlfn.POISSON.DIST({0,1,2,3,4,5,6,7,8,9},$O8, TRUE),1), 0) -> 4 | BI8: =_xlfn.IFNA(MATCH(RAND(), _xlfn.POISSON.DIST({0,1,2,3,4,5,6,7,8,9},$O8, TRUE),1), 0) -> 1 | BJ8: =_xlfn.IFNA(MATCH(RAND(), _xlfn.POISSON.DIST({0,1,2,3,4,5,6,7,8,9},$O8, TRUE),1), 0) -> 0 | BK8: =_xlfn.IFNA(MATCH(RAND(), _xlfn.POISSON.DIST({0,1,2,3,4,5,6,7,8,9},$O8, TRUE),1), 0) -> 3 | BL8: =_xlfn.IFNA(MATCH(RAND(), _xlfn.POISSON.DIST({0,1,2,3,4,5,6,7,8,9},$O8, TRUE),1), 0) -> 1 | BM8: =_xlfn.IFNA(MATCH(RAND(), _xlfn.POISSON.DIST({0,1,2,3,4,5,6,7,8,9},$O8, TRUE),1), 0) -> 0 | BN8: =_xlfn.IFNA(MATCH(RAND(), _xlfn.POISSON.DIST({0,1,2,3,4,5,6,7,8,9},$O8, TRUE),1), 0) -> 3 | BP8: =_xlfn.IFNA(MATCH(RAND(), _xlfn.POISSON.DIST({0,1,2,3,4,5,6,7,8,9},$P8, TRUE),1), 0) -> 1 | BQ8: =_xlfn.IFNA(MATCH(RAND(), _xlfn.POISSON.DIST({0,1,2,3,4,5,6,7,8,9},$P8, TRUE),1), 0) -> 2 | BR8: =_xlfn.IFNA(MATCH(RAND(), _xlfn.POISSON.DIST({0,1,2,3,4,5,6,7,8,9},$P8, TRUE),1), 0) -> 2 | BS8: =_xlfn.IFNA(MATCH(RAND(), _xlfn.POISSON.DIST({0,1,2,3,4,5,6,7,8,9},$P8, TRUE),1), 0) -> 3 | BT8: =_xlfn.IFNA(MATCH(RAND(), _xlfn.POISSON.DIST({0,1,2,3,4,5,6,7,8,9},$P8, TRUE),1), 0) -> 2 | BU8: =_xlfn.IFNA(MATCH(RAND(), _xlfn.POISSON.DIST({0,1,2,3,4,5,6,7,8,9},$P8, TRUE),1), 0) -> 1 | BV8: =_xlfn.IFNA(MATCH(RAND(), _xlfn.POISSON.DIST({0,1,2,3,4,5,6,7,8,9},$P8, TRUE),1), 0) -> 2 | BW8: =_xlfn.IFNA(MATCH(RAND(), _xlfn.POISSON.DIST({0,1,2,3,4,5,6,7,8,9},$P8, TRUE),1), 0) -> 1 | BX8: =_xlfn.IFNA(MATCH(RAND(), _xlfn.POISSON.DIST({0,1,2,3,4,5,6,7,8,9},$P8, TRUE),1), 0) -> 2 | BY8: =_xlfn.IFNA(MATCH(RAND(), _xlfn.POISSON.DIST({0,1,2,3,4,5,6,7,8,9},$P8, TRUE),1), 0) -> 1 | BZ8: =_xlfn.IFNA(MATCH(RAND(), _xlfn.POISSON.DIST({0,1,2,3,4,5,6,7,8,9},$P8, TRUE),1), 0) -> 1 | CA8: =_xlfn.IFNA(MATCH(RAND(), _xlfn.POISSON.DIST({0,1,2,3,4,5,6,7,8,9},$P8, TRUE),1), 0) -> 3 | CB8: =_xlfn.IFNA(MATCH(RAND(), _xlfn.POISSON.DIST({0,1,2,3,4,5,6,7,8,9},$P8, TRUE),1), 0) -> 2 | CC8: =_xlfn.IFNA(MATCH(RAND(), _xlfn.POISSON.DIST({0,1,2,3,4,5,6,7,8,9},$P8, TRUE),1), 0) -> 1 | CD8: =_xlfn.IFNA(MATCH(RAND(), _xlfn.POISSON.DIST({0,1,2,3,4,5,6,7,8,9},$P8, TRUE),1), 0) -> 1 | CE8: =_xlfn.IFNA(MATCH(RAND(), _xlfn.POISSON.DIST({0,1,2,3,4,5,6,7,8,9},$P8, TRUE),1), 0) -> 2 | CF8: =_xlfn.IFNA(MATCH(RAND(), _xlfn.POISSON.DIST({0,1,2,3,4,5,6,7,8,9},$P8, TRUE),1), 0) -> 0 | CG8: =_xlfn.IFNA(MATCH(RAND(), _xlfn.POISSON.DIST({0,1,2,3,4,5,6,7,8,9},$P8, TRUE),1), 0) -> 0 | CH8: =_xlfn.IFNA(MATCH(RAND(), _xlfn.POISSON.DIST({0,1,2,3,4,5,6,7,8,9},$P8, TRUE),1), 0) -> 0 | CI8: =_xlfn.IFNA(MATCH(RAND(), _xlfn.POISSON.DIST({0,1,2,3,4,5,6,7,8,9},$P8, TRUE),1), 0) -> 1 | CJ8: =_xlfn.IFNA(MATCH(RAND(), _xlfn.POISSON.DIST({0,1,2,3,4,5,6,7,8,9},$P8, TRUE),1), 0) -> 3 | CK8: =_xlfn.IFNA(MATCH(RAND(), _xlfn.POISSON.DIST({0,1,2,3,4,5,6,7,8,9},$P8, TRUE),1), 0) -> 2 | CL8: =_xlfn.IFNA(MATCH(RAND(), _xlfn.POISSON.DIST({0,1,2,3,4,5,6,7,8,9},$P8, TRUE),1), 0) -> 0 | CM8: =_xlfn.IFNA(MATCH(RAND(), _xlfn.POISSON.DIST({0,1,2,3,4,5,6,7,8,9},$P8, TRUE),1), 0) -> 3 | CN8: =_xlfn.IFNA(MATCH(RAND(), _xlfn.POISSON.DIST({0,1,2,3,4,5,6,7,8,9},$P8, TRUE),1), 0) -> 2 | CO8: =_xlfn.IFNA(MATCH(RAND(), _xlfn.POISSON.DIST({0,1,2,3,4,5,6,7,8,9},$P8, TRUE),1), 0) -> 0 | CP8: =_xlfn.IFNA(MATCH(RAND(), _xlfn.POISSON.DIST({0,1,2,3,4,5,6,7,8,9},$P8, TRUE),1), 0) -> 2 | CQ8: =_xlfn.IFNA(MATCH(RAND(), _xlfn.POISSON.DIST({0,1,2,3,4,5,6,7,8,9},$P8, TRUE),1), 0) -> 2 | CR8: =_xlfn.IFNA(MATCH(RAND(), _xlfn.POISSON.DIST({0,1,2,3,4,5,6,7,8,9},$P8, TRUE),1), 0) -> 2 | CS8: =_xlfn.IFNA(MATCH(RAND(), _xlfn.POISSON.DIST({0,1,2,3,4,5,6,7,8,9},$P8, TRUE),1), 0) -> 1 | CT8: =_xlfn.IFNA(MATCH(RAND(), _xlfn.POISSON.DIST({0,1,2,3,4,5,6,7,8,9},$P8, TRUE),1), 0) -> 1 | CU8: =_xlfn.IFNA(MATCH(RAND(), _xlfn.POISSON.DIST({0,1,2,3,4,5,6,7,8,9},$P8, TRUE),1), 0) -> 0 | CV8: =_xlfn.IFNA(MATCH(RAND(), _xlfn.POISSON.DIST({0,1,2,3,4,5,6,7,8,9},$P8, TRUE),1), 0) -> 3 | CW8: =_xlfn.IFNA(MATCH(RAND(), _xlfn.POISSON.DIST({0,1,2,3,4,5,6,7,8,9},$P8, TRUE),1), 0) -> 3 | CX8: =_xlfn.IFNA(MATCH(RAND(), _xlfn.POISSON.DIST({0,1,2,3,4,5,6,7,8,9},$P8, TRUE),1), 0) -> 0 | CY8: =_xlfn.IFNA(MATCH(RAND(), _xlfn.POISSON.DIST({0,1,2,3,4,5,6,7,8,9},$P8, TRUE),1), 0) -> 0 | CZ8: =_xlfn.IFNA(MATCH(RAND(), _xlfn.POISSON.DIST({0,1,2,3,4,5,6,7,8,9},$P8, TRUE),1), 0) -> 0 | DA8: =_xlfn.IFNA(MATCH(RAND(), _xlfn.POISSON.DIST({0,1,2,3,4,5,6,7,8,9},$P8, TRUE),1), 0) -> 1 | DB8: =_xlfn.IFNA(MATCH(RAND(), _xlfn.POISSON.DIST({0,1,2,3,4,5,6,7,8,9},$P8, TRUE),1), 0) -> 1 | DC8: =_xlfn.IFNA(MATCH(RAND(), _xlfn.POISSON.DIST({0,1,2,3,4,5,6,7,8,9},$P8, TRUE),1), 0) -> 1 | DD8: =_xlfn.IFNA(MATCH(RAND(), _xlfn.POISSON.DIST({0,1,2,3,4,5,6,7,8,9},$P8, TRUE),1), 0) -> 2 | DE8: =_xlfn.IFNA(MATCH(RAND(), _xlfn.POISSON.DIST({0,1,2,3,4,5,6,7,8,9},$P8, TRUE),1), 0) -> 1 | DF8: =_xlfn.IFNA(MATCH(RAND(), _xlfn.POISSON.DIST({0,1,2,3,4,5,6,7,8,9},$P8, TRUE),1), 0) -> 2 | DG8: =_xlfn.IFNA(MATCH(RAND(), _xlfn.POISSON.DIST({0,1,2,3,4,5,6,7,8,9},$P8, TRUE),1), 0) -> 1 | DH8: =_xlfn.IFNA(MATCH(RAND(), _xlfn.POISSON.DIST({0,1,2,3,4,5,6,7,8,9},$P8, TRUE),1), 0) -> 2 | DI8: =_xlfn.IFNA(MATCH(RAND(), _xlfn.POISSON.DIST({0,1,2,3,4,5,6,7,8,9},$P8, TRUE),1), 0) -> 1 | DJ8: =_xlfn.IFNA(MATCH(RAND(), _xlfn.POISSON.DIST({0,1,2,3,4,5,6,7,8,9},$P8, TRUE),1), 0) -> 2 | DK8: =_xlfn.IFNA(MATCH(RAND(), _xlfn.POISSON.DIST({0,1,2,3,4,5,6,7,8,9},$P8, TRUE),1), 0) -> 1 | DL8: =_xlfn.IFNA(MATCH(RAND(), _xlfn.POISSON.DIST({0,1,2,3,4,5,6,7,8,9},$P8, TRUE),1), 0) -> 0 | DM8: =_xlfn.IFNA(MATCH(RAND(), _xlfn.POISSON.DIST({0,1,2,3,4,5,6,7,8,9},$P8, TRUE),1), 0) -> 2
C9: 2019-06-08 | D9: A | E9: Norwegen | F9: =(AVERAGE(Q9:BN9))*(1+INDEX('Prognosen für die Gruppenphase'!$C$4:$O$28, MATCH('Spiele in diesem Jahr'!E9,'Prognosen für die Gruppenphase'!$D$4:$D$28,0),3)) -> 1.30 | G9: Nigeria | H9: =(AVERAGE(BP9:DM9))*(1+INDEX('Prognosen für die Gruppenphase'!$C$4:$O$28, MATCH('Spiele in diesem Jahr'!G9,'Prognosen für die Gruppenphase'!$D$4:$D$28,0),3)) -> 1.58 | I9: Nigeria | L9: 1.3 | M9: 1.58 | N9: Nigeria | O9: =(OFFSET('Anhang 3 – Tore je Gruppe'!$C$13,(INDEX('Anhang 1 – Mannschaftsdaten'!$C$13:$F$112,MATCH(G9,'Anhang 1 – Mannschaftsdaten'!$C$13:$C$112,0),4)/10),(INDEX('Anhang 1 – Mannschaftsdaten'!$C$13:$F$112,MATCH(E9,'Anhang 1 – Mannschaftsdaten'!$C$13:$C$112,0),4)/10))) -> 1.50 | P9: =OFFSET('Anhang 3 – Tore je Gruppe'!$C$13,(INDEX('Anhang 1 – Mannschaftsdaten'!$C$13:$F$112, MATCH(E9,'Anhang 1 – Mannschaftsdaten'!$C$13:$C$112,0),4)/10), (INDEX('Anhang 1 – Mannschaftsdaten'!$C$13:$F$112, MATCH(G9, 'Anhang 1 – Mannschaftsdaten'!$C$13:$C$112,0),4)/10)) -> 1.50 | Q9: =_xlfn.IFNA(MATCH(RAND(), _xlfn.POISSON.DIST({0,1,2,3,4,5,6,7,8,9},$O9, TRUE),1), 0) -> 0 | R9: =_xlfn.IFNA(MATCH(RAND(), _xlfn.POISSON.DIST({0,1,2,3,4,5,6,7,8,9},$O9, TRUE),1), 0) -> 1 | S9: =_xlfn.IFNA(MATCH(RAND(), _xlfn.POISSON.DIST({0,1,2,3,4,5,6,7,8,9},$O9, TRUE),1), 0) -> 1 | T9: =_xlfn.IFNA(MATCH(RAND(), _xlfn.POISSON.DIST({0,1,2,3,4,5,6,7,8,9},$O9, TRUE),1), 0) -> 4 | U9: =_xlfn.IFNA(MATCH(RAND(), _xlfn.POISSON.DIST({0,1,2,3,4,5,6,7,8,9},$O9, TRUE),1), 0) -> 0 | V9: =_xlfn.IFNA(MATCH(RAND(), _xlfn.POISSON.DIST({0,1,2,3,4,5,6,7,8,9},$O9, TRUE),1), 0) -> 1 | W9: =_xlfn.IFNA(MATCH(RAND(), _xlfn.POISSON.DIST({0,1,2,3,4,5,6,7,8,9},$O9, TRUE),1), 0) -> 3 | X9: =_xlfn.IFNA(MATCH(RAND(), _xlfn.POISSON.DIST({0,1,2,3,4,5,6,7,8,9},$O9, TRUE),1), 0) -> 2 | Y9: =_xlfn.IFNA(MATCH(RAND(), _xlfn.POISSON.DIST({0,1,2,3,4,5,6,7,8,9},$O9, TRUE),1), 0) -> 1 | Z9: =_xlfn.IFNA(MATCH(RAND(), _xlfn.POISSON.DIST({0,1,2,3,4,5,6,7,8,9},$O9, TRUE),1), 0) -> 1 | AA9: =_xlfn.IFNA(MATCH(RAND(), _xlfn.POISSON.DIST({0,1,2,3,4,5,6,7,8,9},$O9, TRUE),1), 0) -> 3 | AB9: =_xlfn.IFNA(MATCH(RAND(), _xlfn.POISSON.DIST({0,1,2,3,4,5,6,7,8,9},$O9, TRUE),1), 0) -> 0 | AC9: =_xlfn.IFNA(MATCH(RAND(), _xlfn.POISSON.DIST({0,1,2,3,4,5,6,7,8,9},$O9, TRUE),1), 0) -> 2 | AD9: =_xlfn.IFNA(MATCH(RAND(), _xlfn.POISSON.DIST({0,1,2,3,4,5,6,7,8,9},$O9, TRUE),1), 0) -> 0 | AE9: =_xlfn.IFNA(MATCH(RAND(), _xlfn.POISSON.DIST({0,1,2,3,4,5,6,7,8,9},$O9, TRUE),1), 0) -> 2 | AF9: =_xlfn.IFNA(MATCH(RAND(), _xlfn.POISSON.DIST({0,1,2,3,4,5,6,7,8,9},$O9, TRUE),1), 0) -> 0 | AG9: =_xlfn.IFNA(MATCH(RAND(), _xlfn.POISSON.DIST({0,1,2,3,4,5,6,7,8,9},$O9, TRUE),1), 0) -> 1 | AH9: =_xlfn.IFNA(MATCH(RAND(), _xlfn.POISSON.DIST({0,1,2,3,4,5,6,7,8,9},$O9, TRUE),1), 0) -> 1 | AI9: =_xlfn.IFNA(MATCH(RAND(), _xlfn.POISSON.DIST({0,1,2,3,4,5,6,7,8,9},$O9, TRUE),1), 0) -> 1 | AJ9: =_xlfn.IFNA(MATCH(RAND(), _xlfn.POISSON.DIST({0,1,2,3,4,5,6,7,8,9},$O9, TRUE),1), 0) -> 0 | AK9: =_xlfn.IFNA(MATCH(RAND(), _xlfn.POISSON.DIST({0,1,2,3,4,5,6,7,8,9},$O9, TRUE),1), 0) -> 3 | AL9: =_xlfn.IFNA(MATCH(RAND(), _xlfn.POISSON.DIST({0,1,2,3,4,5,6,7,8,9},$O9, TRUE),1), 0) -> 1 | AM9: =_xlfn.IFNA(MATCH(RAND(), _xlfn.POISSON.DIST({0,1,2,3,4,5,6,7,8,9},$O9, TRUE),1), 0) -> 2 | AN9: =_xlfn.IFNA(MATCH(RAND(), _xlfn.POISSON.DIST({0,1,2,3,4,5,6,7,8,9},$O9, TRUE),1), 0) -> 0 | AO9: =_xlfn.IFNA(MATCH(RAND(), _xlfn.POISSON.DIST({0,1,2,3,4,5,6,7,8,9},$O9, TRUE),1), 0) -> 1 | AP9: =_xlfn.IFNA(MATCH(RAND(), _xlfn.POISSON.DIST({0,1,2,3,4,5,6,7,8,9},$O9, TRUE),1), 0) -> 1 | AQ9: =_xlfn.IFNA(MATCH(RAND(), _xlfn.POISSON.DIST({0,1,2,3,4,5,6,7,8,9},$O9, TRUE),1), 0) -> 0 | AR9: =_xlfn.IFNA(MATCH(RAND(), _xlfn.POISSON.DIST({0,1,2,3,4,5,6,7,8,9},$O9, TRUE),1), 0) -> 1 | AS9: =_xlfn.IFNA(MATCH(RAND(), _xlfn.POISSON.DIST({0,1,2,3,4,5,6,7,8,9},$O9, TRUE),1), 0) -> 1 | AT9: =_xlfn.IFNA(MATCH(RAND(), _xlfn.POISSON.DIST({0,1,2,3,4,5,6,7,8,9},$O9, TRUE),1), 0) -> 2 | AU9: =_xlfn.IFNA(MATCH(RAND(), _xlfn.POISSON.DIST({0,1,2,3,4,5,6,7,8,9},$O9, TRUE),1), 0) -> 5 | AV9: =_xlfn.IFNA(MATCH(RAND(), _xlfn.POISSON.DIST({0,1,2,3,4,5,6,7,8,9},$O9, TRUE),1), 0) -> 0 | AW9: =_xlfn.IFNA(MATCH(RAND(), _xlfn.POISSON.DIST({0,1,2,3,4,5,6,7,8,9},$O9, TRUE),1), 0) -> 1 | AX9: =_xlfn.IFNA(MATCH(RAND(), _xlfn.POISSON.DIST({0,1,2,3,4,5,6,7,8,9},$O9, TRUE),1), 0) -> 2 | AY9: =_xlfn.IFNA(MATCH(RAND(), _xlfn.POISSON.DIST({0,1,2,3,4,5,6,7,8,9},$O9, TRUE),1), 0) -> 3 | AZ9: =_xlfn.IFNA(MATCH(RAND(), _xlfn.POISSON.DIST({0,1,2,3,4,5,6,7,8,9},$O9, TRUE),1), 0) -> 0 | BA9: =_xlfn.IFNA(MATCH(RAND(), _xlfn.POISSON.DIST({0,1,2,3,4,5,6,7,8,9},$O9, TRUE),1), 0) -> 2 | BB9: =_xlfn.IFNA(MATCH(RAND(), _xlfn.POISSON.DIST({0,1,2,3,4,5,6,7,8,9},$O9, TRUE),1), 0) -> 0 | BC9: =_xlfn.IFNA(MATCH(RAND(), _xlfn.POISSON.DIST({0,1,2,3,4,5,6,7,8,9},$O9, TRUE),1), 0) -> 1 | BD9: =_xlfn.IFNA(MATCH(RAND(), _xlfn.POISSON.DIST({0,1,2,3,4,5,6,7,8,9},$O9, TRUE),1), 0) -> 0 | BE9: =_xlfn.IFNA(MATCH(RAND(), _xlfn.POISSON.DIST({0,1,2,3,4,5,6,7,8,9},$O9, TRUE),1), 0) -> 2 | BF9: =_xlfn.IFNA(MATCH(RAND(), _xlfn.POISSON.DIST({0,1,2,3,4,5,6,7,8,9},$O9, TRUE),1), 0) -> 1 | BG9: =_xlfn.IFNA(MATCH(RAND(), _xlfn.POISSON.DIST({0,1,2,3,4,5,6,7,8,9},$O9, TRUE),1), 0) -> 2 | BH9: =_xlfn.IFNA(MATCH(RAND(), _xlfn.POISSON.DIST({0,1,2,3,4,5,6,7,8,9},$O9, TRUE),1), 0) -> 0 | BI9: =_xlfn.IFNA(MATCH(RAND(), _xlfn.POISSON.DIST({0,1,2,3,4,5,6,7,8,9},$O9, TRUE),1), 0) -> 0 | BJ9: =_xlfn.IFNA(MATCH(RAND(), _xlfn.POISSON.DIST({0,1,2,3,4,5,6,7,8,9},$O9, TRUE),1), 0) -> 2 | BK9: =_xlfn.IFNA(MATCH(RAND(), _xlfn.POISSON.DIST({0,1,2,3,4,5,6,7,8,9},$O9, TRUE),1), 0) -> 3 | BL9: =_xlfn.IFNA(MATCH(RAND(), _xlfn.POISSON.DIST({0,1,2,3,4,5,6,7,8,9},$O9, TRUE),1), 0) -> 3 | BM9: =_xlfn.IFNA(MATCH(RAND(), _xlfn.POISSON.DIST({0,1,2,3,4,5,6,7,8,9},$O9, TRUE),1), 0) -> 2 | BN9: =_xlfn.IFNA(MATCH(RAND(), _xlfn.POISSON.DIST({0,1,2,3,4,5,6,7,8,9},$O9, TRUE),1), 0) -> 0 | BP9: =_xlfn.IFNA(MATCH(RAND(), _xlfn.POISSON.DIST({0,1,2,3,4,5,6,7,8,9},$P9, TRUE),1), 0) -> 3 | BQ9: =_xlfn.IFNA(MATCH(RAND(), _xlfn.POISSON.DIST({0,1,2,3,4,5,6,7,8,9},$P9, TRUE),1), 0) -> 2 | BR9: =_xlfn.IFNA(MATCH(RAND(), _xlfn.POISSON.DIST({0,1,2,3,4,5,6,7,8,9},$P9, TRUE),1), 0) -> 1 | BS9: =_xlfn.IFNA(MATCH(RAND(), _xlfn.POISSON.DIST({0,1,2,3,4,5,6,7,8,9},$P9, TRUE),1), 0) -> 4 | BT9: =_xlfn.IFNA(MATCH(RAND(), _xlfn.POISSON.DIST({0,1,2,3,4,5,6,7,8,9},$P9, TRUE),1), 0) -> 2 | BU9: =_xlfn.IFNA(MATCH(RAND(), _xlfn.POISSON.DIST({0,1,2,3,4,5,6,7,8,9},$P9, TRUE),1), 0) -> 4 | BV9: =_xlfn.IFNA(MATCH(RAND(), _xlfn.POISSON.DIST({0,1,2,3,4,5,6,7,8,9},$P9, TRUE),1), 0) -> 2 | BW9: =_xlfn.IFNA(MATCH(RAND(), _xlfn.POISSON.DIST({0,1,2,3,4,5,6,7,8,9},$P9, TRUE),1), 0) -> 3 | BX9: =_xlfn.IFNA(MATCH(RAND(), _xlfn.POISSON.DIST({0,1,2,3,4,5,6,7,8,9},$P9, TRUE),1), 0) -> 2 | BY9: =_xlfn.IFNA(MATCH(RAND(), _xlfn.POISSON.DIST({0,1,2,3,4,5,6,7,8,9},$P9, TRUE),1), 0) -> 2 | BZ9: =_xlfn.IFNA(MATCH(RAND(), _xlfn.POISSON.DIST({0,1,2,3,4,5,6,7,8,9},$P9, TRUE),1), 0) -> 0 | CA9: =_xlfn.IFNA(MATCH(RAND(), _xlfn.POISSON.DIST({0,1,2,3,4,5,6,7,8,9},$P9, TRUE),1), 0) -> 2 | CB9: =_xlfn.IFNA(MATCH(RAND(), _xlfn.POISSON.DIST({0,1,2,3,4,5,6,7,8,9},$P9, TRUE),1), 0) -> 3 | CC9: =_xlfn.IFNA(MATCH(RAND(), _xlfn.POISSON.DIST({0,1,2,3,4,5,6,7,8,9},$P9, TRUE),1), 0) -> 2 | CD9: =_xlfn.IFNA(MATCH(RAND(), _xlfn.POISSON.DIST({0,1,2,3,4,5,6,7,8,9},$P9, TRUE),1), 0) -> 1 | CE9: =_xlfn.IFNA(MATCH(RAND(), _xlfn.POISSON.DIST({0,1,2,3,4,5,6,7,8,9},$P9, TRUE),1), 0) -> 5 | CF9: =_xlfn.IFNA(MATCH(RAND(), _xlfn.POISSON.DIST({0,1,2,3,4,5,6,7,8,9},$P9, TRUE),1), 0) -> 2 | CG9: =_xlfn.IFNA(MATCH(RAND(), _xlfn.POISSON.DIST({0,1,2,3,4,5,6,7,8,9},$P9, TRUE),1), 0) -> 0 | CH9: =_xlfn.IFNA(MATCH(RAND(), _xlfn.POISSON.DIST({0,1,2,3,4,5,6,7,8,9},$P9, TRUE),1), 0) -> 4 | CI9: =_xlfn.IFNA(MATCH(RAND(), _xlfn.POISSON.DIST({0,1,2,3,4,5,6,7,8,9},$P9, TRUE),1), 0) -> 0 | CJ9: =_xlfn.IFNA(MATCH(RAND(), _xlfn.POISSON.DIST({0,1,2,3,4,5,6,7,8,9},$P9, TRUE),1), 0) -> 0 | CK9: =_xlfn.IFNA(MATCH(RAND(), _xlfn.POISSON.DIST({0,1,2,3,4,5,6,7,8,9},$P9, TRUE),1), 0) -> 0 | CL9: =_xlfn.IFNA(MATCH(RAND(), _xlfn.POISSON.DIST({0,1,2,3,4,5,6,7,8,9},$P9, TRUE),1), 0) -> 1 | CM9: =_xlfn.IFNA(MATCH(RAND(), _xlfn.POISSON.DIST({0,1,2,3,4,5,6,7,8,9},$P9, TRUE),1), 0) -> 1 | CN9: =_xlfn.IFNA(MATCH(RAND(), _xlfn.POISSON.DIST({0,1,2,3,4,5,6,7,8,9},$P9, TRUE),1), 0) -> 2 | CO9: =_xlfn.IFNA(MATCH(RAND(), _xlfn.POISSON.DIST({0,1,2,3,4,5,6,7,8,9},$P9, TRUE),1), 0) -> 4 | CP9: =_xlfn.IFNA(MATCH(RAND(), _xlfn.POISSON.DIST({0,1,2,3,4,5,6,7,8,9},$P9, TRUE),1), 0) -> 2 | CQ9: =_xlfn.IFNA(MATCH(RAND(), _xlfn.POISSON.DIST({0,1,2,3,4,5,6,7,8,9},$P9, TRUE),1), 0) -> 1 | CR9: =_xlfn.IFNA(MATCH(RAND(), _xlfn.POISSON.DIST({0,1,2,3,4,5,6,7,8,9},$P9, TRUE),1), 0) -> 2 | CS9: =_xlfn.IFNA(MATCH(RAND(), _xlfn.POISSON.DIST({0,1,2,3,4,5,6,7,8,9},$P9, TRUE),1), 0) -> 1 | CT9: =_xlfn.IFNA(MATCH(RAND(), _xlfn.POISSON.DIST({0,1,2,3,4,5,6,7,8,9},$P9, TRUE),1), 0) -> 0 | CU9: =_xlfn.IFNA(MATCH(RAND(), _xlfn.POISSON.DIST({0,1,2,3,4,5,6,7,8,9},$P9, TRUE),1), 0) -> 2 | CV9: =_xlfn.IFNA(MATCH(RAND(), _xlfn.POISSON.DIST({0,1,2,3,4,5,6,7,8,9},$P9, TRUE),1), 0) -> 0 | CW9: =_xlfn.IFNA(MATCH(RAND(), _xlfn.POISSON.DIST({0,1,2,3,4,5,6,7,8,9},$P9, TRUE),1), 0) -> 0 | CX9: =_xlfn.IFNA(MATCH(RAND(), _xlfn.POISSON.DIST({0,1,2,3,4,5,6,7,8,9},$P9, TRUE),1), 0) -> 2 | CY9: =_xlfn.IFNA(MATCH(RAND(), _xlfn.POISSON.DIST({0,1,2,3,4,5,6,7,8,9},$P9, TRUE),1), 0) -> 1 | CZ9: =_xlfn.IFNA(MATCH(RAND(), _xlfn.POISSON.DIST({0,1,2,3,4,5,6,7,8,9},$P9, TRUE),1), 0) -> 0 | DA9: =_xlfn.IFNA(MATCH(RAND(), _xlfn.POISSON.DIST({0,1,2,3,4,5,6,7,8,9},$P9, TRUE),1), 0) -> 0 | DB9: =_xlfn.IFNA(MATCH(RAND(), _xlfn.POISSON.DIST({0,1,2,3,4,5,6,7,8,9},$P9, TRUE),1), 0) -> 0 | DC9: =_xlfn.IFNA(MATCH(RAND(), _xlfn.POISSON.DIST({0,1,2,3,4,5,6,7,8,9},$P9, TRUE),1), 0) -> 1 | DD9: =_xlfn.IFNA(MATCH(RAND(), _xlfn.POISSON.DIST({0,1,2,3,4,5,6,7,8,9},$P9, TRUE),1), 0) -> 0 | DE9: =_xlfn.IFNA(MATCH(RAND(), _xlfn.POISSON.DIST({0,1,2,3,4,5,6,7,8,9},$P9, TRUE),1), 0) -> 0 | DF9: =_xlfn.IFNA(MATCH(RAND(), _xlfn.POISSON.DIST({0,1,2,3,4,5,6,7,8,9},$P9, TRUE),1), 0) -> 1 | DG9: =_xlfn.IFNA(MATCH(RAND(), _xlfn.POISSON.DIST({0,1,2,3,4,5,6,7,8,9},$P9, TRUE),1), 0) -> 2 | DH9: =_xlfn.IFNA(MATCH(RAND(), _xlfn.POISSON.DIST({0,1,2,3,4,5,6,7,8,9},$P9, TRUE),1), 0) -> 3 | DI9: =_xlfn.IFNA(MATCH(RAND(), _xlfn.POISSON.DIST({0,1,2,3,4,5,6,7,8,9},$P9, TRUE),1), 0) -> 0 | DJ9: =_xlfn.IFNA(MATCH(RAND(), _xlfn.POISSON.DIST({0,1,2,3,4,5,6,7,8,9},$P9, TRUE),1), 0) -> 1 | DK9: =_xlfn.IFNA(MATCH(RAND(), _xlfn.POISSON.DIST({0,1,2,3,4,5,6,7,8,9},$P9, TRUE),1), 0) -> 6 | DL9: =_xlfn.IFNA(MATCH(RAND(), _xlfn.POISSON.DIST({0,1,2,3,4,5,6,7,8,9},$P9, TRUE),1), 0) -> 1 | DM9: =_xlfn.IFNA(MATCH(RAND(), _xlfn.POISSON.DIST({0,1,2,3,4,5,6,7,8,9},$P9, TRUE),1), 0) -> 1
C10: 2019-06-09 | D10: C | E10: Australien | F10: =(AVERAGE(Q10:BN10))*(1+INDEX('Prognosen für die Gruppenphase'!$C$4:$O$28, MATCH('Spiele in diesem Jahr'!E10,'Prognosen für die Gruppenphase'!$D$4:$D$28,0),3)) -> 1.20 | G10: Italien | H10: =(AVERAGE(BP10:DM10))*(1+INDEX('Prognosen für die Gruppenphase'!$C$4:$O$28, MATCH('Spiele in diesem Jahr'!G10,'Prognosen für die Gruppenphase'!$D$4:$D$28,0),3)) -> 1.40 | I10: Italien | L10: 1.2 | M10: 1.4 | N10: Italien | O10: =(OFFSET('Anhang 3 – Tore je Gruppe'!$C$13,(INDEX('Anhang 1 – Mannschaftsdaten'!$C$13:$F$112,MATCH(G10,'Anhang 1 – Mannschaftsdaten'!$C$13:$C$112,0),4)/10),(INDEX('Anhang 1 – Mannschaftsdaten'!$C$13:$F$112,MATCH(E10,'Anhang 1 – Mannschaftsdaten'!$C$13:$C$112,0),4)/10))) -> 1.50 | P10: =OFFSET('Anhang 3 – Tore je Gruppe'!$C$13,(INDEX('Anhang 1 – Mannschaftsdaten'!$C$13:$F$112, MATCH(E10,'Anhang 1 – Mannschaftsdaten'!$C$13:$C$112,0),4)/10), (INDEX('Anhang 1 – Mannschaftsdaten'!$C$13:$F$112, MATCH(G10, 'Anhang 1 – Mannschaftsdaten'!$C$13:$C$112,0),4)/10)) -> 1.50 | Q10: =_xlfn.IFNA(MATCH(RAND(), _xlfn.POISSON.DIST({0,1,2,3,4,5,6,7,8,9},$O10, TRUE),1), 0) -> 2 | R10: =_xlfn.IFNA(MATCH(RAND(), _xlfn.POISSON.DIST({0,1,2,3,4,5,6,7,8,9},$O10, TRUE),1), 0) -> 3 | S10: =_xlfn.IFNA(MATCH(RAND(), _xlfn.POISSON.DIST({0,1,2,3,4,5,6,7,8,9},$O10, TRUE),1), 0) -> 0 | T10: =_xlfn.IFNA(MATCH(RAND(), _xlfn.POISSON.DIST({0,1,2,3,4,5,6,7,8,9},$O10, TRUE),1), 0) -> 2 | U10: =_xlfn.IFNA(MATCH(RAND(), _xlfn.POISSON.DIST({0,1,2,3,4,5,6,7,8,9},$O10, TRUE),1), 0) -> 0 | V10: =_xlfn.IFNA(MATCH(RAND(), _xlfn.POISSON.DIST({0,1,2,3,4,5,6,7,8,9},$O10, TRUE),1), 0) -> 2 | W10: =_xlfn.IFNA(MATCH(RAND(), _xlfn.POISSON.DIST({0,1,2,3,4,5,6,7,8,9},$O10, TRUE),1), 0) -> 0 | X10: =_xlfn.IFNA(MATCH(RAND(), _xlfn.POISSON.DIST({0,1,2,3,4,5,6,7,8,9},$O10, TRUE),1), 0) -> 0 | Y10: =_xlfn.IFNA(MATCH(RAND(), _xlfn.POISSON.DIST({0,1,2,3,4,5,6,7,8,9},$O10, TRUE),1), 0) -> 2 | Z10: =_xlfn.IFNA(MATCH(RAND(), _xlfn.POISSON.DIST({0,1,2,3,4,5,6,7,8,9},$O10, TRUE),1), 0) -> 1 | AA10: =_xlfn.IFNA(MATCH(RAND(), _xlfn.POISSON.DIST({0,1,2,3,4,5,6,7,8,9},$O10, TRUE),1), 0) -> 2 | AB10: =_xlfn.IFNA(MATCH(RAND(), _xlfn.POISSON.DIST({0,1,2,3,4,5,6,7,8,9},$O10, TRUE),1), 0) -> 2 | AC10: =_xlfn.IFNA(MATCH(RAND(), _xlfn.POISSON.DIST({0,1,2,3,4,5,6,7,8,9},$O10, TRUE),1), 0) -> 1 | AD10: =_xlfn.IFNA(MATCH(RAND(), _xlfn.POISSON.DIST({0,1,2,3,4,5,6,7,8,9},$O10, TRUE),1), 0) -> 3 | AE10: =_xlfn.IFNA(MATCH(RAND(), _xlfn.POISSON.DIST({0,1,2,3,4,5,6,7,8,9},$O10, TRUE),1), 0) -> 0 | AF10: =_xlfn.IFNA(MATCH(RAND(), _xlfn.POISSON.DIST({0,1,2,3,4,5,6,7,8,9},$O10, TRUE),1), 0) -> 2 | AG10: =_xlfn.IFNA(MATCH(RAND(), _xlfn.POISSON.DIST({0,1,2,3,4,5,6,7,8,9},$O10, TRUE),1), 0) -> 1 | AH10: =_xlfn.IFNA(MATCH(RAND(), _xlfn.POISSON.DIST({0,1,2,3,4,5,6,7,8,9},$O10, TRUE),1), 0) -> 2 | AI10: =_xlfn.IFNA(MATCH(RAND(), _xlfn.POISSON.DIST({0,1,2,3,4,5,6,7,8,9},$O10, TRUE),1), 0) -> 0 | AJ10: =_xlfn.IFNA(MATCH(RAND(), _xlfn.POISSON.DIST({0,1,2,3,4,5,6,7,8,9},$O10, TRUE),1), 0) -> 0 | AK10: =_xlfn.IFNA(MATCH(RAND(), _xlfn.POISSON.DIST({0,1,2,3,4,5,6,7,8,9},$O10, TRUE),1), 0) -> 0 | AL10: =_xlfn.IFNA(MATCH(RAND(), _xlfn.POISSON.DIST({0,1,2,3,4,5,6,7,8,9},$O10, TRUE),1), 0) -> 0 | AM10: =_xlfn.IFNA(MATCH(RAND(), _xlfn.POISSON.DIST({0,1,2,3,4,5,6,7,8,9},$O10, TRUE),1), 0) -> 0 | AN10: =_xlfn.IFNA(MATCH(RAND(), _xlfn.POISSON.DIST({0,1,2,3,4,5,6,7,8,9},$O10, TRUE),1), 0) -> 0 | AO10: =_xlfn.IFNA(MATCH(RAND(), _xlfn.POISSON.DIST({0,1,2,3,4,5,6,7,8,9},$O10, TRUE),1), 0) -> 1 | AP10: =_xlfn.IFNA(MATCH(RAND(), _xlfn.POISSON.DIST({0,1,2,3,4,5,6,7,8,9},$O10, TRUE),1), 0) -> 1 | AQ10: =_xlfn.IFNA(MATCH(RAND(), _xlfn.POISSON.DIST({0,1,2,3,4,5,6,7,8,9},$O10, TRUE),1), 0) -> 1 | AR10: =_xlfn.IFNA(MATCH(RAND(), _xlfn.POISSON.DIST({0,1,2,3,4,5,6,7,8,9},$O10, TRUE),1), 0) -> 3 | AS10: =_xlfn.IFNA(MATCH(RAND(), _xlfn.POISSON.DIST({0,1,2,3,4,5,6,7,8,9},$O10, TRUE),1), 0) -> 1 | AT10: =_xlfn.IFNA(MATCH(RAND(), _xlfn.POISSON.DIST({0,1,2,3,4,5,6,7,8,9},$O10, TRUE),1), 0) -> 0 | AU10: =_xlfn.IFNA(MATCH(RAND(), _xlfn.POISSON.DIST({0,1,2,3,4,5,6,7,8,9},$O10, TRUE),1), 0) -> 3 | AV10: =_xlfn.IFNA(MATCH(RAND(), _xlfn.POISSON.DIST({0,1,2,3,4,5,6,7,8,9},$O10, TRUE),1), 0) -> 4 | AW10: =_xlfn.IFNA(MATCH(RAND(), _xlfn.POISSON.DIST({0,1,2,3,4,5,6,7,8,9},$O10, TRUE),1), 0) -> 0 | AX10: =_xlfn.IFNA(MATCH(RAND(), _xlfn.POISSON.DIST({0,1,2,3,4,5,6,7,8,9},$O10, TRUE),1), 0) -> 1 | AY10: =_xlfn.IFNA(MATCH(RAND(), _xlfn.POISSON.DIST({0,1,2,3,4,5,6,7,8,9},$O10, TRUE),1), 0) -> 2 | AZ10: =_xlfn.IFNA(MATCH(RAND(), _xlfn.POISSON.DIST({0,1,2,3,4,5,6,7,8,9},$O10, TRUE),1), 0) -> 1 | BA10: =_xlfn.IFNA(MATCH(RAND(), _xlfn.POISSON.DIST({0,1,2,3,4,5,6,7,8,9},$O10, TRUE),1), 0) -> 3 | BB10: =_xlfn.IFNA(MATCH(RAND(), _xlfn.POISSON.DIST({0,1,2,3,4,5,6,7,8,9},$O10, TRUE),1), 0) -> 1 | BC10: =_xlfn.IFNA(MATCH(RAND(), _xlfn.POISSON.DIST({0,1,2,3,4,5,6,7,8,9},$O10, TRUE),1), 0) -> 2 | BD10: =_xlfn.IFNA(MATCH(RAND(), _xlfn.POISSON.DIST({0,1,2,3,4,5,6,7,8,9},$O10, TRUE),1), 0) -> 0 | BE10: =_xlfn.IFNA(MATCH(RAND(), _xlfn.POISSON.DIST({0,1,2,3,4,5,6,7,8,9},$O10, TRUE),1), 0) -> 2 | BF10: =_xlfn.IFNA(MATCH(RAND(), _xlfn.POISSON.DIST({0,1,2,3,4,5,6,7,8,9},$O10, TRUE),1), 0) -> 1 | BG10: =_xlfn.IFNA(MATCH(RAND(), _xlfn.POISSON.DIST({0,1,2,3,4,5,6,7,8,9},$O10, TRUE),1), 0) -> 1 | BH10: =_xlfn.IFNA(MATCH(RAND(), _xlfn.POISSON.DIST({0,1,2,3,4,5,6,7,8,9},$O10, TRUE),1), 0) -> 0 | BI10: =_xlfn.IFNA(MATCH(RAND(), _xlfn.POISSON.DIST({0,1,2,3,4,5,6,7,8,9},$O10, TRUE),1), 0) -> 1 | BJ10: =_xlfn.IFNA(MATCH(RAND(), _xlfn.POISSON.DIST({0,1,2,3,4,5,6,7,8,9},$O10, TRUE),1), 0) -> 2 | BK10: =_xlfn.IFNA(MATCH(RAND(), _xlfn.POISSON.DIST({0,1,2,3,4,5,6,7,8,9},$O10, TRUE),1), 0) -> 2 | BL10: =_xlfn.IFNA(MATCH(RAND(), _xlfn.POISSON.DIST({0,1,2,3,4,5,6,7,8,9},$O10, TRUE),1), 0) -> 2 | BM10: =_xlfn.IFNA(MATCH(RAND(), _xlfn.POISSON.DIST({0,1,2,3,4,5,6,7,8,9},$O10, TRUE),1), 0) -> 0 | BN10: =_xlfn.IFNA(MATCH(RAND(), _xlfn.POISSON.DIST({0,1,2,3,4,5,6,7,8,9},$O10, TRUE),1), 0) -> 0 | BP10: =_xlfn.IFNA(MATCH(RAND(), _xlfn.POISSON.DIST({0,1,2,3,4,5,6,7,8,9},$P10, TRUE),1), 0) -> 2 | BQ10: =_xlfn.IFNA(MATCH(RAND(), _xlfn.POISSON.DIST({0,1,2,3,4,5,6,7,8,9},$P10, TRUE),1), 0) -> 3 | BR10: =_xlfn.IFNA(MATCH(RAND(), _xlfn.POISSON.DIST({0,1,2,3,4,5,6,7,8,9},$P10, TRUE),1), 0) -> 0 | BS10: =_xlfn.IFNA(MATCH(RAND(), _xlfn.POISSON.DIST({0,1,2,3,4,5,6,7,8,9},$P10, TRUE),1), 0) -> 2 | BT10: =_xlfn.IFNA(MATCH(RAND(), _xlfn.POISSON.DIST({0,1,2,3,4,5,6,7,8,9},$P10, TRUE),1), 0) -> 0 | BU10: =_xlfn.IFNA(MATCH(RAND(), _xlfn.POISSON.DIST({0,1,2,3,4,5,6,7,8,9},$P10, TRUE),1), 0) -> 3 | BV10: =_xlfn.IFNA(MATCH(RAND(), _xlfn.POISSON.DIST({0,1,2,3,4,5,6,7,8,9},$P10, TRUE),1), 0) -> 1 | BW10: =_xlfn.IFNA(MATCH(RAND(), _xlfn.POISSON.DIST({0,1,2,3,4,5,6,7,8,9},$P10, TRUE),1), 0) -> 3 | BX10: =_xlfn.IFNA(MATCH(RAND(), _xlfn.POISSON.DIST({0,1,2,3,4,5,6,7,8,9},$P10, TRUE),1), 0) -> 1 | BY10: =_xlfn.IFNA(MATCH(RAND(), _xlfn.POISSON.DIST({0,1,2,3,4,5,6,7,8,9},$P10, TRUE),1), 0) -> 1 | BZ10: =_xlfn.IFNA(MATCH(RAND(), _xlfn.POISSON.DIST({0,1,2,3,4,5,6,7,8,9},$P10, TRUE),1), 0) -> 1 | CA10: =_xlfn.IFNA(MATCH(RAND(), _xlfn.POISSON.DIST({0,1,2,3,4,5,6,7,8,9},$P10, TRUE),1), 0) -> 2 | CB10: =_xlfn.IFNA(MATCH(RAND(), _xlfn.POISSON.DIST({0,1,2,3,4,5,6,7,8,9},$P10, TRUE),1), 0) -> 1 | CC10: =_xlfn.IFNA(MATCH(RAND(), _xlfn.POISSON.DIST({0,1,2,3,4,5,6,7,8,9},$P10, TRUE),1), 0) -> 3 | CD10: =_xlfn.IFNA(MATCH(RAND(), _xlfn.POISSON.DIST({0,1,2,3,4,5,6,7,8,9},$P10, TRUE),1), 0) -> 1 | CE10: =_xlfn.IFNA(MATCH(RAND(), _xlfn.POISSON.DIST({0,1,2,3,4,5,6,7,8,9},$P10, TRUE),1), 0) -> 1 | CF10: =_xlfn.IFNA(MATCH(RAND(), _xlfn.POISSON.DIST({0,1,2,3,4,5,6,7,8,9},$P10, TRUE),1), 0) -> 1 | CG10: =_xlfn.IFNA(MATCH(RAND(), _xlfn.POISSON.DIST({0,1,2,3,4,5,6,7,8,9},$P10, TRUE),1), 0) -> 3 | CH10: =_xlfn.IFNA(MATCH(RAND(), _xlfn.POISSON.DIST({0,1,2,3,4,5,6,7,8,9},$P10, TRUE),1), 0) -> 1 | CI10: =_xlfn.IFNA(MATCH(RAND(), _xlfn.POISSON.DIST({0,1,2,3,4,5,6,7,8,9},$P10, TRUE),1), 0) -> 1 | CJ10: =_xlfn.IFNA(MATCH(RAND(), _xlfn.POISSON.DIST({0,1,2,3,4,5,6,7,8,9},$P10, TRUE),1), 0) -> 3 | CK10: =_xlfn.IFNA(MATCH(RAND(), _xlfn.POISSON.DIST({0,1,2,3,4,5,6,7,8,9},$P10, TRUE),1), 0) -> 0 | CL10: =_xlfn.IFNA(MATCH(RAND(), _xlfn.POISSON.DIST({0,1,2,3,4,5,6,7,8,9},$P10, TRUE),1), 0) -> 2 | CM10: =_xlfn.IFNA(MATCH(RAND(), _xlfn.POISSON.DIST({0,1,2,3,4,5,6,7,8,9},$P10, TRUE),1), 0) -> 2 | CN10: =_xlfn.IFNA(MATCH(RAND(), _xlfn.POISSON.DIST({0,1,2,3,4,5,6,7,8,9},$P10, TRUE),1), 0) -> 2 | CO10: =_xlfn.IFNA(MATCH(RAND(), _xlfn.POISSON.DIST({0,1,2,3,4,5,6,7,8,9},$P10, TRUE),1), 0) -> 1 | CP10: =_xlfn.IFNA(MATCH(RAND(), _xlfn.POISSON.DIST({0,1,2,3,4,5,6,7,8,9},$P10, TRUE),1), 0) -> 0 | CQ10: =_xlfn.IFNA(MATCH(RAND(), _xlfn.POISSON.DIST({0,1,2,3,4,5,6,7,8,9},$P10, TRUE),1), 0) -> 1 | CR10: =_xlfn.IFNA(MATCH(RAND(), _xlfn.POISSON.DIST({0,1,2,3,4,5,6,7,8,9},$P10, TRUE),1), 0) -> 1 | CS10: =_xlfn.IFNA(MATCH(RAND(), _xlfn.POISSON.DIST({0,1,2,3,4,5,6,7,8,9},$P10, TRUE),1), 0) -> 0 | CT10: =_xlfn.IFNA(MATCH(RAND(), _xlfn.POISSON.DIST({0,1,2,3,4,5,6,7,8,9},$P10, TRUE),1), 0) -> 1 | CU10: =_xlfn.IFNA(MATCH(RAND(), _xlfn.POISSON.DIST({0,1,2,3,4,5,6,7,8,9},$P10, TRUE),1), 0) -> 2 | CV10: =_xlfn.IFNA(MATCH(RAND(), _xlfn.POISSON.DIST({0,1,2,3,4,5,6,7,8,9},$P10, TRUE),1), 0) -> 0 | CW10: =_xlfn.IFNA(MATCH(RAND(), _xlfn.POISSON.DIST({0,1,2,3,4,5,6,7,8,9},$P10, TRUE),1), 0) -> 1 | CX10: =_xlfn.IFNA(MATCH(RAND(), _xlfn.POISSON.DIST({0,1,2,3,4,5,6,7,8,9},$P10, TRUE),1), 0) -> 1 | CY10: =_xlfn.IFNA(MATCH(RAND(), _xlfn.POISSON.DIST({0,1,2,3,4,5,6,7,8,9},$P10, TRUE),1), 0) -> 2 | CZ10: =_xlfn.IFNA(MATCH(RAND(), _xlfn.POISSON.DIST({0,1,2,3,4,5,6,7,8,9},$P10, TRUE),1), 0) -> 0 | DA10: =_xlfn.IFNA(MATCH(RAND(), _xlfn.POISSON.DIST({0,1,2,3,4,5,6,7,8,9},$P10, TRUE),1), 0) -> 5 | DB10: =_xlfn.IFNA(MATCH(RAND(), _xlfn.POISSON.DIST({0,1,2,3,4,5,6,7,8,9},$P10, TRUE),1), 0) -> 0 | DC10: =_xlfn.IFNA(MATCH(RAND(), _xlfn.POISSON.DIST({0,1,2,3,4,5,6,7,8,9},$P10, TRUE),1), 0) -> 1 | DD10: =_xlfn.IFNA(MATCH(RAND(), _xlfn.POISSON.DIST({0,1,2,3,4,5,6,7,8,9},$P10, TRUE),1), 0) -> 2 | DE10: =_xlfn.IFNA(MATCH(RAND(), _xlfn.POISSON.DIST({0,1,2,3,4,5,6,7,8,9},$P10, TRUE),1), 0) -> 0 | DF10: =_xlfn.IFNA(MATCH(RAND(), _xlfn.POISSON.DIST({0,1,2,3,4,5,6,7,8,9},$P10, TRUE),1), 0) -> 3 | DG10: =_xlfn.IFNA(MATCH(RAND(), _xlfn.POISSON.DIST({0,1,2,3,4,5,6,7,8,9},$P10, TRUE),1), 0) -> 2 | DH10: =_xlfn.IFNA(MATCH(RAND(), _xlfn.POISSON.DIST({0,1,2,3,4,5,6,7,8,9},$P10, TRUE),1), 0) -> 2 | DI10: =_xlfn.IFNA(MATCH(RAND(), _xlfn.POISSON.DIST({0,1,2,3,4,5,6,7,8,9},$P10, TRUE),1), 0) -> 0 | DJ10: =_xlfn.IFNA(MATCH(RAND(), _xlfn.POISSON.DIST({0,1,2,3,4,5,6,7,8,9},$P10, TRUE),1), 0) -> 1 | DK10: =_xlfn.IFNA(MATCH(RAND(), _xlfn.POISSON.DIST({0,1,2,3,4,5,6,7,8,9},$P10, TRUE),1), 0) -> 0 | DL10: =_xlfn.IFNA(MATCH(RAND(), _xlfn.POISSON.DIST({0,1,2,3,4,5,6,7,8,9},$P10, TRUE),1), 0) -> 1 | DM10: =_xlfn.IFNA(MATCH(RAND(), _xlfn.POISSON.DIST({0,1,2,3,4,5,6,7,8,9},$P10, TRUE),1), 0) -> 3
C11: 2019-06-09 | D11: C | E11: Brasilien | F11: =(AVERAGE(Q11:BN11))*(1+INDEX('Prognosen für die Gruppenphase'!$C$4:$O$28, MATCH('Spiele in diesem Jahr'!E11,'Prognosen für die Gruppenphase'!$D$4:$D$28,0),3)) -> 1.50 | G11: Jamaika | H11: =(AVERAGE(BP11:DM11))*(1+INDEX('Prognosen für die Gruppenphase'!$C$4:$O$28, MATCH('Spiele in diesem Jahr'!G11,'Prognosen für die Gruppenphase'!$D$4:$D$28,0),3)) -> 1.58 | I11: Jamaika | L11: 1.5 | M11: 1.58 | N11: Jamaika | O11: =(OFFSET('Anhang 3 – Tore je Gruppe'!$C$13,(INDEX('Anhang 1 – Mannschaftsdaten'!$C$13:$F$112,MATCH(G11,'Anhang 1 – Mannschaftsdaten'!$C$13:$C$112,0),4)/10),(INDEX('Anhang 1 – Mannschaftsdaten'!$C$13:$F$112,MATCH(E11,'Anhang 1 – Mannschaftsdaten'!$C$13:$C$112,0),4)/10))) -> 1.50 | P11: =OFFSET('Anhang 3 – Tore je Gruppe'!$C$13,(INDEX('Anhang 1 – Mannschaftsdaten'!$C$13:$F$112, MATCH(E11,'Anhang 1 – Mannschaftsdaten'!$C$13:$C$112,0),4)/10), (INDEX('Anhang 1 – Mannschaftsdaten'!$C$13:$F$112, MATCH(G11, 'Anhang 1 – Mannschaftsdaten'!$C$13:$C$112,0),4)/10)) -> 1.50 | Q11: =_xlfn.IFNA(MATCH(RAND(), _xlfn.POISSON.DIST({0,1,2,3,4,5,6,7,8,9},$O11, TRUE),1), 0) -> 2 | R11: =_xlfn.IFNA(MATCH(RAND(), _xlfn.POISSON.DIST({0,1,2,3,4,5,6,7,8,9},$O11, TRUE),1), 0) -> 1 | S11: =_xlfn.IFNA(MATCH(RAND(), _xlfn.POISSON.DIST({0,1,2,3,4,5,6,7,8,9},$O11, TRUE),1), 0) -> 0 | T11: =_xlfn.IFNA(MATCH(RAND(), _xlfn.POISSON.DIST({0,1,2,3,4,5,6,7,8,9},$O11, TRUE),1), 0) -> 0 | U11: =_xlfn.IFNA(MATCH(RAND(), _xlfn.POISSON.DIST({0,1,2,3,4,5,6,7,8,9},$O11, TRUE),1), 0) -> 3 | V11: =_xlfn.IFNA(MATCH(RAND(), _xlfn.POISSON.DIST({0,1,2,3,4,5,6,7,8,9},$O11, TRUE),1), 0) -> 0 | W11: =_xlfn.IFNA(MATCH(RAND(), _xlfn.POISSON.DIST({0,1,2,3,4,5,6,7,8,9},$O11, TRUE),1), 0) -> 1 | X11: =_xlfn.IFNA(MATCH(RAND(), _xlfn.POISSON.DIST({0,1,2,3,4,5,6,7,8,9},$O11, TRUE),1), 0) -> 2 | Y11: =_xlfn.IFNA(MATCH(RAND(), _xlfn.POISSON.DIST({0,1,2,3,4,5,6,7,8,9},$O11, TRUE),1), 0) -> 1 | Z11: =_xlfn.IFNA(MATCH(RAND(), _xlfn.POISSON.DIST({0,1,2,3,4,5,6,7,8,9},$O11, TRUE),1), 0) -> 1 | AA11: =_xlfn.IFNA(MATCH(RAND(), _xlfn.POISSON.DIST({0,1,2,3,4,5,6,7,8,9},$O11, TRUE),1), 0) -> 1 | AB11: =_xlfn.IFNA(MATCH(RAND(), _xlfn.POISSON.DIST({0,1,2,3,4,5,6,7,8,9},$O11, TRUE),1), 0) -> 2 | AC11: =_xlfn.IFNA(MATCH(RAND(), _xlfn.POISSON.DIST({0,1,2,3,4,5,6,7,8,9},$O11, TRUE),1), 0) -> 2 | AD11: =_xlfn.IFNA(MATCH(RAND(), _xlfn.POISSON.DIST({0,1,2,3,4,5,6,7,8,9},$O11, TRUE),1), 0) -> 2 | AE11: =_xlfn.IFNA(MATCH(RAND(), _xlfn.POISSON.DIST({0,1,2,3,4,5,6,7,8,9},$O11, TRUE),1), 0) -> 3 | AF11: =_xlfn.IFNA(MATCH(RAND(), _xlfn.POISSON.DIST({0,1,2,3,4,5,6,7,8,9},$O11, TRUE),1), 0) -> 2 | AG11: =_xlfn.IFNA(MATCH(RAND(), _xlfn.POISSON.DIST({0,1,2,3,4,5,6,7,8,9},$O11, TRUE),1), 0) -> 0 | AH11: =_xlfn.IFNA(MATCH(RAND(), _xlfn.POISSON.DIST({0,1,2,3,4,5,6,7,8,9},$O11, TRUE),1), 0) -> 1 | AI11: =_xlfn.IFNA(MATCH(RAND(), _xlfn.POISSON.DIST({0,1,2,3,4,5,6,7,8,9},$O11, TRUE),1), 0) -> 2 | AJ11: =_xlfn.IFNA(MATCH(RAND(), _xlfn.POISSON.DIST({0,1,2,3,4,5,6,7,8,9},$O11, TRUE),1), 0) -> 1 | AK11: =_xlfn.IFNA(MATCH(RAND(), _xlfn.POISSON.DIST({0,1,2,3,4,5,6,7,8,9},$O11, TRUE),1), 0) -> 2 | AL11: =_xlfn.IFNA(MATCH(RAND(), _xlfn.POISSON.DIST({0,1,2,3,4,5,6,7,8,9},$O11, TRUE),1), 0) -> 0 | AM11: =_xlfn.IFNA(MATCH(RAND(), _xlfn.POISSON.DIST({0,1,2,3,4,5,6,7,8,9},$O11, TRUE),1), 0) -> 1 | AN11: =_xlfn.IFNA(MATCH(RAND(), _xlfn.POISSON.DIST({0,1,2,3,4,5,6,7,8,9},$O11, TRUE),1), 0) -> 3 | AO11: =_xlfn.IFNA(MATCH(RAND(), _xlfn.POISSON.DIST({0,1,2,3,4,5,6,7,8,9},$O11, TRUE),1), 0) -> 1 | AP11: =_xlfn.IFNA(MATCH(RAND(), _xlfn.POISSON.DIST({0,1,2,3,4,5,6,7,8,9},$O11, TRUE),1), 0) -> 4 | AQ11: =_xlfn.IFNA(MATCH(RAND(), _xlfn.POISSON.DIST({0,1,2,3,4,5,6,7,8,9},$O11, TRUE),1), 0) -> 1 | AR11: =_xlfn.IFNA(MATCH(RAND(), _xlfn.POISSON.DIST({0,1,2,3,4,5,6,7,8,9},$O11, TRUE),1), 0) -> 2 | AS11: =_xlfn.IFNA(MATCH(RAND(), _xlfn.POISSON.DIST({0,1,2,3,4,5,6,7,8,9},$O11, TRUE),1), 0) -> 1 | AT11: =_xlfn.IFNA(MATCH(RAND(), _xlfn.POISSON.DIST({0,1,2,3,4,5,6,7,8,9},$O11, TRUE),1), 0) -> 2 | AU11: =_xlfn.IFNA(MATCH(RAND(), _xlfn.POISSON.DIST({0,1,2,3,4,5,6,7,8,9},$O11, TRUE),1), 0) -> 1 | AV11: =_xlfn.IFNA(MATCH(RAND(), _xlfn.POISSON.DIST({0,1,2,3,4,5,6,7,8,9},$O11, TRUE),1), 0) -> 1 | AW11: =_xlfn.IFNA(MATCH(RAND(), _xlfn.POISSON.DIST({0,1,2,3,4,5,6,7,8,9},$O11, TRUE),1), 0) -> 1 | AX11: =_xlfn.IFNA(MATCH(RAND(), _xlfn.POISSON.DIST({0,1,2,3,4,5,6,7,8,9},$O11, TRUE),1), 0) -> 3 | AY11: =_xlfn.IFNA(MATCH(RAND(), _xlfn.POISSON.DIST({0,1,2,3,4,5,6,7,8,9},$O11, TRUE),1), 0) -> 1 | AZ11: =_xlfn.IFNA(MATCH(RAND(), _xlfn.POISSON.DIST({0,1,2,3,4,5,6,7,8,9},$O11, TRUE),1), 0) -> 0 | BA11: =_xlfn.IFNA(MATCH(RAND(), _xlfn.POISSON.DIST({0,1,2,3,4,5,6,7,8,9},$O11, TRUE),1), 0) -> 1 | BB11: =_xlfn.IFNA(MATCH(RAND(), _xlfn.POISSON.DIST({0,1,2,3,4,5,6,7,8,9},$O11, TRUE),1), 0) -> 0 | BC11: =_xlfn.IFNA(MATCH(RAND(), _xlfn.POISSON.DIST({0,1,2,3,4,5,6,7,8,9},$O11, TRUE),1), 0) -> 3 | BD11: =_xlfn.IFNA(MATCH(RAND(), _xlfn.POISSON.DIST({0,1,2,3,4,5,6,7,8,9},$O11, TRUE),1), 0) -> 3 | BE11: =_xlfn.IFNA(MATCH(RAND(), _xlfn.POISSON.DIST({0,1,2,3,4,5,6,7,8,9},$O11, TRUE),1), 0) -> 1 | BF11: =_xlfn.IFNA(MATCH(RAND(), _xlfn.POISSON.DIST({0,1,2,3,4,5,6,7,8,9},$O11, TRUE),1), 0) -> 1 | BG11: =_xlfn.IFNA(MATCH(RAND(), _xlfn.POISSON.DIST({0,1,2,3,4,5,6,7,8,9},$O11, TRUE),1), 0) -> 2 | BH11: =_xlfn.IFNA(MATCH(RAND(), _xlfn.POISSON.DIST({0,1,2,3,4,5,6,7,8,9},$O11, TRUE),1), 0) -> 2 | BI11: =_xlfn.IFNA(MATCH(RAND(), _xlfn.POISSON.DIST({0,1,2,3,4,5,6,7,8,9},$O11, TRUE),1), 0) -> 4 | BJ11: =_xlfn.IFNA(MATCH(RAND(), _xlfn.POISSON.DIST({0,1,2,3,4,5,6,7,8,9},$O11, TRUE),1), 0) -> 2 | BK11: =_xlfn.IFNA(MATCH(RAND(), _xlfn.POISSON.DIST({0,1,2,3,4,5,6,7,8,9},$O11, TRUE),1), 0) -> 3 | BL11: =_xlfn.IFNA(MATCH(RAND(), _xlfn.POISSON.DIST({0,1,2,3,4,5,6,7,8,9},$O11, TRUE),1), 0) -> 0 | BM11: =_xlfn.IFNA(MATCH(RAND(), _xlfn.POISSON.DIST({0,1,2,3,4,5,6,7,8,9},$O11, TRUE),1), 0) -> 1 | BN11: =_xlfn.IFNA(MATCH(RAND(), _xlfn.POISSON.DIST({0,1,2,3,4,5,6,7,8,9},$O11, TRUE),1), 0) -> 1 | BP11: =_xlfn.IFNA(MATCH(RAND(), _xlfn.POISSON.DIST({0,1,2,3,4,5,6,7,8,9},$P11, TRUE),1), 0) -> 1 | BQ11: =_xlfn.IFNA(MATCH(RAND(), _xlfn.POISSON.DIST({0,1,2,3,4,5,6,7,8,9},$P11, TRUE),1), 0) -> 1 | BR11: =_xlfn.IFNA(MATCH(RAND(), _xlfn.POISSON.DIST({0,1,2,3,4,5,6,7,8,9},$P11, TRUE),1), 0) -> 1 | BS11: =_xlfn.IFNA(MATCH(RAND(), _xlfn.POISSON.DIST({0,1,2,3,4,5,6,7,8,9},$P11, TRUE),1), 0) -> 2 | BT11: =_xlfn.IFNA(MATCH(RAND(), _xlfn.POISSON.DIST({0,1,2,3,4,5,6,7,8,9},$P11, TRUE),1), 0) -> 1 | BU11: =_xlfn.IFNA(MATCH(RAND(), _xlfn.POISSON.DIST({0,1,2,3,4,5,6,7,8,9},$P11, TRUE),1), 0) -> 2 | BV11: =_xlfn.IFNA(MATCH(RAND(), _xlfn.POISSON.DIST({0,1,2,3,4,5,6,7,8,9},$P11, TRUE),1), 0) -> 0 | BW11: =_xlfn.IFNA(MATCH(RAND(), _xlfn.POISSON.DIST({0,1,2,3,4,5,6,7,8,9},$P11, TRUE),1), 0) -> 1 | BX11: =_xlfn.IFNA(MATCH(RAND(), _xlfn.POISSON.DIST({0,1,2,3,4,5,6,7,8,9},$P11, TRUE),1), 0) -> 2 | BY11: =_xlfn.IFNA(MATCH(RAND(), _xlfn.POISSON.DIST({0,1,2,3,4,5,6,7,8,9},$P11, TRUE),1), 0) -> 3 | BZ11: =_xlfn.IFNA(MATCH(RAND(), _xlfn.POISSON.DIST({0,1,2,3,4,5,6,7,8,9},$P11, TRUE),1), 0) -> 3 | CA11: =_xlfn.IFNA(MATCH(RAND(), _xlfn.POISSON.DIST({0,1,2,3,4,5,6,7,8,9},$P11, TRUE),1), 0) -> 3 | CB11: =_xlfn.IFNA(MATCH(RAND(), _xlfn.POISSON.DIST({0,1,2,3,4,5,6,7,8,9},$P11, TRUE),1), 0) -> 1 | CC11: =_xlfn.IFNA(MATCH(RAND(), _xlfn.POISSON.DIST({0,1,2,3,4,5,6,7,8,9},$P11, TRUE),1), 0) -> 1 | CD11: =_xlfn.IFNA(MATCH(RAND(), _xlfn.POISSON.DIST({0,1,2,3,4,5,6,7,8,9},$P11, TRUE),1), 0) -> 0 | CE11: =_xlfn.IFNA(MATCH(RAND(), _xlfn.POISSON.DIST({0,1,2,3,4,5,6,7,8,9},$P11, TRUE),1), 0) -> 0 | CF11: =_xlfn.IFNA(MATCH(RAND(), _xlfn.POISSON.DIST({0,1,2,3,4,5,6,7,8,9},$P11, TRUE),1), 0) -> 1 | CG11: =_xlfn.IFNA(MATCH(RAND(), _xlfn.POISSON.DIST({0,1,2,3,4,5,6,7,8,9},$P11, TRUE),1), 0) -> 4 | CH11: =_xlfn.IFNA(MATCH(RAND(), _xlfn.POISSON.DIST({0,1,2,3,4,5,6,7,8,9},$P11, TRUE),1), 0) -> 2 | CI11: =_xlfn.IFNA(MATCH(RAND(), _xlfn.POISSON.DIST({0,1,2,3,4,5,6,7,8,9},$P11, TRUE),1), 0) -> 3 | CJ11: =_xlfn.IFNA(MATCH(RAND(), _xlfn.POISSON.DIST({0,1,2,3,4,5,6,7,8,9},$P11, TRUE),1), 0) -> 1 | CK11: =_xlfn.IFNA(MATCH(RAND(), _xlfn.POISSON.DIST({0,1,2,3,4,5,6,7,8,9},$P11, TRUE),1), 0) -> 3 | CL11: =_xlfn.IFNA(MATCH(RAND(), _xlfn.POISSON.DIST({0,1,2,3,4,5,6,7,8,9},$P11, TRUE),1), 0) -> 1 | CM11: =_xlfn.IFNA(MATCH(RAND(), _xlfn.POISSON.DIST({0,1,2,3,4,5,6,7,8,9},$P11, TRUE),1), 0) -> 2 | CN11: =_xlfn.IFNA(MATCH(RAND(), _xlfn.POISSON.DIST({0,1,2,3,4,5,6,7,8,9},$P11, TRUE),1), 0) -> 3 | CO11: =_xlfn.IFNA(MATCH(RAND(), _xlfn.POISSON.DIST({0,1,2,3,4,5,6,7,8,9},$P11, TRUE),1), 0) -> 3 | CP11: =_xlfn.IFNA(MATCH(RAND(), _xlfn.POISSON.DIST({0,1,2,3,4,5,6,7,8,9},$P11, TRUE),1), 0) -> 2 | CQ11: =_xlfn.IFNA(MATCH(RAND(), _xlfn.POISSON.DIST({0,1,2,3,4,5,6,7,8,9},$P11, TRUE),1), 0) -> 1 | CR11: =_xlfn.IFNA(MATCH(RAND(), _xlfn.POISSON.DIST({0,1,2,3,4,5,6,7,8,9},$P11, TRUE),1), 0) -> 1 | CS11: =_xlfn.IFNA(MATCH(RAND(), _xlfn.POISSON.DIST({0,1,2,3,4,5,6,7,8,9},$P11, TRUE),1), 0) -> 3 | CT11: =_xlfn.IFNA(MATCH(RAND(), _xlfn.POISSON.DIST({0,1,2,3,4,5,6,7,8,9},$P11, TRUE),1), 0) -> 2 | CU11: =_xlfn.IFNA(MATCH(RAND(), _xlfn.POISSON.DIST({0,1,2,3,4,5,6,7,8,9},$P11, TRUE),1), 0) -> 0 | CV11: =_xlfn.IFNA(MATCH(RAND(), _xlfn.POISSON.DIST({0,1,2,3,4,5,6,7,8,9},$P11, TRUE),1), 0) -> 1 | CW11: =_xlfn.IFNA(MATCH(RAND(), _xlfn.POISSON.DIST({0,1,2,3,4,5,6,7,8,9},$P11, TRUE),1), 0) -> 0 | CX11: =_xlfn.IFNA(MATCH(RAND(), _xlfn.POISSON.DIST({0,1,2,3,4,5,6,7,8,9},$P11, TRUE),1), 0) -> 1 | CY11: =_xlfn.IFNA(MATCH(RAND(), _xlfn.POISSON.DIST({0,1,2,3,4,5,6,7,8,9},$P11, TRUE),1), 0) -> 4 | CZ11: =_xlfn.IFNA(MATCH(RAND(), _xlfn.POISSON.DIST({0,1,2,3,4,5,6,7,8,9},$P11, TRUE),1), 0) -> 2 | DA11: =_xlfn.IFNA(MATCH(RAND(), _xlfn.POISSON.DIST({0,1,2,3,4,5,6,7,8,9},$P11, TRUE),1), 0) -> 1 | DB11: =_xlfn.IFNA(MATCH(RAND(), _xlfn.POISSON.DIST({0,1,2,3,4,5,6,7,8,9},$P11, TRUE),1), 0) -> 0 | DC11: =_xlfn.IFNA(MATCH(RAND(), _xlfn.POISSON.DIST({0,1,2,3,4,5,6,7,8,9},$P11, TRUE),1), 0) -> 3 | DD11: =_xlfn.IFNA(MATCH(RAND(), _xlfn.POISSON.DIST({0,1,2,3,4,5,6,7,8,9},$P11, TRUE),1), 0) -> 3 | DE11: =_xlfn.IFNA(MATCH(RAND(), _xlfn.POISSON.DIST({0,1,2,3,4,5,6,7,8,9},$P11, TRUE),1), 0) -> 0 | DF11: =_xlfn.IFNA(MATCH(RAND(), _xlfn.POISSON.DIST({0,1,2,3,4,5,6,7,8,9},$P11, TRUE),1), 0) -> 2 | DG11: =_xlfn.IFNA(MATCH(RAND(), _xlfn.POISSON.DIST({0,1,2,3,4,5,6,7,8,9},$P11, TRUE),1), 0) -> 1 | DH11: =_xlfn.IFNA(MATCH(RAND(), _xlfn.POISSON.DIST({0,1,2,3,4,5,6,7,8,9},$P11, TRUE),1), 0) -> 0 | DI11: =_xlfn.IFNA(MATCH(RAND(), _xlfn.POISSON.DIST({0,1,2,3,4,5,6,7,8,9},$P11, TRUE),1), 0) -> 2 | DJ11: =_xlfn.IFNA(MATCH(RAND(), _xlfn.POISSON.DIST({0,1,2,3,4,5,6,7,8,9},$P11, TRUE),1), 0) -> 0 | DK11: =_xlfn.IFNA(MATCH(RAND(), _xlfn.POISSON.DIST({0,1,2,3,4,5,6,7,8,9},$P11, TRUE),1), 0) -> 1 | DL11: =_xlfn.IFNA(MATCH(RAND(), _xlfn.POISSON.DIST({0,1,2,3,4,5,6,7,8,9},$P11, TRUE),1), 0) -> 2 | DM11: =_xlfn.IFNA(MATCH(RAND(), _xlfn.POISSON.DIST({0,1,2,3,4,5,6,7,8,9},$P11, TRUE),1), 0) -> 2
C12: 2019-06-09 | D12: D | E12: England | F12: =(AVERAGE(Q12:BN12))*(1+INDEX('Prognosen für die Gruppenphase'!$C$4:$O$28, MATCH('Spiele in diesem Jahr'!E12,'Prognosen für die Gruppenphase'!$D$4:$D$28,0),3)) -> 1.72 | G12: Schottland | H12: =(AVERAGE(BP12:DM12))*(1+INDEX('Prognosen für die Gruppenphase'!$C$4:$O$28, MATCH('Spiele in diesem Jahr'!G12,'Prognosen für die Gruppenphase'!$D$4:$D$28,0),3)) -> 1.68 | I12: England | L12: 1.72 | M12: 1.68 | N12: England | O12: =(OFFSET('Anhang 3 – Tore je Gruppe'!$C$13,(INDEX('Anhang 1 – Mannschaftsdaten'!$C$13:$F$112,MATCH(G12,'Anhang 1 – Mannschaftsdaten'!$C$13:$C$112,0),4)/10),(INDEX('Anhang 1 – Mannschaftsdaten'!$C$13:$F$112,MATCH(E12,'Anhang 1 – Mannschaftsdaten'!$C$13:$C$112,0),4)/10))) -> 1.50 | P12: =OFFSET('Anhang 3 – Tore je Gruppe'!$C$13,(INDEX('Anhang 1 – Mannschaftsdaten'!$C$13:$F$112, MATCH(E12,'Anhang 1 – Mannschaftsdaten'!$C$13:$C$112,0),4)/10), (INDEX('Anhang 1 – Mannschaftsdaten'!$C$13:$F$112, MATCH(G12, 'Anhang 1 – Mannschaftsdaten'!$C$13:$C$112,0),4)/10)) -> 1.50 | Q12: =_xlfn.IFNA(MATCH(RAND(), _xlfn.POISSON.DIST({0,1,2,3,4,5,6,7,8,9},$O12, TRUE),1), 0) -> 2 | R12: =_xlfn.IFNA(MATCH(RAND(), _xlfn.POISSON.DIST({0,1,2,3,4,5,6,7,8,9},$O12, TRUE),1), 0) -> 0 | S12: =_xlfn.IFNA(MATCH(RAND(), _xlfn.POISSON.DIST({0,1,2,3,4,5,6,7,8,9},$O12, TRUE),1), 0) -> 0 | T12: =_xlfn.IFNA(MATCH(RAND(), _xlfn.POISSON.DIST({0,1,2,3,4,5,6,7,8,9},$O12, TRUE),1), 0) -> 1 | U12: =_xlfn.IFNA(MATCH(RAND(), _xlfn.POISSON.DIST({0,1,2,3,4,5,6,7,8,9},$O12, TRUE),1), 0) -> 2 | V12: =_xlfn.IFNA(MATCH(RAND(), _xlfn.POISSON.DIST({0,1,2,3,4,5,6,7,8,9},$O12, TRUE),1), 0) -> 1 | W12: =_xlfn.IFNA(MATCH(RAND(), _xlfn.POISSON.DIST({0,1,2,3,4,5,6,7,8,9},$O12, TRUE),1), 0) -> 2 | X12: =_xlfn.IFNA(MATCH(RAND(), _xlfn.POISSON.DIST({0,1,2,3,4,5,6,7,8,9},$O12, TRUE),1), 0) -> 2 | Y12: =_xlfn.IFNA(MATCH(RAND(), _xlfn.POISSON.DIST({0,1,2,3,4,5,6,7,8,9},$O12, TRUE),1), 0) -> 1 | Z12: =_xlfn.IFNA(MATCH(RAND(), _xlfn.POISSON.DIST({0,1,2,3,4,5,6,7,8,9},$O12, TRUE),1), 0) -> 1 | AA12: =_xlfn.IFNA(MATCH(RAND(), _xlfn.POISSON.DIST({0,1,2,3,4,5,6,7,8,9},$O12, TRUE),1), 0) -> 1 | AB12: =_xlfn.IFNA(MATCH(RAND(), _xlfn.POISSON.DIST({0,1,2,3,4,5,6,7,8,9},$O12, TRUE),1), 0) -> 1 | AC12: =_xlfn.IFNA(MATCH(RAND(), _xlfn.POISSON.DIST({0,1,2,3,4,5,6,7,8,9},$O12, TRUE),1), 0) -> 2 | AD12: =_xlfn.IFNA(MATCH(RAND(), _xlfn.POISSON.DIST({0,1,2,3,4,5,6,7,8,9},$O12, TRUE),1), 0) -> 2 | AE12: =_xlfn.IFNA(MATCH(RAND(), _xlfn.POISSON.DIST({0,1,2,3,4,5,6,7,8,9},$O12, TRUE),1), 0) -> 2 | AF12: =_xlfn.IFNA(MATCH(RAND(), _xlfn.POISSON.DIST({0,1,2,3,4,5,6,7,8,9},$O12, TRUE),1), 0) -> 1 | AG12: =_xlfn.IFNA(MATCH(RAND(), _xlfn.POISSON.DIST({0,1,2,3,4,5,6,7,8,9},$O12, TRUE),1), 0) -> 1 | AH12: =_xlfn.IFNA(MATCH(RAND(), _xlfn.POISSON.DIST({0,1,2,3,4,5,6,7,8,9},$O12, TRUE),1), 0) -> 5 | AI12: =_xlfn.IFNA(MATCH(RAND(), _xlfn.POISSON.DIST({0,1,2,3,4,5,6,7,8,9},$O12, TRUE),1), 0) -> 2 | AJ12: =_xlfn.IFNA(MATCH(RAND(), _xlfn.POISSON.DIST({0,1,2,3,4,5,6,7,8,9},$O12, TRUE),1), 0) -> 2 | AK12: =_xlfn.IFNA(MATCH(RAND(), _xlfn.POISSON.DIST({0,1,2,3,4,5,6,7,8,9},$O12, TRUE),1), 0) -> 2 | AL12: =_xlfn.IFNA(MATCH(RAND(), _xlfn.POISSON.DIST({0,1,2,3,4,5,6,7,8,9},$O12, TRUE),1), 0) -> 4 | AM12: =_xlfn.IFNA(MATCH(RAND(), _xlfn.POISSON.DIST({0,1,2,3,4,5,6,7,8,9},$O12, TRUE),1), 0) -> 2 | AN12: =_xlfn.IFNA(MATCH(RAND(), _xlfn.POISSON.DIST({0,1,2,3,4,5,6,7,8,9},$O12, TRUE),1), 0) -> 1 | AO12: =_xlfn.IFNA(MATCH(RAND(), _xlfn.POISSON.DIST({0,1,2,3,4,5,6,7,8,9},$O12, TRUE),1), 0) -> 2 | AP12: =_xlfn.IFNA(MATCH(RAND(), _xlfn.POISSON.DIST({0,1,2,3,4,5,6,7,8,9},$O12, TRUE),1), 0) -> 1 | AQ12: =_xlfn.IFNA(MATCH(RAND(), _xlfn.POISSON.DIST({0,1,2,3,4,5,6,7,8,9},$O12, TRUE),1), 0) -> 2 | AR12: =_xlfn.IFNA(MATCH(RAND(), _xlfn.POISSON.DIST({0,1,2,3,4,5,6,7,8,9},$O12, TRUE),1), 0) -> 0 | AS12: =_xlfn.IFNA(MATCH(RAND(), _xlfn.POISSON.DIST({0,1,2,3,4,5,6,7,8,9},$O12, TRUE),1), 0) -> 4 | AT12: =_xlfn.IFNA(MATCH(RAND(), _xlfn.POISSON.DIST({0,1,2,3,4,5,6,7,8,9},$O12, TRUE),1), 0) -> 4 | AU12: =_xlfn.IFNA(MATCH(RAND(), _xlfn.POISSON.DIST({0,1,2,3,4,5,6,7,8,9},$O12, TRUE),1), 0) -> 0 | AV12: =_xlfn.IFNA(MATCH(RAND(), _xlfn.POISSON.DIST({0,1,2,3,4,5,6,7,8,9},$O12, TRUE),1), 0) -> 2 | AW12: =_xlfn.IFNA(MATCH(RAND(), _xlfn.POISSON.DIST({0,1,2,3,4,5,6,7,8,9},$O12, TRUE),1), 0) -> 5 | AX12: =_xlfn.IFNA(MATCH(RAND(), _xlfn.POISSON.DIST({0,1,2,3,4,5,6,7,8,9},$O12, TRUE),1), 0) -> 2 | AY12: =_xlfn.IFNA(MATCH(RAND(), _xlfn.POISSON.DIST({0,1,2,3,4,5,6,7,8,9},$O12, TRUE),1), 0) -> 0 | AZ12: =_xlfn.IFNA(MATCH(RAND(), _xlfn.POISSON.DIST({0,1,2,3,4,5,6,7,8,9},$O12, TRUE),1), 0) -> 2 | BA12: =_xlfn.IFNA(MATCH(RAND(), _xlfn.POISSON.DIST({0,1,2,3,4,5,6,7,8,9},$O12, TRUE),1), 0) -> 7 | BB12: =_xlfn.IFNA(MATCH(RAND(), _xlfn.POISSON.DIST({0,1,2,3,4,5,6,7,8,9},$O12, TRUE),1), 0) -> 1 | BC12: =_xlfn.IFNA(MATCH(RAND(), _xlfn.POISSON.DIST({0,1,2,3,4,5,6,7,8,9},$O12, TRUE),1), 0) -> 0 | BD12: =_xlfn.IFNA(MATCH(RAND(), _xlfn.POISSON.DIST({0,1,2,3,4,5,6,7,8,9},$O12, TRUE),1), 0) -> 1 | BE12: =_xlfn.IFNA(MATCH(RAND(), _xlfn.POISSON.DIST({0,1,2,3,4,5,6,7,8,9},$O12, TRUE),1), 0) -> 1 | BF12: =_xlfn.IFNA(MATCH(RAND(), _xlfn.POISSON.DIST({0,1,2,3,4,5,6,7,8,9},$O12, TRUE),1), 0) -> 0 | BG12: =_xlfn.IFNA(MATCH(RAND(), _xlfn.POISSON.DIST({0,1,2,3,4,5,6,7,8,9},$O12, TRUE),1), 0) -> 2 | BH12: =_xlfn.IFNA(MATCH(RAND(), _xlfn.POISSON.DIST({0,1,2,3,4,5,6,7,8,9},$O12, TRUE),1), 0) -> 0 | BI12: =_xlfn.IFNA(MATCH(RAND(), _xlfn.POISSON.DIST({0,1,2,3,4,5,6,7,8,9},$O12, TRUE),1), 0) -> 1 | BJ12: =_xlfn.IFNA(MATCH(RAND(), _xlfn.POISSON.DIST({0,1,2,3,4,5,6,7,8,9},$O12, TRUE),1), 0) -> 1 | BK12: =_xlfn.IFNA(MATCH(RAND(), _xlfn.POISSON.DIST({0,1,2,3,4,5,6,7,8,9},$O12, TRUE),1), 0) -> 2 | BL12: =_xlfn.IFNA(MATCH(RAND(), _xlfn.POISSON.DIST({0,1,2,3,4,5,6,7,8,9},$O12, TRUE),1), 0) -> 1 | BM12: =_xlfn.IFNA(MATCH(RAND(), _xlfn.POISSON.DIST({0,1,2,3,4,5,6,7,8,9},$O12, TRUE),1), 0) -> 1 | BN12: =_xlfn.IFNA(MATCH(RAND(), _xlfn.POISSON.DIST({0,1,2,3,4,5,6,7,8,9},$O12, TRUE),1), 0) -> 4 | BP12: =_xlfn.IFNA(MATCH(RAND(), _xlfn.POISSON.DIST({0,1,2,3,4,5,6,7,8,9},$P12, TRUE),1), 0) -> 1 | BQ12: =_xlfn.IFNA(MATCH(RAND(), _xlfn.POISSON.DIST({0,1,2,3,4,5,6,7,8,9},$P12, TRUE),1), 0) -> 2 | BR12: =_xlfn.IFNA(MATCH(RAND(), _xlfn.POISSON.DIST({0,1,2,3,4,5,6,7,8,9},$P12, TRUE),1), 0) -> 2 | BS12: =_xlfn.IFNA(MATCH(RAND(), _xlfn.POISSON.DIST({0,1,2,3,4,5,6,7,8,9},$P12, TRUE),1), 0) -> 3 | BT12: =_xlfn.IFNA(MATCH(RAND(), _xlfn.POISSON.DIST({0,1,2,3,4,5,6,7,8,9},$P12, TRUE),1), 0) -> 2 | BU12: =_xlfn.IFNA(MATCH(RAND(), _xlfn.POISSON.DIST({0,1,2,3,4,5,6,7,8,9},$P12, TRUE),1), 0) -> 3 | BV12: =_xlfn.IFNA(MATCH(RAND(), _xlfn.POISSON.DIST({0,1,2,3,4,5,6,7,8,9},$P12, TRUE),1), 0) -> 1 | BW12: =_xlfn.IFNA(MATCH(RAND(), _xlfn.POISSON.DIST({0,1,2,3,4,5,6,7,8,9},$P12, TRUE),1), 0) -> 2 | BX12: =_xlfn.IFNA(MATCH(RAND(), _xlfn.POISSON.DIST({0,1,2,3,4,5,6,7,8,9},$P12, TRUE),1), 0) -> 0 | BY12: =_xlfn.IFNA(MATCH(RAND(), _xlfn.POISSON.DIST({0,1,2,3,4,5,6,7,8,9},$P12, TRUE),1), 0) -> 1 | BZ12: =_xlfn.IFNA(MATCH(RAND(), _xlfn.POISSON.DIST({0,1,2,3,4,5,6,7,8,9},$P12, TRUE),1), 0) -> 1 | CA12: =_xlfn.IFNA(MATCH(RAND(), _xlfn.POISSON.DIST({0,1,2,3,4,5,6,7,8,9},$P12, TRUE),1), 0) -> 2 | CB12: =_xlfn.IFNA(MATCH(RAND(), _xlfn.POISSON.DIST({0,1,2,3,4,5,6,7,8,9},$P12, TRUE),1), 0) -> 1 | CC12: =_xlfn.IFNA(MATCH(RAND(), _xlfn.POISSON.DIST({0,1,2,3,4,5,6,7,8,9},$P12, TRUE),1), 0) -> 4 | CD12: =_xlfn.IFNA(MATCH(RAND(), _xlfn.POISSON.DIST({0,1,2,3,4,5,6,7,8,9},$P12, TRUE),1), 0) -> 4 | CE12: =_xlfn.IFNA(MATCH(RAND(), _xlfn.POISSON.DIST({0,1,2,3,4,5,6,7,8,9},$P12, TRUE),1), 0) -> 1 | CF12: =_xlfn.IFNA(MATCH(RAND(), _xlfn.POISSON.DIST({0,1,2,3,4,5,6,7,8,9},$P12, TRUE),1), 0) -> 2 | CG12: =_xlfn.IFNA(MATCH(RAND(), _xlfn.POISSON.DIST({0,1,2,3,4,5,6,7,8,9},$P12, TRUE),1), 0) -> 1 | CH12: =_xlfn.IFNA(MATCH(RAND(), _xlfn.POISSON.DIST({0,1,2,3,4,5,6,7,8,9},$P12, TRUE),1), 0) -> 1 | CI12: =_xlfn.IFNA(MATCH(RAND(), _xlfn.POISSON.DIST({0,1,2,3,4,5,6,7,8,9},$P12, TRUE),1), 0) -> 1 | CJ12: =_xlfn.IFNA(MATCH(RAND(), _xlfn.POISSON.DIST({0,1,2,3,4,5,6,7,8,9},$P12, TRUE),1), 0) -> 3 | CK12: =_xlfn.IFNA(MATCH(RAND(), _xlfn.POISSON.DIST({0,1,2,3,4,5,6,7,8,9},$P12, TRUE),1), 0) -> 0 | CL12: =_xlfn.IFNA(MATCH(RAND(), _xlfn.POISSON.DIST({0,1,2,3,4,5,6,7,8,9},$P12, TRUE),1), 0) -> 0 | CM12: =_xlfn.IFNA(MATCH(RAND(), _xlfn.POISSON.DIST({0,1,2,3,4,5,6,7,8,9},$P12, TRUE),1), 0) -> 3 | CN12: =_xlfn.IFNA(MATCH(RAND(), _xlfn.POISSON.DIST({0,1,2,3,4,5,6,7,8,9},$P12, TRUE),1), 0) -> 0 | CO12: =_xlfn.IFNA(MATCH(RAND(), _xlfn.POISSON.DIST({0,1,2,3,4,5,6,7,8,9},$P12, TRUE),1), 0) -> 3 | CP12: =_xlfn.IFNA(MATCH(RAND(), _xlfn.POISSON.DIST({0,1,2,3,4,5,6,7,8,9},$P12, TRUE),1), 0) -> 3 | CQ12: =_xlfn.IFNA(MATCH(RAND(), _xlfn.POISSON.DIST({0,1,2,3,4,5,6,7,8,9},$P12, TRUE),1), 0) -> 0 | CR12: =_xlfn.IFNA(MATCH(RAND(), _xlfn.POISSON.DIST({0,1,2,3,4,5,6,7,8,9},$P12, TRUE),1), 0) -> 3 | CS12: =_xlfn.IFNA(MATCH(RAND(), _xlfn.POISSON.DIST({0,1,2,3,4,5,6,7,8,9},$P12, TRUE),1), 0) -> 2 | CT12: =_xlfn.IFNA(MATCH(RAND(), _xlfn.POISSON.DIST({0,1,2,3,4,5,6,7,8,9},$P12, TRUE),1), 0) -> 3 | CU12: =_xlfn.IFNA(MATCH(RAND(), _xlfn.POISSON.DIST({0,1,2,3,4,5,6,7,8,9},$P12, TRUE),1), 0) -> 4 | CV12: =_xlfn.IFNA(MATCH(RAND(), _xlfn.POISSON.DIST({0,1,2,3,4,5,6,7,8,9},$P12, TRUE),1), 0) -> 1 | CW12: =_xlfn.IFNA(MATCH(RAND(), _xlfn.POISSON.DIST({0,1,2,3,4,5,6,7,8,9},$P12, TRUE),1), 0) -> 1 | CX12: =_xlfn.IFNA(MATCH(RAND(), _xlfn.POISSON.DIST({0,1,2,3,4,5,6,7,8,9},$P12, TRUE),1), 0) -> 0 | CY12: =_xlfn.IFNA(MATCH(RAND(), _xlfn.POISSON.DIST({0,1,2,3,4,5,6,7,8,9},$P12, TRUE),1), 0) -> 1 | CZ12: =_xlfn.IFNA(MATCH(RAND(), _xlfn.POISSON.DIST({0,1,2,3,4,5,6,7,8,9},$P12, TRUE),1), 0) -> 1 | DA12: =_xlfn.IFNA(MATCH(RAND(), _xlfn.POISSON.DIST({0,1,2,3,4,5,6,7,8,9},$P12, TRUE),1), 0) -> 1 | DB12: =_xlfn.IFNA(MATCH(RAND(), _xlfn.POISSON.DIST({0,1,2,3,4,5,6,7,8,9},$P12, TRUE),1), 0) -> 2 | DC12: =_xlfn.IFNA(MATCH(RAND(), _xlfn.POISSON.DIST({0,1,2,3,4,5,6,7,8,9},$P12, TRUE),1), 0) -> 1 | DD12: =_xlfn.IFNA(MATCH(RAND(), _xlfn.POISSON.DIST({0,1,2,3,4,5,6,7,8,9},$P12, TRUE),1), 0) -> 1 | DE12: =_xlfn.IFNA(MATCH(RAND(), _xlfn.POISSON.DIST({0,1,2,3,4,5,6,7,8,9},$P12, TRUE),1), 0) -> 0 | DF12: =_xlfn.IFNA(MATCH(RAND(), _xlfn.POISSON.DIST({0,1,2,3,4,5,6,7,8,9},$P12, TRUE),1), 0) -> 1 | DG12: =_xlfn.IFNA(MATCH(RAND(), _xlfn.POISSON.DIST({0,1,2,3,4,5,6,7,8,9},$P12, TRUE),1), 0) -> 0 | DH12: =_xlfn.IFNA(MATCH(RAND(), _xlfn.POISSON.DIST({0,1,2,3,4,5,6,7,8,9},$P12, TRUE),1), 0) -> 2 | DI12: =_xlfn.IFNA(MATCH(RAND(), _xlfn.POISSON.DIST({0,1,2,3,4,5,6,7,8,9},$P12, TRUE),1), 0) -> 5 | DJ12: =_xlfn.IFNA(MATCH(RAND(), _xlfn.POISSON.DIST({0,1,2,3,4,5,6,7,8,9},$P12, TRUE),1), 0) -> 4 | DK12: =_xlfn.IFNA(MATCH(RAND(), _xlfn.POISSON.DIST({0,1,2,3,4,5,6,7,8,9},$P12, TRUE),1), 0) -> 0 | DL12: =_xlfn.IFNA(MATCH(RAND(), _xlfn.POISSON.DIST({0,1,2,3,4,5,6,7,8,9},$P12, TRUE),1), 0) -> 1 | DM12: =_xlfn.IFNA(MATCH(RAND(), _xlfn.POISSON.DIST({0,1,2,3,4,5,6,7,8,9},$P12, TRUE),1), 0) -> 3
C13: 2019-06-10 | D13: D | E13: Argentinien | F13: =(AVERAGE(Q13:BN13))*(1+INDEX('Prognosen für die Gruppenphase'!$C$4:$O$28, MATCH('Spiele in diesem Jahr'!E13,'Prognosen für die Gruppenphase'!$D$4:$D$28,0),3)) -> 0.38 | G13: Japan | H13: =(AVERAGE(BP13:DM13))*(1+INDEX('Prognosen für die Gruppenphase'!$C$4:$O$28, MATCH('Spiele in diesem Jahr'!G13,'Prognosen für die Gruppenphase'!$D$4:$D$28,0),3)) -> 3.14 | I13: Japan | L13: 0.38 | M13: 3.14 | N13: Japan | O13: =(OFFSET('Anhang 3 – Tore je Gruppe'!$C$13,(INDEX('Anhang 1 – Mannschaftsdaten'!$C$13:$F$112,MATCH(G13,'Anhang 1 – Mannschaftsdaten'!$C$13:$C$112,0),4)/10),(INDEX('Anhang 1 – Mannschaftsdaten'!$C$13:$F$112,MATCH(E13,'Anhang 1 – Mannschaftsdaten'!$C$13:$C$112,0),4)/10))) -> 0.38 | P13: =OFFSET('Anhang 3 – Tore je Gruppe'!$C$13,(INDEX('Anhang 1 – Mannschaftsdaten'!$C$13:$F$112, MATCH(E13,'Anhang 1 – Mannschaftsdaten'!$C$13:$C$112,0),4)/10), (INDEX('Anhang 1 – Mannschaftsdaten'!$C$13:$F$112, MATCH(G13, 'Anhang 1 – Mannschaftsdaten'!$C$13:$C$112,0),4)/10)) -> 2.94 | Q13: =_xlfn.IFNA(MATCH(RAND(), _xlfn.POISSON.DIST({0,1,2,3,4,5,6,7,8,9},$O13, TRUE),1), 0) -> 1 | R13: =_xlfn.IFNA(MATCH(RAND(), _xlfn.POISSON.DIST({0,1,2,3,4,5,6,7,8,9},$O13, TRUE),1), 0) -> 0 | S13: =_xlfn.IFNA(MATCH(RAND(), _xlfn.POISSON.DIST({0,1,2,3,4,5,6,7,8,9},$O13, TRUE),1), 0) -> 1 | T13: =_xlfn.IFNA(MATCH(RAND(), _xlfn.POISSON.DIST({0,1,2,3,4,5,6,7,8,9},$O13, TRUE),1), 0) -> 0 | U13: =_xlfn.IFNA(MATCH(RAND(), _xlfn.POISSON.DIST({0,1,2,3,4,5,6,7,8,9},$O13, TRUE),1), 0) -> 0 | V13: =_xlfn.IFNA(MATCH(RAND(), _xlfn.POISSON.DIST({0,1,2,3,4,5,6,7,8,9},$O13, TRUE),1), 0) -> 0 | W13: =_xlfn.IFNA(MATCH(RAND(), _xlfn.POISSON.DIST({0,1,2,3,4,5,6,7,8,9},$O13, TRUE),1), 0) -> 0 | X13: =_xlfn.IFNA(MATCH(RAND(), _xlfn.POISSON.DIST({0,1,2,3,4,5,6,7,8,9},$O13, TRUE),1), 0) -> 0 | Y13: =_xlfn.IFNA(MATCH(RAND(), _xlfn.POISSON.DIST({0,1,2,3,4,5,6,7,8,9},$O13, TRUE),1), 0) -> 0 | Z13: =_xlfn.IFNA(MATCH(RAND(), _xlfn.POISSON.DIST({0,1,2,3,4,5,6,7,8,9},$O13, TRUE),1), 0) -> 0 | AA13: =_xlfn.IFNA(MATCH(RAND(), _xlfn.POISSON.DIST({0,1,2,3,4,5,6,7,8,9},$O13, TRUE),1), 0) -> 0 | AB13: =_xlfn.IFNA(MATCH(RAND(), _xlfn.POISSON.DIST({0,1,2,3,4,5,6,7,8,9},$O13, TRUE),1), 0) -> 1 | AC13: =_xlfn.IFNA(MATCH(RAND(), _xlfn.POISSON.DIST({0,1,2,3,4,5,6,7,8,9},$O13, TRUE),1), 0) -> 0 | AD13: =_xlfn.IFNA(MATCH(RAND(), _xlfn.POISSON.DIST({0,1,2,3,4,5,6,7,8,9},$O13, TRUE),1), 0) -> 0 | AE13: =_xlfn.IFNA(MATCH(RAND(), _xlfn.POISSON.DIST({0,1,2,3,4,5,6,7,8,9},$O13, TRUE),1), 0) -> 0 | AF13: =_xlfn.IFNA(MATCH(RAND(), _xlfn.POISSON.DIST({0,1,2,3,4,5,6,7,8,9},$O13, TRUE),1), 0) -> 2 | AG13: =_xlfn.IFNA(MATCH(RAND(), _xlfn.POISSON.DIST({0,1,2,3,4,5,6,7,8,9},$O13, TRUE),1), 0) -> 0 | AH13: =_xlfn.IFNA(MATCH(RAND(), _xlfn.POISSON.DIST({0,1,2,3,4,5,6,7,8,9},$O13, TRUE),1), 0) -> 0 | AI13: =_xlfn.IFNA(MATCH(RAND(), _xlfn.POISSON.DIST({0,1,2,3,4,5,6,7,8,9},$O13, TRUE),1), 0) -> 0 | AJ13: =_xlfn.IFNA(MATCH(RAND(), _xlfn.POISSON.DIST({0,1,2,3,4,5,6,7,8,9},$O13, TRUE),1), 0) -> 1 | AK13: =_xlfn.IFNA(MATCH(RAND(), _xlfn.POISSON.DIST({0,1,2,3,4,5,6,7,8,9},$O13, TRUE),1), 0) -> 0 | AL13: =_xlfn.IFNA(MATCH(RAND(), _xlfn.POISSON.DIST({0,1,2,3,4,5,6,7,8,9},$O13, TRUE),1), 0) -> 1 | AM13: =_xlfn.IFNA(MATCH(RAND(), _xlfn.POISSON.DIST({0,1,2,3,4,5,6,7,8,9},$O13, TRUE),1), 0) -> 0 | AN13: =_xlfn.IFNA(MATCH(RAND(), _xlfn.POISSON.DIST({0,1,2,3,4,5,6,7,8,9},$O13, TRUE),1), 0) -> 1 | AO13: =_xlfn.IFNA(MATCH(RAND(), _xlfn.POISSON.DIST({0,1,2,3,4,5,6,7,8,9},$O13, TRUE),1), 0) -> 0 | AP13: =_xlfn.IFNA(MATCH(RAND(), _xlfn.POISSON.DIST({0,1,2,3,4,5,6,7,8,9},$O13, TRUE),1), 0) -> 0 | AQ13: =_xlfn.IFNA(MATCH(RAND(), _xlfn.POISSON.DIST({0,1,2,3,4,5,6,7,8,9},$O13, TRUE),1), 0) -> 1 | AR13: =_xlfn.IFNA(MATCH(RAND(), _xlfn.POISSON.DIST({0,1,2,3,4,5,6,7,8,9},$O13, TRUE),1), 0) -> 0 | AS13: =_xlfn.IFNA(MATCH(RAND(), _xlfn.POISSON.DIST({0,1,2,3,4,5,6,7,8,9},$O13, TRUE),1), 0) -> 0 | AT13: =_xlfn.IFNA(MATCH(RAND(), _xlfn.POISSON.DIST({0,1,2,3,4,5,6,7,8,9},$O13, TRUE),1), 0) -> 0 | AU13: =_xlfn.IFNA(MATCH(RAND(), _xlfn.POISSON.DIST({0,1,2,3,4,5,6,7,8,9},$O13, TRUE),1), 0) -> 0 | AV13: =_xlfn.IFNA(MATCH(RAND(), _xlfn.POISSON.DIST({0,1,2,3,4,5,6,7,8,9},$O13, TRUE),1), 0) -> 0 | AW13: =_xlfn.IFNA(MATCH(RAND(), _xlfn.POISSON.DIST({0,1,2,3,4,5,6,7,8,9},$O13, TRUE),1), 0) -> 0 | AX13: =_xlfn.IFNA(MATCH(RAND(), _xlfn.POISSON.DIST({0,1,2,3,4,5,6,7,8,9},$O13, TRUE),1), 0) -> 0 | AY13: =_xlfn.IFNA(MATCH(RAND(), _xlfn.POISSON.DIST({0,1,2,3,4,5,6,7,8,9},$O13, TRUE),1), 0) -> 0 | AZ13: =_xlfn.IFNA(MATCH(RAND(), _xlfn.POISSON.DIST({0,1,2,3,4,5,6,7,8,9},$O13, TRUE),1), 0) -> 0 | BA13: =_xlfn.IFNA(MATCH(RAND(), _xlfn.POISSON.DIST({0,1,2,3,4,5,6,7,8,9},$O13, TRUE),1), 0) -> 0 | BB13: =_xlfn.IFNA(MATCH(RAND(), _xlfn.POISSON.DIST({0,1,2,3,4,5,6,7,8,9},$O13, TRUE),1), 0) -> 1 | BC13: =_xlfn.IFNA(MATCH(RAND(), _xlfn.POISSON.DIST({0,1,2,3,4,5,6,7,8,9},$O13, TRUE),1), 0) -> 2 | BD13: =_xlfn.IFNA(MATCH(RAND(), _xlfn.POISSON.DIST({0,1,2,3,4,5,6,7,8,9},$O13, TRUE),1), 0) -> 1 | BE13: =_xlfn.IFNA(MATCH(RAND(), _xlfn.POISSON.DIST({0,1,2,3,4,5,6,7,8,9},$O13, TRUE),1), 0) -> 1 | BF13: =_xlfn.IFNA(MATCH(RAND(), _xlfn.POISSON.DIST({0,1,2,3,4,5,6,7,8,9},$O13, TRUE),1), 0) -> 0 | BG13: =_xlfn.IFNA(MATCH(RAND(), _xlfn.POISSON.DIST({0,1,2,3,4,5,6,7,8,9},$O13, TRUE),1), 0) -> 0 | BH13: =_xlfn.IFNA(MATCH(RAND(), _xlfn.POISSON.DIST({0,1,2,3,4,5,6,7,8,9},$O13, TRUE),1), 0) -> 1 | BI13: =_xlfn.IFNA(MATCH(RAND(), _xlfn.POISSON.DIST({0,1,2,3,4,5,6,7,8,9},$O13, TRUE),1), 0) -> 1 | BJ13: =_xlfn.IFNA(MATCH(RAND(), _xlfn.POISSON.DIST({0,1,2,3,4,5,6,7,8,9},$O13, TRUE),1), 0) -> 0 | BK13: =_xlfn.IFNA(MATCH(RAND(), _xlfn.POISSON.DIST({0,1,2,3,4,5,6,7,8,9},$O13, TRUE),1), 0) -> 1 | BL13: =_xlfn.IFNA(MATCH(RAND(), _xlfn.POISSON.DIST({0,1,2,3,4,5,6,7,8,9},$O13, TRUE),1), 0) -> 1 | BM13: =_xlfn.IFNA(MATCH(RAND(), _xlfn.POISSON.DIST({0,1,2,3,4,5,6,7,8,9},$O13, TRUE),1), 0) -> 1 | BN13: =_xlfn.IFNA(MATCH(RAND(), _xlfn.POISSON.DIST({0,1,2,3,4,5,6,7,8,9},$O13, TRUE),1), 0) -> 0 | BP13: =_xlfn.IFNA(MATCH(RAND(), _xlfn.POISSON.DIST({0,1,2,3,4,5,6,7,8,9},$P13, TRUE),1), 0) -> 0 | BQ13: =_xlfn.IFNA(MATCH(RAND(), _xlfn.POISSON.DIST({0,1,2,3,4,5,6,7,8,9},$P13, TRUE),1), 0) -> 4 | BR13: =_xlfn.IFNA(MATCH(RAND(), _xlfn.POISSON.DIST({0,1,2,3,4,5,6,7,8,9},$P13, TRUE),1), 0) -> 1 | BS13: =_xlfn.IFNA(MATCH(RAND(), _xlfn.POISSON.DIST({0,1,2,3,4,5,6,7,8,9},$P13, TRUE),1), 0) -> 3 | BT13: =_xlfn.IFNA(MATCH(RAND(), _xlfn.POISSON.DIST({0,1,2,3,4,5,6,7,8,9},$P13, TRUE),1), 0) -> 3 | BU13: =_xlfn.IFNA(MATCH(RAND(), _xlfn.POISSON.DIST({0,1,2,3,4,5,6,7,8,9},$P13, TRUE),1), 0) -> 7 | BV13: =_xlfn.IFNA(MATCH(RAND(), _xlfn.POISSON.DIST({0,1,2,3,4,5,6,7,8,9},$P13, TRUE),1), 0) -> 1 | BW13: =_xlfn.IFNA(MATCH(RAND(), _xlfn.POISSON.DIST({0,1,2,3,4,5,6,7,8,9},$P13, TRUE),1), 0) -> 9 | BX13: =_xlfn.IFNA(MATCH(RAND(), _xlfn.POISSON.DIST({0,1,2,3,4,5,6,7,8,9},$P13, TRUE),1), 0) -> 3 | BY13: =_xlfn.IFNA(MATCH(RAND(), _xlfn.POISSON.DIST({0,1,2,3,4,5,6,7,8,9},$P13, TRUE),1), 0) -> 3 | BZ13: =_xlfn.IFNA(MATCH(RAND(), _xlfn.POISSON.DIST({0,1,2,3,4,5,6,7,8,9},$P13, TRUE),1), 0) -> 1 | CA13: =_xlfn.IFNA(MATCH(RAND(), _xlfn.POISSON.DIST({0,1,2,3,4,5,6,7,8,9},$P13, TRUE),1), 0) -> 3 | CB13: =_xlfn.IFNA(MATCH(RAND(), _xlfn.POISSON.DIST({0,1,2,3,4,5,6,7,8,9},$P13, TRUE),1), 0) -> 7 | CC13: =_xlfn.IFNA(MATCH(RAND(), _xlfn.POISSON.DIST({0,1,2,3,4,5,6,7,8,9},$P13, TRUE),1), 0) -> 7 | CD13: =_xlfn.IFNA(MATCH(RAND(), _xlfn.POISSON.DIST({0,1,2,3,4,5,6,7,8,9},$P13, TRUE),1), 0) -> 6 | CE13: =_xlfn.IFNA(MATCH(RAND(), _xlfn.POISSON.DIST({0,1,2,3,4,5,6,7,8,9},$P13, TRUE),1), 0) -> 5 | CF13: =_xlfn.IFNA(MATCH(RAND(), _xlfn.POISSON.DIST({0,1,2,3,4,5,6,7,8,9},$P13, TRUE),1), 0) -> 5 | CG13: =_xlfn.IFNA(MATCH(RAND(), _xlfn.POISSON.DIST({0,1,2,3,4,5,6,7,8,9},$P13, TRUE),1), 0) -> 0 | CH13: =_xlfn.IFNA(MATCH(RAND(), _xlfn.POISSON.DIST({0,1,2,3,4,5,6,7,8,9},$P13, TRUE),1), 0) -> 3 | CI13: =_xlfn.IFNA(MATCH(RAND(), _xlfn.POISSON.DIST({0,1,2,3,4,5,6,7,8,9},$P13, TRUE),1), 0) -> 2 | CJ13: =_xlfn.IFNA(MATCH(RAND(), _xlfn.POISSON.DIST({0,1,2,3,4,5,6,7,8,9},$P13, TRUE),1), 0) -> 3 | CK13: =_xlfn.IFNA(MATCH(RAND(), _xlfn.POISSON.DIST({0,1,2,3,4,5,6,7,8,9},$P13, TRUE),1), 0) -> 8 | CL13: =_xlfn.IFNA(MATCH(RAND(), _xlfn.POISSON.DIST({0,1,2,3,4,5,6,7,8,9},$P13, TRUE),1), 0) -> 6 | CM13: =_xlfn.IFNA(MATCH(RAND(), _xlfn.POISSON.DIST({0,1,2,3,4,5,6,7,8,9},$P13, TRUE),1), 0) -> 2 | CN13: =_xlfn.IFNA(MATCH(RAND(), _xlfn.POISSON.DIST({0,1,2,3,4,5,6,7,8,9},$P13, TRUE),1), 0) -> 6 | CO13: =_xlfn.IFNA(MATCH(RAND(), _xlfn.POISSON.DIST({0,1,2,3,4,5,6,7,8,9},$P13, TRUE),1), 0) -> 2 | CP13: =_xlfn.IFNA(MATCH(RAND(), _xlfn.POISSON.DIST({0,1,2,3,4,5,6,7,8,9},$P13, TRUE),1), 0) -> 2 | CQ13: =_xlfn.IFNA(MATCH(RAND(), _xlfn.POISSON.DIST({0,1,2,3,4,5,6,7,8,9},$P13, TRUE),1), 0) -> 4 | CR13: =_xlfn.IFNA(MATCH(RAND(), _xlfn.POISSON.DIST({0,1,2,3,4,5,6,7,8,9},$P13, TRUE),1), 0) -> 4 | CS13: =_xlfn.IFNA(MATCH(RAND(), _xlfn.POISSON.DIST({0,1,2,3,4,5,6,7,8,9},$P13, TRUE),1), 0) -> 2 | CT13: =_xlfn.IFNA(MATCH(RAND(), _xlfn.POISSON.DIST({0,1,2,3,4,5,6,7,8,9},$P13, TRUE),1), 0) -> 2 | CU13: =_xlfn.IFNA(MATCH(RAND(), _xlfn.POISSON.DIST({0,1,2,3,4,5,6,7,8,9},$P13, TRUE),1), 0) -> 5 | CV13: =_xlfn.IFNA(MATCH(RAND(), _xlfn.POISSON.DIST({0,1,2,3,4,5,6,7,8,9},$P13, TRUE),1), 0) -> 3 | CW13: =_xlfn.IFNA(MATCH(RAND(), _xlfn.POISSON.DIST({0,1,2,3,4,5,6,7,8,9},$P13, TRUE),1), 0) -> 3 | CX13: =_xlfn.IFNA(MATCH(RAND(), _xlfn.POISSON.DIST({0,1,2,3,4,5,6,7,8,9},$P13, TRUE),1), 0) -> 5 | CY13: =_xlfn.IFNA(MATCH(RAND(), _xlfn.POISSON.DIST({0,1,2,3,4,5,6,7,8,9},$P13, TRUE),1), 0) -> 1 | CZ13: =_xlfn.IFNA(MATCH(RAND(), _xlfn.POISSON.DIST({0,1,2,3,4,5,6,7,8,9},$P13, TRUE),1), 0) -> 2 | DA13: =_xlfn.IFNA(MATCH(RAND(), _xlfn.POISSON.DIST({0,1,2,3,4,5,6,7,8,9},$P13, TRUE),1), 0) -> 5 | DB13: =_xlfn.IFNA(MATCH(RAND(), _xlfn.POISSON.DIST({0,1,2,3,4,5,6,7,8,9},$P13, TRUE),1), 0) -> 3 | DC13: =_xlfn.IFNA(MATCH(RAND(), _xlfn.POISSON.DIST({0,1,2,3,4,5,6,7,8,9},$P13, TRUE),1), 0) -> 0 | DD13: =_xlfn.IFNA(MATCH(RAND(), _xlfn.POISSON.DIST({0,1,2,3,4,5,6,7,8,9},$P13, TRUE),1), 0) -> 1 | DE13: =_xlfn.IFNA(MATCH(RAND(), _xlfn.POISSON.DIST({0,1,2,3,4,5,6,7,8,9},$P13, TRUE),1), 0) -> 2 | DF13: =_xlfn.IFNA(MATCH(RAND(), _xlfn.POISSON.DIST({0,1,2,3,4,5,6,7,8,9},$P13, TRUE),1), 0) -> 0 | DG13: =_xlfn.IFNA(MATCH(RAND(), _xlfn.POISSON.DIST({0,1,2,3,4,5,6,7,8,9},$P13, TRUE),1), 0) -> 1 | DH13: =_xlfn.IFNA(MATCH(RAND(), _xlfn.POISSON.DIST({0,1,2,3,4,5,6,7,8,9},$P13, TRUE),1), 0) -> 1 | DI13: =_xlfn.IFNA(MATCH(RAND(), _xlfn.POISSON.DIST({0,1,2,3,4,5,6,7,8,9},$P13, TRUE),1), 0) -> 2 | DJ13: =_xlfn.IFNA(MATCH(RAND(), _xlfn.POISSON.DIST({0,1,2,3,4,5,6,7,8,9},$P13, TRUE),1), 0) -> 3 | DK13: =_xlfn.IFNA(MATCH(RAND(), _xlfn.POISSON.DIST({0,1,2,3,4,5,6,7,8,9},$P13, TRUE),1), 0) -> 1 | DL13: =_xlfn.IFNA(MATCH(RAND(), _xlfn.POISSON.DIST({0,1,2,3,4,5,6,7,8,9},$P13, TRUE),1), 0) -> 2 | DM13: =_xlfn.IFNA(MATCH(RAND(), _xlfn.POISSON.DIST({0,1,2,3,4,5,6,7,8,9},$P13, TRUE),1), 0) -> 3
C14: 2019-06-10 | D14: E | E14: Kanada | F14: =(AVERAGE(Q14:BN14))*(1+INDEX('Prognosen für die Gruppenphase'!$C$4:$O$28, MATCH('Spiele in diesem Jahr'!E14,'Prognosen für die Gruppenphase'!$D$4:$D$28,0),3)) -> 1.44 | G14: Kamerun | H14: =(AVERAGE(BP14:DM14))*(1+INDEX('Prognosen für die Gruppenphase'!$C$4:$O$28, MATCH('Spiele in diesem Jahr'!G14,'Prognosen für die Gruppenphase'!$D$4:$D$28,0),3)) -> 1.48 | I14: Kamerun | L14: 1.44 | M14: 1.48 | N14: Kamerun | O14: =(OFFSET('Anhang 3 – Tore je Gruppe'!$C$13,(INDEX('Anhang 1 – Mannschaftsdaten'!$C$13:$F$112,MATCH(G14,'Anhang 1 – Mannschaftsdaten'!$C$13:$C$112,0),4)/10),(INDEX('Anhang 1 – Mannschaftsdaten'!$C$13:$F$112,MATCH(E14,'Anhang 1 – Mannschaftsdaten'!$C$13:$C$112,0),4)/10))) -> 1.50 | P14: =OFFSET('Anhang 3 – Tore je Gruppe'!$C$13,(INDEX('Anhang 1 – Mannschaftsdaten'!$C$13:$F$112, MATCH(E14,'Anhang 1 – Mannschaftsdaten'!$C$13:$C$112,0),4)/10), (INDEX('Anhang 1 – Mannschaftsdaten'!$C$13:$F$112, MATCH(G14, 'Anhang 1 – Mannschaftsdaten'!$C$13:$C$112,0),4)/10)) -> 1.50 | Q14: =_xlfn.IFNA(MATCH(RAND(), _xlfn.POISSON.DIST({0,1,2,3,4,5,6,7,8,9},$O14, TRUE),1), 0) -> 1 | R14: =_xlfn.IFNA(MATCH(RAND(), _xlfn.POISSON.DIST({0,1,2,3,4,5,6,7,8,9},$O14, TRUE),1), 0) -> 1 | S14: =_xlfn.IFNA(MATCH(RAND(), _xlfn.POISSON.DIST({0,1,2,3,4,5,6,7,8,9},$O14, TRUE),1), 0) -> 1 | T14: =_xlfn.IFNA(MATCH(RAND(), _xlfn.POISSON.DIST({0,1,2,3,4,5,6,7,8,9},$O14, TRUE),1), 0) -> 0 | U14: =_xlfn.IFNA(MATCH(RAND(), _xlfn.POISSON.DIST({0,1,2,3,4,5,6,7,8,9},$O14, TRUE),1), 0) -> 2 | V14: =_xlfn.IFNA(MATCH(RAND(), _xlfn.POISSON.DIST({0,1,2,3,4,5,6,7,8,9},$O14, TRUE),1), 0) -> 2 | W14: =_xlfn.IFNA(MATCH(RAND(), _xlfn.POISSON.DIST({0,1,2,3,4,5,6,7,8,9},$O14, TRUE),1), 0) -> 0 | X14: =_xlfn.IFNA(MATCH(RAND(), _xlfn.POISSON.DIST({0,1,2,3,4,5,6,7,8,9},$O14, TRUE),1), 0) -> 1 | Y14: =_xlfn.IFNA(MATCH(RAND(), _xlfn.POISSON.DIST({0,1,2,3,4,5,6,7,8,9},$O14, TRUE),1), 0) -> 1 | Z14: =_xlfn.IFNA(MATCH(RAND(), _xlfn.POISSON.DIST({0,1,2,3,4,5,6,7,8,9},$O14, TRUE),1), 0) -> 4 | AA14: =_xlfn.IFNA(MATCH(RAND(), _xlfn.POISSON.DIST({0,1,2,3,4,5,6,7,8,9},$O14, TRUE),1), 0) -> 2 | AB14: =_xlfn.IFNA(MATCH(RAND(), _xlfn.POISSON.DIST({0,1,2,3,4,5,6,7,8,9},$O14, TRUE),1), 0) -> 3 | AC14: =_xlfn.IFNA(MATCH(RAND(), _xlfn.POISSON.DIST({0,1,2,3,4,5,6,7,8,9},$O14, TRUE),1), 0) -> 2 | AD14: =_xlfn.IFNA(MATCH(RAND(), _xlfn.POISSON.DIST({0,1,2,3,4,5,6,7,8,9},$O14, TRUE),1), 0) -> 1 | AE14: =_xlfn.IFNA(MATCH(RAND(), _xlfn.POISSON.DIST({0,1,2,3,4,5,6,7,8,9},$O14, TRUE),1), 0) -> 1 | AF14: =_xlfn.IFNA(MATCH(RAND(), _xlfn.POISSON.DIST({0,1,2,3,4,5,6,7,8,9},$O14, TRUE),1), 0) -> 1 | AG14: =_xlfn.IFNA(MATCH(RAND(), _xlfn.POISSON.DIST({0,1,2,3,4,5,6,7,8,9},$O14, TRUE),1), 0) -> 1 | AH14: =_xlfn.IFNA(MATCH(RAND(), _xlfn.POISSON.DIST({0,1,2,3,4,5,6,7,8,9},$O14, TRUE),1), 0) -> 2 | AI14: =_xlfn.IFNA(MATCH(RAND(), _xlfn.POISSON.DIST({0,1,2,3,4,5,6,7,8,9},$O14, TRUE),1), 0) -> 0 | AJ14: =_xlfn.IFNA(MATCH(RAND(), _xlfn.POISSON.DIST({0,1,2,3,4,5,6,7,8,9},$O14, TRUE),1), 0) -> 3 | AK14: =_xlfn.IFNA(MATCH(RAND(), _xlfn.POISSON.DIST({0,1,2,3,4,5,6,7,8,9},$O14, TRUE),1), 0) -> 0 | AL14: =_xlfn.IFNA(MATCH(RAND(), _xlfn.POISSON.DIST({0,1,2,3,4,5,6,7,8,9},$O14, TRUE),1), 0) -> 3 | AM14: =_xlfn.IFNA(MATCH(RAND(), _xlfn.POISSON.DIST({0,1,2,3,4,5,6,7,8,9},$O14, TRUE),1), 0) -> 1 | AN14: =_xlfn.IFNA(MATCH(RAND(), _xlfn.POISSON.DIST({0,1,2,3,4,5,6,7,8,9},$O14, TRUE),1), 0) -> 2 | AO14: =_xlfn.IFNA(MATCH(RAND(), _xlfn.POISSON.DIST({0,1,2,3,4,5,6,7,8,9},$O14, TRUE),1), 0) -> 3 | AP14: =_xlfn.IFNA(MATCH(RAND(), _xlfn.POISSON.DIST({0,1,2,3,4,5,6,7,8,9},$O14, TRUE),1), 0) -> 1 | AQ14: =_xlfn.IFNA(MATCH(RAND(), _xlfn.POISSON.DIST({0,1,2,3,4,5,6,7,8,9},$O14, TRUE),1), 0) -> 2 | AR14: =_xlfn.IFNA(MATCH(RAND(), _xlfn.POISSON.DIST({0,1,2,3,4,5,6,7,8,9},$O14, TRUE),1), 0) -> 1 | AS14: =_xlfn.IFNA(MATCH(RAND(), _xlfn.POISSON.DIST({0,1,2,3,4,5,6,7,8,9},$O14, TRUE),1), 0) -> 2 | AT14: =_xlfn.IFNA(MATCH(RAND(), _xlfn.POISSON.DIST({0,1,2,3,4,5,6,7,8,9},$O14, TRUE),1), 0) -> 1 | AU14: =_xlfn.IFNA(MATCH(RAND(), _xlfn.POISSON.DIST({0,1,2,3,4,5,6,7,8,9},$O14, TRUE),1), 0) -> 2 | AV14: =_xlfn.IFNA(MATCH(RAND(), _xlfn.POISSON.DIST({0,1,2,3,4,5,6,7,8,9},$O14, TRUE),1), 0) -> 1 | AW14: =_xlfn.IFNA(MATCH(RAND(), _xlfn.POISSON.DIST({0,1,2,3,4,5,6,7,8,9},$O14, TRUE),1), 0) -> 0 | AX14: =_xlfn.IFNA(MATCH(RAND(), _xlfn.POISSON.DIST({0,1,2,3,4,5,6,7,8,9},$O14, TRUE),1), 0) -> 1 | AY14: =_xlfn.IFNA(MATCH(RAND(), _xlfn.POISSON.DIST({0,1,2,3,4,5,6,7,8,9},$O14, TRUE),1), 0) -> 0 | AZ14: =_xlfn.IFNA(MATCH(RAND(), _xlfn.POISSON.DIST({0,1,2,3,4,5,6,7,8,9},$O14, TRUE),1), 0) -> 4 | BA14: =_xlfn.IFNA(MATCH(RAND(), _xlfn.POISSON.DIST({0,1,2,3,4,5,6,7,8,9},$O14, TRUE),1), 0) -> 2 | BB14: =_xlfn.IFNA(MATCH(RAND(), _xlfn.POISSON.DIST({0,1,2,3,4,5,6,7,8,9},$O14, TRUE),1), 0) -> 1 | BC14: =_xlfn.IFNA(MATCH(RAND(), _xlfn.POISSON.DIST({0,1,2,3,4,5,6,7,8,9},$O14, TRUE),1), 0) -> 0 | BD14: =_xlfn.IFNA(MATCH(RAND(), _xlfn.POISSON.DIST({0,1,2,3,4,5,6,7,8,9},$O14, TRUE),1), 0) -> 0 | BE14: =_xlfn.IFNA(MATCH(RAND(), _xlfn.POISSON.DIST({0,1,2,3,4,5,6,7,8,9},$O14, TRUE),1), 0) -> 2 | BF14: =_xlfn.IFNA(MATCH(RAND(), _xlfn.POISSON.DIST({0,1,2,3,4,5,6,7,8,9},$O14, TRUE),1), 0) -> 3 | BG14: =_xlfn.IFNA(MATCH(RAND(), _xlfn.POISSON.DIST({0,1,2,3,4,5,6,7,8,9},$O14, TRUE),1), 0) -> 1 | BH14: =_xlfn.IFNA(MATCH(RAND(), _xlfn.POISSON.DIST({0,1,2,3,4,5,6,7,8,9},$O14, TRUE),1), 0) -> 2 | BI14: =_xlfn.IFNA(MATCH(RAND(), _xlfn.POISSON.DIST({0,1,2,3,4,5,6,7,8,9},$O14, TRUE),1), 0) -> 1 | BJ14: =_xlfn.IFNA(MATCH(RAND(), _xlfn.POISSON.DIST({0,1,2,3,4,5,6,7,8,9},$O14, TRUE),1), 0) -> 0 | BK14: =_xlfn.IFNA(MATCH(RAND(), _xlfn.POISSON.DIST({0,1,2,3,4,5,6,7,8,9},$O14, TRUE),1), 0) -> 2 | BL14: =_xlfn.IFNA(MATCH(RAND(), _xlfn.POISSON.DIST({0,1,2,3,4,5,6,7,8,9},$O14, TRUE),1), 0) -> 0 | BM14: =_xlfn.IFNA(MATCH(RAND(), _xlfn.POISSON.DIST({0,1,2,3,4,5,6,7,8,9},$O14, TRUE),1), 0) -> 4 | BN14: =_xlfn.IFNA(MATCH(RAND(), _xlfn.POISSON.DIST({0,1,2,3,4,5,6,7,8,9},$O14, TRUE),1), 0) -> 1 | BP14: =_xlfn.IFNA(MATCH(RAND(), _xlfn.POISSON.DIST({0,1,2,3,4,5,6,7,8,9},$P14, TRUE),1), 0) -> 0 | BQ14: =_xlfn.IFNA(MATCH(RAND(), _xlfn.POISSON.DIST({0,1,2,3,4,5,6,7,8,9},$P14, TRUE),1), 0) -> 1 | BR14: =_xlfn.IFNA(MATCH(RAND(), _xlfn.POISSON.DIST({0,1,2,3,4,5,6,7,8,9},$P14, TRUE),1), 0) -> 2 | BS14: =_xlfn.IFNA(MATCH(RAND(), _xlfn.POISSON.DIST({0,1,2,3,4,5,6,7,8,9},$P14, TRUE),1), 0) -> 2 | BT14: =_xlfn.IFNA(MATCH(RAND(), _xlfn.POISSON.DIST({0,1,2,3,4,5,6,7,8,9},$P14, TRUE),1), 0) -> 1 | BU14: =_xlfn.IFNA(MATCH(RAND(), _xlfn.POISSON.DIST({0,1,2,3,4,5,6,7,8,9},$P14, TRUE),1), 0) -> 3 | BV14: =_xlfn.IFNA(MATCH(RAND(), _xlfn.POISSON.DIST({0,1,2,3,4,5,6,7,8,9},$P14, TRUE),1), 0) -> 3 | BW14: =_xlfn.IFNA(MATCH(RAND(), _xlfn.POISSON.DIST({0,1,2,3,4,5,6,7,8,9},$P14, TRUE),1), 0) -> 1 | BX14: =_xlfn.IFNA(MATCH(RAND(), _xlfn.POISSON.DIST({0,1,2,3,4,5,6,7,8,9},$P14, TRUE),1), 0) -> 2 | BY14: =_xlfn.IFNA(MATCH(RAND(), _xlfn.POISSON.DIST({0,1,2,3,4,5,6,7,8,9},$P14, TRUE),1), 0) -> 1 | BZ14: =_xlfn.IFNA(MATCH(RAND(), _xlfn.POISSON.DIST({0,1,2,3,4,5,6,7,8,9},$P14, TRUE),1), 0) -> 1 | CA14: =_xlfn.IFNA(MATCH(RAND(), _xlfn.POISSON.DIST({0,1,2,3,4,5,6,7,8,9},$P14, TRUE),1), 0) -> 1 | CB14: =_xlfn.IFNA(MATCH(RAND(), _xlfn.POISSON.DIST({0,1,2,3,4,5,6,7,8,9},$P14, TRUE),1), 0) -> 0 | CC14: =_xlfn.IFNA(MATCH(RAND(), _xlfn.POISSON.DIST({0,1,2,3,4,5,6,7,8,9},$P14, TRUE),1), 0) -> 2 | CD14: =_xlfn.IFNA(MATCH(RAND(), _xlfn.POISSON.DIST({0,1,2,3,4,5,6,7,8,9},$P14, TRUE),1), 0) -> 2 | CE14: =_xlfn.IFNA(MATCH(RAND(), _xlfn.POISSON.DIST({0,1,2,3,4,5,6,7,8,9},$P14, TRUE),1), 0) -> 2 | CF14: =_xlfn.IFNA(MATCH(RAND(), _xlfn.POISSON.DIST({0,1,2,3,4,5,6,7,8,9},$P14, TRUE),1), 0) -> 2 | CG14: =_xlfn.IFNA(MATCH(RAND(), _xlfn.POISSON.DIST({0,1,2,3,4,5,6,7,8,9},$P14, TRUE),1), 0) -> 0 | CH14: =_xlfn.IFNA(MATCH(RAND(), _xlfn.POISSON.DIST({0,1,2,3,4,5,6,7,8,9},$P14, TRUE),1), 0) -> 1 | CI14: =_xlfn.IFNA(MATCH(RAND(), _xlfn.POISSON.DIST({0,1,2,3,4,5,6,7,8,9},$P14, TRUE),1), 0) -> 3 | CJ14: =_xlfn.IFNA(MATCH(RAND(), _xlfn.POISSON.DIST({0,1,2,3,4,5,6,7,8,9},$P14, TRUE),1), 0) -> 3 | CK14: =_xlfn.IFNA(MATCH(RAND(), _xlfn.POISSON.DIST({0,1,2,3,4,5,6,7,8,9},$P14, TRUE),1), 0) -> 0 | CL14: =_xlfn.IFNA(MATCH(RAND(), _xlfn.POISSON.DIST({0,1,2,3,4,5,6,7,8,9},$P14, TRUE),1), 0) -> 2 | CM14: =_xlfn.IFNA(MATCH(RAND(), _xlfn.POISSON.DIST({0,1,2,3,4,5,6,7,8,9},$P14, TRUE),1), 0) -> 0 | CN14: =_xlfn.IFNA(MATCH(RAND(), _xlfn.POISSON.DIST({0,1,2,3,4,5,6,7,8,9},$P14, TRUE),1), 0) -> 2 | CO14: =_xlfn.IFNA(MATCH(RAND(), _xlfn.POISSON.DIST({0,1,2,3,4,5,6,7,8,9},$P14, TRUE),1), 0) -> 1 | CP14: =_xlfn.IFNA(MATCH(RAND(), _xlfn.POISSON.DIST({0,1,2,3,4,5,6,7,8,9},$P14, TRUE),1), 0) -> 1 | CQ14: =_xlfn.IFNA(MATCH(RAND(), _xlfn.POISSON.DIST({0,1,2,3,4,5,6,7,8,9},$P14, TRUE),1), 0) -> 1 | CR14: =_xlfn.IFNA(MATCH(RAND(), _xlfn.POISSON.DIST({0,1,2,3,4,5,6,7,8,9},$P14, TRUE),1), 0) -> 1 | CS14: =_xlfn.IFNA(MATCH(RAND(), _xlfn.POISSON.DIST({0,1,2,3,4,5,6,7,8,9},$P14, TRUE),1), 0) -> 1 | CT14: =_xlfn.IFNA(MATCH(RAND(), _xlfn.POISSON.DIST({0,1,2,3,4,5,6,7,8,9},$P14, TRUE),1), 0) -> 0 | CU14: =_xlfn.IFNA(MATCH(RAND(), _xlfn.POISSON.DIST({0,1,2,3,4,5,6,7,8,9},$P14, TRUE),1), 0) -> 0 | CV14: =_xlfn.IFNA(MATCH(RAND(), _xlfn.POISSON.DIST({0,1,2,3,4,5,6,7,8,9},$P14, TRUE),1), 0) -> 0 | CW14: =_xlfn.IFNA(MATCH(RAND(), _xlfn.POISSON.DIST({0,1,2,3,4,5,6,7,8,9},$P14, TRUE),1), 0) -> 0 | CX14: =_xlfn.IFNA(MATCH(RAND(), _xlfn.POISSON.DIST({0,1,2,3,4,5,6,7,8,9},$P14, TRUE),1), 0) -> 0 | CY14: =_xlfn.IFNA(MATCH(RAND(), _xlfn.POISSON.DIST({0,1,2,3,4,5,6,7,8,9},$P14, TRUE),1), 0) -> 1 | CZ14: =_xlfn.IFNA(MATCH(RAND(), _xlfn.POISSON.DIST({0,1,2,3,4,5,6,7,8,9},$P14, TRUE),1), 0) -> 2 | DA14: =_xlfn.IFNA(MATCH(RAND(), _xlfn.POISSON.DIST({0,1,2,3,4,5,6,7,8,9},$P14, TRUE),1), 0) -> 2 | DB14: =_xlfn.IFNA(MATCH(RAND(), _xlfn.POISSON.DIST({0,1,2,3,4,5,6,7,8,9},$P14, TRUE),1), 0) -> 0 | DC14: =_xlfn.IFNA(MATCH(RAND(), _xlfn.POISSON.DIST({0,1,2,3,4,5,6,7,8,9},$P14, TRUE),1), 0) -> 2 | DD14: =_xlfn.IFNA(MATCH(RAND(), _xlfn.POISSON.DIST({0,1,2,3,4,5,6,7,8,9},$P14, TRUE),1), 0) -> 3 | DE14: =_xlfn.IFNA(MATCH(RAND(), _xlfn.POISSON.DIST({0,1,2,3,4,5,6,7,8,9},$P14, TRUE),1), 0) -> 5 | DF14: =_xlfn.IFNA(MATCH(RAND(), _xlfn.POISSON.DIST({0,1,2,3,4,5,6,7,8,9},$P14, TRUE),1), 0) -> 2 | DG14: =_xlfn.IFNA(MATCH(RAND(), _xlfn.POISSON.DIST({0,1,2,3,4,5,6,7,8,9},$P14, TRUE),1), 0) -> 4 | DH14: =_xlfn.IFNA(MATCH(RAND(), _xlfn.POISSON.DIST({0,1,2,3,4,5,6,7,8,9},$P14, TRUE),1), 0) -> 3 | DI14: =_xlfn.IFNA(MATCH(RAND(), _xlfn.POISSON.DIST({0,1,2,3,4,5,6,7,8,9},$P14, TRUE),1), 0) -> 0 | DJ14: =_xlfn.IFNA(MATCH(RAND(), _xlfn.POISSON.DIST({0,1,2,3,4,5,6,7,8,9},$P14, TRUE),1), 0) -> 5 | DK14: =_xlfn.IFNA(MATCH(RAND(), _xlfn.POISSON.DIST({0,1,2,3,4,5,6,7,8,9},$P14, TRUE),1), 0) -> 1 | DL14: =_xlfn.IFNA(MATCH(RAND(), _xlfn.POISSON.DIST({0,1,2,3,4,5,6,7,8,9},$P14, TRUE),1), 0) -> 0 | DM14: =_xlfn.IFNA(MATCH(RAND(), _xlfn.POISSON.DIST({0,1,2,3,4,5,6,7,8,9},$P14, TRUE),1), 0) -> 2
C15: 2019-06-11 | D15: E | E15: Neuseeland | F15: =(AVERAGE(Q15:BN15))*(1+INDEX('Prognosen für die Gruppenphase'!$C$4:$O$28, MATCH('Spiele in diesem Jahr'!E15,'Prognosen für die Gruppenphase'!$D$4:$D$28,0),3)) -> 1.80 | G15: Niederlande | H15: =(AVERAGE(BP15:DM15))*(1+INDEX('Prognosen für die Gruppenphase'!$C$4:$O$28, MATCH('Spiele in diesem Jahr'!G15,'Prognosen für die Gruppenphase'!$D$4:$D$28,0),3)) -> 1.48 | I15: Neuseeland | L15: 1.8 | M15: 1.48 | N15: Neuseeland | O15: =(OFFSET('Anhang 3 – Tore je Gruppe'!$C$13,(INDEX('Anhang 1 – Mannschaftsdaten'!$C$13:$F$112,MATCH(G15,'Anhang 1 – Mannschaftsdaten'!$C$13:$C$112,0),4)/10),(INDEX('Anhang 1 – Mannschaftsdaten'!$C$13:$F$112,MATCH(E15,'Anhang 1 – Mannschaftsdaten'!$C$13:$C$112,0),4)/10))) -> 1.50 | P15: =OFFSET('Anhang 3 – Tore je Gruppe'!$C$13,(INDEX('Anhang 1 – Mannschaftsdaten'!$C$13:$F$112, MATCH(E15,'Anhang 1 – Mannschaftsdaten'!$C$13:$C$112,0),4)/10), (INDEX('Anhang 1 – Mannschaftsdaten'!$C$13:$F$112, MATCH(G15, 'Anhang 1 – Mannschaftsdaten'!$C$13:$C$112,0),4)/10)) -> 1.50 | Q15: =_xlfn.IFNA(MATCH(RAND(), _xlfn.POISSON.DIST({0,1,2,3,4,5,6,7,8,9},$O15, TRUE),1), 0) -> 2 | R15: =_xlfn.IFNA(MATCH(RAND(), _xlfn.POISSON.DIST({0,1,2,3,4,5,6,7,8,9},$O15, TRUE),1), 0) -> 0 | S15: =_xlfn.IFNA(MATCH(RAND(), _xlfn.POISSON.DIST({0,1,2,3,4,5,6,7,8,9},$O15, TRUE),1), 0) -> 4 | T15: =_xlfn.IFNA(MATCH(RAND(), _xlfn.POISSON.DIST({0,1,2,3,4,5,6,7,8,9},$O15, TRUE),1), 0) -> 1 | U15: =_xlfn.IFNA(MATCH(RAND(), _xlfn.POISSON.DIST({0,1,2,3,4,5,6,7,8,9},$O15, TRUE),1), 0) -> 0 | V15: =_xlfn.IFNA(MATCH(RAND(), _xlfn.POISSON.DIST({0,1,2,3,4,5,6,7,8,9},$O15, TRUE),1), 0) -> 2 | W15: =_xlfn.IFNA(MATCH(RAND(), _xlfn.POISSON.DIST({0,1,2,3,4,5,6,7,8,9},$O15, TRUE),1), 0) -> 2 | X15: =_xlfn.IFNA(MATCH(RAND(), _xlfn.POISSON.DIST({0,1,2,3,4,5,6,7,8,9},$O15, TRUE),1), 0) -> 1 | Y15: =_xlfn.IFNA(MATCH(RAND(), _xlfn.POISSON.DIST({0,1,2,3,4,5,6,7,8,9},$O15, TRUE),1), 0) -> 1 | Z15: =_xlfn.IFNA(MATCH(RAND(), _xlfn.POISSON.DIST({0,1,2,3,4,5,6,7,8,9},$O15, TRUE),1), 0) -> 1 | AA15: =_xlfn.IFNA(MATCH(RAND(), _xlfn.POISSON.DIST({0,1,2,3,4,5,6,7,8,9},$O15, TRUE),1), 0) -> 2 | AB15: =_xlfn.IFNA(MATCH(RAND(), _xlfn.POISSON.DIST({0,1,2,3,4,5,6,7,8,9},$O15, TRUE),1), 0) -> 2 | AC15: =_xlfn.IFNA(MATCH(RAND(), _xlfn.POISSON.DIST({0,1,2,3,4,5,6,7,8,9},$O15, TRUE),1), 0) -> 0 | AD15: =_xlfn.IFNA(MATCH(RAND(), _xlfn.POISSON.DIST({0,1,2,3,4,5,6,7,8,9},$O15, TRUE),1), 0) -> 1 | AE15: =_xlfn.IFNA(MATCH(RAND(), _xlfn.POISSON.DIST({0,1,2,3,4,5,6,7,8,9},$O15, TRUE),1), 0) -> 5 | AF15: =_xlfn.IFNA(MATCH(RAND(), _xlfn.POISSON.DIST({0,1,2,3,4,5,6,7,8,9},$O15, TRUE),1), 0) -> 4 | AG15: =_xlfn.IFNA(MATCH(RAND(), _xlfn.POISSON.DIST({0,1,2,3,4,5,6,7,8,9},$O15, TRUE),1), 0) -> 2 | AH15: =_xlfn.IFNA(MATCH(RAND(), _xlfn.POISSON.DIST({0,1,2,3,4,5,6,7,8,9},$O15, TRUE),1), 0) -> 2 | AI15: =_xlfn.IFNA(MATCH(RAND(), _xlfn.POISSON.DIST({0,1,2,3,4,5,6,7,8,9},$O15, TRUE),1), 0) -> 6 | AJ15: =_xlfn.IFNA(MATCH(RAND(), _xlfn.POISSON.DIST({0,1,2,3,4,5,6,7,8,9},$O15, TRUE),1), 0) -> 2 | AK15: =_xlfn.IFNA(MATCH(RAND(), _xlfn.POISSON.DIST({0,1,2,3,4,5,6,7,8,9},$O15, TRUE),1), 0) -> 4 | AL15: =_xlfn.IFNA(MATCH(RAND(), _xlfn.POISSON.DIST({0,1,2,3,4,5,6,7,8,9},$O15, TRUE),1), 0) -> 2 | AM15: =_xlfn.IFNA(MATCH(RAND(), _xlfn.POISSON.DIST({0,1,2,3,4,5,6,7,8,9},$O15, TRUE),1), 0) -> 1 | AN15: =_xlfn.IFNA(MATCH(RAND(), _xlfn.POISSON.DIST({0,1,2,3,4,5,6,7,8,9},$O15, TRUE),1), 0) -> 3 | AO15: =_xlfn.IFNA(MATCH(RAND(), _xlfn.POISSON.DIST({0,1,2,3,4,5,6,7,8,9},$O15, TRUE),1), 0) -> 0 | AP15: =_xlfn.IFNA(MATCH(RAND(), _xlfn.POISSON.DIST({0,1,2,3,4,5,6,7,8,9},$O15, TRUE),1), 0) -> 2 | AQ15: =_xlfn.IFNA(MATCH(RAND(), _xlfn.POISSON.DIST({0,1,2,3,4,5,6,7,8,9},$O15, TRUE),1), 0) -> 1 | AR15: =_xlfn.IFNA(MATCH(RAND(), _xlfn.POISSON.DIST({0,1,2,3,4,5,6,7,8,9},$O15, TRUE),1), 0) -> 0 | AS15: =_xlfn.IFNA(MATCH(RAND(), _xlfn.POISSON.DIST({0,1,2,3,4,5,6,7,8,9},$O15, TRUE),1), 0) -> 4 | AT15: =_xlfn.IFNA(MATCH(RAND(), _xlfn.POISSON.DIST({0,1,2,3,4,5,6,7,8,9},$O15, TRUE),1), 0) -> 2 | AU15: =_xlfn.IFNA(MATCH(RAND(), _xlfn.POISSON.DIST({0,1,2,3,4,5,6,7,8,9},$O15, TRUE),1), 0) -> 0 | AV15: =_xlfn.IFNA(MATCH(RAND(), _xlfn.POISSON.DIST({0,1,2,3,4,5,6,7,8,9},$O15, TRUE),1), 0) -> 4 | AW15: =_xlfn.IFNA(MATCH(RAND(), _xlfn.POISSON.DIST({0,1,2,3,4,5,6,7,8,9},$O15, TRUE),1), 0) -> 1 | AX15: =_xlfn.IFNA(MATCH(RAND(), _xlfn.POISSON.DIST({0,1,2,3,4,5,6,7,8,9},$O15, TRUE),1), 0) -> 1 | AY15: =_xlfn.IFNA(MATCH(RAND(), _xlfn.POISSON.DIST({0,1,2,3,4,5,6,7,8,9},$O15, TRUE),1), 0) -> 2 | AZ15: =_xlfn.IFNA(MATCH(RAND(), _xlfn.POISSON.DIST({0,1,2,3,4,5,6,7,8,9},$O15, TRUE),1), 0) -> 0 | BA15: =_xlfn.IFNA(MATCH(RAND(), _xlfn.POISSON.DIST({0,1,2,3,4,5,6,7,8,9},$O15, TRUE),1), 0) -> 0 | BB15: =_xlfn.IFNA(MATCH(RAND(), _xlfn.POISSON.DIST({0,1,2,3,4,5,6,7,8,9},$O15, TRUE),1), 0) -> 1 | BC15: =_xlfn.IFNA(MATCH(RAND(), _xlfn.POISSON.DIST({0,1,2,3,4,5,6,7,8,9},$O15, TRUE),1), 0) -> 1 | BD15: =_xlfn.IFNA(MATCH(RAND(), _xlfn.POISSON.DIST({0,1,2,3,4,5,6,7,8,9},$O15, TRUE),1), 0) -> 1 | BE15: =_xlfn.IFNA(MATCH(RAND(), _xlfn.POISSON.DIST({0,1,2,3,4,5,6,7,8,9},$O15, TRUE),1), 0) -> 2 | BF15: =_xlfn.IFNA(MATCH(RAND(), _xlfn.POISSON.DIST({0,1,2,3,4,5,6,7,8,9},$O15, TRUE),1), 0) -> 1 | BG15: =_xlfn.IFNA(MATCH(RAND(), _xlfn.POISSON.DIST({0,1,2,3,4,5,6,7,8,9},$O15, TRUE),1), 0) -> 1 | BH15: =_xlfn.IFNA(MATCH(RAND(), _xlfn.POISSON.DIST({0,1,2,3,4,5,6,7,8,9},$O15, TRUE),1), 0) -> 1 | BI15: =_xlfn.IFNA(MATCH(RAND(), _xlfn.POISSON.DIST({0,1,2,3,4,5,6,7,8,9},$O15, TRUE),1), 0) -> 2 | BJ15: =_xlfn.IFNA(MATCH(RAND(), _xlfn.POISSON.DIST({0,1,2,3,4,5,6,7,8,9},$O15, TRUE),1), 0) -> 7 | BK15: =_xlfn.IFNA(MATCH(RAND(), _xlfn.POISSON.DIST({0,1,2,3,4,5,6,7,8,9},$O15, TRUE),1), 0) -> 2 | BL15: =_xlfn.IFNA(MATCH(RAND(), _xlfn.POISSON.DIST({0,1,2,3,4,5,6,7,8,9},$O15, TRUE),1), 0) -> 2 | BM15: =_xlfn.IFNA(MATCH(RAND(), _xlfn.POISSON.DIST({0,1,2,3,4,5,6,7,8,9},$O15, TRUE),1), 0) -> 2 | BN15: =_xlfn.IFNA(MATCH(RAND(), _xlfn.POISSON.DIST({0,1,2,3,4,5,6,7,8,9},$O15, TRUE),1), 0) -> 0 | BP15: =_xlfn.IFNA(MATCH(RAND(), _xlfn.POISSON.DIST({0,1,2,3,4,5,6,7,8,9},$P15, TRUE),1), 0) -> 1 | BQ15: =_xlfn.IFNA(MATCH(RAND(), _xlfn.POISSON.DIST({0,1,2,3,4,5,6,7,8,9},$P15, TRUE),1), 0) -> 2 | BR15: =_xlfn.IFNA(MATCH(RAND(), _xlfn.POISSON.DIST({0,1,2,3,4,5,6,7,8,9},$P15, TRUE),1), 0) -> 2 | BS15: =_xlfn.IFNA(MATCH(RAND(), _xlfn.POISSON.DIST({0,1,2,3,4,5,6,7,8,9},$P15, TRUE),1), 0) -> 3 | BT15: =_xlfn.IFNA(MATCH(RAND(), _xlfn.POISSON.DIST({0,1,2,3,4,5,6,7,8,9},$P15, TRUE),1), 0) -> 2 | BU15: =_xlfn.IFNA(MATCH(RAND(), _xlfn.POISSON.DIST({0,1,2,3,4,5,6,7,8,9},$P15, TRUE),1), 0) -> 1 | BV15: =_xlfn.IFNA(MATCH(RAND(), _xlfn.POISSON.DIST({0,1,2,3,4,5,6,7,8,9},$P15, TRUE),1), 0) -> 3 | BW15: =_xlfn.IFNA(MATCH(RAND(), _xlfn.POISSON.DIST({0,1,2,3,4,5,6,7,8,9},$P15, TRUE),1), 0) -> 0 | BX15: =_xlfn.IFNA(MATCH(RAND(), _xlfn.POISSON.DIST({0,1,2,3,4,5,6,7,8,9},$P15, TRUE),1), 0) -> 0 | BY15: =_xlfn.IFNA(MATCH(RAND(), _xlfn.POISSON.DIST({0,1,2,3,4,5,6,7,8,9},$P15, TRUE),1), 0) -> 1 | BZ15: =_xlfn.IFNA(MATCH(RAND(), _xlfn.POISSON.DIST({0,1,2,3,4,5,6,7,8,9},$P15, TRUE),1), 0) -> 2 | CA15: =_xlfn.IFNA(MATCH(RAND(), _xlfn.POISSON.DIST({0,1,2,3,4,5,6,7,8,9},$P15, TRUE),1), 0) -> 4 | CB15: =_xlfn.IFNA(MATCH(RAND(), _xlfn.POISSON.DIST({0,1,2,3,4,5,6,7,8,9},$P15, TRUE),1), 0) -> 1 | CC15: =_xlfn.IFNA(MATCH(RAND(), _xlfn.POISSON.DIST({0,1,2,3,4,5,6,7,8,9},$P15, TRUE),1), 0) -> 1 | CD15: =_xlfn.IFNA(MATCH(RAND(), _xlfn.POISSON.DIST({0,1,2,3,4,5,6,7,8,9},$P15, TRUE),1), 0) -> 0 | CE15: =_xlfn.IFNA(MATCH(RAND(), _xlfn.POISSON.DIST({0,1,2,3,4,5,6,7,8,9},$P15, TRUE),1), 0) -> 2 | CF15: =_xlfn.IFNA(MATCH(RAND(), _xlfn.POISSON.DIST({0,1,2,3,4,5,6,7,8,9},$P15, TRUE),1), 0) -> 0 | CG15: =_xlfn.IFNA(MATCH(RAND(), _xlfn.POISSON.DIST({0,1,2,3,4,5,6,7,8,9},$P15, TRUE),1), 0) -> 0 | CH15: =_xlfn.IFNA(MATCH(RAND(), _xlfn.POISSON.DIST({0,1,2,3,4,5,6,7,8,9},$P15, TRUE),1), 0) -> 0 | CI15: =_xlfn.IFNA(MATCH(RAND(), _xlfn.POISSON.DIST({0,1,2,3,4,5,6,7,8,9},$P15, TRUE),1), 0) -> 6 | CJ15: =_xlfn.IFNA(MATCH(RAND(), _xlfn.POISSON.DIST({0,1,2,3,4,5,6,7,8,9},$P15, TRUE),1), 0) -> 2 | CK15: =_xlfn.IFNA(MATCH(RAND(), _xlfn.POISSON.DIST({0,1,2,3,4,5,6,7,8,9},$P15, TRUE),1), 0) -> 0 | CL15: =_xlfn.IFNA(MATCH(RAND(), _xlfn.POISSON.DIST({0,1,2,3,4,5,6,7,8,9},$P15, TRUE),1), 0) -> 2 | CM15: =_xlfn.IFNA(MATCH(RAND(), _xlfn.POISSON.DIST({0,1,2,3,4,5,6,7,8,9},$P15, TRUE),1), 0) -> 2 | CN15: =_xlfn.IFNA(MATCH(RAND(), _xlfn.POISSON.DIST({0,1,2,3,4,5,6,7,8,9},$P15, TRUE),1), 0) -> 0 | CO15: =_xlfn.IFNA(MATCH(RAND(), _xlfn.POISSON.DIST({0,1,2,3,4,5,6,7,8,9},$P15, TRUE),1), 0) -> 1 | CP15: =_xlfn.IFNA(MATCH(RAND(), _xlfn.POISSON.DIST({0,1,2,3,4,5,6,7,8,9},$P15, TRUE),1), 0) -> 1 | CQ15: =_xlfn.IFNA(MATCH(RAND(), _xlfn.POISSON.DIST({0,1,2,3,4,5,6,7,8,9},$P15, TRUE),1), 0) -> 0 | CR15: =_xlfn.IFNA(MATCH(RAND(), _xlfn.POISSON.DIST({0,1,2,3,4,5,6,7,8,9},$P15, TRUE),1), 0) -> 0 | CS15: =_xlfn.IFNA(MATCH(RAND(), _xlfn.POISSON.DIST({0,1,2,3,4,5,6,7,8,9},$P15, TRUE),1), 0) -> 0 | CT15: =_xlfn.IFNA(MATCH(RAND(), _xlfn.POISSON.DIST({0,1,2,3,4,5,6,7,8,9},$P15, TRUE),1), 0) -> 4 | CU15: =_xlfn.IFNA(MATCH(RAND(), _xlfn.POISSON.DIST({0,1,2,3,4,5,6,7,8,9},$P15, TRUE),1), 0) -> 3 | CV15: =_xlfn.IFNA(MATCH(RAND(), _xlfn.POISSON.DIST({0,1,2,3,4,5,6,7,8,9},$P15, TRUE),1), 0) -> 1 | CW15: =_xlfn.IFNA(MATCH(RAND(), _xlfn.POISSON.DIST({0,1,2,3,4,5,6,7,8,9},$P15, TRUE),1), 0) -> 3 | CX15: =_xlfn.IFNA(MATCH(RAND(), _xlfn.POISSON.DIST({0,1,2,3,4,5,6,7,8,9},$P15, TRUE),1), 0) -> 2 | CY15: =_xlfn.IFNA(MATCH(RAND(), _xlfn.POISSON.DIST({0,1,2,3,4,5,6,7,8,9},$P15, TRUE),1), 0) -> 3 | CZ15: =_xlfn.IFNA(MATCH(RAND(), _xlfn.POISSON.DIST({0,1,2,3,4,5,6,7,8,9},$P15, TRUE),1), 0) -> 0 | DA15: =_xlfn.IFNA(MATCH(RAND(), _xlfn.POISSON.DIST({0,1,2,3,4,5,6,7,8,9},$P15, TRUE),1), 0) -> 0 | DB15: =_xlfn.IFNA(MATCH(RAND(), _xlfn.POISSON.DIST({0,1,2,3,4,5,6,7,8,9},$P15, TRUE),1), 0) -> 1 | DC15: =_xlfn.IFNA(MATCH(RAND(), _xlfn.POISSON.DIST({0,1,2,3,4,5,6,7,8,9},$P15, TRUE),1), 0) -> 2 | DD15: =_xlfn.IFNA(MATCH(RAND(), _xlfn.POISSON.DIST({0,1,2,3,4,5,6,7,8,9},$P15, TRUE),1), 0) -> 3 | DE15: =_xlfn.IFNA(MATCH(RAND(), _xlfn.POISSON.DIST({0,1,2,3,4,5,6,7,8,9},$P15, TRUE),1), 0) -> 3 | DF15: =_xlfn.IFNA(MATCH(RAND(), _xlfn.POISSON.DIST({0,1,2,3,4,5,6,7,8,9},$P15, TRUE),1), 0) -> 1 | DG15: =_xlfn.IFNA(MATCH(RAND(), _xlfn.POISSON.DIST({0,1,2,3,4,5,6,7,8,9},$P15, TRUE),1), 0) -> 3 | DH15: =_xlfn.IFNA(MATCH(RAND(), _xlfn.POISSON.DIST({0,1,2,3,4,5,6,7,8,9},$P15, TRUE),1), 0) -> 2 | DI15: =_xlfn.IFNA(MATCH(RAND(), _xlfn.POISSON.DIST({0,1,2,3,4,5,6,7,8,9},$P15, TRUE),1), 0) -> 0 | DJ15: =_xlfn.IFNA(MATCH(RAND(), _xlfn.POISSON.DIST({0,1,2,3,4,5,6,7,8,9},$P15, TRUE),1), 0) -> 0 | DK15: =_xlfn.IFNA(MATCH(RAND(), _xlfn.POISSON.DIST({0,1,2,3,4,5,6,7,8,9},$P15, TRUE),1), 0) -> 1 | DL15: =_xlfn.IFNA(MATCH(RAND(), _xlfn.POISSON.DIST({0,1,2,3,4,5,6,7,8,9},$P15, TRUE),1), 0) -> 2 | DM15: =_xlfn.IFNA(MATCH(RAND(), _xlfn.POISSON.DIST({0,1,2,3,4,5,6,7,8,9},$P15, TRUE),1), 0) -> 1
C16: 2019-06-11 | D16: F | E16: Chile | F16: =(AVERAGE(Q16:BN16))*(1+INDEX('Prognosen für die Gruppenphase'!$C$4:$O$28, MATCH('Spiele in diesem Jahr'!E16,'Prognosen für die Gruppenphase'!$D$4:$D$28,0),3)) -> 0.44 | G16: Schweden | H16: =(AVERAGE(BP16:DM16))*(1+INDEX('Prognosen für die Gruppenphase'!$C$4:$O$28, MATCH('Spiele in diesem Jahr'!G16,'Prognosen für die Gruppenphase'!$D$4:$D$28,0),3)) -> 3.12 | I16: Schweden | L16: 0.44 | M16: 3.12 | N16: Schweden | O16: =(OFFSET('Anhang 3 – Tore je Gruppe'!$C$13,(INDEX('Anhang 1 – Mannschaftsdaten'!$C$13:$F$112,MATCH(G16,'Anhang 1 – Mannschaftsdaten'!$C$13:$C$112,0),4)/10),(INDEX('Anhang 1 – Mannschaftsdaten'!$C$13:$F$112,MATCH(E16,'Anhang 1 – Mannschaftsdaten'!$C$13:$C$112,0),4)/10))) -> 0.38 | P16: =OFFSET('Anhang 3 – Tore je Gruppe'!$C$13,(INDEX('Anhang 1 – Mannschaftsdaten'!$C$13:$F$112, MATCH(E16,'Anhang 1 – Mannschaftsdaten'!$C$13:$C$112,0),4)/10), (INDEX('Anhang 1 – Mannschaftsdaten'!$C$13:$F$112, MATCH(G16, 'Anhang 1 – Mannschaftsdaten'!$C$13:$C$112,0),4)/10)) -> 2.94 | Q16: =_xlfn.IFNA(MATCH(RAND(), _xlfn.POISSON.DIST({0,1,2,3,4,5,6,7,8,9},$O16, TRUE),1), 0) -> 0 | R16: =_xlfn.IFNA(MATCH(RAND(), _xlfn.POISSON.DIST({0,1,2,3,4,5,6,7,8,9},$O16, TRUE),1), 0) -> 0 | S16: =_xlfn.IFNA(MATCH(RAND(), _xlfn.POISSON.DIST({0,1,2,3,4,5,6,7,8,9},$O16, TRUE),1), 0) -> 1 | T16: =_xlfn.IFNA(MATCH(RAND(), _xlfn.POISSON.DIST({0,1,2,3,4,5,6,7,8,9},$O16, TRUE),1), 0) -> 0 | U16: =_xlfn.IFNA(MATCH(RAND(), _xlfn.POISSON.DIST({0,1,2,3,4,5,6,7,8,9},$O16, TRUE),1), 0) -> 0 | V16: =_xlfn.IFNA(MATCH(RAND(), _xlfn.POISSON.DIST({0,1,2,3,4,5,6,7,8,9},$O16, TRUE),1), 0) -> 0 | W16: =_xlfn.IFNA(MATCH(RAND(), _xlfn.POISSON.DIST({0,1,2,3,4,5,6,7,8,9},$O16, TRUE),1), 0) -> 0 | X16: =_xlfn.IFNA(MATCH(RAND(), _xlfn.POISSON.DIST({0,1,2,3,4,5,6,7,8,9},$O16, TRUE),1), 0) -> 0 | Y16: =_xlfn.IFNA(MATCH(RAND(), _xlfn.POISSON.DIST({0,1,2,3,4,5,6,7,8,9},$O16, TRUE),1), 0) -> 2 | Z16: =_xlfn.IFNA(MATCH(RAND(), _xlfn.POISSON.DIST({0,1,2,3,4,5,6,7,8,9},$O16, TRUE),1), 0) -> 0 | AA16: =_xlfn.IFNA(MATCH(RAND(), _xlfn.POISSON.DIST({0,1,2,3,4,5,6,7,8,9},$O16, TRUE),1), 0) -> 0 | AB16: =_xlfn.IFNA(MATCH(RAND(), _xlfn.POISSON.DIST({0,1,2,3,4,5,6,7,8,9},$O16, TRUE),1), 0) -> 1 | AC16: =_xlfn.IFNA(MATCH(RAND(), _xlfn.POISSON.DIST({0,1,2,3,4,5,6,7,8,9},$O16, TRUE),1), 0) -> 0 | AD16: =_xlfn.IFNA(MATCH(RAND(), _xlfn.POISSON.DIST({0,1,2,3,4,5,6,7,8,9},$O16, TRUE),1), 0) -> 1 | AE16: =_xlfn.IFNA(MATCH(RAND(), _xlfn.POISSON.DIST({0,1,2,3,4,5,6,7,8,9},$O16, TRUE),1), 0) -> 0 | AF16: =_xlfn.IFNA(MATCH(RAND(), _xlfn.POISSON.DIST({0,1,2,3,4,5,6,7,8,9},$O16, TRUE),1), 0) -> 0 | AG16: =_xlfn.IFNA(MATCH(RAND(), _xlfn.POISSON.DIST({0,1,2,3,4,5,6,7,8,9},$O16, TRUE),1), 0) -> 0 | AH16: =_xlfn.IFNA(MATCH(RAND(), _xlfn.POISSON.DIST({0,1,2,3,4,5,6,7,8,9},$O16, TRUE),1), 0) -> 1 | AI16: =_xlfn.IFNA(MATCH(RAND(), _xlfn.POISSON.DIST({0,1,2,3,4,5,6,7,8,9},$O16, TRUE),1), 0) -> 0 | AJ16: =_xlfn.IFNA(MATCH(RAND(), _xlfn.POISSON.DIST({0,1,2,3,4,5,6,7,8,9},$O16, TRUE),1), 0) -> 0 | AK16: =_xlfn.IFNA(MATCH(RAND(), _xlfn.POISSON.DIST({0,1,2,3,4,5,6,7,8,9},$O16, TRUE),1), 0) -> 0 | AL16: =_xlfn.IFNA(MATCH(RAND(), _xlfn.POISSON.DIST({0,1,2,3,4,5,6,7,8,9},$O16, TRUE),1), 0) -> 0 | AM16: =_xlfn.IFNA(MATCH(RAND(), _xlfn.POISSON.DIST({0,1,2,3,4,5,6,7,8,9},$O16, TRUE),1), 0) -> 1 | AN16: =_xlfn.IFNA(MATCH(RAND(), _xlfn.POISSON.DIST({0,1,2,3,4,5,6,7,8,9},$O16, TRUE),1), 0) -> 0 | AO16: =_xlfn.IFNA(MATCH(RAND(), _xlfn.POISSON.DIST({0,1,2,3,4,5,6,7,8,9},$O16, TRUE),1), 0) -> 1 | AP16: =_xlfn.IFNA(MATCH(RAND(), _xlfn.POISSON.DIST({0,1,2,3,4,5,6,7,8,9},$O16, TRUE),1), 0) -> 0 | AQ16: =_xlfn.IFNA(MATCH(RAND(), _xlfn.POISSON.DIST({0,1,2,3,4,5,6,7,8,9},$O16, TRUE),1), 0) -> 0 | AR16: =_xlfn.IFNA(MATCH(RAND(), _xlfn.POISSON.DIST({0,1,2,3,4,5,6,7,8,9},$O16, TRUE),1), 0) -> 2 | AS16: =_xlfn.IFNA(MATCH(RAND(), _xlfn.POISSON.DIST({0,1,2,3,4,5,6,7,8,9},$O16, TRUE),1), 0) -> 1 | AT16: =_xlfn.IFNA(MATCH(RAND(), _xlfn.POISSON.DIST({0,1,2,3,4,5,6,7,8,9},$O16, TRUE),1), 0) -> 1 | AU16: =_xlfn.IFNA(MATCH(RAND(), _xlfn.POISSON.DIST({0,1,2,3,4,5,6,7,8,9},$O16, TRUE),1), 0) -> 2 | AV16: =_xlfn.IFNA(MATCH(RAND(), _xlfn.POISSON.DIST({0,1,2,3,4,5,6,7,8,9},$O16, TRUE),1), 0) -> 0 | AW16: =_xlfn.IFNA(MATCH(RAND(), _xlfn.POISSON.DIST({0,1,2,3,4,5,6,7,8,9},$O16, TRUE),1), 0) -> 0 | AX16: =_xlfn.IFNA(MATCH(RAND(), _xlfn.POISSON.DIST({0,1,2,3,4,5,6,7,8,9},$O16, TRUE),1), 0) -> 0 | AY16: =_xlfn.IFNA(MATCH(RAND(), _xlfn.POISSON.DIST({0,1,2,3,4,5,6,7,8,9},$O16, TRUE),1), 0) -> 0 | AZ16: =_xlfn.IFNA(MATCH(RAND(), _xlfn.POISSON.DIST({0,1,2,3,4,5,6,7,8,9},$O16, TRUE),1), 0) -> 1 | BA16: =_xlfn.IFNA(MATCH(RAND(), _xlfn.POISSON.DIST({0,1,2,3,4,5,6,7,8,9},$O16, TRUE),1), 0) -> 0 | BB16: =_xlfn.IFNA(MATCH(RAND(), _xlfn.POISSON.DIST({0,1,2,3,4,5,6,7,8,9},$O16, TRUE),1), 0) -> 1 | BC16: =_xlfn.IFNA(MATCH(RAND(), _xlfn.POISSON.DIST({0,1,2,3,4,5,6,7,8,9},$O16, TRUE),1), 0) -> 0 | BD16: =_xlfn.IFNA(MATCH(RAND(), _xlfn.POISSON.DIST({0,1,2,3,4,5,6,7,8,9},$O16, TRUE),1), 0) -> 2 | BE16: =_xlfn.IFNA(MATCH(RAND(), _xlfn.POISSON.DIST({0,1,2,3,4,5,6,7,8,9},$O16, TRUE),1), 0) -> 0 | BF16: =_xlfn.IFNA(MATCH(RAND(), _xlfn.POISSON.DIST({0,1,2,3,4,5,6,7,8,9},$O16, TRUE),1), 0) -> 2 | BG16: =_xlfn.IFNA(MATCH(RAND(), _xlfn.POISSON.DIST({0,1,2,3,4,5,6,7,8,9},$O16, TRUE),1), 0) -> 0 | BH16: =_xlfn.IFNA(MATCH(RAND(), _xlfn.POISSON.DIST({0,1,2,3,4,5,6,7,8,9},$O16, TRUE),1), 0) -> 0 | BI16: =_xlfn.IFNA(MATCH(RAND(), _xlfn.POISSON.DIST({0,1,2,3,4,5,6,7,8,9},$O16, TRUE),1), 0) -> 0 | BJ16: =_xlfn.IFNA(MATCH(RAND(), _xlfn.POISSON.DIST({0,1,2,3,4,5,6,7,8,9},$O16, TRUE),1), 0) -> 1 | BK16: =_xlfn.IFNA(MATCH(RAND(), _xlfn.POISSON.DIST({0,1,2,3,4,5,6,7,8,9},$O16, TRUE),1), 0) -> 0 | BL16: =_xlfn.IFNA(MATCH(RAND(), _xlfn.POISSON.DIST({0,1,2,3,4,5,6,7,8,9},$O16, TRUE),1), 0) -> 0 | BM16: =_xlfn.IFNA(MATCH(RAND(), _xlfn.POISSON.DIST({0,1,2,3,4,5,6,7,8,9},$O16, TRUE),1), 0) -> 1 | BN16: =_xlfn.IFNA(MATCH(RAND(), _xlfn.POISSON.DIST({0,1,2,3,4,5,6,7,8,9},$O16, TRUE),1), 0) -> 0 | BP16: =_xlfn.IFNA(MATCH(RAND(), _xlfn.POISSON.DIST({0,1,2,3,4,5,6,7,8,9},$P16, TRUE),1), 0) -> 4 | BQ16: =_xlfn.IFNA(MATCH(RAND(), _xlfn.POISSON.DIST({0,1,2,3,4,5,6,7,8,9},$P16, TRUE),1), 0) -> 3 | BR16: =_xlfn.IFNA(MATCH(RAND(), _xlfn.POISSON.DIST({0,1,2,3,4,5,6,7,8,9},$P16, TRUE),1), 0) -> 6 | BS16: =_xlfn.IFNA(MATCH(RAND(), _xlfn.POISSON.DIST({0,1,2,3,4,5,6,7,8,9},$P16, TRUE),1), 0) -> 2 | BT16: =_xlfn.IFNA(MATCH(RAND(), _xlfn.POISSON.DIST({0,1,2,3,4,5,6,7,8,9},$P16, TRUE),1), 0) -> 2 | BU16: =_xlfn.IFNA(MATCH(RAND(), _xlfn.POISSON.DIST({0,1,2,3,4,5,6,7,8,9},$P16, TRUE),1), 0) -> 3 | BV16: =_xlfn.IFNA(MATCH(RAND(), _xlfn.POISSON.DIST({0,1,2,3,4,5,6,7,8,9},$P16, TRUE),1), 0) -> 3 | BW16: =_xlfn.IFNA(MATCH(RAND(), _xlfn.POISSON.DIST({0,1,2,3,4,5,6,7,8,9},$P16, TRUE),1), 0) -> 2 | BX16: =_xlfn.IFNA(MATCH(RAND(), _xlfn.POISSON.DIST({0,1,2,3,4,5,6,7,8,9},$P16, TRUE),1), 0) -> 4 | BY16: =_xlfn.IFNA(MATCH(RAND(), _xlfn.POISSON.DIST({0,1,2,3,4,5,6,7,8,9},$P16, TRUE),1), 0) -> 4 | BZ16: =_xlfn.IFNA(MATCH(RAND(), _xlfn.POISSON.DIST({0,1,2,3,4,5,6,7,8,9},$P16, TRUE),1), 0) -> 2 | CA16: =_xlfn.IFNA(MATCH(RAND(), _xlfn.POISSON.DIST({0,1,2,3,4,5,6,7,8,9},$P16, TRUE),1), 0) -> 2 | CB16: =_xlfn.IFNA(MATCH(RAND(), _xlfn.POISSON.DIST({0,1,2,3,4,5,6,7,8,9},$P16, TRUE),1), 0) -> 4 | CC16: =_xlfn.IFNA(MATCH(RAND(), _xlfn.POISSON.DIST({0,1,2,3,4,5,6,7,8,9},$P16, TRUE),1), 0) -> 3 | CD16: =_xlfn.IFNA(MATCH(RAND(), _xlfn.POISSON.DIST({0,1,2,3,4,5,6,7,8,9},$P16, TRUE),1), 0) -> 5 | CE16: =_xlfn.IFNA(MATCH(RAND(), _xlfn.POISSON.DIST({0,1,2,3,4,5,6,7,8,9},$P16, TRUE),1), 0) -> 0 | CF16: =_xlfn.IFNA(MATCH(RAND(), _xlfn.POISSON.DIST({0,1,2,3,4,5,6,7,8,9},$P16, TRUE),1), 0) -> 1 | CG16: =_xlfn.IFNA(MATCH(RAND(), _xlfn.POISSON.DIST({0,1,2,3,4,5,6,7,8,9},$P16, TRUE),1), 0) -> 2 | CH16: =_xlfn.IFNA(MATCH(RAND(), _xlfn.POISSON.DIST({0,1,2,3,4,5,6,7,8,9},$P16, TRUE),1), 0) -> 2 | CI16: =_xlfn.IFNA(MATCH(RAND(), _xlfn.POISSON.DIST({0,1,2,3,4,5,6,7,8,9},$P16, TRUE),1), 0) -> 1 | CJ16: =_xlfn.IFNA(MATCH(RAND(), _xlfn.POISSON.DIST({0,1,2,3,4,5,6,7,8,9},$P16, TRUE),1), 0) -> 3 | CK16: =_xlfn.IFNA(MATCH(RAND(), _xlfn.POISSON.DIST({0,1,2,3,4,5,6,7,8,9},$P16, TRUE),1), 0) -> 1 | CL16: =_xlfn.IFNA(MATCH(RAND(), _xlfn.POISSON.DIST({0,1,2,3,4,5,6,7,8,9},$P16, TRUE),1), 0) -> 5 | CM16: =_xlfn.IFNA(MATCH(RAND(), _xlfn.POISSON.DIST({0,1,2,3,4,5,6,7,8,9},$P16, TRUE),1), 0) -> 2 | CN16: =_xlfn.IFNA(MATCH(RAND(), _xlfn.POISSON.DIST({0,1,2,3,4,5,6,7,8,9},$P16, TRUE),1), 0) -> 4 | CO16: =_xlfn.IFNA(MATCH(RAND(), _xlfn.POISSON.DIST({0,1,2,3,4,5,6,7,8,9},$P16, TRUE),1), 0) -> 1 | CP16: =_xlfn.IFNA(MATCH(RAND(), _xlfn.POISSON.DIST({0,1,2,3,4,5,6,7,8,9},$P16, TRUE),1), 0) -> 4 | CQ16: =_xlfn.IFNA(MATCH(RAND(), _xlfn.POISSON.DIST({0,1,2,3,4,5,6,7,8,9},$P16, TRUE),1), 0) -> 5 | CR16: =_xlfn.IFNA(MATCH(RAND(), _xlfn.POISSON.DIST({0,1,2,3,4,5,6,7,8,9},$P16, TRUE),1), 0) -> 3 | CS16: =_xlfn.IFNA(MATCH(RAND(), _xlfn.POISSON.DIST({0,1,2,3,4,5,6,7,8,9},$P16, TRUE),1), 0) -> 3 | CT16: =_xlfn.IFNA(MATCH(RAND(), _xlfn.POISSON.DIST({0,1,2,3,4,5,6,7,8,9},$P16, TRUE),1), 0) -> 2 | CU16: =_xlfn.IFNA(MATCH(RAND(), _xlfn.POISSON.DIST({0,1,2,3,4,5,6,7,8,9},$P16, TRUE),1), 0) -> 3 | CV16: =_xlfn.IFNA(MATCH(RAND(), _xlfn.POISSON.DIST({0,1,2,3,4,5,6,7,8,9},$P16, TRUE),1), 0) -> 1 | CW16: =_xlfn.IFNA(MATCH(RAND(), _xlfn.POISSON.DIST({0,1,2,3,4,5,6,7,8,9},$P16, TRUE),1), 0) -> 6 | CX16: =_xlfn.IFNA(MATCH(RAND(), _xlfn.POISSON.DIST({0,1,2,3,4,5,6,7,8,9},$P16, TRUE),1), 0) -> 3 | CY16: =_xlfn.IFNA(MATCH(RAND(), _xlfn.POISSON.DIST({0,1,2,3,4,5,6,7,8,9},$P16, TRUE),1), 0) -> 4 | CZ16: =_xlfn.IFNA(MATCH(RAND(), _xlfn.POISSON.DIST({0,1,2,3,4,5,6,7,8,9},$P16, TRUE),1), 0) -> 3 | DA16: =_xlfn.IFNA(MATCH(RAND(), _xlfn.POISSON.DIST({0,1,2,3,4,5,6,7,8,9},$P16, TRUE),1), 0) -> 2 | DB16: =_xlfn.IFNA(MATCH(RAND(), _xlfn.POISSON.DIST({0,1,2,3,4,5,6,7,8,9},$P16, TRUE),1), 0) -> 6 | DC16: =_xlfn.IFNA(MATCH(RAND(), _xlfn.POISSON.DIST({0,1,2,3,4,5,6,7,8,9},$P16, TRUE),1), 0) -> 2 | DD16: =_xlfn.IFNA(MATCH(RAND(), _xlfn.POISSON.DIST({0,1,2,3,4,5,6,7,8,9},$P16, TRUE),1), 0) -> 3 | DE16: =_xlfn.IFNA(MATCH(RAND(), _xlfn.POISSON.DIST({0,1,2,3,4,5,6,7,8,9},$P16, TRUE),1), 0) -> 3 | DF16: =_xlfn.IFNA(MATCH(RAND(), _xlfn.POISSON.DIST({0,1,2,3,4,5,6,7,8,9},$P16, TRUE),1), 0) -> 3 | DG16: =_xlfn.IFNA(MATCH(RAND(), _xlfn.POISSON.DIST({0,1,2,3,4,5,6,7,8,9},$P16, TRUE),1), 0) -> 2 | DH16: =_xlfn.IFNA(MATCH(RAND(), _xlfn.POISSON.DIST({0,1,2,3,4,5,6,7,8,9},$P16, TRUE),1), 0) -> 5 | DI16: =_xlfn.IFNA(MATCH(RAND(), _xlfn.POISSON.DIST({0,1,2,3,4,5,6,7,8,9},$P16, TRUE),1), 0) -> 3 | DJ16: =_xlfn.IFNA(MATCH(RAND(), _xlfn.POISSON.DIST({0,1,2,3,4,5,6,7,8,9},$P16, TRUE),1), 0) -> 3 | DK16: =_xlfn.IFNA(MATCH(RAND(), _xlfn.POISSON.DIST({0,1,2,3,4,5,6,7,8,9},$P16, TRUE),1), 0) -> 5 | DL16: =_xlfn.IFNA(MATCH(RAND(), _xlfn.POISSON.DIST({0,1,2,3,4,5,6,7,8,9},$P16, TRUE),1), 0) -> 5 | DM16: =_xlfn.IFNA(MATCH(RAND(), _xlfn.POISSON.DIST({0,1,2,3,4,5,6,7,8,9},$P16, TRUE),1), 0) -> 6
C17: 2019-06-11 | D17: F | E17: Vereinigte Staaten von Amerika | F17: =(AVERAGE(Q17:BN17))*(1+INDEX('Prognosen für die Gruppenphase'!$C$4:$O$28, MATCH('Spiele in diesem Jahr'!E17,'Prognosen für die Gruppenphase'!$D$4:$D$28,0),3)) -> 2.64 | G17: Thailand | H17: =(AVERAGE(BP17:DM17))*(1+INDEX('Prognosen für die Gruppenphase'!$C$4:$O$28, MATCH('Spiele in diesem Jahr'!G17,'Prognosen für die Gruppenphase'!$D$4:$D$28,0),3)) -> 0.36 | I17: Vereinigte Staaten von Amerika | L17: 2.64 | M17: 0.36 | N17: Vereinigte Staaten von Amerika | O17: =(OFFSET('Anhang 3 – Tore je Gruppe'!$C$13,(INDEX('Anhang 1 – Mannschaftsdaten'!$C$13:$F$112,MATCH(G17,'Anhang 1 – Mannschaftsdaten'!$C$13:$C$112,0),4)/10),(INDEX('Anhang 1 – Mannschaftsdaten'!$C$13:$F$112,MATCH(E17,'Anhang 1 – Mannschaftsdaten'!$C$13:$C$112,0),4)/10))) -> 2.94 | P17: =OFFSET('Anhang 3 – Tore je Gruppe'!$C$13,(INDEX('Anhang 1 – Mannschaftsdaten'!$C$13:$F$112, MATCH(E17,'Anhang 1 – Mannschaftsdaten'!$C$13:$C$112,0),4)/10), (INDEX('Anhang 1 – Mannschaftsdaten'!$C$13:$F$112, MATCH(G17, 'Anhang 1 – Mannschaftsdaten'!$C$13:$C$112,0),4)/10)) -> 0.38 | Q17: =_xlfn.IFNA(MATCH(RAND(), _xlfn.POISSON.DIST({0,1,2,3,4,5,6,7,8,9},$O17, TRUE),1), 0) -> 4 | R17: =_xlfn.IFNA(MATCH(RAND(), _xlfn.POISSON.DIST({0,1,2,3,4,5,6,7,8,9},$O17, TRUE),1), 0) -> 3 | S17: =_xlfn.IFNA(MATCH(RAND(), _xlfn.POISSON.DIST({0,1,2,3,4,5,6,7,8,9},$O17, TRUE),1), 0) -> 1 | T17: =_xlfn.IFNA(MATCH(RAND(), _xlfn.POISSON.DIST({0,1,2,3,4,5,6,7,8,9},$O17, TRUE),1), 0) -> 3 | U17: =_xlfn.IFNA(MATCH(RAND(), _xlfn.POISSON.DIST({0,1,2,3,4,5,6,7,8,9},$O17, TRUE),1), 0) -> 2 | V17: =_xlfn.IFNA(MATCH(RAND(), _xlfn.POISSON.DIST({0,1,2,3,4,5,6,7,8,9},$O17, TRUE),1), 0) -> 3 | W17: =_xlfn.IFNA(MATCH(RAND(), _xlfn.POISSON.DIST({0,1,2,3,4,5,6,7,8,9},$O17, TRUE),1), 0) -> 0 | X17: =_xlfn.IFNA(MATCH(RAND(), _xlfn.POISSON.DIST({0,1,2,3,4,5,6,7,8,9},$O17, TRUE),1), 0) -> 2 | Y17: =_xlfn.IFNA(MATCH(RAND(), _xlfn.POISSON.DIST({0,1,2,3,4,5,6,7,8,9},$O17, TRUE),1), 0) -> 4 | Z17: =_xlfn.IFNA(MATCH(RAND(), _xlfn.POISSON.DIST({0,1,2,3,4,5,6,7,8,9},$O17, TRUE),1), 0) -> 3 | AA17: =_xlfn.IFNA(MATCH(RAND(), _xlfn.POISSON.DIST({0,1,2,3,4,5,6,7,8,9},$O17, TRUE),1), 0) -> 4 | AB17: =_xlfn.IFNA(MATCH(RAND(), _xlfn.POISSON.DIST({0,1,2,3,4,5,6,7,8,9},$O17, TRUE),1), 0) -> 2 | AC17: =_xlfn.IFNA(MATCH(RAND(), _xlfn.POISSON.DIST({0,1,2,3,4,5,6,7,8,9},$O17, TRUE),1), 0) -> 1 | AD17: =_xlfn.IFNA(MATCH(RAND(), _xlfn.POISSON.DIST({0,1,2,3,4,5,6,7,8,9},$O17, TRUE),1), 0) -> 3 | AE17: =_xlfn.IFNA(MATCH(RAND(), _xlfn.POISSON.DIST({0,1,2,3,4,5,6,7,8,9},$O17, TRUE),1), 0) -> 3 | AF17: =_xlfn.IFNA(MATCH(RAND(), _xlfn.POISSON.DIST({0,1,2,3,4,5,6,7,8,9},$O17, TRUE),1), 0) -> 2 | AG17: =_xlfn.IFNA(MATCH(RAND(), _xlfn.POISSON.DIST({0,1,2,3,4,5,6,7,8,9},$O17, TRUE),1), 0) -> 2 | AH17: =_xlfn.IFNA(MATCH(RAND(), _xlfn.POISSON.DIST({0,1,2,3,4,5,6,7,8,9},$O17, TRUE),1), 0) -> 4 | AI17: =_xlfn.IFNA(MATCH(RAND(), _xlfn.POISSON.DIST({0,1,2,3,4,5,6,7,8,9},$O17, TRUE),1), 0) -> 0 | AJ17: =_xlfn.IFNA(MATCH(RAND(), _xlfn.POISSON.DIST({0,1,2,3,4,5,6,7,8,9},$O17, TRUE),1), 0) -> 0 | AK17: =_xlfn.IFNA(MATCH(RAND(), _xlfn.POISSON.DIST({0,1,2,3,4,5,6,7,8,9},$O17, TRUE),1), 0) -> 3 | AL17: =_xlfn.IFNA(MATCH(RAND(), _xlfn.POISSON.DIST({0,1,2,3,4,5,6,7,8,9},$O17, TRUE),1), 0) -> 1 | AM17: =_xlfn.IFNA(MATCH(RAND(), _xlfn.POISSON.DIST({0,1,2,3,4,5,6,7,8,9},$O17, TRUE),1), 0) -> 4 | AN17: =_xlfn.IFNA(MATCH(RAND(), _xlfn.POISSON.DIST({0,1,2,3,4,5,6,7,8,9},$O17, TRUE),1), 0) -> 4 | AO17: =_xlfn.IFNA(MATCH(RAND(), _xlfn.POISSON.DIST({0,1,2,3,4,5,6,7,8,9},$O17, TRUE),1), 0) -> 4 | AP17: =_xlfn.IFNA(MATCH(RAND(), _xlfn.POISSON.DIST({0,1,2,3,4,5,6,7,8,9},$O17, TRUE),1), 0) -> 2 | AQ17: =_xlfn.IFNA(MATCH(RAND(), _xlfn.POISSON.DIST({0,1,2,3,4,5,6,7,8,9},$O17, TRUE),1), 0) -> 0 | AR17: =_xlfn.IFNA(MATCH(RAND(), _xlfn.POISSON.DIST({0,1,2,3,4,5,6,7,8,9},$O17, TRUE),1), 0) -> 3 | AS17: =_xlfn.IFNA(MATCH(RAND(), _xlfn.POISSON.DIST({0,1,2,3,4,5,6,7,8,9},$O17, TRUE),1), 0) -> 1 | AT17: =_xlfn.IFNA(MATCH(RAND(), _xlfn.POISSON.DIST({0,1,2,3,4,5,6,7,8,9},$O17, TRUE),1), 0) -> 5 | AU17: =_xlfn.IFNA(MATCH(RAND(), _xlfn.POISSON.DIST({0,1,2,3,4,5,6,7,8,9},$O17, TRUE),1), 0) -> 1 | AV17: =_xlfn.IFNA(MATCH(RAND(), _xlfn.POISSON.DIST({0,1,2,3,4,5,6,7,8,9},$O17, TRUE),1), 0) -> 4 | AW17: =_xlfn.IFNA(MATCH(RAND(), _xlfn.POISSON.DIST({0,1,2,3,4,5,6,7,8,9},$O17, TRUE),1), 0) -> 1 | AX17: =_xlfn.IFNA(MATCH(RAND(), _xlfn.POISSON.DIST({0,1,2,3,4,5,6,7,8,9},$O17, TRUE),1), 0) -> 1 | AY17: =_xlfn.IFNA(MATCH(RAND(), _xlfn.POISSON.DIST({0,1,2,3,4,5,6,7,8,9},$O17, TRUE),1), 0) -> 1 | AZ17: =_xlfn.IFNA(MATCH(RAND(), _xlfn.POISSON.DIST({0,1,2,3,4,5,6,7,8,9},$O17, TRUE),1), 0) -> 3 | BA17: =_xlfn.IFNA(MATCH(RAND(), _xlfn.POISSON.DIST({0,1,2,3,4,5,6,7,8,9},$O17, TRUE),1), 0) -> 2 | BB17: =_xlfn.IFNA(MATCH(RAND(), _xlfn.POISSON.DIST({0,1,2,3,4,5,6,7,8,9},$O17, TRUE),1), 0) -> 4 | BC17: =_xlfn.IFNA(MATCH(RAND(), _xlfn.POISSON.DIST({0,1,2,3,4,5,6,7,8,9},$O17, TRUE),1), 0) -> 3 | BD17: =_xlfn.IFNA(MATCH(RAND(), _xlfn.POISSON.DIST({0,1,2,3,4,5,6,7,8,9},$O17, TRUE),1), 0) -> 4 | BE17: =_xlfn.IFNA(MATCH(RAND(), _xlfn.POISSON.DIST({0,1,2,3,4,5,6,7,8,9},$O17, TRUE),1), 0) -> 1 | BF17: =_xlfn.IFNA(MATCH(RAND(), _xlfn.POISSON.DIST({0,1,2,3,4,5,6,7,8,9},$O17, TRUE),1), 0) -> 4 | BG17: =_xlfn.IFNA(MATCH(RAND(), _xlfn.POISSON.DIST({0,1,2,3,4,5,6,7,8,9},$O17, TRUE),1), 0) -> 2 | BH17: =_xlfn.IFNA(MATCH(RAND(), _xlfn.POISSON.DIST({0,1,2,3,4,5,6,7,8,9},$O17, TRUE),1), 0) -> 5 | BI17: =_xlfn.IFNA(MATCH(RAND(), _xlfn.POISSON.DIST({0,1,2,3,4,5,6,7,8,9},$O17, TRUE),1), 0) -> 6 | BJ17: =_xlfn.IFNA(MATCH(RAND(), _xlfn.POISSON.DIST({0,1,2,3,4,5,6,7,8,9},$O17, TRUE),1), 0) -> 3 | BK17: =_xlfn.IFNA(MATCH(RAND(), _xlfn.POISSON.DIST({0,1,2,3,4,5,6,7,8,9},$O17, TRUE),1), 0) -> 4 | BL17: =_xlfn.IFNA(MATCH(RAND(), _xlfn.POISSON.DIST({0,1,2,3,4,5,6,7,8,9},$O17, TRUE),1), 0) -> 4 | BM17: =_xlfn.IFNA(MATCH(RAND(), _xlfn.POISSON.DIST({0,1,2,3,4,5,6,7,8,9},$O17, TRUE),1), 0) -> 2 | BN17: =_xlfn.IFNA(MATCH(RAND(), _xlfn.POISSON.DIST({0,1,2,3,4,5,6,7,8,9},$O17, TRUE),1), 0) -> 4 | BP17: =_xlfn.IFNA(MATCH(RAND(), _xlfn.POISSON.DIST({0,1,2,3,4,5,6,7,8,9},$P17, TRUE),1), 0) -> 0 | BQ17: =_xlfn.IFNA(MATCH(RAND(), _xlfn.POISSON.DIST({0,1,2,3,4,5,6,7,8,9},$P17, TRUE),1), 0) -> 0 | BR17: =_xlfn.IFNA(MATCH(RAND(), _xlfn.POISSON.DIST({0,1,2,3,4,5,6,7,8,9},$P17, TRUE),1), 0) -> 2 | BS17: =_xlfn.IFNA(MATCH(RAND(), _xlfn.POISSON.DIST({0,1,2,3,4,5,6,7,8,9},$P17, TRUE),1), 0) -> 0 | BT17: =_xlfn.IFNA(MATCH(RAND(), _xlfn.POISSON.DIST({0,1,2,3,4,5,6,7,8,9},$P17, TRUE),1), 0) -> 0 | BU17: =_xlfn.IFNA(MATCH(RAND(), _xlfn.POISSON.DIST({0,1,2,3,4,5,6,7,8,9},$P17, TRUE),1), 0) -> 1 | BV17: =_xlfn.IFNA(MATCH(RAND(), _xlfn.POISSON.DIST({0,1,2,3,4,5,6,7,8,9},$P17, TRUE),1), 0) -> 0 | BW17: =_xlfn.IFNA(MATCH(RAND(), _xlfn.POISSON.DIST({0,1,2,3,4,5,6,7,8,9},$P17, TRUE),1), 0) -> 0 | BX17: =_xlfn.IFNA(MATCH(RAND(), _xlfn.POISSON.DIST({0,1,2,3,4,5,6,7,8,9},$P17, TRUE),1), 0) -> 1 | BY17: =_xlfn.IFNA(MATCH(RAND(), _xlfn.POISSON.DIST({0,1,2,3,4,5,6,7,8,9},$P17, TRUE),1), 0) -> 1 | BZ17: =_xlfn.IFNA(MATCH(RAND(), _xlfn.POISSON.DIST({0,1,2,3,4,5,6,7,8,9},$P17, TRUE),1), 0) -> 0 | CA17: =_xlfn.IFNA(MATCH(RAND(), _xlfn.POISSON.DIST({0,1,2,3,4,5,6,7,8,9},$P17, TRUE),1), 0) -> 2 | CB17: =_xlfn.IFNA(MATCH(RAND(), _xlfn.POISSON.DIST({0,1,2,3,4,5,6,7,8,9},$P17, TRUE),1), 0) -> 0 | CC17: =_xlfn.IFNA(MATCH(RAND(), _xlfn.POISSON.DIST({0,1,2,3,4,5,6,7,8,9},$P17, TRUE),1), 0) -> 0 | CD17: =_xlfn.IFNA(MATCH(RAND(), _xlfn.POISSON.DIST({0,1,2,3,4,5,6,7,8,9},$P17, TRUE),1), 0) -> 0 | CE17: =_xlfn.IFNA(MATCH(RAND(), _xlfn.POISSON.DIST({0,1,2,3,4,5,6,7,8,9},$P17, TRUE),1), 0) -> 0 | CF17: =_xlfn.IFNA(MATCH(RAND(), _xlfn.POISSON.DIST({0,1,2,3,4,5,6,7,8,9},$P17, TRUE),1), 0) -> 1 | CG17: =_xlfn.IFNA(MATCH(RAND(), _xlfn.POISSON.DIST({0,1,2,3,4,5,6,7,8,9},$P17, TRUE),1), 0) -> 0 | CH17: =_xlfn.IFNA(MATCH(RAND(), _xlfn.POISSON.DIST({0,1,2,3,4,5,6,7,8,9},$P17, TRUE),1), 0) -> 0 | CI17: =_xlfn.IFNA(MATCH(RAND(), _xlfn.POISSON.DIST({0,1,2,3,4,5,6,7,8,9},$P17, TRUE),1), 0) -> 0 | CJ17: =_xlfn.IFNA(MATCH(RAND(), _xlfn.POISSON.DIST({0,1,2,3,4,5,6,7,8,9},$P17, TRUE),1), 0) -> 0 | CK17: =_xlfn.IFNA(MATCH(RAND(), _xlfn.POISSON.DIST({0,1,2,3,4,5,6,7,8,9},$P17, TRUE),1), 0) -> 0 | CL17: =_xlfn.IFNA(MATCH(RAND(), _xlfn.POISSON.DIST({0,1,2,3,4,5,6,7,8,9},$P17, TRUE),1), 0) -> 0 | CM17: =_xlfn.IFNA(MATCH(RAND(), _xlfn.POISSON.DIST({0,1,2,3,4,5,6,7,8,9},$P17, TRUE),1), 0) -> 1 | CN17: =_xlfn.IFNA(MATCH(RAND(), _xlfn.POISSON.DIST({0,1,2,3,4,5,6,7,8,9},$P17, TRUE),1), 0) -> 0 | CO17: =_xlfn.IFNA(MATCH(RAND(), _xlfn.POISSON.DIST({0,1,2,3,4,5,6,7,8,9},$P17, TRUE),1), 0) -> 1 | CP17: =_xlfn.IFNA(MATCH(RAND(), _xlfn.POISSON.DIST({0,1,2,3,4,5,6,7,8,9},$P17, TRUE),1), 0) -> 0 | CQ17: =_xlfn.IFNA(MATCH(RAND(), _xlfn.POISSON.DIST({0,1,2,3,4,5,6,7,8,9},$P17, TRUE),1), 0) -> 0 | CR17: =_xlfn.IFNA(MATCH(RAND(), _xlfn.POISSON.DIST({0,1,2,3,4,5,6,7,8,9},$P17, TRUE),1), 0) -> 0 | CS17: =_xlfn.IFNA(MATCH(RAND(), _xlfn.POISSON.DIST({0,1,2,3,4,5,6,7,8,9},$P17, TRUE),1), 0) -> 1 | CT17: =_xlfn.IFNA(MATCH(RAND(), _xlfn.POISSON.DIST({0,1,2,3,4,5,6,7,8,9},$P17, TRUE),1), 0) -> 0 | CU17: =_xlfn.IFNA(MATCH(RAND(), _xlfn.POISSON.DIST({0,1,2,3,4,5,6,7,8,9},$P17, TRUE),1), 0) -> 0 | CV17: =_xlfn.IFNA(MATCH(RAND(), _xlfn.POISSON.DIST({0,1,2,3,4,5,6,7,8,9},$P17, TRUE),1), 0) -> 1 | CW17: =_xlfn.IFNA(MATCH(RAND(), _xlfn.POISSON.DIST({0,1,2,3,4,5,6,7,8,9},$P17, TRUE),1), 0) -> 0 | CX17: =_xlfn.IFNA(MATCH(RAND(), _xlfn.POISSON.DIST({0,1,2,3,4,5,6,7,8,9},$P17, TRUE),1), 0) -> 0 | CY17: =_xlfn.IFNA(MATCH(RAND(), _xlfn.POISSON.DIST({0,1,2,3,4,5,6,7,8,9},$P17, TRUE),1), 0) -> 0 | CZ17: =_xlfn.IFNA(MATCH(RAND(), _xlfn.POISSON.DIST({0,1,2,3,4,5,6,7,8,9},$P17, TRUE),1), 0) -> 0 | DA17: =_xlfn.IFNA(MATCH(RAND(), _xlfn.POISSON.DIST({0,1,2,3,4,5,6,7,8,9},$P17, TRUE),1), 0) -> 0 | DB17: =_xlfn.IFNA(MATCH(RAND(), _xlfn.POISSON.DIST({0,1,2,3,4,5,6,7,8,9},$P17, TRUE),1), 0) -> 0 | DC17: =_xlfn.IFNA(MATCH(RAND(), _xlfn.POISSON.DIST({0,1,2,3,4,5,6,7,8,9},$P17, TRUE),1), 0) -> 1 | DD17: =_xlfn.IFNA(MATCH(RAND(), _xlfn.POISSON.DIST({0,1,2,3,4,5,6,7,8,9},$P17, TRUE),1), 0) -> 1 | DE17: =_xlfn.IFNA(MATCH(RAND(), _xlfn.POISSON.DIST({0,1,2,3,4,5,6,7,8,9},$P17, TRUE),1), 0) -> 0 | DF17: =_xlfn.IFNA(MATCH(RAND(), _xlfn.POISSON.DIST({0,1,2,3,4,5,6,7,8,9},$P17, TRUE),1), 0) -> 0 | DG17: =_xlfn.IFNA(MATCH(RAND(), _xlfn.POISSON.DIST({0,1,2,3,4,5,6,7,8,9},$P17, TRUE),1), 0) -> 1 | DH17: =_xlfn.IFNA(MATCH(RAND(), _xlfn.POISSON.DIST({0,1,2,3,4,5,6,7,8,9},$P17, TRUE),1), 0) -> 1 | DI17: =_xlfn.IFNA(MATCH(RAND(), _xlfn.POISSON.DIST({0,1,2,3,4,5,6,7,8,9},$P17, TRUE),1), 0) -> 0 | DJ17: =_xlfn.IFNA(MATCH(RAND(), _xlfn.POISSON.DIST({0,1,2,3,4,5,6,7,8,9},$P17, TRUE),1), 0) -> 0 | DK17: =_xlfn.IFNA(MATCH(RAND(), _xlfn.POISSON.DIST({0,1,2,3,4,5,6,7,8,9},$P17, TRUE),1), 0) -> 0 | DL17: =_xlfn.IFNA(MATCH(RAND(), _xlfn.POISSON.DIST({0,1,2,3,4,5,6,7,8,9},$P17, TRUE),1), 0) -> 1 | DM17: =_xlfn.IFNA(MATCH(RAND(), _xlfn.POISSON.DIST({0,1,2,3,4,5,6,7,8,9},$P17, TRUE),1), 0) -> 1
C18: 2019-06-12 | D18: A | E18: Nigeria | F18: =(AVERAGE(Q18:BN18))*(1+INDEX('Prognosen für die Gruppenphase'!$C$4:$O$28, MATCH('Spiele in diesem Jahr'!E18,'Prognosen für die Gruppenphase'!$D$4:$D$28,0),3)) -> 1.56 | G18: Koreanische Republik | H18: =(AVERAGE(BP18:DM18))*(1+INDEX('Prognosen für die Gruppenphase'!$C$4:$O$28, MATCH('Spiele in diesem Jahr'!G18,'Prognosen für die Gruppenphase'!$D$4:$D$28,0),3)) -> 1.52 | I18: Nigeria | L18: 1.56 | M18: 1.52 | N18: Nigeria | O18: =(OFFSET('Anhang 3 – Tore je Gruppe'!$C$13,(INDEX('Anhang 1 – Mannschaftsdaten'!$C$13:$F$112,MATCH(G18,'Anhang 1 – Mannschaftsdaten'!$C$13:$C$112,0),4)/10),(INDEX('Anhang 1 – Mannschaftsdaten'!$C$13:$F$112,MATCH(E18,'Anhang 1 – Mannschaftsdaten'!$C$13:$C$112,0),4)/10))) -> 1.50 | P18: =OFFSET('Anhang 3 – Tore je Gruppe'!$C$13,(INDEX('Anhang 1 – Mannschaftsdaten'!$C$13:$F$112, MATCH(E18,'Anhang 1 – Mannschaftsdaten'!$C$13:$C$112,0),4)/10), (INDEX('Anhang 1 – Mannschaftsdaten'!$C$13:$F$112, MATCH(G18, 'Anhang 1 – Mannschaftsdaten'!$C$13:$C$112,0),4)/10)) -> 1.50 | Q18: =_xlfn.IFNA(MATCH(RAND(), _xlfn.POISSON.DIST({0,1,2,3,4,5,6,7,8,9},$O18, TRUE),1), 0) -> 1 | R18: =_xlfn.IFNA(MATCH(RAND(), _xlfn.POISSON.DIST({0,1,2,3,4,5,6,7,8,9},$O18, TRUE),1), 0) -> 2 | S18: =_xlfn.IFNA(MATCH(RAND(), _xlfn.POISSON.DIST({0,1,2,3,4,5,6,7,8,9},$O18, TRUE),1), 0) -> 0 | T18: =_xlfn.IFNA(MATCH(RAND(), _xlfn.POISSON.DIST({0,1,2,3,4,5,6,7,8,9},$O18, TRUE),1), 0) -> 1 | U18: =_xlfn.IFNA(MATCH(RAND(), _xlfn.POISSON.DIST({0,1,2,3,4,5,6,7,8,9},$O18, TRUE),1), 0) -> 1 | V18: =_xlfn.IFNA(MATCH(RAND(), _xlfn.POISSON.DIST({0,1,2,3,4,5,6,7,8,9},$O18, TRUE),1), 0) -> 0 | W18: =_xlfn.IFNA(MATCH(RAND(), _xlfn.POISSON.DIST({0,1,2,3,4,5,6,7,8,9},$O18, TRUE),1), 0) -> 1 | X18: =_xlfn.IFNA(MATCH(RAND(), _xlfn.POISSON.DIST({0,1,2,3,4,5,6,7,8,9},$O18, TRUE),1), 0) -> 2 | Y18: =_xlfn.IFNA(MATCH(RAND(), _xlfn.POISSON.DIST({0,1,2,3,4,5,6,7,8,9},$O18, TRUE),1), 0) -> 3 | Z18: =_xlfn.IFNA(MATCH(RAND(), _xlfn.POISSON.DIST({0,1,2,3,4,5,6,7,8,9},$O18, TRUE),1), 0) -> 0 | AA18: =_xlfn.IFNA(MATCH(RAND(), _xlfn.POISSON.DIST({0,1,2,3,4,5,6,7,8,9},$O18, TRUE),1), 0) -> 3 | AB18: =_xlfn.IFNA(MATCH(RAND(), _xlfn.POISSON.DIST({0,1,2,3,4,5,6,7,8,9},$O18, TRUE),1), 0) -> 1 | AC18: =_xlfn.IFNA(MATCH(RAND(), _xlfn.POISSON.DIST({0,1,2,3,4,5,6,7,8,9},$O18, TRUE),1), 0) -> 1 | AD18: =_xlfn.IFNA(MATCH(RAND(), _xlfn.POISSON.DIST({0,1,2,3,4,5,6,7,8,9},$O18, TRUE),1), 0) -> 3 | AE18: =_xlfn.IFNA(MATCH(RAND(), _xlfn.POISSON.DIST({0,1,2,3,4,5,6,7,8,9},$O18, TRUE),1), 0) -> 3 | AF18: =_xlfn.IFNA(MATCH(RAND(), _xlfn.POISSON.DIST({0,1,2,3,4,5,6,7,8,9},$O18, TRUE),1), 0) -> 1 | AG18: =_xlfn.IFNA(MATCH(RAND(), _xlfn.POISSON.DIST({0,1,2,3,4,5,6,7,8,9},$O18, TRUE),1), 0) -> 1 | AH18: =_xlfn.IFNA(MATCH(RAND(), _xlfn.POISSON.DIST({0,1,2,3,4,5,6,7,8,9},$O18, TRUE),1), 0) -> 1 | AI18: =_xlfn.IFNA(MATCH(RAND(), _xlfn.POISSON.DIST({0,1,2,3,4,5,6,7,8,9},$O18, TRUE),1), 0) -> 2 | AJ18: =_xlfn.IFNA(MATCH(RAND(), _xlfn.POISSON.DIST({0,1,2,3,4,5,6,7,8,9},$O18, TRUE),1), 0) -> 2 | AK18: =_xlfn.IFNA(MATCH(RAND(), _xlfn.POISSON.DIST({0,1,2,3,4,5,6,7,8,9},$O18, TRUE),1), 0) -> 0 | AL18: =_xlfn.IFNA(MATCH(RAND(), _xlfn.POISSON.DIST({0,1,2,3,4,5,6,7,8,9},$O18, TRUE),1), 0) -> 2 | AM18: =_xlfn.IFNA(MATCH(RAND(), _xlfn.POISSON.DIST({0,1,2,3,4,5,6,7,8,9},$O18, TRUE),1), 0) -> 3 | AN18: =_xlfn.IFNA(MATCH(RAND(), _xlfn.POISSON.DIST({0,1,2,3,4,5,6,7,8,9},$O18, TRUE),1), 0) -> 2 | AO18: =_xlfn.IFNA(MATCH(RAND(), _xlfn.POISSON.DIST({0,1,2,3,4,5,6,7,8,9},$O18, TRUE),1), 0) -> 0 | AP18: =_xlfn.IFNA(MATCH(RAND(), _xlfn.POISSON.DIST({0,1,2,3,4,5,6,7,8,9},$O18, TRUE),1), 0) -> 2 | AQ18: =_xlfn.IFNA(MATCH(RAND(), _xlfn.POISSON.DIST({0,1,2,3,4,5,6,7,8,9},$O18, TRUE),1), 0) -> 2 | AR18: =_xlfn.IFNA(MATCH(RAND(), _xlfn.POISSON.DIST({0,1,2,3,4,5,6,7,8,9},$O18, TRUE),1), 0) -> 2 | AS18: =_xlfn.IFNA(MATCH(RAND(), _xlfn.POISSON.DIST({0,1,2,3,4,5,6,7,8,9},$O18, TRUE),1), 0) -> 2 | AT18: =_xlfn.IFNA(MATCH(RAND(), _xlfn.POISSON.DIST({0,1,2,3,4,5,6,7,8,9},$O18, TRUE),1), 0) -> 1 | AU18: =_xlfn.IFNA(MATCH(RAND(), _xlfn.POISSON.DIST({0,1,2,3,4,5,6,7,8,9},$O18, TRUE),1), 0) -> 1 | AV18: =_xlfn.IFNA(MATCH(RAND(), _xlfn.POISSON.DIST({0,1,2,3,4,5,6,7,8,9},$O18, TRUE),1), 0) -> 0 | AW18: =_xlfn.IFNA(MATCH(RAND(), _xlfn.POISSON.DIST({0,1,2,3,4,5,6,7,8,9},$O18, TRUE),1), 0) -> 4 | AX18: =_xlfn.IFNA(MATCH(RAND(), _xlfn.POISSON.DIST({0,1,2,3,4,5,6,7,8,9},$O18, TRUE),1), 0) -> 4 | AY18: =_xlfn.IFNA(MATCH(RAND(), _xlfn.POISSON.DIST({0,1,2,3,4,5,6,7,8,9},$O18, TRUE),1), 0) -> 1 | AZ18: =_xlfn.IFNA(MATCH(RAND(), _xlfn.POISSON.DIST({0,1,2,3,4,5,6,7,8,9},$O18, TRUE),1), 0) -> 0 | BA18: =_xlfn.IFNA(MATCH(RAND(), _xlfn.POISSON.DIST({0,1,2,3,4,5,6,7,8,9},$O18, TRUE),1), 0) -> 4 | BB18: =_xlfn.IFNA(MATCH(RAND(), _xlfn.POISSON.DIST({0,1,2,3,4,5,6,7,8,9},$O18, TRUE),1), 0) -> 2 | BC18: =_xlfn.IFNA(MATCH(RAND(), _xlfn.POISSON.DIST({0,1,2,3,4,5,6,7,8,9},$O18, TRUE),1), 0) -> 2 | BD18: =_xlfn.IFNA(MATCH(RAND(), _xlfn.POISSON.DIST({0,1,2,3,4,5,6,7,8,9},$O18, TRUE),1), 0) -> 0 | BE18: =_xlfn.IFNA(MATCH(RAND(), _xlfn.POISSON.DIST({0,1,2,3,4,5,6,7,8,9},$O18, TRUE),1), 0) -> 1 | BF18: =_xlfn.IFNA(MATCH(RAND(), _xlfn.POISSON.DIST({0,1,2,3,4,5,6,7,8,9},$O18, TRUE),1), 0) -> 1 | BG18: =_xlfn.IFNA(MATCH(RAND(), _xlfn.POISSON.DIST({0,1,2,3,4,5,6,7,8,9},$O18, TRUE),1), 0) -> 3 | BH18: =_xlfn.IFNA(MATCH(RAND(), _xlfn.POISSON.DIST({0,1,2,3,4,5,6,7,8,9},$O18, TRUE),1), 0) -> 1 | BI18: =_xlfn.IFNA(MATCH(RAND(), _xlfn.POISSON.DIST({0,1,2,3,4,5,6,7,8,9},$O18, TRUE),1), 0) -> 1 | BJ18: =_xlfn.IFNA(MATCH(RAND(), _xlfn.POISSON.DIST({0,1,2,3,4,5,6,7,8,9},$O18, TRUE),1), 0) -> 2 | BK18: =_xlfn.IFNA(MATCH(RAND(), _xlfn.POISSON.DIST({0,1,2,3,4,5,6,7,8,9},$O18, TRUE),1), 0) -> 2 | BL18: =_xlfn.IFNA(MATCH(RAND(), _xlfn.POISSON.DIST({0,1,2,3,4,5,6,7,8,9},$O18, TRUE),1), 0) -> 1 | BM18: =_xlfn.IFNA(MATCH(RAND(), _xlfn.POISSON.DIST({0,1,2,3,4,5,6,7,8,9},$O18, TRUE),1), 0) -> 1 | BN18: =_xlfn.IFNA(MATCH(RAND(), _xlfn.POISSON.DIST({0,1,2,3,4,5,6,7,8,9},$O18, TRUE),1), 0) -> 2 | BP18: =_xlfn.IFNA(MATCH(RAND(), _xlfn.POISSON.DIST({0,1,2,3,4,5,6,7,8,9},$P18, TRUE),1), 0) -> 0 | BQ18: =_xlfn.IFNA(MATCH(RAND(), _xlfn.POISSON.DIST({0,1,2,3,4,5,6,7,8,9},$P18, TRUE),1), 0) -> 3 | BR18: =_xlfn.IFNA(MATCH(RAND(), _xlfn.POISSON.DIST({0,1,2,3,4,5,6,7,8,9},$P18, TRUE),1), 0) -> 0 | BS18: =_xlfn.IFNA(MATCH(RAND(), _xlfn.POISSON.DIST({0,1,2,3,4,5,6,7,8,9},$P18, TRUE),1), 0) -> 0 | BT18: =_xlfn.IFNA(MATCH(RAND(), _xlfn.POISSON.DIST({0,1,2,3,4,5,6,7,8,9},$P18, TRUE),1), 0) -> 0 | BU18: =_xlfn.IFNA(MATCH(RAND(), _xlfn.POISSON.DIST({0,1,2,3,4,5,6,7,8,9},$P18, TRUE),1), 0) -> 0 | BV18: =_xlfn.IFNA(MATCH(RAND(), _xlfn.POISSON.DIST({0,1,2,3,4,5,6,7,8,9},$P18, TRUE),1), 0) -> 1 | BW18: =_xlfn.IFNA(MATCH(RAND(), _xlfn.POISSON.DIST({0,1,2,3,4,5,6,7,8,9},$P18, TRUE),1), 0) -> 1 | BX18: =_xlfn.IFNA(MATCH(RAND(), _xlfn.POISSON.DIST({0,1,2,3,4,5,6,7,8,9},$P18, TRUE),1), 0) -> 1 | BY18: =_xlfn.IFNA(MATCH(RAND(), _xlfn.POISSON.DIST({0,1,2,3,4,5,6,7,8,9},$P18, TRUE),1), 0) -> 0 | BZ18: =_xlfn.IFNA(MATCH(RAND(), _xlfn.POISSON.DIST({0,1,2,3,4,5,6,7,8,9},$P18, TRUE),1), 0) -> 2 | CA18: =_xlfn.IFNA(MATCH(RAND(), _xlfn.POISSON.DIST({0,1,2,3,4,5,6,7,8,9},$P18, TRUE),1), 0) -> 0 | CB18: =_xlfn.IFNA(MATCH(RAND(), _xlfn.POISSON.DIST({0,1,2,3,4,5,6,7,8,9},$P18, TRUE),1), 0) -> 4 | CC18: =_xlfn.IFNA(MATCH(RAND(), _xlfn.POISSON.DIST({0,1,2,3,4,5,6,7,8,9},$P18, TRUE),1), 0) -> 1 | CD18: =_xlfn.IFNA(MATCH(RAND(), _xlfn.POISSON.DIST({0,1,2,3,4,5,6,7,8,9},$P18, TRUE),1), 0) -> 0 | CE18: =_xlfn.IFNA(MATCH(RAND(), _xlfn.POISSON.DIST({0,1,2,3,4,5,6,7,8,9},$P18, TRUE),1), 0) -> 1 | CF18: =_xlfn.IFNA(MATCH(RAND(), _xlfn.POISSON.DIST({0,1,2,3,4,5,6,7,8,9},$P18, TRUE),1), 0) -> 3 | CG18: =_xlfn.IFNA(MATCH(RAND(), _xlfn.POISSON.DIST({0,1,2,3,4,5,6,7,8,9},$P18, TRUE),1), 0) -> 0 | CH18: =_xlfn.IFNA(MATCH(RAND(), _xlfn.POISSON.DIST({0,1,2,3,4,5,6,7,8,9},$P18, TRUE),1), 0) -> 1 | CI18: =_xlfn.IFNA(MATCH(RAND(), _xlfn.POISSON.DIST({0,1,2,3,4,5,6,7,8,9},$P18, TRUE),1), 0) -> 3 | CJ18: =_xlfn.IFNA(MATCH(RAND(), _xlfn.POISSON.DIST({0,1,2,3,4,5,6,7,8,9},$P18, TRUE),1), 0) -> 0 | CK18: =_xlfn.IFNA(MATCH(RAND(), _xlfn.POISSON.DIST({0,1,2,3,4,5,6,7,8,9},$P18, TRUE),1), 0) -> 4 | CL18: =_xlfn.IFNA(MATCH(RAND(), _xlfn.POISSON.DIST({0,1,2,3,4,5,6,7,8,9},$P18, TRUE),1), 0) -> 0 | CM18: =_xlfn.IFNA(MATCH(RAND(), _xlfn.POISSON.DIST({0,1,2,3,4,5,6,7,8,9},$P18, TRUE),1), 0) -> 3 | CN18: =_xlfn.IFNA(MATCH(RAND(), _xlfn.POISSON.DIST({0,1,2,3,4,5,6,7,8,9},$P18, TRUE),1), 0) -> 1 | CO18: =_xlfn.IFNA(MATCH(RAND(), _xlfn.POISSON.DIST({0,1,2,3,4,5,6,7,8,9},$P18, TRUE),1), 0) -> 3 | CP18: =_xlfn.IFNA(MATCH(RAND(), _xlfn.POISSON.DIST({0,1,2,3,4,5,6,7,8,9},$P18, TRUE),1), 0) -> 2 | CQ18: =_xlfn.IFNA(MATCH(RAND(), _xlfn.POISSON.DIST({0,1,2,3,4,5,6,7,8,9},$P18, TRUE),1), 0) -> 5 | CR18: =_xlfn.IFNA(MATCH(RAND(), _xlfn.POISSON.DIST({0,1,2,3,4,5,6,7,8,9},$P18, TRUE),1), 0) -> 1 | CS18: =_xlfn.IFNA(MATCH(RAND(), _xlfn.POISSON.DIST({0,1,2,3,4,5,6,7,8,9},$P18, TRUE),1), 0) -> 0 | CT18: =_xlfn.IFNA(MATCH(RAND(), _xlfn.POISSON.DIST({0,1,2,3,4,5,6,7,8,9},$P18, TRUE),1), 0) -> 1 | CU18: =_xlfn.IFNA(MATCH(RAND(), _xlfn.POISSON.DIST({0,1,2,3,4,5,6,7,8,9},$P18, TRUE),1), 0) -> 0 | CV18: =_xlfn.IFNA(MATCH(RAND(), _xlfn.POISSON.DIST({0,1,2,3,4,5,6,7,8,9},$P18, TRUE),1), 0) -> 2 | CW18: =_xlfn.IFNA(MATCH(RAND(), _xlfn.POISSON.DIST({0,1,2,3,4,5,6,7,8,9},$P18, TRUE),1), 0) -> 2 | CX18: =_xlfn.IFNA(MATCH(RAND(), _xlfn.POISSON.DIST({0,1,2,3,4,5,6,7,8,9},$P18, TRUE),1), 0) -> 4 | CY18: =_xlfn.IFNA(MATCH(RAND(), _xlfn.POISSON.DIST({0,1,2,3,4,5,6,7,8,9},$P18, TRUE),1), 0) -> 0 | CZ18: =_xlfn.IFNA(MATCH(RAND(), _xlfn.POISSON.DIST({0,1,2,3,4,5,6,7,8,9},$P18, TRUE),1), 0) -> 2 | DA18: =_xlfn.IFNA(MATCH(RAND(), _xlfn.POISSON.DIST({0,1,2,3,4,5,6,7,8,9},$P18, TRUE),1), 0) -> 1 | DB18: =_xlfn.IFNA(MATCH(RAND(), _xlfn.POISSON.DIST({0,1,2,3,4,5,6,7,8,9},$P18, TRUE),1), 0) -> 4 | DC18: =_xlfn.IFNA(MATCH(RAND(), _xlfn.POISSON.DIST({0,1,2,3,4,5,6,7,8,9},$P18, TRUE),1), 0) -> 0 | DD18: =_xlfn.IFNA(MATCH(RAND(), _xlfn.POISSON.DIST({0,1,2,3,4,5,6,7,8,9},$P18, TRUE),1), 0) -> 0 | DE18: =_xlfn.IFNA(MATCH(RAND(), _xlfn.POISSON.DIST({0,1,2,3,4,5,6,7,8,9},$P18, TRUE),1), 0) -> 4 | DF18: =_xlfn.IFNA(MATCH(RAND(), _xlfn.POISSON.DIST({0,1,2,3,4,5,6,7,8,9},$P18, TRUE),1), 0) -> 2 | DG18: =_xlfn.IFNA(MATCH(RAND(), _xlfn.POISSON.DIST({0,1,2,3,4,5,6,7,8,9},$P18, TRUE),1), 0) -> 0 | DH18: =_xlfn.IFNA(MATCH(RAND(), _xlfn.POISSON.DIST({0,1,2,3,4,5,6,7,8,9},$P18, TRUE),1), 0) -> 0 | DI18: =_xlfn.IFNA(MATCH(RAND(), _xlfn.POISSON.DIST({0,1,2,3,4,5,6,7,8,9},$P18, TRUE),1), 0) -> 6 | DJ18: =_xlfn.IFNA(MATCH(RAND(), _xlfn.POISSON.DIST({0,1,2,3,4,5,6,7,8,9},$P18, TRUE),1), 0) -> 3 | DK18: =_xlfn.IFNA(MATCH(RAND(), _xlfn.POISSON.DIST({0,1,2,3,4,5,6,7,8,9},$P18, TRUE),1), 0) -> 1 | DL18: =_xlfn.IFNA(MATCH(RAND(), _xlfn.POISSON.DIST({0,1,2,3,4,5,6,7,8,9},$P18, TRUE),1), 0) -> 3 | DM18: =_xlfn.IFNA(MATCH(RAND(), _xlfn.POISSON.DIST({0,1,2,3,4,5,6,7,8,9},$P18, TRUE),1), 0) -> 1
C19: 2019-06-12 | D19: B | E19: Deutschland | F19: =(AVERAGE(Q19:BN19))*(1+INDEX('Prognosen für die Gruppenphase'!$C$4:$O$28, MATCH('Spiele in diesem Jahr'!E19,'Prognosen für die Gruppenphase'!$D$4:$D$28,0),3)) -> 1.54 | G19: Spanien | H19: =(AVERAGE(BP19:DM19))*(1+INDEX('Prognosen für die Gruppenphase'!$C$4:$O$28, MATCH('Spiele in diesem Jahr'!G19,'Prognosen für die Gruppenphase'!$D$4:$D$28,0),3)) -> 1.42 | I19: Deutschland | L19: 1.54 | M19: 1.42 | N19: Deutschland | O19: =(OFFSET('Anhang 3 – Tore je Gruppe'!$C$13,(INDEX('Anhang 1 – Mannschaftsdaten'!$C$13:$F$112,MATCH(G19,'Anhang 1 – Mannschaftsdaten'!$C$13:$C$112,0),4)/10),(INDEX('Anhang 1 – Mannschaftsdaten'!$C$13:$F$112,MATCH(E19,'Anhang 1 – Mannschaftsdaten'!$C$13:$C$112,0),4)/10))) -> 1.50 | P19: =OFFSET('Anhang 3 – Tore je Gruppe'!$C$13,(INDEX('Anhang 1 – Mannschaftsdaten'!$C$13:$F$112, MATCH(E19,'Anhang 1 – Mannschaftsdaten'!$C$13:$C$112,0),4)/10), (INDEX('Anhang 1 – Mannschaftsdaten'!$C$13:$F$112, MATCH(G19, 'Anhang 1 – Mannschaftsdaten'!$C$13:$C$112,0),4)/10)) -> 1.50 | Q19: =_xlfn.IFNA(MATCH(RAND(), _xlfn.POISSON.DIST({0,1,2,3,4,5,6,7,8,9},$O19, TRUE),1), 0) -> 3 | R19: =_xlfn.IFNA(MATCH(RAND(), _xlfn.POISSON.DIST({0,1,2,3,4,5,6,7,8,9},$O19, TRUE),1), 0) -> 0 | S19: =_xlfn.IFNA(MATCH(RAND(), _xlfn.POISSON.DIST({0,1,2,3,4,5,6,7,8,9},$O19, TRUE),1), 0) -> 0 | T19: =_xlfn.IFNA(MATCH(RAND(), _xlfn.POISSON.DIST({0,1,2,3,4,5,6,7,8,9},$O19, TRUE),1), 0) -> 1 | U19: =_xlfn.IFNA(MATCH(RAND(), _xlfn.POISSON.DIST({0,1,2,3,4,5,6,7,8,9},$O19, TRUE),1), 0) -> 5 | V19: =_xlfn.IFNA(MATCH(RAND(), _xlfn.POISSON.DIST({0,1,2,3,4,5,6,7,8,9},$O19, TRUE),1), 0) -> 2 | W19: =_xlfn.IFNA(MATCH(RAND(), _xlfn.POISSON.DIST({0,1,2,3,4,5,6,7,8,9},$O19, TRUE),1), 0) -> 1 | X19: =_xlfn.IFNA(MATCH(RAND(), _xlfn.POISSON.DIST({0,1,2,3,4,5,6,7,8,9},$O19, TRUE),1), 0) -> 2 | Y19: =_xlfn.IFNA(MATCH(RAND(), _xlfn.POISSON.DIST({0,1,2,3,4,5,6,7,8,9},$O19, TRUE),1), 0) -> 3 | Z19: =_xlfn.IFNA(MATCH(RAND(), _xlfn.POISSON.DIST({0,1,2,3,4,5,6,7,8,9},$O19, TRUE),1), 0) -> 1 | AA19: =_xlfn.IFNA(MATCH(RAND(), _xlfn.POISSON.DIST({0,1,2,3,4,5,6,7,8,9},$O19, TRUE),1), 0) -> 1 | AB19: =_xlfn.IFNA(MATCH(RAND(), _xlfn.POISSON.DIST({0,1,2,3,4,5,6,7,8,9},$O19, TRUE),1), 0) -> 0 | AC19: =_xlfn.IFNA(MATCH(RAND(), _xlfn.POISSON.DIST({0,1,2,3,4,5,6,7,8,9},$O19, TRUE),1), 0) -> 0 | AD19: =_xlfn.IFNA(MATCH(RAND(), _xlfn.POISSON.DIST({0,1,2,3,4,5,6,7,8,9},$O19, TRUE),1), 0) -> 2 | AE19: =_xlfn.IFNA(MATCH(RAND(), _xlfn.POISSON.DIST({0,1,2,3,4,5,6,7,8,9},$O19, TRUE),1), 0) -> 1 | AF19: =_xlfn.IFNA(MATCH(RAND(), _xlfn.POISSON.DIST({0,1,2,3,4,5,6,7,8,9},$O19, TRUE),1), 0) -> 2 | AG19: =_xlfn.IFNA(MATCH(RAND(), _xlfn.POISSON.DIST({0,1,2,3,4,5,6,7,8,9},$O19, TRUE),1), 0) -> 0 | AH19: =_xlfn.IFNA(MATCH(RAND(), _xlfn.POISSON.DIST({0,1,2,3,4,5,6,7,8,9},$O19, TRUE),1), 0) -> 0 | AI19: =_xlfn.IFNA(MATCH(RAND(), _xlfn.POISSON.DIST({0,1,2,3,4,5,6,7,8,9},$O19, TRUE),1), 0) -> 1 | AJ19: =_xlfn.IFNA(MATCH(RAND(), _xlfn.POISSON.DIST({0,1,2,3,4,5,6,7,8,9},$O19, TRUE),1), 0) -> 1 | AK19: =_xlfn.IFNA(MATCH(RAND(), _xlfn.POISSON.DIST({0,1,2,3,4,5,6,7,8,9},$O19, TRUE),1), 0) -> 2 | AL19: =_xlfn.IFNA(MATCH(RAND(), _xlfn.POISSON.DIST({0,1,2,3,4,5,6,7,8,9},$O19, TRUE),1), 0) -> 4 | AM19: =_xlfn.IFNA(MATCH(RAND(), _xlfn.POISSON.DIST({0,1,2,3,4,5,6,7,8,9},$O19, TRUE),1), 0) -> 2 | AN19: =_xlfn.IFNA(MATCH(RAND(), _xlfn.POISSON.DIST({0,1,2,3,4,5,6,7,8,9},$O19, TRUE),1), 0) -> 0 | AO19: =_xlfn.IFNA(MATCH(RAND(), _xlfn.POISSON.DIST({0,1,2,3,4,5,6,7,8,9},$O19, TRUE),1), 0) -> 1 | AP19: =_xlfn.IFNA(MATCH(RAND(), _xlfn.POISSON.DIST({0,1,2,3,4,5,6,7,8,9},$O19, TRUE),1), 0) -> 3 | AQ19: =_xlfn.IFNA(MATCH(RAND(), _xlfn.POISSON.DIST({0,1,2,3,4,5,6,7,8,9},$O19, TRUE),1), 0) -> 2 | AR19: =_xlfn.IFNA(MATCH(RAND(), _xlfn.POISSON.DIST({0,1,2,3,4,5,6,7,8,9},$O19, TRUE),1), 0) -> 4 | AS19: =_xlfn.IFNA(MATCH(RAND(), _xlfn.POISSON.DIST({0,1,2,3,4,5,6,7,8,9},$O19, TRUE),1), 0) -> 1 | AT19: =_xlfn.IFNA(MATCH(RAND(), _xlfn.POISSON.DIST({0,1,2,3,4,5,6,7,8,9},$O19, TRUE),1), 0) -> 3 | AU19: =_xlfn.IFNA(MATCH(RAND(), _xlfn.POISSON.DIST({0,1,2,3,4,5,6,7,8,9},$O19, TRUE),1), 0) -> 1 | AV19: =_xlfn.IFNA(MATCH(RAND(), _xlfn.POISSON.DIST({0,1,2,3,4,5,6,7,8,9},$O19, TRUE),1), 0) -> 3 | AW19: =_xlfn.IFNA(MATCH(RAND(), _xlfn.POISSON.DIST({0,1,2,3,4,5,6,7,8,9},$O19, TRUE),1), 0) -> 0 | AX19: =_xlfn.IFNA(MATCH(RAND(), _xlfn.POISSON.DIST({0,1,2,3,4,5,6,7,8,9},$O19, TRUE),1), 0) -> 1 | AY19: =_xlfn.IFNA(MATCH(RAND(), _xlfn.POISSON.DIST({0,1,2,3,4,5,6,7,8,9},$O19, TRUE),1), 0) -> 3 | AZ19: =_xlfn.IFNA(MATCH(RAND(), _xlfn.POISSON.DIST({0,1,2,3,4,5,6,7,8,9},$O19, TRUE),1), 0) -> 1 | BA19: =_xlfn.IFNA(MATCH(RAND(), _xlfn.POISSON.DIST({0,1,2,3,4,5,6,7,8,9},$O19, TRUE),1), 0) -> 2 | BB19: =_xlfn.IFNA(MATCH(RAND(), _xlfn.POISSON.DIST({0,1,2,3,4,5,6,7,8,9},$O19, TRUE),1), 0) -> 0 | BC19: =_xlfn.IFNA(MATCH(RAND(), _xlfn.POISSON.DIST({0,1,2,3,4,5,6,7,8,9},$O19, TRUE),1), 0) -> 2 | BD19: =_xlfn.IFNA(MATCH(RAND(), _xlfn.POISSON.DIST({0,1,2,3,4,5,6,7,8,9},$O19, TRUE),1), 0) -> 2 | BE19: =_xlfn.IFNA(MATCH(RAND(), _xlfn.POISSON.DIST({0,1,2,3,4,5,6,7,8,9},$O19, TRUE),1), 0) -> 0 | BF19: =_xlfn.IFNA(MATCH(RAND(), _xlfn.POISSON.DIST({0,1,2,3,4,5,6,7,8,9},$O19, TRUE),1), 0) -> 0 | BG19: =_xlfn.IFNA(MATCH(RAND(), _xlfn.POISSON.DIST({0,1,2,3,4,5,6,7,8,9},$O19, TRUE),1), 0) -> 2 | BH19: =_xlfn.IFNA(MATCH(RAND(), _xlfn.POISSON.DIST({0,1,2,3,4,5,6,7,8,9},$O19, TRUE),1), 0) -> 3 | BI19: =_xlfn.IFNA(MATCH(RAND(), _xlfn.POISSON.DIST({0,1,2,3,4,5,6,7,8,9},$O19, TRUE),1), 0) -> 2 | BJ19: =_xlfn.IFNA(MATCH(RAND(), _xlfn.POISSON.DIST({0,1,2,3,4,5,6,7,8,9},$O19, TRUE),1), 0) -> 2 | BK19: =_xlfn.IFNA(MATCH(RAND(), _xlfn.POISSON.DIST({0,1,2,3,4,5,6,7,8,9},$O19, TRUE),1), 0) -> 0 | BL19: =_xlfn.IFNA(MATCH(RAND(), _xlfn.POISSON.DIST({0,1,2,3,4,5,6,7,8,9},$O19, TRUE),1), 0) -> 0 | BM19: =_xlfn.IFNA(MATCH(RAND(), _xlfn.POISSON.DIST({0,1,2,3,4,5,6,7,8,9},$O19, TRUE),1), 0) -> 3 | BN19: =_xlfn.IFNA(MATCH(RAND(), _xlfn.POISSON.DIST({0,1,2,3,4,5,6,7,8,9},$O19, TRUE),1), 0) -> 2 | BP19: =_xlfn.IFNA(MATCH(RAND(), _xlfn.POISSON.DIST({0,1,2,3,4,5,6,7,8,9},$P19, TRUE),1), 0) -> 1 | BQ19: =_xlfn.IFNA(MATCH(RAND(), _xlfn.POISSON.DIST({0,1,2,3,4,5,6,7,8,9},$P19, TRUE),1), 0) -> 1 | BR19: =_xlfn.IFNA(MATCH(RAND(), _xlfn.POISSON.DIST({0,1,2,3,4,5,6,7,8,9},$P19, TRUE),1), 0) -> 3 | BS19: =_xlfn.IFNA(MATCH(RAND(), _xlfn.POISSON.DIST({0,1,2,3,4,5,6,7,8,9},$P19, TRUE),1), 0) -> 0 | BT19: =_xlfn.IFNA(MATCH(RAND(), _xlfn.POISSON.DIST({0,1,2,3,4,5,6,7,8,9},$P19, TRUE),1), 0) -> 2 | BU19: =_xlfn.IFNA(MATCH(RAND(), _xlfn.POISSON.DIST({0,1,2,3,4,5,6,7,8,9},$P19, TRUE),1), 0) -> 2 | BV19: =_xlfn.IFNA(MATCH(RAND(), _xlfn.POISSON.DIST({0,1,2,3,4,5,6,7,8,9},$P19, TRUE),1), 0) -> 1 | BW19: =_xlfn.IFNA(MATCH(RAND(), _xlfn.POISSON.DIST({0,1,2,3,4,5,6,7,8,9},$P19, TRUE),1), 0) -> 1 | BX19: =_xlfn.IFNA(MATCH(RAND(), _xlfn.POISSON.DIST({0,1,2,3,4,5,6,7,8,9},$P19, TRUE),1), 0) -> 3 | BY19: =_xlfn.IFNA(MATCH(RAND(), _xlfn.POISSON.DIST({0,1,2,3,4,5,6,7,8,9},$P19, TRUE),1), 0) -> 0 | BZ19: =_xlfn.IFNA(MATCH(RAND(), _xlfn.POISSON.DIST({0,1,2,3,4,5,6,7,8,9},$P19, TRUE),1), 0) -> 0 | CA19: =_xlfn.IFNA(MATCH(RAND(), _xlfn.POISSON.DIST({0,1,2,3,4,5,6,7,8,9},$P19, TRUE),1), 0) -> 2 | CB19: =_xlfn.IFNA(MATCH(RAND(), _xlfn.POISSON.DIST({0,1,2,3,4,5,6,7,8,9},$P19, TRUE),1), 0) -> 1 | CC19: =_xlfn.IFNA(MATCH(RAND(), _xlfn.POISSON.DIST({0,1,2,3,4,5,6,7,8,9},$P19, TRUE),1), 0) -> 2 | CD19: =_xlfn.IFNA(MATCH(RAND(), _xlfn.POISSON.DIST({0,1,2,3,4,5,6,7,8,9},$P19, TRUE),1), 0) -> 3 | CE19: =_xlfn.IFNA(MATCH(RAND(), _xlfn.POISSON.DIST({0,1,2,3,4,5,6,7,8,9},$P19, TRUE),1), 0) -> 1 | CF19: =_xlfn.IFNA(MATCH(RAND(), _xlfn.POISSON.DIST({0,1,2,3,4,5,6,7,8,9},$P19, TRUE),1), 0) -> 2 | CG19: =_xlfn.IFNA(MATCH(RAND(), _xlfn.POISSON.DIST({0,1,2,3,4,5,6,7,8,9},$P19, TRUE),1), 0) -> 3 | CH19: =_xlfn.IFNA(MATCH(RAND(), _xlfn.POISSON.DIST({0,1,2,3,4,5,6,7,8,9},$P19, TRUE),1), 0) -> 1 | CI19: =_xlfn.IFNA(MATCH(RAND(), _xlfn.POISSON.DIST({0,1,2,3,4,5,6,7,8,9},$P19, TRUE),1), 0) -> 1 | CJ19: =_xlfn.IFNA(MATCH(RAND(), _xlfn.POISSON.DIST({0,1,2,3,4,5,6,7,8,9},$P19, TRUE),1), 0) -> 1 | CK19: =_xlfn.IFNA(MATCH(RAND(), _xlfn.POISSON.DIST({0,1,2,3,4,5,6,7,8,9},$P19, TRUE),1), 0) -> 1 | CL19: =_xlfn.IFNA(MATCH(RAND(), _xlfn.POISSON.DIST({0,1,2,3,4,5,6,7,8,9},$P19, TRUE),1), 0) -> 0 | CM19: =_xlfn.IFNA(MATCH(RAND(), _xlfn.POISSON.DIST({0,1,2,3,4,5,6,7,8,9},$P19, TRUE),1), 0) -> 3 | CN19: =_xlfn.IFNA(MATCH(RAND(), _xlfn.POISSON.DIST({0,1,2,3,4,5,6,7,8,9},$P19, TRUE),1), 0) -> 2 | CO19: =_xlfn.IFNA(MATCH(RAND(), _xlfn.POISSON.DIST({0,1,2,3,4,5,6,7,8,9},$P19, TRUE),1), 0) -> 3 | CP19: =_xlfn.IFNA(MATCH(RAND(), _xlfn.POISSON.DIST({0,1,2,3,4,5,6,7,8,9},$P19, TRUE),1), 0) -> 3 | CQ19: =_xlfn.IFNA(MATCH(RAND(), _xlfn.POISSON.DIST({0,1,2,3,4,5,6,7,8,9},$P19, TRUE),1), 0) -> 0 | CR19: =_xlfn.IFNA(MATCH(RAND(), _xlfn.POISSON.DIST({0,1,2,3,4,5,6,7,8,9},$P19, TRUE),1), 0) -> 0 | CS19: =_xlfn.IFNA(MATCH(RAND(), _xlfn.POISSON.DIST({0,1,2,3,4,5,6,7,8,9},$P19, TRUE),1), 0) -> 1 | CT19: =_xlfn.IFNA(MATCH(RAND(), _xlfn.POISSON.DIST({0,1,2,3,4,5,6,7,8,9},$P19, TRUE),1), 0) -> 3 | CU19: =_xlfn.IFNA(MATCH(RAND(), _xlfn.POISSON.DIST({0,1,2,3,4,5,6,7,8,9},$P19, TRUE),1), 0) -> 2 | CV19: =_xlfn.IFNA(MATCH(RAND(), _xlfn.POISSON.DIST({0,1,2,3,4,5,6,7,8,9},$P19, TRUE),1), 0) -> 0 | CW19: =_xlfn.IFNA(MATCH(RAND(), _xlfn.POISSON.DIST({0,1,2,3,4,5,6,7,8,9},$P19, TRUE),1), 0) -> 1 | CX19: =_xlfn.IFNA(MATCH(RAND(), _xlfn.POISSON.DIST({0,1,2,3,4,5,6,7,8,9},$P19, TRUE),1), 0) -> 1 | CY19: =_xlfn.IFNA(MATCH(RAND(), _xlfn.POISSON.DIST({0,1,2,3,4,5,6,7,8,9},$P19, TRUE),1), 0) -> 1 | CZ19: =_xlfn.IFNA(MATCH(RAND(), _xlfn.POISSON.DIST({0,1,2,3,4,5,6,7,8,9},$P19, TRUE),1), 0) -> 4 | DA19: =_xlfn.IFNA(MATCH(RAND(), _xlfn.POISSON.DIST({0,1,2,3,4,5,6,7,8,9},$P19, TRUE),1), 0) -> 2 | DB19: =_xlfn.IFNA(MATCH(RAND(), _xlfn.POISSON.DIST({0,1,2,3,4,5,6,7,8,9},$P19, TRUE),1), 0) -> 1 | DC19: =_xlfn.IFNA(MATCH(RAND(), _xlfn.POISSON.DIST({0,1,2,3,4,5,6,7,8,9},$P19, TRUE),1), 0) -> 1 | DD19: =_xlfn.IFNA(MATCH(RAND(), _xlfn.POISSON.DIST({0,1,2,3,4,5,6,7,8,9},$P19, TRUE),1), 0) -> 0 | DE19: =_xlfn.IFNA(MATCH(RAND(), _xlfn.POISSON.DIST({0,1,2,3,4,5,6,7,8,9},$P19, TRUE),1), 0) -> 2 | DF19: =_xlfn.IFNA(MATCH(RAND(), _xlfn.POISSON.DIST({0,1,2,3,4,5,6,7,8,9},$P19, TRUE),1), 0) -> 1 | DG19: =_xlfn.IFNA(MATCH(RAND(), _xlfn.POISSON.DIST({0,1,2,3,4,5,6,7,8,9},$P19, TRUE),1), 0) -> 2 | DH19: =_xlfn.IFNA(MATCH(RAND(), _xlfn.POISSON.DIST({0,1,2,3,4,5,6,7,8,9},$P19, TRUE),1), 0) -> 2 | DI19: =_xlfn.IFNA(MATCH(RAND(), _xlfn.POISSON.DIST({0,1,2,3,4,5,6,7,8,9},$P19, TRUE),1), 0) -> 1 | DJ19: =_xlfn.IFNA(MATCH(RAND(), _xlfn.POISSON.DIST({0,1,2,3,4,5,6,7,8,9},$P19, TRUE),1), 0) -> 1 | DK19: =_xlfn.IFNA(MATCH(RAND(), _xlfn.POISSON.DIST({0,1,2,3,4,5,6,7,8,9},$P19, TRUE),1), 0) -> 2 | DL19: =_xlfn.IFNA(MATCH(RAND(), _xlfn.POISSON.DIST({0,1,2,3,4,5,6,7,8,9},$P19, TRUE),1), 0) -> 0 | DM19: =_xlfn.IFNA(MATCH(RAND(), _xlfn.POISSON.DIST({0,1,2,3,4,5,6,7,8,9},$P19, TRUE),1), 0) -> 0
C20: 2019-06-12 | D20: A | E20: Frankreich | F20: =(AVERAGE(Q20:BN20))*(1+INDEX('Prognosen für die Gruppenphase'!$C$4:$O$28, MATCH('Spiele in diesem Jahr'!E20,'Prognosen für die Gruppenphase'!$D$4:$D$28,0),3)) -> 1.30 | G20: Norwegen | H20: =(AVERAGE(BP20:DM20))*(1+INDEX('Prognosen für die Gruppenphase'!$C$4:$O$28, MATCH('Spiele in diesem Jahr'!G20,'Prognosen für die Gruppenphase'!$D$4:$D$28,0),3)) -> 1.48 | I20: Norwegen | L20: 1.3 | M20: 1.48 | N20: Norwegen | O20: =(OFFSET('Anhang 3 – Tore je Gruppe'!$C$13,(INDEX('Anhang 1 – Mannschaftsdaten'!$C$13:$F$112,MATCH(G20,'Anhang 1 – Mannschaftsdaten'!$C$13:$C$112,0),4)/10),(INDEX('Anhang 1 – Mannschaftsdaten'!$C$13:$F$112,MATCH(E20,'Anhang 1 – Mannschaftsdaten'!$C$13:$C$112,0),4)/10))) -> 1.50 | P20: =OFFSET('Anhang 3 – Tore je Gruppe'!$C$13,(INDEX('Anhang 1 – Mannschaftsdaten'!$C$13:$F$112, MATCH(E20,'Anhang 1 – Mannschaftsdaten'!$C$13:$C$112,0),4)/10), (INDEX('Anhang 1 – Mannschaftsdaten'!$C$13:$F$112, MATCH(G20, 'Anhang 1 – Mannschaftsdaten'!$C$13:$C$112,0),4)/10)) -> 1.50 | Q20: =_xlfn.IFNA(MATCH(RAND(), _xlfn.POISSON.DIST({0,1,2,3,4,5,6,7,8,9},$O20, TRUE),1), 0) -> 3 | R20: =_xlfn.IFNA(MATCH(RAND(), _xlfn.POISSON.DIST({0,1,2,3,4,5,6,7,8,9},$O20, TRUE),1), 0) -> 1 | S20: =_xlfn.IFNA(MATCH(RAND(), _xlfn.POISSON.DIST({0,1,2,3,4,5,6,7,8,9},$O20, TRUE),1), 0) -> 2 | T20: =_xlfn.IFNA(MATCH(RAND(), _xlfn.POISSON.DIST({0,1,2,3,4,5,6,7,8,9},$O20, TRUE),1), 0) -> 2 | U20: =_xlfn.IFNA(MATCH(RAND(), _xlfn.POISSON.DIST({0,1,2,3,4,5,6,7,8,9},$O20, TRUE),1), 0) -> 0 | V20: =_xlfn.IFNA(MATCH(RAND(), _xlfn.POISSON.DIST({0,1,2,3,4,5,6,7,8,9},$O20, TRUE),1), 0) -> 0 | W20: =_xlfn.IFNA(MATCH(RAND(), _xlfn.POISSON.DIST({0,1,2,3,4,5,6,7,8,9},$O20, TRUE),1), 0) -> 2 | X20: =_xlfn.IFNA(MATCH(RAND(), _xlfn.POISSON.DIST({0,1,2,3,4,5,6,7,8,9},$O20, TRUE),1), 0) -> 3 | Y20: =_xlfn.IFNA(MATCH(RAND(), _xlfn.POISSON.DIST({0,1,2,3,4,5,6,7,8,9},$O20, TRUE),1), 0) -> 1 | Z20: =_xlfn.IFNA(MATCH(RAND(), _xlfn.POISSON.DIST({0,1,2,3,4,5,6,7,8,9},$O20, TRUE),1), 0) -> 1 | AA20: =_xlfn.IFNA(MATCH(RAND(), _xlfn.POISSON.DIST({0,1,2,3,4,5,6,7,8,9},$O20, TRUE),1), 0) -> 2 | AB20: =_xlfn.IFNA(MATCH(RAND(), _xlfn.POISSON.DIST({0,1,2,3,4,5,6,7,8,9},$O20, TRUE),1), 0) -> 0 | AC20: =_xlfn.IFNA(MATCH(RAND(), _xlfn.POISSON.DIST({0,1,2,3,4,5,6,7,8,9},$O20, TRUE),1), 0) -> 0 | AD20: =_xlfn.IFNA(MATCH(RAND(), _xlfn.POISSON.DIST({0,1,2,3,4,5,6,7,8,9},$O20, TRUE),1), 0) -> 0 | AE20: =_xlfn.IFNA(MATCH(RAND(), _xlfn.POISSON.DIST({0,1,2,3,4,5,6,7,8,9},$O20, TRUE),1), 0) -> 0 | AF20: =_xlfn.IFNA(MATCH(RAND(), _xlfn.POISSON.DIST({0,1,2,3,4,5,6,7,8,9},$O20, TRUE),1), 0) -> 2 | AG20: =_xlfn.IFNA(MATCH(RAND(), _xlfn.POISSON.DIST({0,1,2,3,4,5,6,7,8,9},$O20, TRUE),1), 0) -> 2 | AH20: =_xlfn.IFNA(MATCH(RAND(), _xlfn.POISSON.DIST({0,1,2,3,4,5,6,7,8,9},$O20, TRUE),1), 0) -> 1 | AI20: =_xlfn.IFNA(MATCH(RAND(), _xlfn.POISSON.DIST({0,1,2,3,4,5,6,7,8,9},$O20, TRUE),1), 0) -> 1 | AJ20: =_xlfn.IFNA(MATCH(RAND(), _xlfn.POISSON.DIST({0,1,2,3,4,5,6,7,8,9},$O20, TRUE),1), 0) -> 1 | AK20: =_xlfn.IFNA(MATCH(RAND(), _xlfn.POISSON.DIST({0,1,2,3,4,5,6,7,8,9},$O20, TRUE),1), 0) -> 1 | AL20: =_xlfn.IFNA(MATCH(RAND(), _xlfn.POISSON.DIST({0,1,2,3,4,5,6,7,8,9},$O20, TRUE),1), 0) -> 1 | AM20: =_xlfn.IFNA(MATCH(RAND(), _xlfn.POISSON.DIST({0,1,2,3,4,5,6,7,8,9},$O20, TRUE),1), 0) -> 0 | AN20: =_xlfn.IFNA(MATCH(RAND(), _xlfn.POISSON.DIST({0,1,2,3,4,5,6,7,8,9},$O20, TRUE),1), 0) -> 0 | AO20: =_xlfn.IFNA(MATCH(RAND(), _xlfn.POISSON.DIST({0,1,2,3,4,5,6,7,8,9},$O20, TRUE),1), 0) -> 3 | AP20: =_xlfn.IFNA(MATCH(RAND(), _xlfn.POISSON.DIST({0,1,2,3,4,5,6,7,8,9},$O20, TRUE),1), 0) -> 5 | AQ20: =_xlfn.IFNA(MATCH(RAND(), _xlfn.POISSON.DIST({0,1,2,3,4,5,6,7,8,9},$O20, TRUE),1), 0) -> 0 | AR20: =_xlfn.IFNA(MATCH(RAND(), _xlfn.POISSON.DIST({0,1,2,3,4,5,6,7,8,9},$O20, TRUE),1), 0) -> 2 | AS20: =_xlfn.IFNA(MATCH(RAND(), _xlfn.POISSON.DIST({0,1,2,3,4,5,6,7,8,9},$O20, TRUE),1), 0) -> 5 | AT20: =_xlfn.IFNA(MATCH(RAND(), _xlfn.POISSON.DIST({0,1,2,3,4,5,6,7,8,9},$O20, TRUE),1), 0) -> 1 | AU20: =_xlfn.IFNA(MATCH(RAND(), _xlfn.POISSON.DIST({0,1,2,3,4,5,6,7,8,9},$O20, TRUE),1), 0) -> 1 | AV20: =_xlfn.IFNA(MATCH(RAND(), _xlfn.POISSON.DIST({0,1,2,3,4,5,6,7,8,9},$O20, TRUE),1), 0) -> 1 | AW20: =_xlfn.IFNA(MATCH(RAND(), _xlfn.POISSON.DIST({0,1,2,3,4,5,6,7,8,9},$O20, TRUE),1), 0) -> 6 | AX20: =_xlfn.IFNA(MATCH(RAND(), _xlfn.POISSON.DIST({0,1,2,3,4,5,6,7,8,9},$O20, TRUE),1), 0) -> 0 | AY20: =_xlfn.IFNA(MATCH(RAND(), _xlfn.POISSON.DIST({0,1,2,3,4,5,6,7,8,9},$O20, TRUE),1), 0) -> 0 | AZ20: =_xlfn.IFNA(MATCH(RAND(), _xlfn.POISSON.DIST({0,1,2,3,4,5,6,7,8,9},$O20, TRUE),1), 0) -> 0 | BA20: =_xlfn.IFNA(MATCH(RAND(), _xlfn.POISSON.DIST({0,1,2,3,4,5,6,7,8,9},$O20, TRUE),1), 0) -> 1 | BB20: =_xlfn.IFNA(MATCH(RAND(), _xlfn.POISSON.DIST({0,1,2,3,4,5,6,7,8,9},$O20, TRUE),1), 0) -> 4 | BC20: =_xlfn.IFNA(MATCH(RAND(), _xlfn.POISSON.DIST({0,1,2,3,4,5,6,7,8,9},$O20, TRUE),1), 0) -> 0 | BD20: =_xlfn.IFNA(MATCH(RAND(), _xlfn.POISSON.DIST({0,1,2,3,4,5,6,7,8,9},$O20, TRUE),1), 0) -> 1 | BE20: =_xlfn.IFNA(MATCH(RAND(), _xlfn.POISSON.DIST({0,1,2,3,4,5,6,7,8,9},$O20, TRUE),1), 0) -> 1 | BF20: =_xlfn.IFNA(MATCH(RAND(), _xlfn.POISSON.DIST({0,1,2,3,4,5,6,7,8,9},$O20, TRUE),1), 0) -> 1 | BG20: =_xlfn.IFNA(MATCH(RAND(), _xlfn.POISSON.DIST({0,1,2,3,4,5,6,7,8,9},$O20, TRUE),1), 0) -> 1 | BH20: =_xlfn.IFNA(MATCH(RAND(), _xlfn.POISSON.DIST({0,1,2,3,4,5,6,7,8,9},$O20, TRUE),1), 0) -> 0 | BI20: =_xlfn.IFNA(MATCH(RAND(), _xlfn.POISSON.DIST({0,1,2,3,4,5,6,7,8,9},$O20, TRUE),1), 0) -> 0 | BJ20: =_xlfn.IFNA(MATCH(RAND(), _xlfn.POISSON.DIST({0,1,2,3,4,5,6,7,8,9},$O20, TRUE),1), 0) -> 0 | BK20: =_xlfn.IFNA(MATCH(RAND(), _xlfn.POISSON.DIST({0,1,2,3,4,5,6,7,8,9},$O20, TRUE),1), 0) -> 1 | BL20: =_xlfn.IFNA(MATCH(RAND(), _xlfn.POISSON.DIST({0,1,2,3,4,5,6,7,8,9},$O20, TRUE),1), 0) -> 1 | BM20: =_xlfn.IFNA(MATCH(RAND(), _xlfn.POISSON.DIST({0,1,2,3,4,5,6,7,8,9},$O20, TRUE),1), 0) -> 4 | BN20: =_xlfn.IFNA(MATCH(RAND(), _xlfn.POISSON.DIST({0,1,2,3,4,5,6,7,8,9},$O20, TRUE),1), 0) -> 0 | BP20: =_xlfn.IFNA(MATCH(RAND(), _xlfn.POISSON.DIST({0,1,2,3,4,5,6,7,8,9},$P20, TRUE),1), 0) -> 3 | BQ20: =_xlfn.IFNA(MATCH(RAND(), _xlfn.POISSON.DIST({0,1,2,3,4,5,6,7,8,9},$P20, TRUE),1), 0) -> 1 | BR20: =_xlfn.IFNA(MATCH(RAND(), _xlfn.POISSON.DIST({0,1,2,3,4,5,6,7,8,9},$P20, TRUE),1), 0) -> 1 | BS20: =_xlfn.IFNA(MATCH(RAND(), _xlfn.POISSON.DIST({0,1,2,3,4,5,6,7,8,9},$P20, TRUE),1), 0) -> 1 | BT20: =_xlfn.IFNA(MATCH(RAND(), _xlfn.POISSON.DIST({0,1,2,3,4,5,6,7,8,9},$P20, TRUE),1), 0) -> 1 | BU20: =_xlfn.IFNA(MATCH(RAND(), _xlfn.POISSON.DIST({0,1,2,3,4,5,6,7,8,9},$P20, TRUE),1), 0) -> 2 | BV20: =_xlfn.IFNA(MATCH(RAND(), _xlfn.POISSON.DIST({0,1,2,3,4,5,6,7,8,9},$P20, TRUE),1), 0) -> 2 | BW20: =_xlfn.IFNA(MATCH(RAND(), _xlfn.POISSON.DIST({0,1,2,3,4,5,6,7,8,9},$P20, TRUE),1), 0) -> 2 | BX20: =_xlfn.IFNA(MATCH(RAND(), _xlfn.POISSON.DIST({0,1,2,3,4,5,6,7,8,9},$P20, TRUE),1), 0) -> 1 | BY20: =_xlfn.IFNA(MATCH(RAND(), _xlfn.POISSON.DIST({0,1,2,3,4,5,6,7,8,9},$P20, TRUE),1), 0) -> 3 | BZ20: =_xlfn.IFNA(MATCH(RAND(), _xlfn.POISSON.DIST({0,1,2,3,4,5,6,7,8,9},$P20, TRUE),1), 0) -> 2 | CA20: =_xlfn.IFNA(MATCH(RAND(), _xlfn.POISSON.DIST({0,1,2,3,4,5,6,7,8,9},$P20, TRUE),1), 0) -> 1 | CB20: =_xlfn.IFNA(MATCH(RAND(), _xlfn.POISSON.DIST({0,1,2,3,4,5,6,7,8,9},$P20, TRUE),1), 0) -> 2 | CC20: =_xlfn.IFNA(MATCH(RAND(), _xlfn.POISSON.DIST({0,1,2,3,4,5,6,7,8,9},$P20, TRUE),1), 0) -> 3 | CD20: =_xlfn.IFNA(MATCH(RAND(), _xlfn.POISSON.DIST({0,1,2,3,4,5,6,7,8,9},$P20, TRUE),1), 0) -> 1 | CE20: =_xlfn.IFNA(MATCH(RAND(), _xlfn.POISSON.DIST({0,1,2,3,4,5,6,7,8,9},$P20, TRUE),1), 0) -> 2 | CF20: =_xlfn.IFNA(MATCH(RAND(), _xlfn.POISSON.DIST({0,1,2,3,4,5,6,7,8,9},$P20, TRUE),1), 0) -> 2 | CG20: =_xlfn.IFNA(MATCH(RAND(), _xlfn.POISSON.DIST({0,1,2,3,4,5,6,7,8,9},$P20, TRUE),1), 0) -> 1 | CH20: =_xlfn.IFNA(MATCH(RAND(), _xlfn.POISSON.DIST({0,1,2,3,4,5,6,7,8,9},$P20, TRUE),1), 0) -> 2 | CI20: =_xlfn.IFNA(MATCH(RAND(), _xlfn.POISSON.DIST({0,1,2,3,4,5,6,7,8,9},$P20, TRUE),1), 0) -> 0 | CJ20: =_xlfn.IFNA(MATCH(RAND(), _xlfn.POISSON.DIST({0,1,2,3,4,5,6,7,8,9},$P20, TRUE),1), 0) -> 0 | CK20: =_xlfn.IFNA(MATCH(RAND(), _xlfn.POISSON.DIST({0,1,2,3,4,5,6,7,8,9},$P20, TRUE),1), 0) -> 0 | CL20: =_xlfn.IFNA(MATCH(RAND(), _xlfn.POISSON.DIST({0,1,2,3,4,5,6,7,8,9},$P20, TRUE),1), 0) -> 3 | CM20: =_xlfn.IFNA(MATCH(RAND(), _xlfn.POISSON.DIST({0,1,2,3,4,5,6,7,8,9},$P20, TRUE),1), 0) -> 0 | CN20: =_xlfn.IFNA(MATCH(RAND(), _xlfn.POISSON.DIST({0,1,2,3,4,5,6,7,8,9},$P20, TRUE),1), 0) -> 0 | CO20: =_xlfn.IFNA(MATCH(RAND(), _xlfn.POISSON.DIST({0,1,2,3,4,5,6,7,8,9},$P20, TRUE),1), 0) -> 1 | CP20: =_xlfn.IFNA(MATCH(RAND(), _xlfn.POISSON.DIST({0,1,2,3,4,5,6,7,8,9},$P20, TRUE),1), 0) -> 1 | CQ20: =_xlfn.IFNA(MATCH(RAND(), _xlfn.POISSON.DIST({0,1,2,3,4,5,6,7,8,9},$P20, TRUE),1), 0) -> 2 | CR20: =_xlfn.IFNA(MATCH(RAND(), _xlfn.POISSON.DIST({0,1,2,3,4,5,6,7,8,9},$P20, TRUE),1), 0) -> 1 | CS20: =_xlfn.IFNA(MATCH(RAND(), _xlfn.POISSON.DIST({0,1,2,3,4,5,6,7,8,9},$P20, TRUE),1), 0) -> 0 | CT20: =_xlfn.IFNA(MATCH(RAND(), _xlfn.POISSON.DIST({0,1,2,3,4,5,6,7,8,9},$P20, TRUE),1), 0) -> 2 | CU20: =_xlfn.IFNA(MATCH(RAND(), _xlfn.POISSON.DIST({0,1,2,3,4,5,6,7,8,9},$P20, TRUE),1), 0) -> 2 | CV20: =_xlfn.IFNA(MATCH(RAND(), _xlfn.POISSON.DIST({0,1,2,3,4,5,6,7,8,9},$P20, TRUE),1), 0) -> 3 | CW20: =_xlfn.IFNA(MATCH(RAND(), _xlfn.POISSON.DIST({0,1,2,3,4,5,6,7,8,9},$P20, TRUE),1), 0) -> 1 | CX20: =_xlfn.IFNA(MATCH(RAND(), _xlfn.POISSON.DIST({0,1,2,3,4,5,6,7,8,9},$P20, TRUE),1), 0) -> 2 | CY20: =_xlfn.IFNA(MATCH(RAND(), _xlfn.POISSON.DIST({0,1,2,3,4,5,6,7,8,9},$P20, TRUE),1), 0) -> 0 | CZ20: =_xlfn.IFNA(MATCH(RAND(), _xlfn.POISSON.DIST({0,1,2,3,4,5,6,7,8,9},$P20, TRUE),1), 0) -> 1 | DA20: =_xlfn.IFNA(MATCH(RAND(), _xlfn.POISSON.DIST({0,1,2,3,4,5,6,7,8,9},$P20, TRUE),1), 0) -> 3 | DB20: =_xlfn.IFNA(MATCH(RAND(), _xlfn.POISSON.DIST({0,1,2,3,4,5,6,7,8,9},$P20, TRUE),1), 0) -> 3 | DC20: =_xlfn.IFNA(MATCH(RAND(), _xlfn.POISSON.DIST({0,1,2,3,4,5,6,7,8,9},$P20, TRUE),1), 0) -> 2 | DD20: =_xlfn.IFNA(MATCH(RAND(), _xlfn.POISSON.DIST({0,1,2,3,4,5,6,7,8,9},$P20, TRUE),1), 0) -> 2 | DE20: =_xlfn.IFNA(MATCH(RAND(), _xlfn.POISSON.DIST({0,1,2,3,4,5,6,7,8,9},$P20, TRUE),1), 0) -> 4 | DF20: =_xlfn.IFNA(MATCH(RAND(), _xlfn.POISSON.DIST({0,1,2,3,4,5,6,7,8,9},$P20, TRUE),1), 0) -> 0 | DG20: =_xlfn.IFNA(MATCH(RAND(), _xlfn.POISSON.DIST({0,1,2,3,4,5,6,7,8,9},$P20, TRUE),1), 0) -> 2 | DH20: =_xlfn.IFNA(MATCH(RAND(), _xlfn.POISSON.DIST({0,1,2,3,4,5,6,7,8,9},$P20, TRUE),1), 0) -> 0 | DI20: =_xlfn.IFNA(MATCH(RAND(), _xlfn.POISSON.DIST({0,1,2,3,4,5,6,7,8,9},$P20, TRUE),1), 0) -> 0 | DJ20: =_xlfn.IFNA(MATCH(RAND(), _xlfn.POISSON.DIST({0,1,2,3,4,5,6,7,8,9},$P20, TRUE),1), 0) -> 1 | DK20: =_xlfn.IFNA(MATCH(RAND(), _xlfn.POISSON.DIST({0,1,2,3,4,5,6,7,8,9},$P20, TRUE),1), 0) -> 1 | DL20: =_xlfn.IFNA(MATCH(RAND(), _xlfn.POISSON.DIST({0,1,2,3,4,5,6,7,8,9},$P20, TRUE),1), 0) -> 2 | DM20: =_xlfn.IFNA(MATCH(RAND(), _xlfn.POISSON.DIST({0,1,2,3,4,5,6,7,8,9},$P20, TRUE),1), 0) -> 2
C21: 2019-06-13 | D21: C | E21: Australien | F21: =(AVERAGE(Q21:BN21))*(1+INDEX('Prognosen für die Gruppenphase'!$C$4:$O$28, MATCH('Spiele in diesem Jahr'!E21,'Prognosen für die Gruppenphase'!$D$4:$D$28,0),3)) -> 1.08 | G21: Brasilien | H21: =(AVERAGE(BP21:DM21))*(1+INDEX('Prognosen für die Gruppenphase'!$C$4:$O$28, MATCH('Spiele in diesem Jahr'!G21,'Prognosen für die Gruppenphase'!$D$4:$D$28,0),3)) -> 1.52 | I21: Brasilien | L21: 1.08 | M21: 1.52 | N21: Brasilien | O21: =(OFFSET('Anhang 3 – Tore je Gruppe'!$C$13,(INDEX('Anhang 1 – Mannschaftsdaten'!$C$13:$F$112,MATCH(G21,'Anhang 1 – Mannschaftsdaten'!$C$13:$C$112,0),4)/10),(INDEX('Anhang 1 – Mannschaftsdaten'!$C$13:$F$112,MATCH(E21,'Anhang 1 – Mannschaftsdaten'!$C$13:$C$112,0),4)/10))) -> 1.37 | P21: =OFFSET('Anhang 3 – Tore je Gruppe'!$C$13,(INDEX('Anhang 1 – Mannschaftsdaten'!$C$13:$F$112, MATCH(E21,'Anhang 1 – Mannschaftsdaten'!$C$13:$C$112,0),4)/10), (INDEX('Anhang 1 – Mannschaftsdaten'!$C$13:$F$112, MATCH(G21, 'Anhang 1 – Mannschaftsdaten'!$C$13:$C$112,0),4)/10)) -> 1.37 | Q21: =_xlfn.IFNA(MATCH(RAND(), _xlfn.POISSON.DIST({0,1,2,3,4,5,6,7,8,9},$O21, TRUE),1), 0) -> 2 | R21: =_xlfn.IFNA(MATCH(RAND(), _xlfn.POISSON.DIST({0,1,2,3,4,5,6,7,8,9},$O21, TRUE),1), 0) -> 1 | S21: =_xlfn.IFNA(MATCH(RAND(), _xlfn.POISSON.DIST({0,1,2,3,4,5,6,7,8,9},$O21, TRUE),1), 0) -> 4 | T21: =_xlfn.IFNA(MATCH(RAND(), _xlfn.POISSON.DIST({0,1,2,3,4,5,6,7,8,9},$O21, TRUE),1), 0) -> 0 | U21: =_xlfn.IFNA(MATCH(RAND(), _xlfn.POISSON.DIST({0,1,2,3,4,5,6,7,8,9},$O21, TRUE),1), 0) -> 0 | V21: =_xlfn.IFNA(MATCH(RAND(), _xlfn.POISSON.DIST({0,1,2,3,4,5,6,7,8,9},$O21, TRUE),1), 0) -> 0 | W21: =_xlfn.IFNA(MATCH(RAND(), _xlfn.POISSON.DIST({0,1,2,3,4,5,6,7,8,9},$O21, TRUE),1), 0) -> 2 | X21: =_xlfn.IFNA(MATCH(RAND(), _xlfn.POISSON.DIST({0,1,2,3,4,5,6,7,8,9},$O21, TRUE),1), 0) -> 1 | Y21: =_xlfn.IFNA(MATCH(RAND(), _xlfn.POISSON.DIST({0,1,2,3,4,5,6,7,8,9},$O21, TRUE),1), 0) -> 1 | Z21: =_xlfn.IFNA(MATCH(RAND(), _xlfn.POISSON.DIST({0,1,2,3,4,5,6,7,8,9},$O21, TRUE),1), 0) -> 3 | AA21: =_xlfn.IFNA(MATCH(RAND(), _xlfn.POISSON.DIST({0,1,2,3,4,5,6,7,8,9},$O21, TRUE),1), 0) -> 1 | AB21: =_xlfn.IFNA(MATCH(RAND(), _xlfn.POISSON.DIST({0,1,2,3,4,5,6,7,8,9},$O21, TRUE),1), 0) -> 0 | AC21: =_xlfn.IFNA(MATCH(RAND(), _xlfn.POISSON.DIST({0,1,2,3,4,5,6,7,8,9},$O21, TRUE),1), 0) -> 1 | AD21: =_xlfn.IFNA(MATCH(RAND(), _xlfn.POISSON.DIST({0,1,2,3,4,5,6,7,8,9},$O21, TRUE),1), 0) -> 0 | AE21: =_xlfn.IFNA(MATCH(RAND(), _xlfn.POISSON.DIST({0,1,2,3,4,5,6,7,8,9},$O21, TRUE),1), 0) -> 0 | AF21: =_xlfn.IFNA(MATCH(RAND(), _xlfn.POISSON.DIST({0,1,2,3,4,5,6,7,8,9},$O21, TRUE),1), 0) -> 0 | AG21: =_xlfn.IFNA(MATCH(RAND(), _xlfn.POISSON.DIST({0,1,2,3,4,5,6,7,8,9},$O21, TRUE),1), 0) -> 2 | AH21: =_xlfn.IFNA(MATCH(RAND(), _xlfn.POISSON.DIST({0,1,2,3,4,5,6,7,8,9},$O21, TRUE),1), 0) -> 1 | AI21: =_xlfn.IFNA(MATCH(RAND(), _xlfn.POISSON.DIST({0,1,2,3,4,5,6,7,8,9},$O21, TRUE),1), 0) -> 1 | AJ21: =_xlfn.IFNA(MATCH(RAND(), _xlfn.POISSON.DIST({0,1,2,3,4,5,6,7,8,9},$O21, TRUE),1), 0) -> 2 | AK21: =_xlfn.IFNA(MATCH(RAND(), _xlfn.POISSON.DIST({0,1,2,3,4,5,6,7,8,9},$O21, TRUE),1), 0) -> 1 | AL21: =_xlfn.IFNA(MATCH(RAND(), _xlfn.POISSON.DIST({0,1,2,3,4,5,6,7,8,9},$O21, TRUE),1), 0) -> 3 | AM21: =_xlfn.IFNA(MATCH(RAND(), _xlfn.POISSON.DIST({0,1,2,3,4,5,6,7,8,9},$O21, TRUE),1), 0) -> 0 | AN21: =_xlfn.IFNA(MATCH(RAND(), _xlfn.POISSON.DIST({0,1,2,3,4,5,6,7,8,9},$O21, TRUE),1), 0) -> 0 | AO21: =_xlfn.IFNA(MATCH(RAND(), _xlfn.POISSON.DIST({0,1,2,3,4,5,6,7,8,9},$O21, TRUE),1), 0) -> 1 | AP21: =_xlfn.IFNA(MATCH(RAND(), _xlfn.POISSON.DIST({0,1,2,3,4,5,6,7,8,9},$O21, TRUE),1), 0) -> 1 | AQ21: =_xlfn.IFNA(MATCH(RAND(), _xlfn.POISSON.DIST({0,1,2,3,4,5,6,7,8,9},$O21, TRUE),1), 0) -> 2 | AR21: =_xlfn.IFNA(MATCH(RAND(), _xlfn.POISSON.DIST({0,1,2,3,4,5,6,7,8,9},$O21, TRUE),1), 0) -> 1 | AS21: =_xlfn.IFNA(MATCH(RAND(), _xlfn.POISSON.DIST({0,1,2,3,4,5,6,7,8,9},$O21, TRUE),1), 0) -> 1 | AT21: =_xlfn.IFNA(MATCH(RAND(), _xlfn.POISSON.DIST({0,1,2,3,4,5,6,7,8,9},$O21, TRUE),1), 0) -> 0 | AU21: =_xlfn.IFNA(MATCH(RAND(), _xlfn.POISSON.DIST({0,1,2,3,4,5,6,7,8,9},$O21, TRUE),1), 0) -> 1 | AV21: =_xlfn.IFNA(MATCH(RAND(), _xlfn.POISSON.DIST({0,1,2,3,4,5,6,7,8,9},$O21, TRUE),1), 0) -> 2 | AW21: =_xlfn.IFNA(MATCH(RAND(), _xlfn.POISSON.DIST({0,1,2,3,4,5,6,7,8,9},$O21, TRUE),1), 0) -> 0 | AX21: =_xlfn.IFNA(MATCH(RAND(), _xlfn.POISSON.DIST({0,1,2,3,4,5,6,7,8,9},$O21, TRUE),1), 0) -> 1 | AY21: =_xlfn.IFNA(MATCH(RAND(), _xlfn.POISSON.DIST({0,1,2,3,4,5,6,7,8,9},$O21, TRUE),1), 0) -> 1 | AZ21: =_xlfn.IFNA(MATCH(RAND(), _xlfn.POISSON.DIST({0,1,2,3,4,5,6,7,8,9},$O21, TRUE),1), 0) -> 0 | BA21: =_xlfn.IFNA(MATCH(RAND(), _xlfn.POISSON.DIST({0,1,2,3,4,5,6,7,8,9},$O21, TRUE),1), 0) -> 0 | BB21: =_xlfn.IFNA(MATCH(RAND(), _xlfn.POISSON.DIST({0,1,2,3,4,5,6,7,8,9},$O21, TRUE),1), 0) -> 0 | BC21: =_xlfn.IFNA(MATCH(RAND(), _xlfn.POISSON.DIST({0,1,2,3,4,5,6,7,8,9},$O21, TRUE),1), 0) -> 0 | BD21: =_xlfn.IFNA(MATCH(RAND(), _xlfn.POISSON.DIST({0,1,2,3,4,5,6,7,8,9},$O21, TRUE),1), 0) -> 1 | BE21: =_xlfn.IFNA(MATCH(RAND(), _xlfn.POISSON.DIST({0,1,2,3,4,5,6,7,8,9},$O21, TRUE),1), 0) -> 0 | BF21: =_xlfn.IFNA(MATCH(RAND(), _xlfn.POISSON.DIST({0,1,2,3,4,5,6,7,8,9},$O21, TRUE),1), 0) -> 5 | BG21: =_xlfn.IFNA(MATCH(RAND(), _xlfn.POISSON.DIST({0,1,2,3,4,5,6,7,8,9},$O21, TRUE),1), 0) -> 0 | BH21: =_xlfn.IFNA(MATCH(RAND(), _xlfn.POISSON.DIST({0,1,2,3,4,5,6,7,8,9},$O21, TRUE),1), 0) -> 0 | BI21: =_xlfn.IFNA(MATCH(RAND(), _xlfn.POISSON.DIST({0,1,2,3,4,5,6,7,8,9},$O21, TRUE),1), 0) -> 2 | BJ21: =_xlfn.IFNA(MATCH(RAND(), _xlfn.POISSON.DIST({0,1,2,3,4,5,6,7,8,9},$O21, TRUE),1), 0) -> 0 | BK21: =_xlfn.IFNA(MATCH(RAND(), _xlfn.POISSON.DIST({0,1,2,3,4,5,6,7,8,9},$O21, TRUE),1), 0) -> 2 | BL21: =_xlfn.IFNA(MATCH(RAND(), _xlfn.POISSON.DIST({0,1,2,3,4,5,6,7,8,9},$O21, TRUE),1), 0) -> 3 | BM21: =_xlfn.IFNA(MATCH(RAND(), _xlfn.POISSON.DIST({0,1,2,3,4,5,6,7,8,9},$O21, TRUE),1), 0) -> 1 | BN21: =_xlfn.IFNA(MATCH(RAND(), _xlfn.POISSON.DIST({0,1,2,3,4,5,6,7,8,9},$O21, TRUE),1), 0) -> 3 | BP21: =_xlfn.IFNA(MATCH(RAND(), _xlfn.POISSON.DIST({0,1,2,3,4,5,6,7,8,9},$P21, TRUE),1), 0) -> 0 | BQ21: =_xlfn.IFNA(MATCH(RAND(), _xlfn.POISSON.DIST({0,1,2,3,4,5,6,7,8,9},$P21, TRUE),1), 0) -> 1 | BR21: =_xlfn.IFNA(MATCH(RAND(), _xlfn.POISSON.DIST({0,1,2,3,4,5,6,7,8,9},$P21, TRUE),1), 0) -> 1 | BS21: =_xlfn.IFNA(MATCH(RAND(), _xlfn.POISSON.DIST({0,1,2,3,4,5,6,7,8,9},$P21, TRUE),1), 0) -> 3 | BT21: =_xlfn.IFNA(MATCH(RAND(), _xlfn.POISSON.DIST({0,1,2,3,4,5,6,7,8,9},$P21, TRUE),1), 0) -> 4 | BU21: =_xlfn.IFNA(MATCH(RAND(), _xlfn.POISSON.DIST({0,1,2,3,4,5,6,7,8,9},$P21, TRUE),1), 0) -> 3 | BV21: =_xlfn.IFNA(MATCH(RAND(), _xlfn.POISSON.DIST({0,1,2,3,4,5,6,7,8,9},$P21, TRUE),1), 0) -> 2 | BW21: =_xlfn.IFNA(MATCH(RAND(), _xlfn.POISSON.DIST({0,1,2,3,4,5,6,7,8,9},$P21, TRUE),1), 0) -> 0 | BX21: =_xlfn.IFNA(MATCH(RAND(), _xlfn.POISSON.DIST({0,1,2,3,4,5,6,7,8,9},$P21, TRUE),1), 0) -> 0 | BY21: =_xlfn.IFNA(MATCH(RAND(), _xlfn.POISSON.DIST({0,1,2,3,4,5,6,7,8,9},$P21, TRUE),1), 0) -> 3 | BZ21: =_xlfn.IFNA(MATCH(RAND(), _xlfn.POISSON.DIST({0,1,2,3,4,5,6,7,8,9},$P21, TRUE),1), 0) -> 2 | CA21: =_xlfn.IFNA(MATCH(RAND(), _xlfn.POISSON.DIST({0,1,2,3,4,5,6,7,8,9},$P21, TRUE),1), 0) -> 0 | CB21: =_xlfn.IFNA(MATCH(RAND(), _xlfn.POISSON.DIST({0,1,2,3,4,5,6,7,8,9},$P21, TRUE),1), 0) -> 2 | CC21: =_xlfn.IFNA(MATCH(RAND(), _xlfn.POISSON.DIST({0,1,2,3,4,5,6,7,8,9},$P21, TRUE),1), 0) -> 4 | CD21: =_xlfn.IFNA(MATCH(RAND(), _xlfn.POISSON.DIST({0,1,2,3,4,5,6,7,8,9},$P21, TRUE),1), 0) -> 2 | CE21: =_xlfn.IFNA(MATCH(RAND(), _xlfn.POISSON.DIST({0,1,2,3,4,5,6,7,8,9},$P21, TRUE),1), 0) -> 0 | CF21: =_xlfn.IFNA(MATCH(RAND(), _xlfn.POISSON.DIST({0,1,2,3,4,5,6,7,8,9},$P21, TRUE),1), 0) -> 1 | CG21: =_xlfn.IFNA(MATCH(RAND(), _xlfn.POISSON.DIST({0,1,2,3,4,5,6,7,8,9},$P21, TRUE),1), 0) -> 2 | CH21: =_xlfn.IFNA(MATCH(RAND(), _xlfn.POISSON.DIST({0,1,2,3,4,5,6,7,8,9},$P21, TRUE),1), 0) -> 0 | CI21: =_xlfn.IFNA(MATCH(RAND(), _xlfn.POISSON.DIST({0,1,2,3,4,5,6,7,8,9},$P21, TRUE),1), 0) -> 2 | CJ21: =_xlfn.IFNA(MATCH(RAND(), _xlfn.POISSON.DIST({0,1,2,3,4,5,6,7,8,9},$P21, TRUE),1), 0) -> 1 | CK21: =_xlfn.IFNA(MATCH(RAND(), _xlfn.POISSON.DIST({0,1,2,3,4,5,6,7,8,9},$P21, TRUE),1), 0) -> 0 | CL21: =_xlfn.IFNA(MATCH(RAND(), _xlfn.POISSON.DIST({0,1,2,3,4,5,6,7,8,9},$P21, TRUE),1), 0) -> 0 | CM21: =_xlfn.IFNA(MATCH(RAND(), _xlfn.POISSON.DIST({0,1,2,3,4,5,6,7,8,9},$P21, TRUE),1), 0) -> 2 | CN21: =_xlfn.IFNA(MATCH(RAND(), _xlfn.POISSON.DIST({0,1,2,3,4,5,6,7,8,9},$P21, TRUE),1), 0) -> 3 | CO21: =_xlfn.IFNA(MATCH(RAND(), _xlfn.POISSON.DIST({0,1,2,3,4,5,6,7,8,9},$P21, TRUE),1), 0) -> 1 | CP21: =_xlfn.IFNA(MATCH(RAND(), _xlfn.POISSON.DIST({0,1,2,3,4,5,6,7,8,9},$P21, TRUE),1), 0) -> 0 | CQ21: =_xlfn.IFNA(MATCH(RAND(), _xlfn.POISSON.DIST({0,1,2,3,4,5,6,7,8,9},$P21, TRUE),1), 0) -> 0 | CR21: =_xlfn.IFNA(MATCH(RAND(), _xlfn.POISSON.DIST({0,1,2,3,4,5,6,7,8,9},$P21, TRUE),1), 0) -> 1 | CS21: =_xlfn.IFNA(MATCH(RAND(), _xlfn.POISSON.DIST({0,1,2,3,4,5,6,7,8,9},$P21, TRUE),1), 0) -> 0 | CT21: =_xlfn.IFNA(MATCH(RAND(), _xlfn.POISSON.DIST({0,1,2,3,4,5,6,7,8,9},$P21, TRUE),1), 0) -> 1 | CU21: =_xlfn.IFNA(MATCH(RAND(), _xlfn.POISSON.DIST({0,1,2,3,4,5,6,7,8,9},$P21, TRUE),1), 0) -> 1 | CV21: =_xlfn.IFNA(MATCH(RAND(), _xlfn.POISSON.DIST({0,1,2,3,4,5,6,7,8,9},$P21, TRUE),1), 0) -> 2 | CW21: =_xlfn.IFNA(MATCH(RAND(), _xlfn.POISSON.DIST({0,1,2,3,4,5,6,7,8,9},$P21, TRUE),1), 0) -> 3 | CX21: =_xlfn.IFNA(MATCH(RAND(), _xlfn.POISSON.DIST({0,1,2,3,4,5,6,7,8,9},$P21, TRUE),1), 0) -> 1 | CY21: =_xlfn.IFNA(MATCH(RAND(), _xlfn.POISSON.DIST({0,1,2,3,4,5,6,7,8,9},$P21, TRUE),1), 0) -> 1 | CZ21: =_xlfn.IFNA(MATCH(RAND(), _xlfn.POISSON.DIST({0,1,2,3,4,5,6,7,8,9},$P21, TRUE),1), 0) -> 2 | DA21: =_xlfn.IFNA(MATCH(RAND(), _xlfn.POISSON.DIST({0,1,2,3,4,5,6,7,8,9},$P21, TRUE),1), 0) -> 3 | DB21: =_xlfn.IFNA(MATCH(RAND(), _xlfn.POISSON.DIST({0,1,2,3,4,5,6,7,8,9},$P21, TRUE),1), 0) -> 1 | DC21: =_xlfn.IFNA(MATCH(RAND(), _xlfn.POISSON.DIST({0,1,2,3,4,5,6,7,8,9},$P21, TRUE),1), 0) -> 2 | DD21: =_xlfn.IFNA(MATCH(RAND(), _xlfn.POISSON.DIST({0,1,2,3,4,5,6,7,8,9},$P21, TRUE),1), 0) -> 3 | DE21: =_xlfn.IFNA(MATCH(RAND(), _xlfn.POISSON.DIST({0,1,2,3,4,5,6,7,8,9},$P21, TRUE),1), 0) -> 1 | DF21: =_xlfn.IFNA(MATCH(RAND(), _xlfn.POISSON.DIST({0,1,2,3,4,5,6,7,8,9},$P21, TRUE),1), 0) -> 2 | DG21: =_xlfn.IFNA(MATCH(RAND(), _xlfn.POISSON.DIST({0,1,2,3,4,5,6,7,8,9},$P21, TRUE),1), 0) -> 4 | DH21: =_xlfn.IFNA(MATCH(RAND(), _xlfn.POISSON.DIST({0,1,2,3,4,5,6,7,8,9},$P21, TRUE),1), 0) -> 0 | DI21: =_xlfn.IFNA(MATCH(RAND(), _xlfn.POISSON.DIST({0,1,2,3,4,5,6,7,8,9},$P21, TRUE),1), 0) -> 0 | DJ21: =_xlfn.IFNA(MATCH(RAND(), _xlfn.POISSON.DIST({0,1,2,3,4,5,6,7,8,9},$P21, TRUE),1), 0) -> 2 | DK21: =_xlfn.IFNA(MATCH(RAND(), _xlfn.POISSON.DIST({0,1,2,3,4,5,6,7,8,9},$P21, TRUE),1), 0) -> 3 | DL21: =_xlfn.IFNA(MATCH(RAND(), _xlfn.POISSON.DIST({0,1,2,3,4,5,6,7,8,9},$P21, TRUE),1), 0) -> 1 | DM21: =_xlfn.IFNA(MATCH(RAND(), _xlfn.POISSON.DIST({0,1,2,3,4,5,6,7,8,9},$P21, TRUE),1), 0) -> 3
C22: 2019-06-13 | D22: B | E22: Südafrika | F22: =(AVERAGE(Q22:BN22))*(1+INDEX('Prognosen für die Gruppenphase'!$C$4:$O$28, MATCH('Spiele in diesem Jahr'!E22,'Prognosen für die Gruppenphase'!$D$4:$D$28,0),3)) -> 1.60 | G22: China VR | H22: =(AVERAGE(BP22:DM22))*(1+INDEX('Prognosen für die Gruppenphase'!$C$4:$O$28, MATCH('Spiele in diesem Jahr'!G22,'Prognosen für die Gruppenphase'!$D$4:$D$28,0),3)) -> 1.46 | I22: Südafrika | L22: 1.6 | M22: 1.46 | N22: Südafrika | O22: =(OFFSET('Anhang 3 – Tore je Gruppe'!$C$13,(INDEX('Anhang 1 – Mannschaftsdaten'!$C$13:$F$112,MATCH(G22,'Anhang 1 – Mannschaftsdaten'!$C$13:$C$112,0),4)/10),(INDEX('Anhang 1 – Mannschaftsdaten'!$C$13:$F$112,MATCH(E22,'Anhang 1 – Mannschaftsdaten'!$C$13:$C$112,0),4)/10))) -> 1.50 | P22: =OFFSET('Anhang 3 – Tore je Gruppe'!$C$13,(INDEX('Anhang 1 – Mannschaftsdaten'!$C$13:$F$112, MATCH(E22,'Anhang 1 – Mannschaftsdaten'!$C$13:$C$112,0),4)/10), (INDEX('Anhang 1 – Mannschaftsdaten'!$C$13:$F$112, MATCH(G22, 'Anhang 1 – Mannschaftsdaten'!$C$13:$C$112,0),4)/10)) -> 1.50 | Q22: =_xlfn.IFNA(MATCH(RAND(), _xlfn.POISSON.DIST({0,1,2,3,4,5,6,7,8,9},$O22, TRUE),1), 0) -> 1 | R22: =_xlfn.IFNA(MATCH(RAND(), _xlfn.POISSON.DIST({0,1,2,3,4,5,6,7,8,9},$O22, TRUE),1), 0) -> 1 | S22: =_xlfn.IFNA(MATCH(RAND(), _xlfn.POISSON.DIST({0,1,2,3,4,5,6,7,8,9},$O22, TRUE),1), 0) -> 2 | T22: =_xlfn.IFNA(MATCH(RAND(), _xlfn.POISSON.DIST({0,1,2,3,4,5,6,7,8,9},$O22, TRUE),1), 0) -> 0 | U22: =_xlfn.IFNA(MATCH(RAND(), _xlfn.POISSON.DIST({0,1,2,3,4,5,6,7,8,9},$O22, TRUE),1), 0) -> 2 | V22: =_xlfn.IFNA(MATCH(RAND(), _xlfn.POISSON.DIST({0,1,2,3,4,5,6,7,8,9},$O22, TRUE),1), 0) -> 0 | W22: =_xlfn.IFNA(MATCH(RAND(), _xlfn.POISSON.DIST({0,1,2,3,4,5,6,7,8,9},$O22, TRUE),1), 0) -> 1 | X22: =_xlfn.IFNA(MATCH(RAND(), _xlfn.POISSON.DIST({0,1,2,3,4,5,6,7,8,9},$O22, TRUE),1), 0) -> 2 | Y22: =_xlfn.IFNA(MATCH(RAND(), _xlfn.POISSON.DIST({0,1,2,3,4,5,6,7,8,9},$O22, TRUE),1), 0) -> 2 | Z22: =_xlfn.IFNA(MATCH(RAND(), _xlfn.POISSON.DIST({0,1,2,3,4,5,6,7,8,9},$O22, TRUE),1), 0) -> 0 | AA22: =_xlfn.IFNA(MATCH(RAND(), _xlfn.POISSON.DIST({0,1,2,3,4,5,6,7,8,9},$O22, TRUE),1), 0) -> 1 | AB22: =_xlfn.IFNA(MATCH(RAND(), _xlfn.POISSON.DIST({0,1,2,3,4,5,6,7,8,9},$O22, TRUE),1), 0) -> 3 | AC22: =_xlfn.IFNA(MATCH(RAND(), _xlfn.POISSON.DIST({0,1,2,3,4,5,6,7,8,9},$O22, TRUE),1), 0) -> 3 | AD22: =_xlfn.IFNA(MATCH(RAND(), _xlfn.POISSON.DIST({0,1,2,3,4,5,6,7,8,9},$O22, TRUE),1), 0) -> 3 | AE22: =_xlfn.IFNA(MATCH(RAND(), _xlfn.POISSON.DIST({0,1,2,3,4,5,6,7,8,9},$O22, TRUE),1), 0) -> 1 | AF22: =_xlfn.IFNA(MATCH(RAND(), _xlfn.POISSON.DIST({0,1,2,3,4,5,6,7,8,9},$O22, TRUE),1), 0) -> 5 | AG22: =_xlfn.IFNA(MATCH(RAND(), _xlfn.POISSON.DIST({0,1,2,3,4,5,6,7,8,9},$O22, TRUE),1), 0) -> 1 | AH22: =_xlfn.IFNA(MATCH(RAND(), _xlfn.POISSON.DIST({0,1,2,3,4,5,6,7,8,9},$O22, TRUE),1), 0) -> 1 | AI22: =_xlfn.IFNA(MATCH(RAND(), _xlfn.POISSON.DIST({0,1,2,3,4,5,6,7,8,9},$O22, TRUE),1), 0) -> 2 | AJ22: =_xlfn.IFNA(MATCH(RAND(), _xlfn.POISSON.DIST({0,1,2,3,4,5,6,7,8,9},$O22, TRUE),1), 0) -> 1 | AK22: =_xlfn.IFNA(MATCH(RAND(), _xlfn.POISSON.DIST({0,1,2,3,4,5,6,7,8,9},$O22, TRUE),1), 0) -> 3 | AL22: =_xlfn.IFNA(MATCH(RAND(), _xlfn.POISSON.DIST({0,1,2,3,4,5,6,7,8,9},$O22, TRUE),1), 0) -> 1 | AM22: =_xlfn.IFNA(MATCH(RAND(), _xlfn.POISSON.DIST({0,1,2,3,4,5,6,7,8,9},$O22, TRUE),1), 0) -> 0 | AN22: =_xlfn.IFNA(MATCH(RAND(), _xlfn.POISSON.DIST({0,1,2,3,4,5,6,7,8,9},$O22, TRUE),1), 0) -> 0 | AO22: =_xlfn.IFNA(MATCH(RAND(), _xlfn.POISSON.DIST({0,1,2,3,4,5,6,7,8,9},$O22, TRUE),1), 0) -> 1 | AP22: =_xlfn.IFNA(MATCH(RAND(), _xlfn.POISSON.DIST({0,1,2,3,4,5,6,7,8,9},$O22, TRUE),1), 0) -> 0 | AQ22: =_xlfn.IFNA(MATCH(RAND(), _xlfn.POISSON.DIST({0,1,2,3,4,5,6,7,8,9},$O22, TRUE),1), 0) -> 0 | AR22: =_xlfn.IFNA(MATCH(RAND(), _xlfn.POISSON.DIST({0,1,2,3,4,5,6,7,8,9},$O22, TRUE),1), 0) -> 3 | AS22: =_xlfn.IFNA(MATCH(RAND(), _xlfn.POISSON.DIST({0,1,2,3,4,5,6,7,8,9},$O22, TRUE),1), 0) -> 2 | AT22: =_xlfn.IFNA(MATCH(RAND(), _xlfn.POISSON.DIST({0,1,2,3,4,5,6,7,8,9},$O22, TRUE),1), 0) -> 1 | AU22: =_xlfn.IFNA(MATCH(RAND(), _xlfn.POISSON.DIST({0,1,2,3,4,5,6,7,8,9},$O22, TRUE),1), 0) -> 0 | AV22: =_xlfn.IFNA(MATCH(RAND(), _xlfn.POISSON.DIST({0,1,2,3,4,5,6,7,8,9},$O22, TRUE),1), 0) -> 1 | AW22: =_xlfn.IFNA(MATCH(RAND(), _xlfn.POISSON.DIST({0,1,2,3,4,5,6,7,8,9},$O22, TRUE),1), 0) -> 3 | AX22: =_xlfn.IFNA(MATCH(RAND(), _xlfn.POISSON.DIST({0,1,2,3,4,5,6,7,8,9},$O22, TRUE),1), 0) -> 3 | AY22: =_xlfn.IFNA(MATCH(RAND(), _xlfn.POISSON.DIST({0,1,2,3,4,5,6,7,8,9},$O22, TRUE),1), 0) -> 2 | AZ22: =_xlfn.IFNA(MATCH(RAND(), _xlfn.POISSON.DIST({0,1,2,3,4,5,6,7,8,9},$O22, TRUE),1), 0) -> 1 | BA22: =_xlfn.IFNA(MATCH(RAND(), _xlfn.POISSON.DIST({0,1,2,3,4,5,6,7,8,9},$O22, TRUE),1), 0) -> 2 | BB22: =_xlfn.IFNA(MATCH(RAND(), _xlfn.POISSON.DIST({0,1,2,3,4,5,6,7,8,9},$O22, TRUE),1), 0) -> 2 | BC22: =_xlfn.IFNA(MATCH(RAND(), _xlfn.POISSON.DIST({0,1,2,3,4,5,6,7,8,9},$O22, TRUE),1), 0) -> 0 | BD22: =_xlfn.IFNA(MATCH(RAND(), _xlfn.POISSON.DIST({0,1,2,3,4,5,6,7,8,9},$O22, TRUE),1), 0) -> 2 | BE22: =_xlfn.IFNA(MATCH(RAND(), _xlfn.POISSON.DIST({0,1,2,3,4,5,6,7,8,9},$O22, TRUE),1), 0) -> 3 | BF22: =_xlfn.IFNA(MATCH(RAND(), _xlfn.POISSON.DIST({0,1,2,3,4,5,6,7,8,9},$O22, TRUE),1), 0) -> 2 | BG22: =_xlfn.IFNA(MATCH(RAND(), _xlfn.POISSON.DIST({0,1,2,3,4,5,6,7,8,9},$O22, TRUE),1), 0) -> 3 | BH22: =_xlfn.IFNA(MATCH(RAND(), _xlfn.POISSON.DIST({0,1,2,3,4,5,6,7,8,9},$O22, TRUE),1), 0) -> 3 | BI22: =_xlfn.IFNA(MATCH(RAND(), _xlfn.POISSON.DIST({0,1,2,3,4,5,6,7,8,9},$O22, TRUE),1), 0) -> 2 | BJ22: =_xlfn.IFNA(MATCH(RAND(), _xlfn.POISSON.DIST({0,1,2,3,4,5,6,7,8,9},$O22, TRUE),1), 0) -> 1 | BK22: =_xlfn.IFNA(MATCH(RAND(), _xlfn.POISSON.DIST({0,1,2,3,4,5,6,7,8,9},$O22, TRUE),1), 0) -> 1 | BL22: =_xlfn.IFNA(MATCH(RAND(), _xlfn.POISSON.DIST({0,1,2,3,4,5,6,7,8,9},$O22, TRUE),1), 0) -> 3 | BM22: =_xlfn.IFNA(MATCH(RAND(), _xlfn.POISSON.DIST({0,1,2,3,4,5,6,7,8,9},$O22, TRUE),1), 0) -> 2 | BN22: =_xlfn.IFNA(MATCH(RAND(), _xlfn.POISSON.DIST({0,1,2,3,4,5,6,7,8,9},$O22, TRUE),1), 0) -> 1 | BP22: =_xlfn.IFNA(MATCH(RAND(), _xlfn.POISSON.DIST({0,1,2,3,4,5,6,7,8,9},$P22, TRUE),1), 0) -> 1 | BQ22: =_xlfn.IFNA(MATCH(RAND(), _xlfn.POISSON.DIST({0,1,2,3,4,5,6,7,8,9},$P22, TRUE),1), 0) -> 1 | BR22: =_xlfn.IFNA(MATCH(RAND(), _xlfn.POISSON.DIST({0,1,2,3,4,5,6,7,8,9},$P22, TRUE),1), 0) -> 3 | BS22: =_xlfn.IFNA(MATCH(RAND(), _xlfn.POISSON.DIST({0,1,2,3,4,5,6,7,8,9},$P22, TRUE),1), 0) -> 1 | BT22: =_xlfn.IFNA(MATCH(RAND(), _xlfn.POISSON.DIST({0,1,2,3,4,5,6,7,8,9},$P22, TRUE),1), 0) -> 1 | BU22: =_xlfn.IFNA(MATCH(RAND(), _xlfn.POISSON.DIST({0,1,2,3,4,5,6,7,8,9},$P22, TRUE),1), 0) -> 1 | BV22: =_xlfn.IFNA(MATCH(RAND(), _xlfn.POISSON.DIST({0,1,2,3,4,5,6,7,8,9},$P22, TRUE),1), 0) -> 2 | BW22: =_xlfn.IFNA(MATCH(RAND(), _xlfn.POISSON.DIST({0,1,2,3,4,5,6,7,8,9},$P22, TRUE),1), 0) -> 1 | BX22: =_xlfn.IFNA(MATCH(RAND(), _xlfn.POISSON.DIST({0,1,2,3,4,5,6,7,8,9},$P22, TRUE),1), 0) -> 1 | BY22: =_xlfn.IFNA(MATCH(RAND(), _xlfn.POISSON.DIST({0,1,2,3,4,5,6,7,8,9},$P22, TRUE),1), 0) -> 2 | BZ22: =_xlfn.IFNA(MATCH(RAND(), _xlfn.POISSON.DIST({0,1,2,3,4,5,6,7,8,9},$P22, TRUE),1), 0) -> 1 | CA22: =_xlfn.IFNA(MATCH(RAND(), _xlfn.POISSON.DIST({0,1,2,3,4,5,6,7,8,9},$P22, TRUE),1), 0) -> 0 | CB22: =_xlfn.IFNA(MATCH(RAND(), _xlfn.POISSON.DIST({0,1,2,3,4,5,6,7,8,9},$P22, TRUE),1), 0) -> 3 | CC22: =_xlfn.IFNA(MATCH(RAND(), _xlfn.POISSON.DIST({0,1,2,3,4,5,6,7,8,9},$P22, TRUE),1), 0) -> 0 | CD22: =_xlfn.IFNA(MATCH(RAND(), _xlfn.POISSON.DIST({0,1,2,3,4,5,6,7,8,9},$P22, TRUE),1), 0) -> 2 | CE22: =_xlfn.IFNA(MATCH(RAND(), _xlfn.POISSON.DIST({0,1,2,3,4,5,6,7,8,9},$P22, TRUE),1), 0) -> 3 | CF22: =_xlfn.IFNA(MATCH(RAND(), _xlfn.POISSON.DIST({0,1,2,3,4,5,6,7,8,9},$P22, TRUE),1), 0) -> 1 | CG22: =_xlfn.IFNA(MATCH(RAND(), _xlfn.POISSON.DIST({0,1,2,3,4,5,6,7,8,9},$P22, TRUE),1), 0) -> 1 | CH22: =_xlfn.IFNA(MATCH(RAND(), _xlfn.POISSON.DIST({0,1,2,3,4,5,6,7,8,9},$P22, TRUE),1), 0) -> 3 | CI22: =_xlfn.IFNA(MATCH(RAND(), _xlfn.POISSON.DIST({0,1,2,3,4,5,6,7,8,9},$P22, TRUE),1), 0) -> 0 | CJ22: =_xlfn.IFNA(MATCH(RAND(), _xlfn.POISSON.DIST({0,1,2,3,4,5,6,7,8,9},$P22, TRUE),1), 0) -> 0 | CK22: =_xlfn.IFNA(MATCH(RAND(), _xlfn.POISSON.DIST({0,1,2,3,4,5,6,7,8,9},$P22, TRUE),1), 0) -> 1 | CL22: =_xlfn.IFNA(MATCH(RAND(), _xlfn.POISSON.DIST({0,1,2,3,4,5,6,7,8,9},$P22, TRUE),1), 0) -> 3 | CM22: =_xlfn.IFNA(MATCH(RAND(), _xlfn.POISSON.DIST({0,1,2,3,4,5,6,7,8,9},$P22, TRUE),1), 0) -> 2 | CN22: =_xlfn.IFNA(MATCH(RAND(), _xlfn.POISSON.DIST({0,1,2,3,4,5,6,7,8,9},$P22, TRUE),1), 0) -> 2 | CO22: =_xlfn.IFNA(MATCH(RAND(), _xlfn.POISSON.DIST({0,1,2,3,4,5,6,7,8,9},$P22, TRUE),1), 0) -> 3 | CP22: =_xlfn.IFNA(MATCH(RAND(), _xlfn.POISSON.DIST({0,1,2,3,4,5,6,7,8,9},$P22, TRUE),1), 0) -> 0 | CQ22: =_xlfn.IFNA(MATCH(RAND(), _xlfn.POISSON.DIST({0,1,2,3,4,5,6,7,8,9},$P22, TRUE),1), 0) -> 2 | CR22: =_xlfn.IFNA(MATCH(RAND(), _xlfn.POISSON.DIST({0,1,2,3,4,5,6,7,8,9},$P22, TRUE),1), 0) -> 2 | CS22: =_xlfn.IFNA(MATCH(RAND(), _xlfn.POISSON.DIST({0,1,2,3,4,5,6,7,8,9},$P22, TRUE),1), 0) -> 1 | CT22: =_xlfn.IFNA(MATCH(RAND(), _xlfn.POISSON.DIST({0,1,2,3,4,5,6,7,8,9},$P22, TRUE),1), 0) -> 3 | CU22: =_xlfn.IFNA(MATCH(RAND(), _xlfn.POISSON.DIST({0,1,2,3,4,5,6,7,8,9},$P22, TRUE),1), 0) -> 2 | CV22: =_xlfn.IFNA(MATCH(RAND(), _xlfn.POISSON.DIST({0,1,2,3,4,5,6,7,8,9},$P22, TRUE),1), 0) -> 4 | CW22: =_xlfn.IFNA(MATCH(RAND(), _xlfn.POISSON.DIST({0,1,2,3,4,5,6,7,8,9},$P22, TRUE),1), 0) -> 0 | CX22: =_xlfn.IFNA(MATCH(RAND(), _xlfn.POISSON.DIST({0,1,2,3,4,5,6,7,8,9},$P22, TRUE),1), 0) -> 1 | CY22: =_xlfn.IFNA(MATCH(RAND(), _xlfn.POISSON.DIST({0,1,2,3,4,5,6,7,8,9},$P22, TRUE),1), 0) -> 4 | CZ22: =_xlfn.IFNA(MATCH(RAND(), _xlfn.POISSON.DIST({0,1,2,3,4,5,6,7,8,9},$P22, TRUE),1), 0) -> 1 | DA22: =_xlfn.IFNA(MATCH(RAND(), _xlfn.POISSON.DIST({0,1,2,3,4,5,6,7,8,9},$P22, TRUE),1), 0) -> 1 | DB22: =_xlfn.IFNA(MATCH(RAND(), _xlfn.POISSON.DIST({0,1,2,3,4,5,6,7,8,9},$P22, TRUE),1), 0) -> 0 | DC22: =_xlfn.IFNA(MATCH(RAND(), _xlfn.POISSON.DIST({0,1,2,3,4,5,6,7,8,9},$P22, TRUE),1), 0) -> 2 | DD22: =_xlfn.IFNA(MATCH(RAND(), _xlfn.POISSON.DIST({0,1,2,3,4,5,6,7,8,9},$P22, TRUE),1), 0) -> 2 | DE22: =_xlfn.IFNA(MATCH(RAND(), _xlfn.POISSON.DIST({0,1,2,3,4,5,6,7,8,9},$P22, TRUE),1), 0) -> 1 | DF22: =_xlfn.IFNA(MATCH(RAND(), _xlfn.POISSON.DIST({0,1,2,3,4,5,6,7,8,9},$P22, TRUE),1), 0) -> 2 | DG22: =_xlfn.IFNA(MATCH(RAND(), _xlfn.POISSON.DIST({0,1,2,3,4,5,6,7,8,9},$P22, TRUE),1), 0) -> 1 | DH22: =_xlfn.IFNA(MATCH(RAND(), _xlfn.POISSON.DIST({0,1,2,3,4,5,6,7,8,9},$P22, TRUE),1), 0) -> 1 | DI22: =_xlfn.IFNA(MATCH(RAND(), _xlfn.POISSON.DIST({0,1,2,3,4,5,6,7,8,9},$P22, TRUE),1), 0) -> 0 | DJ22: =_xlfn.IFNA(MATCH(RAND(), _xlfn.POISSON.DIST({0,1,2,3,4,5,6,7,8,9},$P22, TRUE),1), 0) -> 1 | DK22: =_xlfn.IFNA(MATCH(RAND(), _xlfn.POISSON.DIST({0,1,2,3,4,5,6,7,8,9},$P22, TRUE),1), 0) -> 1 | DL22: =_xlfn.IFNA(MATCH(RAND(), _xlfn.POISSON.DIST({0,1,2,3,4,5,6,7,8,9},$P22, TRUE),1), 0) -> 0 | DM22: =_xlfn.IFNA(MATCH(RAND(), _xlfn.POISSON.DIST({0,1,2,3,4,5,6,7,8,9},$P22, TRUE),1), 0) -> 2
C23: 2019-06-14 | D23: D | E23: Japan | F23: =(AVERAGE(Q23:BN23))*(1+INDEX('Prognosen für die Gruppenphase'!$C$4:$O$28, MATCH('Spiele in diesem Jahr'!E23,'Prognosen für die Gruppenphase'!$D$4:$D$28,0),3)) -> 1.34 | G23: Schottland | H23: =(AVERAGE(BP23:DM23))*(1+INDEX('Prognosen für die Gruppenphase'!$C$4:$O$28, MATCH('Spiele in diesem Jahr'!G23,'Prognosen für die Gruppenphase'!$D$4:$D$28,0),3)) -> 1.34 | I23: Unentschieden | L23: 1.34 | M23: 1.34 | N23: Zeichnen | O23: =(OFFSET('Anhang 3 – Tore je Gruppe'!$C$13,(INDEX('Anhang 1 – Mannschaftsdaten'!$C$13:$F$112,MATCH(G23,'Anhang 1 – Mannschaftsdaten'!$C$13:$C$112,0),4)/10),(INDEX('Anhang 1 – Mannschaftsdaten'!$C$13:$F$112,MATCH(E23,'Anhang 1 – Mannschaftsdaten'!$C$13:$C$112,0),4)/10))) -> 1.50 | P23: =OFFSET('Anhang 3 – Tore je Gruppe'!$C$13,(INDEX('Anhang 1 – Mannschaftsdaten'!$C$13:$F$112, MATCH(E23,'Anhang 1 – Mannschaftsdaten'!$C$13:$C$112,0),4)/10), (INDEX('Anhang 1 – Mannschaftsdaten'!$C$13:$F$112, MATCH(G23, 'Anhang 1 – Mannschaftsdaten'!$C$13:$C$112,0),4)/10)) -> 1.50 | Q23: =_xlfn.IFNA(MATCH(RAND(), _xlfn.POISSON.DIST({0,1,2,3,4,5,6,7,8,9},$O23, TRUE),1), 0) -> 2 | R23: =_xlfn.IFNA(MATCH(RAND(), _xlfn.POISSON.DIST({0,1,2,3,4,5,6,7,8,9},$O23, TRUE),1), 0) -> 1 | S23: =_xlfn.IFNA(MATCH(RAND(), _xlfn.POISSON.DIST({0,1,2,3,4,5,6,7,8,9},$O23, TRUE),1), 0) -> 2 | T23: =_xlfn.IFNA(MATCH(RAND(), _xlfn.POISSON.DIST({0,1,2,3,4,5,6,7,8,9},$O23, TRUE),1), 0) -> 1 | U23: =_xlfn.IFNA(MATCH(RAND(), _xlfn.POISSON.DIST({0,1,2,3,4,5,6,7,8,9},$O23, TRUE),1), 0) -> 1 | V23: =_xlfn.IFNA(MATCH(RAND(), _xlfn.POISSON.DIST({0,1,2,3,4,5,6,7,8,9},$O23, TRUE),1), 0) -> 4 | W23: =_xlfn.IFNA(MATCH(RAND(), _xlfn.POISSON.DIST({0,1,2,3,4,5,6,7,8,9},$O23, TRUE),1), 0) -> 2 | X23: =_xlfn.IFNA(MATCH(RAND(), _xlfn.POISSON.DIST({0,1,2,3,4,5,6,7,8,9},$O23, TRUE),1), 0) -> 1 | Y23: =_xlfn.IFNA(MATCH(RAND(), _xlfn.POISSON.DIST({0,1,2,3,4,5,6,7,8,9},$O23, TRUE),1), 0) -> 1 | Z23: =_xlfn.IFNA(MATCH(RAND(), _xlfn.POISSON.DIST({0,1,2,3,4,5,6,7,8,9},$O23, TRUE),1), 0) -> 1 | AA23: =_xlfn.IFNA(MATCH(RAND(), _xlfn.POISSON.DIST({0,1,2,3,4,5,6,7,8,9},$O23, TRUE),1), 0) -> 0 | AB23: =_xlfn.IFNA(MATCH(RAND(), _xlfn.POISSON.DIST({0,1,2,3,4,5,6,7,8,9},$O23, TRUE),1), 0) -> 0 | AC23: =_xlfn.IFNA(MATCH(RAND(), _xlfn.POISSON.DIST({0,1,2,3,4,5,6,7,8,9},$O23, TRUE),1), 0) -> 2 | AD23: =_xlfn.IFNA(MATCH(RAND(), _xlfn.POISSON.DIST({0,1,2,3,4,5,6,7,8,9},$O23, TRUE),1), 0) -> 1 | AE23: =_xlfn.IFNA(MATCH(RAND(), _xlfn.POISSON.DIST({0,1,2,3,4,5,6,7,8,9},$O23, TRUE),1), 0) -> 3 | AF23: =_xlfn.IFNA(MATCH(RAND(), _xlfn.POISSON.DIST({0,1,2,3,4,5,6,7,8,9},$O23, TRUE),1), 0) -> 3 | AG23: =_xlfn.IFNA(MATCH(RAND(), _xlfn.POISSON.DIST({0,1,2,3,4,5,6,7,8,9},$O23, TRUE),1), 0) -> 1 | AH23: =_xlfn.IFNA(MATCH(RAND(), _xlfn.POISSON.DIST({0,1,2,3,4,5,6,7,8,9},$O23, TRUE),1), 0) -> 0 | AI23: =_xlfn.IFNA(MATCH(RAND(), _xlfn.POISSON.DIST({0,1,2,3,4,5,6,7,8,9},$O23, TRUE),1), 0) -> 1 | AJ23: =_xlfn.IFNA(MATCH(RAND(), _xlfn.POISSON.DIST({0,1,2,3,4,5,6,7,8,9},$O23, TRUE),1), 0) -> 1 | AK23: =_xlfn.IFNA(MATCH(RAND(), _xlfn.POISSON.DIST({0,1,2,3,4,5,6,7,8,9},$O23, TRUE),1), 0) -> 3 | AL23: =_xlfn.IFNA(MATCH(RAND(), _xlfn.POISSON.DIST({0,1,2,3,4,5,6,7,8,9},$O23, TRUE),1), 0) -> 1 | AM23: =_xlfn.IFNA(MATCH(RAND(), _xlfn.POISSON.DIST({0,1,2,3,4,5,6,7,8,9},$O23, TRUE),1), 0) -> 2 | AN23: =_xlfn.IFNA(MATCH(RAND(), _xlfn.POISSON.DIST({0,1,2,3,4,5,6,7,8,9},$O23, TRUE),1), 0) -> 1 | AO23: =_xlfn.IFNA(MATCH(RAND(), _xlfn.POISSON.DIST({0,1,2,3,4,5,6,7,8,9},$O23, TRUE),1), 0) -> 2 | AP23: =_xlfn.IFNA(MATCH(RAND(), _xlfn.POISSON.DIST({0,1,2,3,4,5,6,7,8,9},$O23, TRUE),1), 0) -> 4 | AQ23: =_xlfn.IFNA(MATCH(RAND(), _xlfn.POISSON.DIST({0,1,2,3,4,5,6,7,8,9},$O23, TRUE),1), 0) -> 1 | AR23: =_xlfn.IFNA(MATCH(RAND(), _xlfn.POISSON.DIST({0,1,2,3,4,5,6,7,8,9},$O23, TRUE),1), 0) -> 1 | AS23: =_xlfn.IFNA(MATCH(RAND(), _xlfn.POISSON.DIST({0,1,2,3,4,5,6,7,8,9},$O23, TRUE),1), 0) -> 0 | AT23: =_xlfn.IFNA(MATCH(RAND(), _xlfn.POISSON.DIST({0,1,2,3,4,5,6,7,8,9},$O23, TRUE),1), 0) -> 6 | AU23: =_xlfn.IFNA(MATCH(RAND(), _xlfn.POISSON.DIST({0,1,2,3,4,5,6,7,8,9},$O23, TRUE),1), 0) -> 2 | AV23: =_xlfn.IFNA(MATCH(RAND(), _xlfn.POISSON.DIST({0,1,2,3,4,5,6,7,8,9},$O23, TRUE),1), 0) -> 0 | AW23: =_xlfn.IFNA(MATCH(RAND(), _xlfn.POISSON.DIST({0,1,2,3,4,5,6,7,8,9},$O23, TRUE),1), 0) -> 1 | AX23: =_xlfn.IFNA(MATCH(RAND(), _xlfn.POISSON.DIST({0,1,2,3,4,5,6,7,8,9},$O23, TRUE),1), 0) -> 1 | AY23: =_xlfn.IFNA(MATCH(RAND(), _xlfn.POISSON.DIST({0,1,2,3,4,5,6,7,8,9},$O23, TRUE),1), 0) -> 0 | AZ23: =_xlfn.IFNA(MATCH(RAND(), _xlfn.POISSON.DIST({0,1,2,3,4,5,6,7,8,9},$O23, TRUE),1), 0) -> 0 | BA23: =_xlfn.IFNA(MATCH(RAND(), _xlfn.POISSON.DIST({0,1,2,3,4,5,6,7,8,9},$O23, TRUE),1), 0) -> 0 | BB23: =_xlfn.IFNA(MATCH(RAND(), _xlfn.POISSON.DIST({0,1,2,3,4,5,6,7,8,9},$O23, TRUE),1), 0) -> 3 | BC23: =_xlfn.IFNA(MATCH(RAND(), _xlfn.POISSON.DIST({0,1,2,3,4,5,6,7,8,9},$O23, TRUE),1), 0) -> 2 | BD23: =_xlfn.IFNA(MATCH(RAND(), _xlfn.POISSON.DIST({0,1,2,3,4,5,6,7,8,9},$O23, TRUE),1), 0) -> 0 | BE23: =_xlfn.IFNA(MATCH(RAND(), _xlfn.POISSON.DIST({0,1,2,3,4,5,6,7,8,9},$O23, TRUE),1), 0) -> 0 | BF23: =_xlfn.IFNA(MATCH(RAND(), _xlfn.POISSON.DIST({0,1,2,3,4,5,6,7,8,9},$O23, TRUE),1), 0) -> 0 | BG23: =_xlfn.IFNA(MATCH(RAND(), _xlfn.POISSON.DIST({0,1,2,3,4,5,6,7,8,9},$O23, TRUE),1), 0) -> 1 | BH23: =_xlfn.IFNA(MATCH(RAND(), _xlfn.POISSON.DIST({0,1,2,3,4,5,6,7,8,9},$O23, TRUE),1), 0) -> 0 | BI23: =_xlfn.IFNA(MATCH(RAND(), _xlfn.POISSON.DIST({0,1,2,3,4,5,6,7,8,9},$O23, TRUE),1), 0) -> 1 | BJ23: =_xlfn.IFNA(MATCH(RAND(), _xlfn.POISSON.DIST({0,1,2,3,4,5,6,7,8,9},$O23, TRUE),1), 0) -> 1 | BK23: =_xlfn.IFNA(MATCH(RAND(), _xlfn.POISSON.DIST({0,1,2,3,4,5,6,7,8,9},$O23, TRUE),1), 0) -> 4 | BL23: =_xlfn.IFNA(MATCH(RAND(), _xlfn.POISSON.DIST({0,1,2,3,4,5,6,7,8,9},$O23, TRUE),1), 0) -> 2 | BM23: =_xlfn.IFNA(MATCH(RAND(), _xlfn.POISSON.DIST({0,1,2,3,4,5,6,7,8,9},$O23, TRUE),1), 0) -> 0 | BN23: =_xlfn.IFNA(MATCH(RAND(), _xlfn.POISSON.DIST({0,1,2,3,4,5,6,7,8,9},$O23, TRUE),1), 0) -> 0 | BP23: =_xlfn.IFNA(MATCH(RAND(), _xlfn.POISSON.DIST({0,1,2,3,4,5,6,7,8,9},$P23, TRUE),1), 0) -> 0 | BQ23: =_xlfn.IFNA(MATCH(RAND(), _xlfn.POISSON.DIST({0,1,2,3,4,5,6,7,8,9},$P23, TRUE),1), 0) -> 0 | BR23: =_xlfn.IFNA(MATCH(RAND(), _xlfn.POISSON.DIST({0,1,2,3,4,5,6,7,8,9},$P23, TRUE),1), 0) -> 2 | BS23: =_xlfn.IFNA(MATCH(RAND(), _xlfn.POISSON.DIST({0,1,2,3,4,5,6,7,8,9},$P23, TRUE),1), 0) -> 0 | BT23: =_xlfn.IFNA(MATCH(RAND(), _xlfn.POISSON.DIST({0,1,2,3,4,5,6,7,8,9},$P23, TRUE),1), 0) -> 1 | BU23: =_xlfn.IFNA(MATCH(RAND(), _xlfn.POISSON.DIST({0,1,2,3,4,5,6,7,8,9},$P23, TRUE),1), 0) -> 2 | BV23: =_xlfn.IFNA(MATCH(RAND(), _xlfn.POISSON.DIST({0,1,2,3,4,5,6,7,8,9},$P23, TRUE),1), 0) -> 0 | BW23: =_xlfn.IFNA(MATCH(RAND(), _xlfn.POISSON.DIST({0,1,2,3,4,5,6,7,8,9},$P23, TRUE),1), 0) -> 0 | BX23: =_xlfn.IFNA(MATCH(RAND(), _xlfn.POISSON.DIST({0,1,2,3,4,5,6,7,8,9},$P23, TRUE),1), 0) -> 1 | BY23: =_xlfn.IFNA(MATCH(RAND(), _xlfn.POISSON.DIST({0,1,2,3,4,5,6,7,8,9},$P23, TRUE),1), 0) -> 1 | BZ23: =_xlfn.IFNA(MATCH(RAND(), _xlfn.POISSON.DIST({0,1,2,3,4,5,6,7,8,9},$P23, TRUE),1), 0) -> 2 | CA23: =_xlfn.IFNA(MATCH(RAND(), _xlfn.POISSON.DIST({0,1,2,3,4,5,6,7,8,9},$P23, TRUE),1), 0) -> 1 | CB23: =_xlfn.IFNA(MATCH(RAND(), _xlfn.POISSON.DIST({0,1,2,3,4,5,6,7,8,9},$P23, TRUE),1), 0) -> 2 | CC23: =_xlfn.IFNA(MATCH(RAND(), _xlfn.POISSON.DIST({0,1,2,3,4,5,6,7,8,9},$P23, TRUE),1), 0) -> 2 | CD23: =_xlfn.IFNA(MATCH(RAND(), _xlfn.POISSON.DIST({0,1,2,3,4,5,6,7,8,9},$P23, TRUE),1), 0) -> 1 | CE23: =_xlfn.IFNA(MATCH(RAND(), _xlfn.POISSON.DIST({0,1,2,3,4,5,6,7,8,9},$P23, TRUE),1), 0) -> 1 | CF23: =_xlfn.IFNA(MATCH(RAND(), _xlfn.POISSON.DIST({0,1,2,3,4,5,6,7,8,9},$P23, TRUE),1), 0) -> 0 | CG23: =_xlfn.IFNA(MATCH(RAND(), _xlfn.POISSON.DIST({0,1,2,3,4,5,6,7,8,9},$P23, TRUE),1), 0) -> 2 | CH23: =_xlfn.IFNA(MATCH(RAND(), _xlfn.POISSON.DIST({0,1,2,3,4,5,6,7,8,9},$P23, TRUE),1), 0) -> 2 | CI23: =_xlfn.IFNA(MATCH(RAND(), _xlfn.POISSON.DIST({0,1,2,3,4,5,6,7,8,9},$P23, TRUE),1), 0) -> 2 | CJ23: =_xlfn.IFNA(MATCH(RAND(), _xlfn.POISSON.DIST({0,1,2,3,4,5,6,7,8,9},$P23, TRUE),1), 0) -> 3 | CK23: =_xlfn.IFNA(MATCH(RAND(), _xlfn.POISSON.DIST({0,1,2,3,4,5,6,7,8,9},$P23, TRUE),1), 0) -> 3 | CL23: =_xlfn.IFNA(MATCH(RAND(), _xlfn.POISSON.DIST({0,1,2,3,4,5,6,7,8,9},$P23, TRUE),1), 0) -> 3 | CM23: =_xlfn.IFNA(MATCH(RAND(), _xlfn.POISSON.DIST({0,1,2,3,4,5,6,7,8,9},$P23, TRUE),1), 0) -> 2 | CN23: =_xlfn.IFNA(MATCH(RAND(), _xlfn.POISSON.DIST({0,1,2,3,4,5,6,7,8,9},$P23, TRUE),1), 0) -> 2 | CO23: =_xlfn.IFNA(MATCH(RAND(), _xlfn.POISSON.DIST({0,1,2,3,4,5,6,7,8,9},$P23, TRUE),1), 0) -> 0 | CP23: =_xlfn.IFNA(MATCH(RAND(), _xlfn.POISSON.DIST({0,1,2,3,4,5,6,7,8,9},$P23, TRUE),1), 0) -> 2 | CQ23: =_xlfn.IFNA(MATCH(RAND(), _xlfn.POISSON.DIST({0,1,2,3,4,5,6,7,8,9},$P23, TRUE),1), 0) -> 1 | CR23: =_xlfn.IFNA(MATCH(RAND(), _xlfn.POISSON.DIST({0,1,2,3,4,5,6,7,8,9},$P23, TRUE),1), 0) -> 0 | CS23: =_xlfn.IFNA(MATCH(RAND(), _xlfn.POISSON.DIST({0,1,2,3,4,5,6,7,8,9},$P23, TRUE),1), 0) -> 1 | CT23: =_xlfn.IFNA(MATCH(RAND(), _xlfn.POISSON.DIST({0,1,2,3,4,5,6,7,8,9},$P23, TRUE),1), 0) -> 1 | CU23: =_xlfn.IFNA(MATCH(RAND(), _xlfn.POISSON.DIST({0,1,2,3,4,5,6,7,8,9},$P23, TRUE),1), 0) -> 0 | CV23: =_xlfn.IFNA(MATCH(RAND(), _xlfn.POISSON.DIST({0,1,2,3,4,5,6,7,8,9},$P23, TRUE),1), 0) -> 2 | CW23: =_xlfn.IFNA(MATCH(RAND(), _xlfn.POISSON.DIST({0,1,2,3,4,5,6,7,8,9},$P23, TRUE),1), 0) -> 6 | CX23: =_xlfn.IFNA(MATCH(RAND(), _xlfn.POISSON.DIST({0,1,2,3,4,5,6,7,8,9},$P23, TRUE),1), 0) -> 2 | CY23: =_xlfn.IFNA(MATCH(RAND(), _xlfn.POISSON.DIST({0,1,2,3,4,5,6,7,8,9},$P23, TRUE),1), 0) -> 1 | CZ23: =_xlfn.IFNA(MATCH(RAND(), _xlfn.POISSON.DIST({0,1,2,3,4,5,6,7,8,9},$P23, TRUE),1), 0) -> 2 | DA23: =_xlfn.IFNA(MATCH(RAND(), _xlfn.POISSON.DIST({0,1,2,3,4,5,6,7,8,9},$P23, TRUE),1), 0) -> 1 | DB23: =_xlfn.IFNA(MATCH(RAND(), _xlfn.POISSON.DIST({0,1,2,3,4,5,6,7,8,9},$P23, TRUE),1), 0) -> 2 | DC23: =_xlfn.IFNA(MATCH(RAND(), _xlfn.POISSON.DIST({0,1,2,3,4,5,6,7,8,9},$P23, TRUE),1), 0) -> 1 | DD23: =_xlfn.IFNA(MATCH(RAND(), _xlfn.POISSON.DIST({0,1,2,3,4,5,6,7,8,9},$P23, TRUE),1), 0) -> 1 | DE23: =_xlfn.IFNA(MATCH(RAND(), _xlfn.POISSON.DIST({0,1,2,3,4,5,6,7,8,9},$P23, TRUE),1), 0) -> 3 | DF23: =_xlfn.IFNA(MATCH(RAND(), _xlfn.POISSON.DIST({0,1,2,3,4,5,6,7,8,9},$P23, TRUE),1), 0) -> 0 | DG23: =_xlfn.IFNA(MATCH(RAND(), _xlfn.POISSON.DIST({0,1,2,3,4,5,6,7,8,9},$P23, TRUE),1), 0) -> 2 | DH23: =_xlfn.IFNA(MATCH(RAND(), _xlfn.POISSON.DIST({0,1,2,3,4,5,6,7,8,9},$P23, TRUE),1), 0) -> 2 | DI23: =_xlfn.IFNA(MATCH(RAND(), _xlfn.POISSON.DIST({0,1,2,3,4,5,6,7,8,9},$P23, TRUE),1), 0) -> 2 | DJ23: =_xlfn.IFNA(MATCH(RAND(), _xlfn.POISSON.DIST({0,1,2,3,4,5,6,7,8,9},$P23, TRUE),1), 0) -> 0 | DK23: =_xlfn.IFNA(MATCH(RAND(), _xlfn.POISSON.DIST({0,1,2,3,4,5,6,7,8,9},$P23, TRUE),1), 0) -> 0 | DL23: =_xlfn.IFNA(MATCH(RAND(), _xlfn.POISSON.DIST({0,1,2,3,4,5,6,7,8,9},$P23, TRUE),1), 0) -> 0 | DM23: =_xlfn.IFNA(MATCH(RAND(), _xlfn.POISSON.DIST({0,1,2,3,4,5,6,7,8,9},$P23, TRUE),1), 0) -> 0
C24: 2019-06-14 | D24: C | E24: Jamaika | F24: =(AVERAGE(Q24:BN24))*(1+INDEX('Prognosen für die Gruppenphase'!$C$4:$O$28, MATCH('Spiele in diesem Jahr'!E24,'Prognosen für die Gruppenphase'!$D$4:$D$28,0),3)) -> 1.50 | G24: Italien | H24: =(AVERAGE(BP24:DM24))*(1+INDEX('Prognosen für die Gruppenphase'!$C$4:$O$28, MATCH('Spiele in diesem Jahr'!G24,'Prognosen für die Gruppenphase'!$D$4:$D$28,0),3)) -> 1.46 | I24: Jamaika | L24: 1.5 | M24: 1.46 | N24: Jamaika | O24: =(OFFSET('Anhang 3 – Tore je Gruppe'!$C$13,(INDEX('Anhang 1 – Mannschaftsdaten'!$C$13:$F$112,MATCH(G24,'Anhang 1 – Mannschaftsdaten'!$C$13:$C$112,0),4)/10),(INDEX('Anhang 1 – Mannschaftsdaten'!$C$13:$F$112,MATCH(E24,'Anhang 1 – Mannschaftsdaten'!$C$13:$C$112,0),4)/10))) -> 1.50 | P24: =OFFSET('Anhang 3 – Tore je Gruppe'!$C$13,(INDEX('Anhang 1 – Mannschaftsdaten'!$C$13:$F$112, MATCH(E24,'Anhang 1 – Mannschaftsdaten'!$C$13:$C$112,0),4)/10), (INDEX('Anhang 1 – Mannschaftsdaten'!$C$13:$F$112, MATCH(G24, 'Anhang 1 – Mannschaftsdaten'!$C$13:$C$112,0),4)/10)) -> 1.50 | Q24: =_xlfn.IFNA(MATCH(RAND(), _xlfn.POISSON.DIST({0,1,2,3,4,5,6,7,8,9},$O24, TRUE),1), 0) -> 0 | R24: =_xlfn.IFNA(MATCH(RAND(), _xlfn.POISSON.DIST({0,1,2,3,4,5,6,7,8,9},$O24, TRUE),1), 0) -> 1 | S24: =_xlfn.IFNA(MATCH(RAND(), _xlfn.POISSON.DIST({0,1,2,3,4,5,6,7,8,9},$O24, TRUE),1), 0) -> 0 | T24: =_xlfn.IFNA(MATCH(RAND(), _xlfn.POISSON.DIST({0,1,2,3,4,5,6,7,8,9},$O24, TRUE),1), 0) -> 1 | U24: =_xlfn.IFNA(MATCH(RAND(), _xlfn.POISSON.DIST({0,1,2,3,4,5,6,7,8,9},$O24, TRUE),1), 0) -> 1 | V24: =_xlfn.IFNA(MATCH(RAND(), _xlfn.POISSON.DIST({0,1,2,3,4,5,6,7,8,9},$O24, TRUE),1), 0) -> 1 | W24: =_xlfn.IFNA(MATCH(RAND(), _xlfn.POISSON.DIST({0,1,2,3,4,5,6,7,8,9},$O24, TRUE),1), 0) -> 1 | X24: =_xlfn.IFNA(MATCH(RAND(), _xlfn.POISSON.DIST({0,1,2,3,4,5,6,7,8,9},$O24, TRUE),1), 0) -> 3 | Y24: =_xlfn.IFNA(MATCH(RAND(), _xlfn.POISSON.DIST({0,1,2,3,4,5,6,7,8,9},$O24, TRUE),1), 0) -> 1 | Z24: =_xlfn.IFNA(MATCH(RAND(), _xlfn.POISSON.DIST({0,1,2,3,4,5,6,7,8,9},$O24, TRUE),1), 0) -> 0 | AA24: =_xlfn.IFNA(MATCH(RAND(), _xlfn.POISSON.DIST({0,1,2,3,4,5,6,7,8,9},$O24, TRUE),1), 0) -> 0 | AB24: =_xlfn.IFNA(MATCH(RAND(), _xlfn.POISSON.DIST({0,1,2,3,4,5,6,7,8,9},$O24, TRUE),1), 0) -> 3 | AC24: =_xlfn.IFNA(MATCH(RAND(), _xlfn.POISSON.DIST({0,1,2,3,4,5,6,7,8,9},$O24, TRUE),1), 0) -> 1 | AD24: =_xlfn.IFNA(MATCH(RAND(), _xlfn.POISSON.DIST({0,1,2,3,4,5,6,7,8,9},$O24, TRUE),1), 0) -> 2 | AE24: =_xlfn.IFNA(MATCH(RAND(), _xlfn.POISSON.DIST({0,1,2,3,4,5,6,7,8,9},$O24, TRUE),1), 0) -> 1 | AF24: =_xlfn.IFNA(MATCH(RAND(), _xlfn.POISSON.DIST({0,1,2,3,4,5,6,7,8,9},$O24, TRUE),1), 0) -> 2 | AG24: =_xlfn.IFNA(MATCH(RAND(), _xlfn.POISSON.DIST({0,1,2,3,4,5,6,7,8,9},$O24, TRUE),1), 0) -> 1 | AH24: =_xlfn.IFNA(MATCH(RAND(), _xlfn.POISSON.DIST({0,1,2,3,4,5,6,7,8,9},$O24, TRUE),1), 0) -> 0 | AI24: =_xlfn.IFNA(MATCH(RAND(), _xlfn.POISSON.DIST({0,1,2,3,4,5,6,7,8,9},$O24, TRUE),1), 0) -> 1 | AJ24: =_xlfn.IFNA(MATCH(RAND(), _xlfn.POISSON.DIST({0,1,2,3,4,5,6,7,8,9},$O24, TRUE),1), 0) -> 1 | AK24: =_xlfn.IFNA(MATCH(RAND(), _xlfn.POISSON.DIST({0,1,2,3,4,5,6,7,8,9},$O24, TRUE),1), 0) -> 3 | AL24: =_xlfn.IFNA(MATCH(RAND(), _xlfn.POISSON.DIST({0,1,2,3,4,5,6,7,8,9},$O24, TRUE),1), 0) -> 0 | AM24: =_xlfn.IFNA(MATCH(RAND(), _xlfn.POISSON.DIST({0,1,2,3,4,5,6,7,8,9},$O24, TRUE),1), 0) -> 2 | AN24: =_xlfn.IFNA(MATCH(RAND(), _xlfn.POISSON.DIST({0,1,2,3,4,5,6,7,8,9},$O24, TRUE),1), 0) -> 2 | AO24: =_xlfn.IFNA(MATCH(RAND(), _xlfn.POISSON.DIST({0,1,2,3,4,5,6,7,8,9},$O24, TRUE),1), 0) -> 1 | AP24: =_xlfn.IFNA(MATCH(RAND(), _xlfn.POISSON.DIST({0,1,2,3,4,5,6,7,8,9},$O24, TRUE),1), 0) -> 3 | AQ24: =_xlfn.IFNA(MATCH(RAND(), _xlfn.POISSON.DIST({0,1,2,3,4,5,6,7,8,9},$O24, TRUE),1), 0) -> 3 | AR24: =_xlfn.IFNA(MATCH(RAND(), _xlfn.POISSON.DIST({0,1,2,3,4,5,6,7,8,9},$O24, TRUE),1), 0) -> 1 | AS24: =_xlfn.IFNA(MATCH(RAND(), _xlfn.POISSON.DIST({0,1,2,3,4,5,6,7,8,9},$O24, TRUE),1), 0) -> 4 | AT24: =_xlfn.IFNA(MATCH(RAND(), _xlfn.POISSON.DIST({0,1,2,3,4,5,6,7,8,9},$O24, TRUE),1), 0) -> 1 | AU24: =_xlfn.IFNA(MATCH(RAND(), _xlfn.POISSON.DIST({0,1,2,3,4,5,6,7,8,9},$O24, TRUE),1), 0) -> 2 | AV24: =_xlfn.IFNA(MATCH(RAND(), _xlfn.POISSON.DIST({0,1,2,3,4,5,6,7,8,9},$O24, TRUE),1), 0) -> 2 | AW24: =_xlfn.IFNA(MATCH(RAND(), _xlfn.POISSON.DIST({0,1,2,3,4,5,6,7,8,9},$O24, TRUE),1), 0) -> 2 | AX24: =_xlfn.IFNA(MATCH(RAND(), _xlfn.POISSON.DIST({0,1,2,3,4,5,6,7,8,9},$O24, TRUE),1), 0) -> 0 | AY24: =_xlfn.IFNA(MATCH(RAND(), _xlfn.POISSON.DIST({0,1,2,3,4,5,6,7,8,9},$O24, TRUE),1), 0) -> 4 | AZ24: =_xlfn.IFNA(MATCH(RAND(), _xlfn.POISSON.DIST({0,1,2,3,4,5,6,7,8,9},$O24, TRUE),1), 0) -> 3 | BA24: =_xlfn.IFNA(MATCH(RAND(), _xlfn.POISSON.DIST({0,1,2,3,4,5,6,7,8,9},$O24, TRUE),1), 0) -> 3 | BB24: =_xlfn.IFNA(MATCH(RAND(), _xlfn.POISSON.DIST({0,1,2,3,4,5,6,7,8,9},$O24, TRUE),1), 0) -> 1 | BC24: =_xlfn.IFNA(MATCH(RAND(), _xlfn.POISSON.DIST({0,1,2,3,4,5,6,7,8,9},$O24, TRUE),1), 0) -> 0 | BD24: =_xlfn.IFNA(MATCH(RAND(), _xlfn.POISSON.DIST({0,1,2,3,4,5,6,7,8,9},$O24, TRUE),1), 0) -> 1 | BE24: =_xlfn.IFNA(MATCH(RAND(), _xlfn.POISSON.DIST({0,1,2,3,4,5,6,7,8,9},$O24, TRUE),1), 0) -> 0 | BF24: =_xlfn.IFNA(MATCH(RAND(), _xlfn.POISSON.DIST({0,1,2,3,4,5,6,7,8,9},$O24, TRUE),1), 0) -> 3 | BG24: =_xlfn.IFNA(MATCH(RAND(), _xlfn.POISSON.DIST({0,1,2,3,4,5,6,7,8,9},$O24, TRUE),1), 0) -> 2 | BH24: =_xlfn.IFNA(MATCH(RAND(), _xlfn.POISSON.DIST({0,1,2,3,4,5,6,7,8,9},$O24, TRUE),1), 0) -> 3 | BI24: =_xlfn.IFNA(MATCH(RAND(), _xlfn.POISSON.DIST({0,1,2,3,4,5,6,7,8,9},$O24, TRUE),1), 0) -> 1 | BJ24: =_xlfn.IFNA(MATCH(RAND(), _xlfn.POISSON.DIST({0,1,2,3,4,5,6,7,8,9},$O24, TRUE),1), 0) -> 2 | BK24: =_xlfn.IFNA(MATCH(RAND(), _xlfn.POISSON.DIST({0,1,2,3,4,5,6,7,8,9},$O24, TRUE),1), 0) -> 0 | BL24: =_xlfn.IFNA(MATCH(RAND(), _xlfn.POISSON.DIST({0,1,2,3,4,5,6,7,8,9},$O24, TRUE),1), 0) -> 1 | BM24: =_xlfn.IFNA(MATCH(RAND(), _xlfn.POISSON.DIST({0,1,2,3,4,5,6,7,8,9},$O24, TRUE),1), 0) -> 1 | BN24: =_xlfn.IFNA(MATCH(RAND(), _xlfn.POISSON.DIST({0,1,2,3,4,5,6,7,8,9},$O24, TRUE),1), 0) -> 3 | BP24: =_xlfn.IFNA(MATCH(RAND(), _xlfn.POISSON.DIST({0,1,2,3,4,5,6,7,8,9},$P24, TRUE),1), 0) -> 4 | BQ24: =_xlfn.IFNA(MATCH(RAND(), _xlfn.POISSON.DIST({0,1,2,3,4,5,6,7,8,9},$P24, TRUE),1), 0) -> 1 | BR24: =_xlfn.IFNA(MATCH(RAND(), _xlfn.POISSON.DIST({0,1,2,3,4,5,6,7,8,9},$P24, TRUE),1), 0) -> 1 | BS24: =_xlfn.IFNA(MATCH(RAND(), _xlfn.POISSON.DIST({0,1,2,3,4,5,6,7,8,9},$P24, TRUE),1), 0) -> 2 | BT24: =_xlfn.IFNA(MATCH(RAND(), _xlfn.POISSON.DIST({0,1,2,3,4,5,6,7,8,9},$P24, TRUE),1), 0) -> 0 | BU24: =_xlfn.IFNA(MATCH(RAND(), _xlfn.POISSON.DIST({0,1,2,3,4,5,6,7,8,9},$P24, TRUE),1), 0) -> 1 | BV24: =_xlfn.IFNA(MATCH(RAND(), _xlfn.POISSON.DIST({0,1,2,3,4,5,6,7,8,9},$P24, TRUE),1), 0) -> 1 | BW24: =_xlfn.IFNA(MATCH(RAND(), _xlfn.POISSON.DIST({0,1,2,3,4,5,6,7,8,9},$P24, TRUE),1), 0) -> 1 | BX24: =_xlfn.IFNA(MATCH(RAND(), _xlfn.POISSON.DIST({0,1,2,3,4,5,6,7,8,9},$P24, TRUE),1), 0) -> 2 | BY24: =_xlfn.IFNA(MATCH(RAND(), _xlfn.POISSON.DIST({0,1,2,3,4,5,6,7,8,9},$P24, TRUE),1), 0) -> 2 | BZ24: =_xlfn.IFNA(MATCH(RAND(), _xlfn.POISSON.DIST({0,1,2,3,4,5,6,7,8,9},$P24, TRUE),1), 0) -> 0 | CA24: =_xlfn.IFNA(MATCH(RAND(), _xlfn.POISSON.DIST({0,1,2,3,4,5,6,7,8,9},$P24, TRUE),1), 0) -> 1 | CB24: =_xlfn.IFNA(MATCH(RAND(), _xlfn.POISSON.DIST({0,1,2,3,4,5,6,7,8,9},$P24, TRUE),1), 0) -> 0 | CC24: =_xlfn.IFNA(MATCH(RAND(), _xlfn.POISSON.DIST({0,1,2,3,4,5,6,7,8,9},$P24, TRUE),1), 0) -> 1 | CD24: =_xlfn.IFNA(MATCH(RAND(), _xlfn.POISSON.DIST({0,1,2,3,4,5,6,7,8,9},$P24, TRUE),1), 0) -> 0 | CE24: =_xlfn.IFNA(MATCH(RAND(), _xlfn.POISSON.DIST({0,1,2,3,4,5,6,7,8,9},$P24, TRUE),1), 0) -> 1 | CF24: =_xlfn.IFNA(MATCH(RAND(), _xlfn.POISSON.DIST({0,1,2,3,4,5,6,7,8,9},$P24, TRUE),1), 0) -> 2 | CG24: =_xlfn.IFNA(MATCH(RAND(), _xlfn.POISSON.DIST({0,1,2,3,4,5,6,7,8,9},$P24, TRUE),1), 0) -> 0 | CH24: =_xlfn.IFNA(MATCH(RAND(), _xlfn.POISSON.DIST({0,1,2,3,4,5,6,7,8,9},$P24, TRUE),1), 0) -> 0 | CI24: =_xlfn.IFNA(MATCH(RAND(), _xlfn.POISSON.DIST({0,1,2,3,4,5,6,7,8,9},$P24, TRUE),1), 0) -> 2 | CJ24: =_xlfn.IFNA(MATCH(RAND(), _xlfn.POISSON.DIST({0,1,2,3,4,5,6,7,8,9},$P24, TRUE),1), 0) -> 1 | CK24: =_xlfn.IFNA(MATCH(RAND(), _xlfn.POISSON.DIST({0,1,2,3,4,5,6,7,8,9},$P24, TRUE),1), 0) -> 2 | CL24: =_xlfn.IFNA(MATCH(RAND(), _xlfn.POISSON.DIST({0,1,2,3,4,5,6,7,8,9},$P24, TRUE),1), 0) -> 1 | CM24: =_xlfn.IFNA(MATCH(RAND(), _xlfn.POISSON.DIST({0,1,2,3,4,5,6,7,8,9},$P24, TRUE),1), 0) -> 1 | CN24: =_xlfn.IFNA(MATCH(RAND(), _xlfn.POISSON.DIST({0,1,2,3,4,5,6,7,8,9},$P24, TRUE),1), 0) -> 4 | CO24: =_xlfn.IFNA(MATCH(RAND(), _xlfn.POISSON.DIST({0,1,2,3,4,5,6,7,8,9},$P24, TRUE),1), 0) -> 0 | CP24: =_xlfn.IFNA(MATCH(RAND(), _xlfn.POISSON.DIST({0,1,2,3,4,5,6,7,8,9},$P24, TRUE),1), 0) -> 1 | CQ24: =_xlfn.IFNA(MATCH(RAND(), _xlfn.POISSON.DIST({0,1,2,3,4,5,6,7,8,9},$P24, TRUE),1), 0) -> 1 | CR24: =_xlfn.IFNA(MATCH(RAND(), _xlfn.POISSON.DIST({0,1,2,3,4,5,6,7,8,9},$P24, TRUE),1), 0) -> 3 | CS24: =_xlfn.IFNA(MATCH(RAND(), _xlfn.POISSON.DIST({0,1,2,3,4,5,6,7,8,9},$P24, TRUE),1), 0) -> 1 | CT24: =_xlfn.IFNA(MATCH(RAND(), _xlfn.POISSON.DIST({0,1,2,3,4,5,6,7,8,9},$P24, TRUE),1), 0) -> 3 | CU24: =_xlfn.IFNA(MATCH(RAND(), _xlfn.POISSON.DIST({0,1,2,3,4,5,6,7,8,9},$P24, TRUE),1), 0) -> 1 | CV24: =_xlfn.IFNA(MATCH(RAND(), _xlfn.POISSON.DIST({0,1,2,3,4,5,6,7,8,9},$P24, TRUE),1), 0) -> 2 | CW24: =_xlfn.IFNA(MATCH(RAND(), _xlfn.POISSON.DIST({0,1,2,3,4,5,6,7,8,9},$P24, TRUE),1), 0) -> 2 | CX24: =_xlfn.IFNA(MATCH(RAND(), _xlfn.POISSON.DIST({0,1,2,3,4,5,6,7,8,9},$P24, TRUE),1), 0) -> 4 | CY24: =_xlfn.IFNA(MATCH(RAND(), _xlfn.POISSON.DIST({0,1,2,3,4,5,6,7,8,9},$P24, TRUE),1), 0) -> 1 | CZ24: =_xlfn.IFNA(MATCH(RAND(), _xlfn.POISSON.DIST({0,1,2,3,4,5,6,7,8,9},$P24, TRUE),1), 0) -> 4 | DA24: =_xlfn.IFNA(MATCH(RAND(), _xlfn.POISSON.DIST({0,1,2,3,4,5,6,7,8,9},$P24, TRUE),1), 0) -> 2 | DB24: =_xlfn.IFNA(MATCH(RAND(), _xlfn.POISSON.DIST({0,1,2,3,4,5,6,7,8,9},$P24, TRUE),1), 0) -> 1 | DC24: =_xlfn.IFNA(MATCH(RAND(), _xlfn.POISSON.DIST({0,1,2,3,4,5,6,7,8,9},$P24, TRUE),1), 0) -> 1 | DD24: =_xlfn.IFNA(MATCH(RAND(), _xlfn.POISSON.DIST({0,1,2,3,4,5,6,7,8,9},$P24, TRUE),1), 0) -> 3 | DE24: =_xlfn.IFNA(MATCH(RAND(), _xlfn.POISSON.DIST({0,1,2,3,4,5,6,7,8,9},$P24, TRUE),1), 0) -> 0 | DF24: =_xlfn.IFNA(MATCH(RAND(), _xlfn.POISSON.DIST({0,1,2,3,4,5,6,7,8,9},$P24, TRUE),1), 0) -> 1 | DG24: =_xlfn.IFNA(MATCH(RAND(), _xlfn.POISSON.DIST({0,1,2,3,4,5,6,7,8,9},$P24, TRUE),1), 0) -> 2 | DH24: =_xlfn.IFNA(MATCH(RAND(), _xlfn.POISSON.DIST({0,1,2,3,4,5,6,7,8,9},$P24, TRUE),1), 0) -> 1 | DI24: =_xlfn.IFNA(MATCH(RAND(), _xlfn.POISSON.DIST({0,1,2,3,4,5,6,7,8,9},$P24, TRUE),1), 0) -> 2 | DJ24: =_xlfn.IFNA(MATCH(RAND(), _xlfn.POISSON.DIST({0,1,2,3,4,5,6,7,8,9},$P24, TRUE),1), 0) -> 2 | DK24: =_xlfn.IFNA(MATCH(RAND(), _xlfn.POISSON.DIST({0,1,2,3,4,5,6,7,8,9},$P24, TRUE),1), 0) -> 1 | DL24: =_xlfn.IFNA(MATCH(RAND(), _xlfn.POISSON.DIST({0,1,2,3,4,5,6,7,8,9},$P24, TRUE),1), 0) -> 1 | DM24: =_xlfn.IFNA(MATCH(RAND(), _xlfn.POISSON.DIST({0,1,2,3,4,5,6,7,8,9},$P24, TRUE),1), 0) -> 2
C25: 2019-06-14 | D25: D | E25: England | F25: =(AVERAGE(Q25:BN25))*(1+INDEX('Prognosen für die Gruppenphase'!$C$4:$O$28, MATCH('Spiele in diesem Jahr'!E25,'Prognosen für die Gruppenphase'!$D$4:$D$28,0),3)) -> 3.18 | G25: Argentinien | H25: =(AVERAGE(BP25:DM25))*(1+INDEX('Prognosen für die Gruppenphase'!$C$4:$O$28, MATCH('Spiele in diesem Jahr'!G25,'Prognosen für die Gruppenphase'!$D$4:$D$28,0),3)) -> 0.32 | I25: England | L25: 3.18 | M25: 0.32 | N25: England | O25: =(OFFSET('Anhang 3 – Tore je Gruppe'!$C$13,(INDEX('Anhang 1 – Mannschaftsdaten'!$C$13:$F$112,MATCH(G25,'Anhang 1 – Mannschaftsdaten'!$C$13:$C$112,0),4)/10),(INDEX('Anhang 1 – Mannschaftsdaten'!$C$13:$F$112,MATCH(E25,'Anhang 1 – Mannschaftsdaten'!$C$13:$C$112,0),4)/10))) -> 2.94 | P25: =OFFSET('Anhang 3 – Tore je Gruppe'!$C$13,(INDEX('Anhang 1 – Mannschaftsdaten'!$C$13:$F$112, MATCH(E25,'Anhang 1 – Mannschaftsdaten'!$C$13:$C$112,0),4)/10), (INDEX('Anhang 1 – Mannschaftsdaten'!$C$13:$F$112, MATCH(G25, 'Anhang 1 – Mannschaftsdaten'!$C$13:$C$112,0),4)/10)) -> 0.38 | Q25: =_xlfn.IFNA(MATCH(RAND(), _xlfn.POISSON.DIST({0,1,2,3,4,5,6,7,8,9},$O25, TRUE),1), 0) -> 1 | R25: =_xlfn.IFNA(MATCH(RAND(), _xlfn.POISSON.DIST({0,1,2,3,4,5,6,7,8,9},$O25, TRUE),1), 0) -> 2 | S25: =_xlfn.IFNA(MATCH(RAND(), _xlfn.POISSON.DIST({0,1,2,3,4,5,6,7,8,9},$O25, TRUE),1), 0) -> 2 | T25: =_xlfn.IFNA(MATCH(RAND(), _xlfn.POISSON.DIST({0,1,2,3,4,5,6,7,8,9},$O25, TRUE),1), 0) -> 3 | U25: =_xlfn.IFNA(MATCH(RAND(), _xlfn.POISSON.DIST({0,1,2,3,4,5,6,7,8,9},$O25, TRUE),1), 0) -> 5 | V25: =_xlfn.IFNA(MATCH(RAND(), _xlfn.POISSON.DIST({0,1,2,3,4,5,6,7,8,9},$O25, TRUE),1), 0) -> 3 | W25: =_xlfn.IFNA(MATCH(RAND(), _xlfn.POISSON.DIST({0,1,2,3,4,5,6,7,8,9},$O25, TRUE),1), 0) -> 5 | X25: =_xlfn.IFNA(MATCH(RAND(), _xlfn.POISSON.DIST({0,1,2,3,4,5,6,7,8,9},$O25, TRUE),1), 0) -> 4 | Y25: =_xlfn.IFNA(MATCH(RAND(), _xlfn.POISSON.DIST({0,1,2,3,4,5,6,7,8,9},$O25, TRUE),1), 0) -> 5 | Z25: =_xlfn.IFNA(MATCH(RAND(), _xlfn.POISSON.DIST({0,1,2,3,4,5,6,7,8,9},$O25, TRUE),1), 0) -> 1 | AA25: =_xlfn.IFNA(MATCH(RAND(), _xlfn.POISSON.DIST({0,1,2,3,4,5,6,7,8,9},$O25, TRUE),1), 0) -> 4 | AB25: =_xlfn.IFNA(MATCH(RAND(), _xlfn.POISSON.DIST({0,1,2,3,4,5,6,7,8,9},$O25, TRUE),1), 0) -> 2 | AC25: =_xlfn.IFNA(MATCH(RAND(), _xlfn.POISSON.DIST({0,1,2,3,4,5,6,7,8,9},$O25, TRUE),1), 0) -> 3 | AD25: =_xlfn.IFNA(MATCH(RAND(), _xlfn.POISSON.DIST({0,1,2,3,4,5,6,7,8,9},$O25, TRUE),1), 0) -> 3 | AE25: =_xlfn.IFNA(MATCH(RAND(), _xlfn.POISSON.DIST({0,1,2,3,4,5,6,7,8,9},$O25, TRUE),1), 0) -> 4 | AF25: =_xlfn.IFNA(MATCH(RAND(), _xlfn.POISSON.DIST({0,1,2,3,4,5,6,7,8,9},$O25, TRUE),1), 0) -> 1 | AG25: =_xlfn.IFNA(MATCH(RAND(), _xlfn.POISSON.DIST({0,1,2,3,4,5,6,7,8,9},$O25, TRUE),1), 0) -> 3 | AH25: =_xlfn.IFNA(MATCH(RAND(), _xlfn.POISSON.DIST({0,1,2,3,4,5,6,7,8,9},$O25, TRUE),1), 0) -> 1 | AI25: =_xlfn.IFNA(MATCH(RAND(), _xlfn.POISSON.DIST({0,1,2,3,4,5,6,7,8,9},$O25, TRUE),1), 0) -> 7 | AJ25: =_xlfn.IFNA(MATCH(RAND(), _xlfn.POISSON.DIST({0,1,2,3,4,5,6,7,8,9},$O25, TRUE),1), 0) -> 5 | AK25: =_xlfn.IFNA(MATCH(RAND(), _xlfn.POISSON.DIST({0,1,2,3,4,5,6,7,8,9},$O25, TRUE),1), 0) -> 3 | AL25: =_xlfn.IFNA(MATCH(RAND(), _xlfn.POISSON.DIST({0,1,2,3,4,5,6,7,8,9},$O25, TRUE),1), 0) -> 1 | AM25: =_xlfn.IFNA(MATCH(RAND(), _xlfn.POISSON.DIST({0,1,2,3,4,5,6,7,8,9},$O25, TRUE),1), 0) -> 3 | AN25: =_xlfn.IFNA(MATCH(RAND(), _xlfn.POISSON.DIST({0,1,2,3,4,5,6,7,8,9},$O25, TRUE),1), 0) -> 5 | AO25: =_xlfn.IFNA(MATCH(RAND(), _xlfn.POISSON.DIST({0,1,2,3,4,5,6,7,8,9},$O25, TRUE),1), 0) -> 1 | AP25: =_xlfn.IFNA(MATCH(RAND(), _xlfn.POISSON.DIST({0,1,2,3,4,5,6,7,8,9},$O25, TRUE),1), 0) -> 3 | AQ25: =_xlfn.IFNA(MATCH(RAND(), _xlfn.POISSON.DIST({0,1,2,3,4,5,6,7,8,9},$O25, TRUE),1), 0) -> 2 | AR25: =_xlfn.IFNA(MATCH(RAND(), _xlfn.POISSON.DIST({0,1,2,3,4,5,6,7,8,9},$O25, TRUE),1), 0) -> 6 | AS25: =_xlfn.IFNA(MATCH(RAND(), _xlfn.POISSON.DIST({0,1,2,3,4,5,6,7,8,9},$O25, TRUE),1), 0) -> 2 | AT25: =_xlfn.IFNA(MATCH(RAND(), _xlfn.POISSON.DIST({0,1,2,3,4,5,6,7,8,9},$O25, TRUE),1), 0) -> 4 | AU25: =_xlfn.IFNA(MATCH(RAND(), _xlfn.POISSON.DIST({0,1,2,3,4,5,6,7,8,9},$O25, TRUE),1), 0) -> 0 | AV25: =_xlfn.IFNA(MATCH(RAND(), _xlfn.POISSON.DIST({0,1,2,3,4,5,6,7,8,9},$O25, TRUE),1), 0) -> 3 | AW25: =_xlfn.IFNA(MATCH(RAND(), _xlfn.POISSON.DIST({0,1,2,3,4,5,6,7,8,9},$O25, TRUE),1), 0) -> 4 | AX25: =_xlfn.IFNA(MATCH(RAND(), _xlfn.POISSON.DIST({0,1,2,3,4,5,6,7,8,9},$O25, TRUE),1), 0) -> 4 | AY25: =_xlfn.IFNA(MATCH(RAND(), _xlfn.POISSON.DIST({0,1,2,3,4,5,6,7,8,9},$O25, TRUE),1), 0) -> 7 | AZ25: =_xlfn.IFNA(MATCH(RAND(), _xlfn.POISSON.DIST({0,1,2,3,4,5,6,7,8,9},$O25, TRUE),1), 0) -> 2 | BA25: =_xlfn.IFNA(MATCH(RAND(), _xlfn.POISSON.DIST({0,1,2,3,4,5,6,7,8,9},$O25, TRUE),1), 0) -> 9 | BB25: =_xlfn.IFNA(MATCH(RAND(), _xlfn.POISSON.DIST({0,1,2,3,4,5,6,7,8,9},$O25, TRUE),1), 0) -> 3 | BC25: =_xlfn.IFNA(MATCH(RAND(), _xlfn.POISSON.DIST({0,1,2,3,4,5,6,7,8,9},$O25, TRUE),1), 0) -> 0 | BD25: =_xlfn.IFNA(MATCH(RAND(), _xlfn.POISSON.DIST({0,1,2,3,4,5,6,7,8,9},$O25, TRUE),1), 0) -> 1 | BE25: =_xlfn.IFNA(MATCH(RAND(), _xlfn.POISSON.DIST({0,1,2,3,4,5,6,7,8,9},$O25, TRUE),1), 0) -> 2 | BF25: =_xlfn.IFNA(MATCH(RAND(), _xlfn.POISSON.DIST({0,1,2,3,4,5,6,7,8,9},$O25, TRUE),1), 0) -> 3 | BG25: =_xlfn.IFNA(MATCH(RAND(), _xlfn.POISSON.DIST({0,1,2,3,4,5,6,7,8,9},$O25, TRUE),1), 0) -> 2 | BH25: =_xlfn.IFNA(MATCH(RAND(), _xlfn.POISSON.DIST({0,1,2,3,4,5,6,7,8,9},$O25, TRUE),1), 0) -> 1 | BI25: =_xlfn.IFNA(MATCH(RAND(), _xlfn.POISSON.DIST({0,1,2,3,4,5,6,7,8,9},$O25, TRUE),1), 0) -> 3 | BJ25: =_xlfn.IFNA(MATCH(RAND(), _xlfn.POISSON.DIST({0,1,2,3,4,5,6,7,8,9},$O25, TRUE),1), 0) -> 5 | BK25: =_xlfn.IFNA(MATCH(RAND(), _xlfn.POISSON.DIST({0,1,2,3,4,5,6,7,8,9},$O25, TRUE),1), 0) -> 5 | BL25: =_xlfn.IFNA(MATCH(RAND(), _xlfn.POISSON.DIST({0,1,2,3,4,5,6,7,8,9},$O25, TRUE),1), 0) -> 4 | BM25: =_xlfn.IFNA(MATCH(RAND(), _xlfn.POISSON.DIST({0,1,2,3,4,5,6,7,8,9},$O25, TRUE),1), 0) -> 4 | BN25: =_xlfn.IFNA(MATCH(RAND(), _xlfn.POISSON.DIST({0,1,2,3,4,5,6,7,8,9},$O25, TRUE),1), 0) -> 3 | BP25: =_xlfn.IFNA(MATCH(RAND(), _xlfn.POISSON.DIST({0,1,2,3,4,5,6,7,8,9},$P25, TRUE),1), 0) -> 1 | BQ25: =_xlfn.IFNA(MATCH(RAND(), _xlfn.POISSON.DIST({0,1,2,3,4,5,6,7,8,9},$P25, TRUE),1), 0) -> 0 | BR25: =_xlfn.IFNA(MATCH(RAND(), _xlfn.POISSON.DIST({0,1,2,3,4,5,6,7,8,9},$P25, TRUE),1), 0) -> 0 | BS25: =_xlfn.IFNA(MATCH(RAND(), _xlfn.POISSON.DIST({0,1,2,3,4,5,6,7,8,9},$P25, TRUE),1), 0) -> 1 | BT25: =_xlfn.IFNA(MATCH(RAND(), _xlfn.POISSON.DIST({0,1,2,3,4,5,6,7,8,9},$P25, TRUE),1), 0) -> 1 | BU25: =_xlfn.IFNA(MATCH(RAND(), _xlfn.POISSON.DIST({0,1,2,3,4,5,6,7,8,9},$P25, TRUE),1), 0) -> 0 | BV25: =_xlfn.IFNA(MATCH(RAND(), _xlfn.POISSON.DIST({0,1,2,3,4,5,6,7,8,9},$P25, TRUE),1), 0) -> 0 | BW25: =_xlfn.IFNA(MATCH(RAND(), _xlfn.POISSON.DIST({0,1,2,3,4,5,6,7,8,9},$P25, TRUE),1), 0) -> 1 | BX25: =_xlfn.IFNA(MATCH(RAND(), _xlfn.POISSON.DIST({0,1,2,3,4,5,6,7,8,9},$P25, TRUE),1), 0) -> 0 | BY25: =_xlfn.IFNA(MATCH(RAND(), _xlfn.POISSON.DIST({0,1,2,3,4,5,6,7,8,9},$P25, TRUE),1), 0) -> 0 | BZ25: =_xlfn.IFNA(MATCH(RAND(), _xlfn.POISSON.DIST({0,1,2,3,4,5,6,7,8,9},$P25, TRUE),1), 0) -> 0 | CA25: =_xlfn.IFNA(MATCH(RAND(), _xlfn.POISSON.DIST({0,1,2,3,4,5,6,7,8,9},$P25, TRUE),1), 0) -> 0 | CB25: =_xlfn.IFNA(MATCH(RAND(), _xlfn.POISSON.DIST({0,1,2,3,4,5,6,7,8,9},$P25, TRUE),1), 0) -> 0 | CC25: =_xlfn.IFNA(MATCH(RAND(), _xlfn.POISSON.DIST({0,1,2,3,4,5,6,7,8,9},$P25, TRUE),1), 0) -> 0 | CD25: =_xlfn.IFNA(MATCH(RAND(), _xlfn.POISSON.DIST({0,1,2,3,4,5,6,7,8,9},$P25, TRUE),1), 0) -> 0 | CE25: =_xlfn.IFNA(MATCH(RAND(), _xlfn.POISSON.DIST({0,1,2,3,4,5,6,7,8,9},$P25, TRUE),1), 0) -> 1 | CF25: =_xlfn.IFNA(MATCH(RAND(), _xlfn.POISSON.DIST({0,1,2,3,4,5,6,7,8,9},$P25, TRUE),1), 0) -> 0 | CG25: =_xlfn.IFNA(MATCH(RAND(), _xlfn.POISSON.DIST({0,1,2,3,4,5,6,7,8,9},$P25, TRUE),1), 0) -> 0 | CH25: =_xlfn.IFNA(MATCH(RAND(), _xlfn.POISSON.DIST({0,1,2,3,4,5,6,7,8,9},$P25, TRUE),1), 0) -> 0 | CI25: =_xlfn.IFNA(MATCH(RAND(), _xlfn.POISSON.DIST({0,1,2,3,4,5,6,7,8,9},$P25, TRUE),1), 0) -> 0 | CJ25: =_xlfn.IFNA(MATCH(RAND(), _xlfn.POISSON.DIST({0,1,2,3,4,5,6,7,8,9},$P25, TRUE),1), 0) -> 0 | CK25: =_xlfn.IFNA(MATCH(RAND(), _xlfn.POISSON.DIST({0,1,2,3,4,5,6,7,8,9},$P25, TRUE),1), 0) -> 0 | CL25: =_xlfn.IFNA(MATCH(RAND(), _xlfn.POISSON.DIST({0,1,2,3,4,5,6,7,8,9},$P25, TRUE),1), 0) -> 0 | CM25: =_xlfn.IFNA(MATCH(RAND(), _xlfn.POISSON.DIST({0,1,2,3,4,5,6,7,8,9},$P25, TRUE),1), 0) -> 0 | CN25: =_xlfn.IFNA(MATCH(RAND(), _xlfn.POISSON.DIST({0,1,2,3,4,5,6,7,8,9},$P25, TRUE),1), 0) -> 0 | CO25: =_xlfn.IFNA(MATCH(RAND(), _xlfn.POISSON.DIST({0,1,2,3,4,5,6,7,8,9},$P25, TRUE),1), 0) -> 1 | CP25: =_xlfn.IFNA(MATCH(RAND(), _xlfn.POISSON.DIST({0,1,2,3,4,5,6,7,8,9},$P25, TRUE),1), 0) -> 0 | CQ25: =_xlfn.IFNA(MATCH(RAND(), _xlfn.POISSON.DIST({0,1,2,3,4,5,6,7,8,9},$P25, TRUE),1), 0) -> 0 | CR25: =_xlfn.IFNA(MATCH(RAND(), _xlfn.POISSON.DIST({0,1,2,3,4,5,6,7,8,9},$P25, TRUE),1), 0) -> 0 | CS25: =_xlfn.IFNA(MATCH(RAND(), _xlfn.POISSON.DIST({0,1,2,3,4,5,6,7,8,9},$P25, TRUE),1), 0) -> 0 | CT25: =_xlfn.IFNA(MATCH(RAND(), _xlfn.POISSON.DIST({0,1,2,3,4,5,6,7,8,9},$P25, TRUE),1), 0) -> 1 | CU25: =_xlfn.IFNA(MATCH(RAND(), _xlfn.POISSON.DIST({0,1,2,3,4,5,6,7,8,9},$P25, TRUE),1), 0) -> 0 | CV25: =_xlfn.IFNA(MATCH(RAND(), _xlfn.POISSON.DIST({0,1,2,3,4,5,6,7,8,9},$P25, TRUE),1), 0) -> 0 | CW25: =_xlfn.IFNA(MATCH(RAND(), _xlfn.POISSON.DIST({0,1,2,3,4,5,6,7,8,9},$P25, TRUE),1), 0) -> 0 | CX25: =_xlfn.IFNA(MATCH(RAND(), _xlfn.POISSON.DIST({0,1,2,3,4,5,6,7,8,9},$P25, TRUE),1), 0) -> 1 | CY25: =_xlfn.IFNA(MATCH(RAND(), _xlfn.POISSON.DIST({0,1,2,3,4,5,6,7,8,9},$P25, TRUE),1), 0) -> 2 | CZ25: =_xlfn.IFNA(MATCH(RAND(), _xlfn.POISSON.DIST({0,1,2,3,4,5,6,7,8,9},$P25, TRUE),1), 0) -> 1 | DA25: =_xlfn.IFNA(MATCH(RAND(), _xlfn.POISSON.DIST({0,1,2,3,4,5,6,7,8,9},$P25, TRUE),1), 0) -> 0 | DB25: =_xlfn.IFNA(MATCH(RAND(), _xlfn.POISSON.DIST({0,1,2,3,4,5,6,7,8,9},$P25, TRUE),1), 0) -> 0 | DC25: =_xlfn.IFNA(MATCH(RAND(), _xlfn.POISSON.DIST({0,1,2,3,4,5,6,7,8,9},$P25, TRUE),1), 0) -> 1 | DD25: =_xlfn.IFNA(MATCH(RAND(), _xlfn.POISSON.DIST({0,1,2,3,4,5,6,7,8,9},$P25, TRUE),1), 0) -> 0 | DE25: =_xlfn.IFNA(MATCH(RAND(), _xlfn.POISSON.DIST({0,1,2,3,4,5,6,7,8,9},$P25, TRUE),1), 0) -> 0 | DF25: =_xlfn.IFNA(MATCH(RAND(), _xlfn.POISSON.DIST({0,1,2,3,4,5,6,7,8,9},$P25, TRUE),1), 0) -> 0 | DG25: =_xlfn.IFNA(MATCH(RAND(), _xlfn.POISSON.DIST({0,1,2,3,4,5,6,7,8,9},$P25, TRUE),1), 0) -> 0 | DH25: =_xlfn.IFNA(MATCH(RAND(), _xlfn.POISSON.DIST({0,1,2,3,4,5,6,7,8,9},$P25, TRUE),1), 0) -> 0 | DI25: =_xlfn.IFNA(MATCH(RAND(), _xlfn.POISSON.DIST({0,1,2,3,4,5,6,7,8,9},$P25, TRUE),1), 0) -> 1 | DJ25: =_xlfn.IFNA(MATCH(RAND(), _xlfn.POISSON.DIST({0,1,2,3,4,5,6,7,8,9},$P25, TRUE),1), 0) -> 2 | DK25: =_xlfn.IFNA(MATCH(RAND(), _xlfn.POISSON.DIST({0,1,2,3,4,5,6,7,8,9},$P25, TRUE),1), 0) -> 0 | DL25: =_xlfn.IFNA(MATCH(RAND(), _xlfn.POISSON.DIST({0,1,2,3,4,5,6,7,8,9},$P25, TRUE),1), 0) -> 0 | DM25: =_xlfn.IFNA(MATCH(RAND(), _xlfn.POISSON.DIST({0,1,2,3,4,5,6,7,8,9},$P25, TRUE),1), 0) -> 1
C26: 2019-06-15 | D26: E | E26: Niederlande | F26: =(AVERAGE(Q26:BN26))*(1+INDEX('Prognosen für die Gruppenphase'!$C$4:$O$28, MATCH('Spiele in diesem Jahr'!E26,'Prognosen für die Gruppenphase'!$D$4:$D$28,0),3)) -> 1.62 | G26: Kamerun | H26: =(AVERAGE(BP26:DM26))*(1+INDEX('Prognosen für die Gruppenphase'!$C$4:$O$28, MATCH('Spiele in diesem Jahr'!G26,'Prognosen für die Gruppenphase'!$D$4:$D$28,0),3)) -> 1.56 | I26: Niederlande | L26: 1.62 | M26: 1.56 | N26: Niederlande | O26: =(OFFSET('Anhang 3 – Tore je Gruppe'!$C$13,(INDEX('Anhang 1 – Mannschaftsdaten'!$C$13:$F$112,MATCH(G26,'Anhang 1 – Mannschaftsdaten'!$C$13:$C$112,0),4)/10),(INDEX('Anhang 1 – Mannschaftsdaten'!$C$13:$F$112,MATCH(E26,'Anhang 1 – Mannschaftsdaten'!$C$13:$C$112,0),4)/10))) -> 1.50 | P26: =OFFSET('Anhang 3 – Tore je Gruppe'!$C$13,(INDEX('Anhang 1 – Mannschaftsdaten'!$C$13:$F$112, MATCH(E26,'Anhang 1 – Mannschaftsdaten'!$C$13:$C$112,0),4)/10), (INDEX('Anhang 1 – Mannschaftsdaten'!$C$13:$F$112, MATCH(G26, 'Anhang 1 – Mannschaftsdaten'!$C$13:$C$112,0),4)/10)) -> 1.50 | Q26: =_xlfn.IFNA(MATCH(RAND(), _xlfn.POISSON.DIST({0,1,2,3,4,5,6,7,8,9},$O26, TRUE),1), 0) -> 2 | R26: =_xlfn.IFNA(MATCH(RAND(), _xlfn.POISSON.DIST({0,1,2,3,4,5,6,7,8,9},$O26, TRUE),1), 0) -> 0 | S26: =_xlfn.IFNA(MATCH(RAND(), _xlfn.POISSON.DIST({0,1,2,3,4,5,6,7,8,9},$O26, TRUE),1), 0) -> 2 | T26: =_xlfn.IFNA(MATCH(RAND(), _xlfn.POISSON.DIST({0,1,2,3,4,5,6,7,8,9},$O26, TRUE),1), 0) -> 3 | U26: =_xlfn.IFNA(MATCH(RAND(), _xlfn.POISSON.DIST({0,1,2,3,4,5,6,7,8,9},$O26, TRUE),1), 0) -> 2 | V26: =_xlfn.IFNA(MATCH(RAND(), _xlfn.POISSON.DIST({0,1,2,3,4,5,6,7,8,9},$O26, TRUE),1), 0) -> 0 | W26: =_xlfn.IFNA(MATCH(RAND(), _xlfn.POISSON.DIST({0,1,2,3,4,5,6,7,8,9},$O26, TRUE),1), 0) -> 1 | X26: =_xlfn.IFNA(MATCH(RAND(), _xlfn.POISSON.DIST({0,1,2,3,4,5,6,7,8,9},$O26, TRUE),1), 0) -> 4 | Y26: =_xlfn.IFNA(MATCH(RAND(), _xlfn.POISSON.DIST({0,1,2,3,4,5,6,7,8,9},$O26, TRUE),1), 0) -> 3 | Z26: =_xlfn.IFNA(MATCH(RAND(), _xlfn.POISSON.DIST({0,1,2,3,4,5,6,7,8,9},$O26, TRUE),1), 0) -> 1 | AA26: =_xlfn.IFNA(MATCH(RAND(), _xlfn.POISSON.DIST({0,1,2,3,4,5,6,7,8,9},$O26, TRUE),1), 0) -> 1 | AB26: =_xlfn.IFNA(MATCH(RAND(), _xlfn.POISSON.DIST({0,1,2,3,4,5,6,7,8,9},$O26, TRUE),1), 0) -> 2 | AC26: =_xlfn.IFNA(MATCH(RAND(), _xlfn.POISSON.DIST({0,1,2,3,4,5,6,7,8,9},$O26, TRUE),1), 0) -> 0 | AD26: =_xlfn.IFNA(MATCH(RAND(), _xlfn.POISSON.DIST({0,1,2,3,4,5,6,7,8,9},$O26, TRUE),1), 0) -> 3 | AE26: =_xlfn.IFNA(MATCH(RAND(), _xlfn.POISSON.DIST({0,1,2,3,4,5,6,7,8,9},$O26, TRUE),1), 0) -> 2 | AF26: =_xlfn.IFNA(MATCH(RAND(), _xlfn.POISSON.DIST({0,1,2,3,4,5,6,7,8,9},$O26, TRUE),1), 0) -> 1 | AG26: =_xlfn.IFNA(MATCH(RAND(), _xlfn.POISSON.DIST({0,1,2,3,4,5,6,7,8,9},$O26, TRUE),1), 0) -> 2 | AH26: =_xlfn.IFNA(MATCH(RAND(), _xlfn.POISSON.DIST({0,1,2,3,4,5,6,7,8,9},$O26, TRUE),1), 0) -> 0 | AI26: =_xlfn.IFNA(MATCH(RAND(), _xlfn.POISSON.DIST({0,1,2,3,4,5,6,7,8,9},$O26, TRUE),1), 0) -> 3 | AJ26: =_xlfn.IFNA(MATCH(RAND(), _xlfn.POISSON.DIST({0,1,2,3,4,5,6,7,8,9},$O26, TRUE),1), 0) -> 1 | AK26: =_xlfn.IFNA(MATCH(RAND(), _xlfn.POISSON.DIST({0,1,2,3,4,5,6,7,8,9},$O26, TRUE),1), 0) -> 1 | AL26: =_xlfn.IFNA(MATCH(RAND(), _xlfn.POISSON.DIST({0,1,2,3,4,5,6,7,8,9},$O26, TRUE),1), 0) -> 4 | AM26: =_xlfn.IFNA(MATCH(RAND(), _xlfn.POISSON.DIST({0,1,2,3,4,5,6,7,8,9},$O26, TRUE),1), 0) -> 0 | AN26: =_xlfn.IFNA(MATCH(RAND(), _xlfn.POISSON.DIST({0,1,2,3,4,5,6,7,8,9},$O26, TRUE),1), 0) -> 2 | AO26: =_xlfn.IFNA(MATCH(RAND(), _xlfn.POISSON.DIST({0,1,2,3,4,5,6,7,8,9},$O26, TRUE),1), 0) -> 3 | AP26: =_xlfn.IFNA(MATCH(RAND(), _xlfn.POISSON.DIST({0,1,2,3,4,5,6,7,8,9},$O26, TRUE),1), 0) -> 2 | AQ26: =_xlfn.IFNA(MATCH(RAND(), _xlfn.POISSON.DIST({0,1,2,3,4,5,6,7,8,9},$O26, TRUE),1), 0) -> 2 | AR26: =_xlfn.IFNA(MATCH(RAND(), _xlfn.POISSON.DIST({0,1,2,3,4,5,6,7,8,9},$O26, TRUE),1), 0) -> 0 | AS26: =_xlfn.IFNA(MATCH(RAND(), _xlfn.POISSON.DIST({0,1,2,3,4,5,6,7,8,9},$O26, TRUE),1), 0) -> 2 | AT26: =_xlfn.IFNA(MATCH(RAND(), _xlfn.POISSON.DIST({0,1,2,3,4,5,6,7,8,9},$O26, TRUE),1), 0) -> 0 | AU26: =_xlfn.IFNA(MATCH(RAND(), _xlfn.POISSON.DIST({0,1,2,3,4,5,6,7,8,9},$O26, TRUE),1), 0) -> 1 | AV26: =_xlfn.IFNA(MATCH(RAND(), _xlfn.POISSON.DIST({0,1,2,3,4,5,6,7,8,9},$O26, TRUE),1), 0) -> 3 | AW26: =_xlfn.IFNA(MATCH(RAND(), _xlfn.POISSON.DIST({0,1,2,3,4,5,6,7,8,9},$O26, TRUE),1), 0) -> 4 | AX26: =_xlfn.IFNA(MATCH(RAND(), _xlfn.POISSON.DIST({0,1,2,3,4,5,6,7,8,9},$O26, TRUE),1), 0) -> 4 | AY26: =_xlfn.IFNA(MATCH(RAND(), _xlfn.POISSON.DIST({0,1,2,3,4,5,6,7,8,9},$O26, TRUE),1), 0) -> 2 | AZ26: =_xlfn.IFNA(MATCH(RAND(), _xlfn.POISSON.DIST({0,1,2,3,4,5,6,7,8,9},$O26, TRUE),1), 0) -> 3 | BA26: =_xlfn.IFNA(MATCH(RAND(), _xlfn.POISSON.DIST({0,1,2,3,4,5,6,7,8,9},$O26, TRUE),1), 0) -> 2 | BB26: =_xlfn.IFNA(MATCH(RAND(), _xlfn.POISSON.DIST({0,1,2,3,4,5,6,7,8,9},$O26, TRUE),1), 0) -> 1 | BC26: =_xlfn.IFNA(MATCH(RAND(), _xlfn.POISSON.DIST({0,1,2,3,4,5,6,7,8,9},$O26, TRUE),1), 0) -> 0 | BD26: =_xlfn.IFNA(MATCH(RAND(), _xlfn.POISSON.DIST({0,1,2,3,4,5,6,7,8,9},$O26, TRUE),1), 0) -> 1 | BE26: =_xlfn.IFNA(MATCH(RAND(), _xlfn.POISSON.DIST({0,1,2,3,4,5,6,7,8,9},$O26, TRUE),1), 0) -> 1 | BF26: =_xlfn.IFNA(MATCH(RAND(), _xlfn.POISSON.DIST({0,1,2,3,4,5,6,7,8,9},$O26, TRUE),1), 0) -> 0 | BG26: =_xlfn.IFNA(MATCH(RAND(), _xlfn.POISSON.DIST({0,1,2,3,4,5,6,7,8,9},$O26, TRUE),1), 0) -> 0 | BH26: =_xlfn.IFNA(MATCH(RAND(), _xlfn.POISSON.DIST({0,1,2,3,4,5,6,7,8,9},$O26, TRUE),1), 0) -> 1 | BI26: =_xlfn.IFNA(MATCH(RAND(), _xlfn.POISSON.DIST({0,1,2,3,4,5,6,7,8,9},$O26, TRUE),1), 0) -> 0 | BJ26: =_xlfn.IFNA(MATCH(RAND(), _xlfn.POISSON.DIST({0,1,2,3,4,5,6,7,8,9},$O26, TRUE),1), 0) -> 1 | BK26: =_xlfn.IFNA(MATCH(RAND(), _xlfn.POISSON.DIST({0,1,2,3,4,5,6,7,8,9},$O26, TRUE),1), 0) -> 1 | BL26: =_xlfn.IFNA(MATCH(RAND(), _xlfn.POISSON.DIST({0,1,2,3,4,5,6,7,8,9},$O26, TRUE),1), 0) -> 1 | BM26: =_xlfn.IFNA(MATCH(RAND(), _xlfn.POISSON.DIST({0,1,2,3,4,5,6,7,8,9},$O26, TRUE),1), 0) -> 2 | BN26: =_xlfn.IFNA(MATCH(RAND(), _xlfn.POISSON.DIST({0,1,2,3,4,5,6,7,8,9},$O26, TRUE),1), 0) -> 4 | BP26: =_xlfn.IFNA(MATCH(RAND(), _xlfn.POISSON.DIST({0,1,2,3,4,5,6,7,8,9},$P26, TRUE),1), 0) -> 3 | BQ26: =_xlfn.IFNA(MATCH(RAND(), _xlfn.POISSON.DIST({0,1,2,3,4,5,6,7,8,9},$P26, TRUE),1), 0) -> 0 | BR26: =_xlfn.IFNA(MATCH(RAND(), _xlfn.POISSON.DIST({0,1,2,3,4,5,6,7,8,9},$P26, TRUE),1), 0) -> 0 | BS26: =_xlfn.IFNA(MATCH(RAND(), _xlfn.POISSON.DIST({0,1,2,3,4,5,6,7,8,9},$P26, TRUE),1), 0) -> 0 | BT26: =_xlfn.IFNA(MATCH(RAND(), _xlfn.POISSON.DIST({0,1,2,3,4,5,6,7,8,9},$P26, TRUE),1), 0) -> 0 | BU26: =_xlfn.IFNA(MATCH(RAND(), _xlfn.POISSON.DIST({0,1,2,3,4,5,6,7,8,9},$P26, TRUE),1), 0) -> 2 | BV26: =_xlfn.IFNA(MATCH(RAND(), _xlfn.POISSON.DIST({0,1,2,3,4,5,6,7,8,9},$P26, TRUE),1), 0) -> 2 | BW26: =_xlfn.IFNA(MATCH(RAND(), _xlfn.POISSON.DIST({0,1,2,3,4,5,6,7,8,9},$P26, TRUE),1), 0) -> 3 | BX26: =_xlfn.IFNA(MATCH(RAND(), _xlfn.POISSON.DIST({0,1,2,3,4,5,6,7,8,9},$P26, TRUE),1), 0) -> 3 | BY26: =_xlfn.IFNA(MATCH(RAND(), _xlfn.POISSON.DIST({0,1,2,3,4,5,6,7,8,9},$P26, TRUE),1), 0) -> 3 | BZ26: =_xlfn.IFNA(MATCH(RAND(), _xlfn.POISSON.DIST({0,1,2,3,4,5,6,7,8,9},$P26, TRUE),1), 0) -> 0 | CA26: =_xlfn.IFNA(MATCH(RAND(), _xlfn.POISSON.DIST({0,1,2,3,4,5,6,7,8,9},$P26, TRUE),1), 0) -> 1 | CB26: =_xlfn.IFNA(MATCH(RAND(), _xlfn.POISSON.DIST({0,1,2,3,4,5,6,7,8,9},$P26, TRUE),1), 0) -> 1 | CC26: =_xlfn.IFNA(MATCH(RAND(), _xlfn.POISSON.DIST({0,1,2,3,4,5,6,7,8,9},$P26, TRUE),1), 0) -> 1 | CD26: =_xlfn.IFNA(MATCH(RAND(), _xlfn.POISSON.DIST({0,1,2,3,4,5,6,7,8,9},$P26, TRUE),1), 0) -> 2 | CE26: =_xlfn.IFNA(MATCH(RAND(), _xlfn.POISSON.DIST({0,1,2,3,4,5,6,7,8,9},$P26, TRUE),1), 0) -> 3 | CF26: =_xlfn.IFNA(MATCH(RAND(), _xlfn.POISSON.DIST({0,1,2,3,4,5,6,7,8,9},$P26, TRUE),1), 0) -> 1 | CG26: =_xlfn.IFNA(MATCH(RAND(), _xlfn.POISSON.DIST({0,1,2,3,4,5,6,7,8,9},$P26, TRUE),1), 0) -> 2 | CH26: =_xlfn.IFNA(MATCH(RAND(), _xlfn.POISSON.DIST({0,1,2,3,4,5,6,7,8,9},$P26, TRUE),1), 0) -> 3 | CI26: =_xlfn.IFNA(MATCH(RAND(), _xlfn.POISSON.DIST({0,1,2,3,4,5,6,7,8,9},$P26, TRUE),1), 0) -> 0 | CJ26: =_xlfn.IFNA(MATCH(RAND(), _xlfn.POISSON.DIST({0,1,2,3,4,5,6,7,8,9},$P26, TRUE),1), 0) -> 3 | CK26: =_xlfn.IFNA(MATCH(RAND(), _xlfn.POISSON.DIST({0,1,2,3,4,5,6,7,8,9},$P26, TRUE),1), 0) -> 1 | CL26: =_xlfn.IFNA(MATCH(RAND(), _xlfn.POISSON.DIST({0,1,2,3,4,5,6,7,8,9},$P26, TRUE),1), 0) -> 3 | CM26: =_xlfn.IFNA(MATCH(RAND(), _xlfn.POISSON.DIST({0,1,2,3,4,5,6,7,8,9},$P26, TRUE),1), 0) -> 1 | CN26: =_xlfn.IFNA(MATCH(RAND(), _xlfn.POISSON.DIST({0,1,2,3,4,5,6,7,8,9},$P26, TRUE),1), 0) -> 1 | CO26: =_xlfn.IFNA(MATCH(RAND(), _xlfn.POISSON.DIST({0,1,2,3,4,5,6,7,8,9},$P26, TRUE),1), 0) -> 1 | CP26: =_xlfn.IFNA(MATCH(RAND(), _xlfn.POISSON.DIST({0,1,2,3,4,5,6,7,8,9},$P26, TRUE),1), 0) -> 2 | CQ26: =_xlfn.IFNA(MATCH(RAND(), _xlfn.POISSON.DIST({0,1,2,3,4,5,6,7,8,9},$P26, TRUE),1), 0) -> 1 | CR26: =_xlfn.IFNA(MATCH(RAND(), _xlfn.POISSON.DIST({0,1,2,3,4,5,6,7,8,9},$P26, TRUE),1), 0) -> 0 | CS26: =_xlfn.IFNA(MATCH(RAND(), _xlfn.POISSON.DIST({0,1,2,3,4,5,6,7,8,9},$P26, TRUE),1), 0) -> 2 | CT26: =_xlfn.IFNA(MATCH(RAND(), _xlfn.POISSON.DIST({0,1,2,3,4,5,6,7,8,9},$P26, TRUE),1), 0) -> 1 | CU26: =_xlfn.IFNA(MATCH(RAND(), _xlfn.POISSON.DIST({0,1,2,3,4,5,6,7,8,9},$P26, TRUE),1), 0) -> 4 | CV26: =_xlfn.IFNA(MATCH(RAND(), _xlfn.POISSON.DIST({0,1,2,3,4,5,6,7,8,9},$P26, TRUE),1), 0) -> 0 | CW26: =_xlfn.IFNA(MATCH(RAND(), _xlfn.POISSON.DIST({0,1,2,3,4,5,6,7,8,9},$P26, TRUE),1), 0) -> 0 | CX26: =_xlfn.IFNA(MATCH(RAND(), _xlfn.POISSON.DIST({0,1,2,3,4,5,6,7,8,9},$P26, TRUE),1), 0) -> 4 | CY26: =_xlfn.IFNA(MATCH(RAND(), _xlfn.POISSON.DIST({0,1,2,3,4,5,6,7,8,9},$P26, TRUE),1), 0) -> 1 | CZ26: =_xlfn.IFNA(MATCH(RAND(), _xlfn.POISSON.DIST({0,1,2,3,4,5,6,7,8,9},$P26, TRUE),1), 0) -> 1 | DA26: =_xlfn.IFNA(MATCH(RAND(), _xlfn.POISSON.DIST({0,1,2,3,4,5,6,7,8,9},$P26, TRUE),1), 0) -> 2 | DB26: =_xlfn.IFNA(MATCH(RAND(), _xlfn.POISSON.DIST({0,1,2,3,4,5,6,7,8,9},$P26, TRUE),1), 0) -> 1 | DC26: =_xlfn.IFNA(MATCH(RAND(), _xlfn.POISSON.DIST({0,1,2,3,4,5,6,7,8,9},$P26, TRUE),1), 0) -> 3 | DD26: =_xlfn.IFNA(MATCH(RAND(), _xlfn.POISSON.DIST({0,1,2,3,4,5,6,7,8,9},$P26, TRUE),1), 0) -> 2 | DE26: =_xlfn.IFNA(MATCH(RAND(), _xlfn.POISSON.DIST({0,1,2,3,4,5,6,7,8,9},$P26, TRUE),1), 0) -> 4 | DF26: =_xlfn.IFNA(MATCH(RAND(), _xlfn.POISSON.DIST({0,1,2,3,4,5,6,7,8,9},$P26, TRUE),1), 0) -> 0 | DG26: =_xlfn.IFNA(MATCH(RAND(), _xlfn.POISSON.DIST({0,1,2,3,4,5,6,7,8,9},$P26, TRUE),1), 0) -> 1 | DH26: =_xlfn.IFNA(MATCH(RAND(), _xlfn.POISSON.DIST({0,1,2,3,4,5,6,7,8,9},$P26, TRUE),1), 0) -> 0 | DI26: =_xlfn.IFNA(MATCH(RAND(), _xlfn.POISSON.DIST({0,1,2,3,4,5,6,7,8,9},$P26, TRUE),1), 0) -> 3 | DJ26: =_xlfn.IFNA(MATCH(RAND(), _xlfn.POISSON.DIST({0,1,2,3,4,5,6,7,8,9},$P26, TRUE),1), 0) -> 3 | DK26: =_xlfn.IFNA(MATCH(RAND(), _xlfn.POISSON.DIST({0,1,2,3,4,5,6,7,8,9},$P26, TRUE),1), 0) -> 1 | DL26: =_xlfn.IFNA(MATCH(RAND(), _xlfn.POISSON.DIST({0,1,2,3,4,5,6,7,8,9},$P26, TRUE),1), 0) -> 1 | DM26: =_xlfn.IFNA(MATCH(RAND(), _xlfn.POISSON.DIST({0,1,2,3,4,5,6,7,8,9},$P26, TRUE),1), 0) -> 1
C27: 2019-06-15 | D27: E | E27: Kanada | F27: =(AVERAGE(Q27:BN27))*(1+INDEX('Prognosen für die Gruppenphase'!$C$4:$O$28, MATCH('Spiele in diesem Jahr'!E27,'Prognosen für die Gruppenphase'!$D$4:$D$28,0),3)) -> 1.74 | G27: Neuseeland | H27: =(AVERAGE(BP27:DM27))*(1+INDEX('Prognosen für die Gruppenphase'!$C$4:$O$28, MATCH('Spiele in diesem Jahr'!G27,'Prognosen für die Gruppenphase'!$D$4:$D$28,0),3)) -> 1.56 | I27: Kanada | L27: 1.74 | M27: 1.56 | N27: Kanada | O27: =(OFFSET('Anhang 3 – Tore je Gruppe'!$C$13,(INDEX('Anhang 1 – Mannschaftsdaten'!$C$13:$F$112,MATCH(G27,'Anhang 1 – Mannschaftsdaten'!$C$13:$C$112,0),4)/10),(INDEX('Anhang 1 – Mannschaftsdaten'!$C$13:$F$112,MATCH(E27,'Anhang 1 – Mannschaftsdaten'!$C$13:$C$112,0),4)/10))) -> 1.50 | P27: =OFFSET('Anhang 3 – Tore je Gruppe'!$C$13,(INDEX('Anhang 1 – Mannschaftsdaten'!$C$13:$F$112, MATCH(E27,'Anhang 1 – Mannschaftsdaten'!$C$13:$C$112,0),4)/10), (INDEX('Anhang 1 – Mannschaftsdaten'!$C$13:$F$112, MATCH(G27, 'Anhang 1 – Mannschaftsdaten'!$C$13:$C$112,0),4)/10)) -> 1.50 | Q27: =_xlfn.IFNA(MATCH(RAND(), _xlfn.POISSON.DIST({0,1,2,3,4,5,6,7,8,9},$O27, TRUE),1), 0) -> 2 | R27: =_xlfn.IFNA(MATCH(RAND(), _xlfn.POISSON.DIST({0,1,2,3,4,5,6,7,8,9},$O27, TRUE),1), 0) -> 2 | S27: =_xlfn.IFNA(MATCH(RAND(), _xlfn.POISSON.DIST({0,1,2,3,4,5,6,7,8,9},$O27, TRUE),1), 0) -> 2 | T27: =_xlfn.IFNA(MATCH(RAND(), _xlfn.POISSON.DIST({0,1,2,3,4,5,6,7,8,9},$O27, TRUE),1), 0) -> 1 | U27: =_xlfn.IFNA(MATCH(RAND(), _xlfn.POISSON.DIST({0,1,2,3,4,5,6,7,8,9},$O27, TRUE),1), 0) -> 3 | V27: =_xlfn.IFNA(MATCH(RAND(), _xlfn.POISSON.DIST({0,1,2,3,4,5,6,7,8,9},$O27, TRUE),1), 0) -> 3 | W27: =_xlfn.IFNA(MATCH(RAND(), _xlfn.POISSON.DIST({0,1,2,3,4,5,6,7,8,9},$O27, TRUE),1), 0) -> 5 | X27: =_xlfn.IFNA(MATCH(RAND(), _xlfn.POISSON.DIST({0,1,2,3,4,5,6,7,8,9},$O27, TRUE),1), 0) -> 0 | Y27: =_xlfn.IFNA(MATCH(RAND(), _xlfn.POISSON.DIST({0,1,2,3,4,5,6,7,8,9},$O27, TRUE),1), 0) -> 1 | Z27: =_xlfn.IFNA(MATCH(RAND(), _xlfn.POISSON.DIST({0,1,2,3,4,5,6,7,8,9},$O27, TRUE),1), 0) -> 1 | AA27: =_xlfn.IFNA(MATCH(RAND(), _xlfn.POISSON.DIST({0,1,2,3,4,5,6,7,8,9},$O27, TRUE),1), 0) -> 3 | AB27: =_xlfn.IFNA(MATCH(RAND(), _xlfn.POISSON.DIST({0,1,2,3,4,5,6,7,8,9},$O27, TRUE),1), 0) -> 3 | AC27: =_xlfn.IFNA(MATCH(RAND(), _xlfn.POISSON.DIST({0,1,2,3,4,5,6,7,8,9},$O27, TRUE),1), 0) -> 1 | AD27: =_xlfn.IFNA(MATCH(RAND(), _xlfn.POISSON.DIST({0,1,2,3,4,5,6,7,8,9},$O27, TRUE),1), 0) -> 1 | AE27: =_xlfn.IFNA(MATCH(RAND(), _xlfn.POISSON.DIST({0,1,2,3,4,5,6,7,8,9},$O27, TRUE),1), 0) -> 1 | AF27: =_xlfn.IFNA(MATCH(RAND(), _xlfn.POISSON.DIST({0,1,2,3,4,5,6,7,8,9},$O27, TRUE),1), 0) -> 0 | AG27: =_xlfn.IFNA(MATCH(RAND(), _xlfn.POISSON.DIST({0,1,2,3,4,5,6,7,8,9},$O27, TRUE),1), 0) -> 5 | AH27: =_xlfn.IFNA(MATCH(RAND(), _xlfn.POISSON.DIST({0,1,2,3,4,5,6,7,8,9},$O27, TRUE),1), 0) -> 2 | AI27: =_xlfn.IFNA(MATCH(RAND(), _xlfn.POISSON.DIST({0,1,2,3,4,5,6,7,8,9},$O27, TRUE),1), 0) -> 2 | AJ27: =_xlfn.IFNA(MATCH(RAND(), _xlfn.POISSON.DIST({0,1,2,3,4,5,6,7,8,9},$O27, TRUE),1), 0) -> 1 | AK27: =_xlfn.IFNA(MATCH(RAND(), _xlfn.POISSON.DIST({0,1,2,3,4,5,6,7,8,9},$O27, TRUE),1), 0) -> 2 | AL27: =_xlfn.IFNA(MATCH(RAND(), _xlfn.POISSON.DIST({0,1,2,3,4,5,6,7,8,9},$O27, TRUE),1), 0) -> 2 | AM27: =_xlfn.IFNA(MATCH(RAND(), _xlfn.POISSON.DIST({0,1,2,3,4,5,6,7,8,9},$O27, TRUE),1), 0) -> 1 | AN27: =_xlfn.IFNA(MATCH(RAND(), _xlfn.POISSON.DIST({0,1,2,3,4,5,6,7,8,9},$O27, TRUE),1), 0) -> 2 | AO27: =_xlfn.IFNA(MATCH(RAND(), _xlfn.POISSON.DIST({0,1,2,3,4,5,6,7,8,9},$O27, TRUE),1), 0) -> 0 | AP27: =_xlfn.IFNA(MATCH(RAND(), _xlfn.POISSON.DIST({0,1,2,3,4,5,6,7,8,9},$O27, TRUE),1), 0) -> 3 | AQ27: =_xlfn.IFNA(MATCH(RAND(), _xlfn.POISSON.DIST({0,1,2,3,4,5,6,7,8,9},$O27, TRUE),1), 0) -> 1 | AR27: =_xlfn.IFNA(MATCH(RAND(), _xlfn.POISSON.DIST({0,1,2,3,4,5,6,7,8,9},$O27, TRUE),1), 0) -> 2 | AS27: =_xlfn.IFNA(MATCH(RAND(), _xlfn.POISSON.DIST({0,1,2,3,4,5,6,7,8,9},$O27, TRUE),1), 0) -> 1 | AT27: =_xlfn.IFNA(MATCH(RAND(), _xlfn.POISSON.DIST({0,1,2,3,4,5,6,7,8,9},$O27, TRUE),1), 0) -> 0 | AU27: =_xlfn.IFNA(MATCH(RAND(), _xlfn.POISSON.DIST({0,1,2,3,4,5,6,7,8,9},$O27, TRUE),1), 0) -> 0 | AV27: =_xlfn.IFNA(MATCH(RAND(), _xlfn.POISSON.DIST({0,1,2,3,4,5,6,7,8,9},$O27, TRUE),1), 0) -> 3 | AW27: =_xlfn.IFNA(MATCH(RAND(), _xlfn.POISSON.DIST({0,1,2,3,4,5,6,7,8,9},$O27, TRUE),1), 0) -> 2 | AX27: =_xlfn.IFNA(MATCH(RAND(), _xlfn.POISSON.DIST({0,1,2,3,4,5,6,7,8,9},$O27, TRUE),1), 0) -> 1 | AY27: =_xlfn.IFNA(MATCH(RAND(), _xlfn.POISSON.DIST({0,1,2,3,4,5,6,7,8,9},$O27, TRUE),1), 0) -> 0 | AZ27: =_xlfn.IFNA(MATCH(RAND(), _xlfn.POISSON.DIST({0,1,2,3,4,5,6,7,8,9},$O27, TRUE),1), 0) -> 2 | BA27: =_xlfn.IFNA(MATCH(RAND(), _xlfn.POISSON.DIST({0,1,2,3,4,5,6,7,8,9},$O27, TRUE),1), 0) -> 1 | BB27: =_xlfn.IFNA(MATCH(RAND(), _xlfn.POISSON.DIST({0,1,2,3,4,5,6,7,8,9},$O27, TRUE),1), 0) -> 2 | BC27: =_xlfn.IFNA(MATCH(RAND(), _xlfn.POISSON.DIST({0,1,2,3,4,5,6,7,8,9},$O27, TRUE),1), 0) -> 0 | BD27: =_xlfn.IFNA(MATCH(RAND(), _xlfn.POISSON.DIST({0,1,2,3,4,5,6,7,8,9},$O27, TRUE),1), 0) -> 1 | BE27: =_xlfn.IFNA(MATCH(RAND(), _xlfn.POISSON.DIST({0,1,2,3,4,5,6,7,8,9},$O27, TRUE),1), 0) -> 2 | BF27: =_xlfn.IFNA(MATCH(RAND(), _xlfn.POISSON.DIST({0,1,2,3,4,5,6,7,8,9},$O27, TRUE),1), 0) -> 2 | BG27: =_xlfn.IFNA(MATCH(RAND(), _xlfn.POISSON.DIST({0,1,2,3,4,5,6,7,8,9},$O27, TRUE),1), 0) -> 3 | BH27: =_xlfn.IFNA(MATCH(RAND(), _xlfn.POISSON.DIST({0,1,2,3,4,5,6,7,8,9},$O27, TRUE),1), 0) -> 3 | BI27: =_xlfn.IFNA(MATCH(RAND(), _xlfn.POISSON.DIST({0,1,2,3,4,5,6,7,8,9},$O27, TRUE),1), 0) -> 1 | BJ27: =_xlfn.IFNA(MATCH(RAND(), _xlfn.POISSON.DIST({0,1,2,3,4,5,6,7,8,9},$O27, TRUE),1), 0) -> 4 | BK27: =_xlfn.IFNA(MATCH(RAND(), _xlfn.POISSON.DIST({0,1,2,3,4,5,6,7,8,9},$O27, TRUE),1), 0) -> 0 | BL27: =_xlfn.IFNA(MATCH(RAND(), _xlfn.POISSON.DIST({0,1,2,3,4,5,6,7,8,9},$O27, TRUE),1), 0) -> 3 | BM27: =_xlfn.IFNA(MATCH(RAND(), _xlfn.POISSON.DIST({0,1,2,3,4,5,6,7,8,9},$O27, TRUE),1), 0) -> 2 | BN27: =_xlfn.IFNA(MATCH(RAND(), _xlfn.POISSON.DIST({0,1,2,3,4,5,6,7,8,9},$O27, TRUE),1), 0) -> 2 | BP27: =_xlfn.IFNA(MATCH(RAND(), _xlfn.POISSON.DIST({0,1,2,3,4,5,6,7,8,9},$P27, TRUE),1), 0) -> 2 | BQ27: =_xlfn.IFNA(MATCH(RAND(), _xlfn.POISSON.DIST({0,1,2,3,4,5,6,7,8,9},$P27, TRUE),1), 0) -> 2 | BR27: =_xlfn.IFNA(MATCH(RAND(), _xlfn.POISSON.DIST({0,1,2,3,4,5,6,7,8,9},$P27, TRUE),1), 0) -> 2 | BS27: =_xlfn.IFNA(MATCH(RAND(), _xlfn.POISSON.DIST({0,1,2,3,4,5,6,7,8,9},$P27, TRUE),1), 0) -> 2 | BT27: =_xlfn.IFNA(MATCH(RAND(), _xlfn.POISSON.DIST({0,1,2,3,4,5,6,7,8,9},$P27, TRUE),1), 0) -> 0 | BU27: =_xlfn.IFNA(MATCH(RAND(), _xlfn.POISSON.DIST({0,1,2,3,4,5,6,7,8,9},$P27, TRUE),1), 0) -> 3 | BV27: =_xlfn.IFNA(MATCH(RAND(), _xlfn.POISSON.DIST({0,1,2,3,4,5,6,7,8,9},$P27, TRUE),1), 0) -> 0 | BW27: =_xlfn.IFNA(MATCH(RAND(), _xlfn.POISSON.DIST({0,1,2,3,4,5,6,7,8,9},$P27, TRUE),1), 0) -> 1 | BX27: =_xlfn.IFNA(MATCH(RAND(), _xlfn.POISSON.DIST({0,1,2,3,4,5,6,7,8,9},$P27, TRUE),1), 0) -> 1 | BY27: =_xlfn.IFNA(MATCH(RAND(), _xlfn.POISSON.DIST({0,1,2,3,4,5,6,7,8,9},$P27, TRUE),1), 0) -> 4 | BZ27: =_xlfn.IFNA(MATCH(RAND(), _xlfn.POISSON.DIST({0,1,2,3,4,5,6,7,8,9},$P27, TRUE),1), 0) -> 4 | CA27: =_xlfn.IFNA(MATCH(RAND(), _xlfn.POISSON.DIST({0,1,2,3,4,5,6,7,8,9},$P27, TRUE),1), 0) -> 1 | CB27: =_xlfn.IFNA(MATCH(RAND(), _xlfn.POISSON.DIST({0,1,2,3,4,5,6,7,8,9},$P27, TRUE),1), 0) -> 0 | CC27: =_xlfn.IFNA(MATCH(RAND(), _xlfn.POISSON.DIST({0,1,2,3,4,5,6,7,8,9},$P27, TRUE),1), 0) -> 3 | CD27: =_xlfn.IFNA(MATCH(RAND(), _xlfn.POISSON.DIST({0,1,2,3,4,5,6,7,8,9},$P27, TRUE),1), 0) -> 1 | CE27: =_xlfn.IFNA(MATCH(RAND(), _xlfn.POISSON.DIST({0,1,2,3,4,5,6,7,8,9},$P27, TRUE),1), 0) -> 0 | CF27: =_xlfn.IFNA(MATCH(RAND(), _xlfn.POISSON.DIST({0,1,2,3,4,5,6,7,8,9},$P27, TRUE),1), 0) -> 2 | CG27: =_xlfn.IFNA(MATCH(RAND(), _xlfn.POISSON.DIST({0,1,2,3,4,5,6,7,8,9},$P27, TRUE),1), 0) -> 1 | CH27: =_xlfn.IFNA(MATCH(RAND(), _xlfn.POISSON.DIST({0,1,2,3,4,5,6,7,8,9},$P27, TRUE),1), 0) -> 2 | CI27: =_xlfn.IFNA(MATCH(RAND(), _xlfn.POISSON.DIST({0,1,2,3,4,5,6,7,8,9},$P27, TRUE),1), 0) -> 5 | CJ27: =_xlfn.IFNA(MATCH(RAND(), _xlfn.POISSON.DIST({0,1,2,3,4,5,6,7,8,9},$P27, TRUE),1), 0) -> 0 | CK27: =_xlfn.IFNA(MATCH(RAND(), _xlfn.POISSON.DIST({0,1,2,3,4,5,6,7,8,9},$P27, TRUE),1), 0) -> 2 | CL27: =_xlfn.IFNA(MATCH(RAND(), _xlfn.POISSON.DIST({0,1,2,3,4,5,6,7,8,9},$P27, TRUE),1), 0) -> 0 | CM27: =_xlfn.IFNA(MATCH(RAND(), _xlfn.POISSON.DIST({0,1,2,3,4,5,6,7,8,9},$P27, TRUE),1), 0) -> 2 | CN27: =_xlfn.IFNA(MATCH(RAND(), _xlfn.POISSON.DIST({0,1,2,3,4,5,6,7,8,9},$P27, TRUE),1), 0) -> 2 | CO27: =_xlfn.IFNA(MATCH(RAND(), _xlfn.POISSON.DIST({0,1,2,3,4,5,6,7,8,9},$P27, TRUE),1), 0) -> 1 | CP27: =_xlfn.IFNA(MATCH(RAND(), _xlfn.POISSON.DIST({0,1,2,3,4,5,6,7,8,9},$P27, TRUE),1), 0) -> 0 | CQ27: =_xlfn.IFNA(MATCH(RAND(), _xlfn.POISSON.DIST({0,1,2,3,4,5,6,7,8,9},$P27, TRUE),1), 0) -> 4 | CR27: =_xlfn.IFNA(MATCH(RAND(), _xlfn.POISSON.DIST({0,1,2,3,4,5,6,7,8,9},$P27, TRUE),1), 0) -> 1 | CS27: =_xlfn.IFNA(MATCH(RAND(), _xlfn.POISSON.DIST({0,1,2,3,4,5,6,7,8,9},$P27, TRUE),1), 0) -> 0 | CT27: =_xlfn.IFNA(MATCH(RAND(), _xlfn.POISSON.DIST({0,1,2,3,4,5,6,7,8,9},$P27, TRUE),1), 0) -> 0 | CU27: =_xlfn.IFNA(MATCH(RAND(), _xlfn.POISSON.DIST({0,1,2,3,4,5,6,7,8,9},$P27, TRUE),1), 0) -> 2 | CV27: =_xlfn.IFNA(MATCH(RAND(), _xlfn.POISSON.DIST({0,1,2,3,4,5,6,7,8,9},$P27, TRUE),1), 0) -> 2 | CW27: =_xlfn.IFNA(MATCH(RAND(), _xlfn.POISSON.DIST({0,1,2,3,4,5,6,7,8,9},$P27, TRUE),1), 0) -> 3 | CX27: =_xlfn.IFNA(MATCH(RAND(), _xlfn.POISSON.DIST({0,1,2,3,4,5,6,7,8,9},$P27, TRUE),1), 0) -> 2 | CY27: =_xlfn.IFNA(MATCH(RAND(), _xlfn.POISSON.DIST({0,1,2,3,4,5,6,7,8,9},$P27, TRUE),1), 0) -> 0 | CZ27: =_xlfn.IFNA(MATCH(RAND(), _xlfn.POISSON.DIST({0,1,2,3,4,5,6,7,8,9},$P27, TRUE),1), 0) -> 2 | DA27: =_xlfn.IFNA(MATCH(RAND(), _xlfn.POISSON.DIST({0,1,2,3,4,5,6,7,8,9},$P27, TRUE),1), 0) -> 1 | DB27: =_xlfn.IFNA(MATCH(RAND(), _xlfn.POISSON.DIST({0,1,2,3,4,5,6,7,8,9},$P27, TRUE),1), 0) -> 5 | DC27: =_xlfn.IFNA(MATCH(RAND(), _xlfn.POISSON.DIST({0,1,2,3,4,5,6,7,8,9},$P27, TRUE),1), 0) -> 1 | DD27: =_xlfn.IFNA(MATCH(RAND(), _xlfn.POISSON.DIST({0,1,2,3,4,5,6,7,8,9},$P27, TRUE),1), 0) -> 2 | DE27: =_xlfn.IFNA(MATCH(RAND(), _xlfn.POISSON.DIST({0,1,2,3,4,5,6,7,8,9},$P27, TRUE),1), 0) -> 1 | DF27: =_xlfn.IFNA(MATCH(RAND(), _xlfn.POISSON.DIST({0,1,2,3,4,5,6,7,8,9},$P27, TRUE),1), 0) -> 1 | DG27: =_xlfn.IFNA(MATCH(RAND(), _xlfn.POISSON.DIST({0,1,2,3,4,5,6,7,8,9},$P27, TRUE),1), 0) -> 1 | DH27: =_xlfn.IFNA(MATCH(RAND(), _xlfn.POISSON.DIST({0,1,2,3,4,5,6,7,8,9},$P27, TRUE),1), 0) -> 2 | DI27: =_xlfn.IFNA(MATCH(RAND(), _xlfn.POISSON.DIST({0,1,2,3,4,5,6,7,8,9},$P27, TRUE),1), 0) -> 1 | DJ27: =_xlfn.IFNA(MATCH(RAND(), _xlfn.POISSON.DIST({0,1,2,3,4,5,6,7,8,9},$P27, TRUE),1), 0) -> 1 | DK27: =_xlfn.IFNA(MATCH(RAND(), _xlfn.POISSON.DIST({0,1,2,3,4,5,6,7,8,9},$P27, TRUE),1), 0) -> 1 | DL27: =_xlfn.IFNA(MATCH(RAND(), _xlfn.POISSON.DIST({0,1,2,3,4,5,6,7,8,9},$P27, TRUE),1), 0) -> 2 | DM27: =_xlfn.IFNA(MATCH(RAND(), _xlfn.POISSON.DIST({0,1,2,3,4,5,6,7,8,9},$P27, TRUE),1), 0) -> 0
C28: 2019-06-16 | D28: F | E28: Schweden | F28: =(AVERAGE(Q28:BN28))*(1+INDEX('Prognosen für die Gruppenphase'!$C$4:$O$28, MATCH('Spiele in diesem Jahr'!E28,'Prognosen für die Gruppenphase'!$D$4:$D$28,0),3)) -> 3.18 | G28: Thailand | H28: =(AVERAGE(BP28:DM28))*(1+INDEX('Prognosen für die Gruppenphase'!$C$4:$O$28, MATCH('Spiele in diesem Jahr'!G28,'Prognosen für die Gruppenphase'!$D$4:$D$28,0),3)) -> 0.40 | I28: Schweden | L28: 3.18 | M28: 0.4 | N28: Schweden | O28: =(OFFSET('Anhang 3 – Tore je Gruppe'!$C$13,(INDEX('Anhang 1 – Mannschaftsdaten'!$C$13:$F$112,MATCH(G28,'Anhang 1 – Mannschaftsdaten'!$C$13:$C$112,0),4)/10),(INDEX('Anhang 1 – Mannschaftsdaten'!$C$13:$F$112,MATCH(E28,'Anhang 1 – Mannschaftsdaten'!$C$13:$C$112,0),4)/10))) -> 2.94 | P28: =OFFSET('Anhang 3 – Tore je Gruppe'!$C$13,(INDEX('Anhang 1 – Mannschaftsdaten'!$C$13:$F$112, MATCH(E28,'Anhang 1 – Mannschaftsdaten'!$C$13:$C$112,0),4)/10), (INDEX('Anhang 1 – Mannschaftsdaten'!$C$13:$F$112, MATCH(G28, 'Anhang 1 – Mannschaftsdaten'!$C$13:$C$112,0),4)/10)) -> 0.38 | Q28: =_xlfn.IFNA(MATCH(RAND(), _xlfn.POISSON.DIST({0,1,2,3,4,5,6,7,8,9},$O28, TRUE),1), 0) -> 1 | R28: =_xlfn.IFNA(MATCH(RAND(), _xlfn.POISSON.DIST({0,1,2,3,4,5,6,7,8,9},$O28, TRUE),1), 0) -> 1 | S28: =_xlfn.IFNA(MATCH(RAND(), _xlfn.POISSON.DIST({0,1,2,3,4,5,6,7,8,9},$O28, TRUE),1), 0) -> 0 | T28: =_xlfn.IFNA(MATCH(RAND(), _xlfn.POISSON.DIST({0,1,2,3,4,5,6,7,8,9},$O28, TRUE),1), 0) -> 1 | U28: =_xlfn.IFNA(MATCH(RAND(), _xlfn.POISSON.DIST({0,1,2,3,4,5,6,7,8,9},$O28, TRUE),1), 0) -> 2 | V28: =_xlfn.IFNA(MATCH(RAND(), _xlfn.POISSON.DIST({0,1,2,3,4,5,6,7,8,9},$O28, TRUE),1), 0) -> 6 | W28: =_xlfn.IFNA(MATCH(RAND(), _xlfn.POISSON.DIST({0,1,2,3,4,5,6,7,8,9},$O28, TRUE),1), 0) -> 6 | X28: =_xlfn.IFNA(MATCH(RAND(), _xlfn.POISSON.DIST({0,1,2,3,4,5,6,7,8,9},$O28, TRUE),1), 0) -> 4 | Y28: =_xlfn.IFNA(MATCH(RAND(), _xlfn.POISSON.DIST({0,1,2,3,4,5,6,7,8,9},$O28, TRUE),1), 0) -> 4 | Z28: =_xlfn.IFNA(MATCH(RAND(), _xlfn.POISSON.DIST({0,1,2,3,4,5,6,7,8,9},$O28, TRUE),1), 0) -> 2 | AA28: =_xlfn.IFNA(MATCH(RAND(), _xlfn.POISSON.DIST({0,1,2,3,4,5,6,7,8,9},$O28, TRUE),1), 0) -> 2 | AB28: =_xlfn.IFNA(MATCH(RAND(), _xlfn.POISSON.DIST({0,1,2,3,4,5,6,7,8,9},$O28, TRUE),1), 0) -> 3 | AC28: =_xlfn.IFNA(MATCH(RAND(), _xlfn.POISSON.DIST({0,1,2,3,4,5,6,7,8,9},$O28, TRUE),1), 0) -> 4 | AD28: =_xlfn.IFNA(MATCH(RAND(), _xlfn.POISSON.DIST({0,1,2,3,4,5,6,7,8,9},$O28, TRUE),1), 0) -> 3 | AE28: =_xlfn.IFNA(MATCH(RAND(), _xlfn.POISSON.DIST({0,1,2,3,4,5,6,7,8,9},$O28, TRUE),1), 0) -> 1 | AF28: =_xlfn.IFNA(MATCH(RAND(), _xlfn.POISSON.DIST({0,1,2,3,4,5,6,7,8,9},$O28, TRUE),1), 0) -> 2 | AG28: =_xlfn.IFNA(MATCH(RAND(), _xlfn.POISSON.DIST({0,1,2,3,4,5,6,7,8,9},$O28, TRUE),1), 0) -> 3 | AH28: =_xlfn.IFNA(MATCH(RAND(), _xlfn.POISSON.DIST({0,1,2,3,4,5,6,7,8,9},$O28, TRUE),1), 0) -> 3 | AI28: =_xlfn.IFNA(MATCH(RAND(), _xlfn.POISSON.DIST({0,1,2,3,4,5,6,7,8,9},$O28, TRUE),1), 0) -> 5 | AJ28: =_xlfn.IFNA(MATCH(RAND(), _xlfn.POISSON.DIST({0,1,2,3,4,5,6,7,8,9},$O28, TRUE),1), 0) -> 1 | AK28: =_xlfn.IFNA(MATCH(RAND(), _xlfn.POISSON.DIST({0,1,2,3,4,5,6,7,8,9},$O28, TRUE),1), 0) -> 4 | AL28: =_xlfn.IFNA(MATCH(RAND(), _xlfn.POISSON.DIST({0,1,2,3,4,5,6,7,8,9},$O28, TRUE),1), 0) -> 2 | AM28: =_xlfn.IFNA(MATCH(RAND(), _xlfn.POISSON.DIST({0,1,2,3,4,5,6,7,8,9},$O28, TRUE),1), 0) -> 5 | AN28: =_xlfn.IFNA(MATCH(RAND(), _xlfn.POISSON.DIST({0,1,2,3,4,5,6,7,8,9},$O28, TRUE),1), 0) -> 4 | AO28: =_xlfn.IFNA(MATCH(RAND(), _xlfn.POISSON.DIST({0,1,2,3,4,5,6,7,8,9},$O28, TRUE),1), 0) -> 4 | AP28: =_xlfn.IFNA(MATCH(RAND(), _xlfn.POISSON.DIST({0,1,2,3,4,5,6,7,8,9},$O28, TRUE),1), 0) -> 1 | AQ28: =_xlfn.IFNA(MATCH(RAND(), _xlfn.POISSON.DIST({0,1,2,3,4,5,6,7,8,9},$O28, TRUE),1), 0) -> 5 | AR28: =_xlfn.IFNA(MATCH(RAND(), _xlfn.POISSON.DIST({0,1,2,3,4,5,6,7,8,9},$O28, TRUE),1), 0) -> 4 | AS28: =_xlfn.IFNA(MATCH(RAND(), _xlfn.POISSON.DIST({0,1,2,3,4,5,6,7,8,9},$O28, TRUE),1), 0) -> 4 | AT28: =_xlfn.IFNA(MATCH(RAND(), _xlfn.POISSON.DIST({0,1,2,3,4,5,6,7,8,9},$O28, TRUE),1), 0) -> 0 | AU28: =_xlfn.IFNA(MATCH(RAND(), _xlfn.POISSON.DIST({0,1,2,3,4,5,6,7,8,9},$O28, TRUE),1), 0) -> 7 | AV28: =_xlfn.IFNA(MATCH(RAND(), _xlfn.POISSON.DIST({0,1,2,3,4,5,6,7,8,9},$O28, TRUE),1), 0) -> 7 | AW28: =_xlfn.IFNA(MATCH(RAND(), _xlfn.POISSON.DIST({0,1,2,3,4,5,6,7,8,9},$O28, TRUE),1), 0) -> 1 | AX28: =_xlfn.IFNA(MATCH(RAND(), _xlfn.POISSON.DIST({0,1,2,3,4,5,6,7,8,9},$O28, TRUE),1), 0) -> 3 | AY28: =_xlfn.IFNA(MATCH(RAND(), _xlfn.POISSON.DIST({0,1,2,3,4,5,6,7,8,9},$O28, TRUE),1), 0) -> 4 | AZ28: =_xlfn.IFNA(MATCH(RAND(), _xlfn.POISSON.DIST({0,1,2,3,4,5,6,7,8,9},$O28, TRUE),1), 0) -> 4 | BA28: =_xlfn.IFNA(MATCH(RAND(), _xlfn.POISSON.DIST({0,1,2,3,4,5,6,7,8,9},$O28, TRUE),1), 0) -> 3 | BB28: =_xlfn.IFNA(MATCH(RAND(), _xlfn.POISSON.DIST({0,1,2,3,4,5,6,7,8,9},$O28, TRUE),1), 0) -> 4 | BC28: =_xlfn.IFNA(MATCH(RAND(), _xlfn.POISSON.DIST({0,1,2,3,4,5,6,7,8,9},$O28, TRUE),1), 0) -> 4 | BD28: =_xlfn.IFNA(MATCH(RAND(), _xlfn.POISSON.DIST({0,1,2,3,4,5,6,7,8,9},$O28, TRUE),1), 0) -> 1 | BE28: =_xlfn.IFNA(MATCH(RAND(), _xlfn.POISSON.DIST({0,1,2,3,4,5,6,7,8,9},$O28, TRUE),1), 0) -> 4 | BF28: =_xlfn.IFNA(MATCH(RAND(), _xlfn.POISSON.DIST({0,1,2,3,4,5,6,7,8,9},$O28, TRUE),1), 0) -> 2 | BG28: =_xlfn.IFNA(MATCH(RAND(), _xlfn.POISSON.DIST({0,1,2,3,4,5,6,7,8,9},$O28, TRUE),1), 0) -> 5 | BH28: =_xlfn.IFNA(MATCH(RAND(), _xlfn.POISSON.DIST({0,1,2,3,4,5,6,7,8,9},$O28, TRUE),1), 0) -> 3 | BI28: =_xlfn.IFNA(MATCH(RAND(), _xlfn.POISSON.DIST({0,1,2,3,4,5,6,7,8,9},$O28, TRUE),1), 0) -> 1 | BJ28: =_xlfn.IFNA(MATCH(RAND(), _xlfn.POISSON.DIST({0,1,2,3,4,5,6,7,8,9},$O28, TRUE),1), 0) -> 1 | BK28: =_xlfn.IFNA(MATCH(RAND(), _xlfn.POISSON.DIST({0,1,2,3,4,5,6,7,8,9},$O28, TRUE),1), 0) -> 1 | BL28: =_xlfn.IFNA(MATCH(RAND(), _xlfn.POISSON.DIST({0,1,2,3,4,5,6,7,8,9},$O28, TRUE),1), 0) -> 6 | BM28: =_xlfn.IFNA(MATCH(RAND(), _xlfn.POISSON.DIST({0,1,2,3,4,5,6,7,8,9},$O28, TRUE),1), 0) -> 3 | BN28: =_xlfn.IFNA(MATCH(RAND(), _xlfn.POISSON.DIST({0,1,2,3,4,5,6,7,8,9},$O28, TRUE),1), 0) -> 8 | BP28: =_xlfn.IFNA(MATCH(RAND(), _xlfn.POISSON.DIST({0,1,2,3,4,5,6,7,8,9},$P28, TRUE),1), 0) -> 1 | BQ28: =_xlfn.IFNA(MATCH(RAND(), _xlfn.POISSON.DIST({0,1,2,3,4,5,6,7,8,9},$P28, TRUE),1), 0) -> 0 | BR28: =_xlfn.IFNA(MATCH(RAND(), _xlfn.POISSON.DIST({0,1,2,3,4,5,6,7,8,9},$P28, TRUE),1), 0) -> 0 | BS28: =_xlfn.IFNA(MATCH(RAND(), _xlfn.POISSON.DIST({0,1,2,3,4,5,6,7,8,9},$P28, TRUE),1), 0) -> 1 | BT28: =_xlfn.IFNA(MATCH(RAND(), _xlfn.POISSON.DIST({0,1,2,3,4,5,6,7,8,9},$P28, TRUE),1), 0) -> 1 | BU28: =_xlfn.IFNA(MATCH(RAND(), _xlfn.POISSON.DIST({0,1,2,3,4,5,6,7,8,9},$P28, TRUE),1), 0) -> 1 | BV28: =_xlfn.IFNA(MATCH(RAND(), _xlfn.POISSON.DIST({0,1,2,3,4,5,6,7,8,9},$P28, TRUE),1), 0) -> 0 | BW28: =_xlfn.IFNA(MATCH(RAND(), _xlfn.POISSON.DIST({0,1,2,3,4,5,6,7,8,9},$P28, TRUE),1), 0) -> 1 | BX28: =_xlfn.IFNA(MATCH(RAND(), _xlfn.POISSON.DIST({0,1,2,3,4,5,6,7,8,9},$P28, TRUE),1), 0) -> 0 | BY28: =_xlfn.IFNA(MATCH(RAND(), _xlfn.POISSON.DIST({0,1,2,3,4,5,6,7,8,9},$P28, TRUE),1), 0) -> 0 | BZ28: =_xlfn.IFNA(MATCH(RAND(), _xlfn.POISSON.DIST({0,1,2,3,4,5,6,7,8,9},$P28, TRUE),1), 0) -> 0 | CA28: =_xlfn.IFNA(MATCH(RAND(), _xlfn.POISSON.DIST({0,1,2,3,4,5,6,7,8,9},$P28, TRUE),1), 0) -> 0 | CB28: =_xlfn.IFNA(MATCH(RAND(), _xlfn.POISSON.DIST({0,1,2,3,4,5,6,7,8,9},$P28, TRUE),1), 0) -> 0 | CC28: =_xlfn.IFNA(MATCH(RAND(), _xlfn.POISSON.DIST({0,1,2,3,4,5,6,7,8,9},$P28, TRUE),1), 0) -> 0 | CD28: =_xlfn.IFNA(MATCH(RAND(), _xlfn.POISSON.DIST({0,1,2,3,4,5,6,7,8,9},$P28, TRUE),1), 0) -> 0 | CE28: =_xlfn.IFNA(MATCH(RAND(), _xlfn.POISSON.DIST({0,1,2,3,4,5,6,7,8,9},$P28, TRUE),1), 0) -> 0 | CF28: =_xlfn.IFNA(MATCH(RAND(), _xlfn.POISSON.DIST({0,1,2,3,4,5,6,7,8,9},$P28, TRUE),1), 0) -> 0 | CG28: =_xlfn.IFNA(MATCH(RAND(), _xlfn.POISSON.DIST({0,1,2,3,4,5,6,7,8,9},$P28, TRUE),1), 0) -> 0 | CH28: =_xlfn.IFNA(MATCH(RAND(), _xlfn.POISSON.DIST({0,1,2,3,4,5,6,7,8,9},$P28, TRUE),1), 0) -> 1 | CI28: =_xlfn.IFNA(MATCH(RAND(), _xlfn.POISSON.DIST({0,1,2,3,4,5,6,7,8,9},$P28, TRUE),1), 0) -> 0 | CJ28: =_xlfn.IFNA(MATCH(RAND(), _xlfn.POISSON.DIST({0,1,2,3,4,5,6,7,8,9},$P28, TRUE),1), 0) -> 0 | CK28: =_xlfn.IFNA(MATCH(RAND(), _xlfn.POISSON.DIST({0,1,2,3,4,5,6,7,8,9},$P28, TRUE),1), 0) -> 0 | CL28: =_xlfn.IFNA(MATCH(RAND(), _xlfn.POISSON.DIST({0,1,2,3,4,5,6,7,8,9},$P28, TRUE),1), 0) -> 0 | CM28: =_xlfn.IFNA(MATCH(RAND(), _xlfn.POISSON.DIST({0,1,2,3,4,5,6,7,8,9},$P28, TRUE),1), 0) -> 0 | CN28: =_xlfn.IFNA(MATCH(RAND(), _xlfn.POISSON.DIST({0,1,2,3,4,5,6,7,8,9},$P28, TRUE),1), 0) -> 0 | CO28: =_xlfn.IFNA(MATCH(RAND(), _xlfn.POISSON.DIST({0,1,2,3,4,5,6,7,8,9},$P28, TRUE),1), 0) -> 0 | CP28: =_xlfn.IFNA(MATCH(RAND(), _xlfn.POISSON.DIST({0,1,2,3,4,5,6,7,8,9},$P28, TRUE),1), 0) -> 0 | CQ28: =_xlfn.IFNA(MATCH(RAND(), _xlfn.POISSON.DIST({0,1,2,3,4,5,6,7,8,9},$P28, TRUE),1), 0) -> 0 | CR28: =_xlfn.IFNA(MATCH(RAND(), _xlfn.POISSON.DIST({0,1,2,3,4,5,6,7,8,9},$P28, TRUE),1), 0) -> 1 | CS28: =_xlfn.IFNA(MATCH(RAND(), _xlfn.POISSON.DIST({0,1,2,3,4,5,6,7,8,9},$P28, TRUE),1), 0) -> 2 | CT28: =_xlfn.IFNA(MATCH(RAND(), _xlfn.POISSON.DIST({0,1,2,3,4,5,6,7,8,9},$P28, TRUE),1), 0) -> 2 | CU28: =_xlfn.IFNA(MATCH(RAND(), _xlfn.POISSON.DIST({0,1,2,3,4,5,6,7,8,9},$P28, TRUE),1), 0) -> 1 | CV28: =_xlfn.IFNA(MATCH(RAND(), _xlfn.POISSON.DIST({0,1,2,3,4,5,6,7,8,9},$P28, TRUE),1), 0) -> 0 | CW28: =_xlfn.IFNA(MATCH(RAND(), _xlfn.POISSON.DIST({0,1,2,3,4,5,6,7,8,9},$P28, TRUE),1), 0) -> 1 | CX28: =_xlfn.IFNA(MATCH(RAND(), _xlfn.POISSON.DIST({0,1,2,3,4,5,6,7,8,9},$P28, TRUE),1), 0) -> 0 | CY28: =_xlfn.IFNA(MATCH(RAND(), _xlfn.POISSON.DIST({0,1,2,3,4,5,6,7,8,9},$P28, TRUE),1), 0) -> 0 | CZ28: =_xlfn.IFNA(MATCH(RAND(), _xlfn.POISSON.DIST({0,1,2,3,4,5,6,7,8,9},$P28, TRUE),1), 0) -> 0 | DA28: =_xlfn.IFNA(MATCH(RAND(), _xlfn.POISSON.DIST({0,1,2,3,4,5,6,7,8,9},$P28, TRUE),1), 0) -> 1 | DB28: =_xlfn.IFNA(MATCH(RAND(), _xlfn.POISSON.DIST({0,1,2,3,4,5,6,7,8,9},$P28, TRUE),1), 0) -> 0 | DC28: =_xlfn.IFNA(MATCH(RAND(), _xlfn.POISSON.DIST({0,1,2,3,4,5,6,7,8,9},$P28, TRUE),1), 0) -> 0 | DD28: =_xlfn.IFNA(MATCH(RAND(), _xlfn.POISSON.DIST({0,1,2,3,4,5,6,7,8,9},$P28, TRUE),1), 0) -> 0 | DE28: =_xlfn.IFNA(MATCH(RAND(), _xlfn.POISSON.DIST({0,1,2,3,4,5,6,7,8,9},$P28, TRUE),1), 0) -> 2 | DF28: =_xlfn.IFNA(MATCH(RAND(), _xlfn.POISSON.DIST({0,1,2,3,4,5,6,7,8,9},$P28, TRUE),1), 0) -> 2 | DG28: =_xlfn.IFNA(MATCH(RAND(), _xlfn.POISSON.DIST({0,1,2,3,4,5,6,7,8,9},$P28, TRUE),1), 0) -> 1 | DH28: =_xlfn.IFNA(MATCH(RAND(), _xlfn.POISSON.DIST({0,1,2,3,4,5,6,7,8,9},$P28, TRUE),1), 0) -> 0 | DI28: =_xlfn.IFNA(MATCH(RAND(), _xlfn.POISSON.DIST({0,1,2,3,4,5,6,7,8,9},$P28, TRUE),1), 0) -> 0 | DJ28: =_xlfn.IFNA(MATCH(RAND(), _xlfn.POISSON.DIST({0,1,2,3,4,5,6,7,8,9},$P28, TRUE),1), 0) -> 0 | DK28: =_xlfn.IFNA(MATCH(RAND(), _xlfn.POISSON.DIST({0,1,2,3,4,5,6,7,8,9},$P28, TRUE),1), 0) -> 1 | DL28: =_xlfn.IFNA(MATCH(RAND(), _xlfn.POISSON.DIST({0,1,2,3,4,5,6,7,8,9},$P28, TRUE),1), 0) -> 0 | DM28: =_xlfn.IFNA(MATCH(RAND(), _xlfn.POISSON.DIST({0,1,2,3,4,5,6,7,8,9},$P28, TRUE),1), 0) -> 0
C29: 2019-06-16 | D29: F | E29: Vereinigte Staaten von Amerika | F29: =(AVERAGE(Q29:BN29))*(1+INDEX('Prognosen für die Gruppenphase'!$C$4:$O$28, MATCH('Spiele in diesem Jahr'!E29,'Prognosen für die Gruppenphase'!$D$4:$D$28,0),3)) -> 3.08 | G29: Chile | H29: =(AVERAGE(BP29:DM29))*(1+INDEX('Prognosen für die Gruppenphase'!$C$4:$O$28, MATCH('Spiele in diesem Jahr'!G29,'Prognosen für die Gruppenphase'!$D$4:$D$28,0),3)) -> 0.34 | I29: Vereinigte Staaten von Amerika | L29: 3.08 | M29: 0.34 | N29: Vereinigte Staaten von Amerika | O29: =(OFFSET('Anhang 3 – Tore je Gruppe'!$C$13,(INDEX('Anhang 1 – Mannschaftsdaten'!$C$13:$F$112,MATCH(G29,'Anhang 1 – Mannschaftsdaten'!$C$13:$C$112,0),4)/10),(INDEX('Anhang 1 – Mannschaftsdaten'!$C$13:$F$112,MATCH(E29,'Anhang 1 – Mannschaftsdaten'!$C$13:$C$112,0),4)/10))) -> 2.94 | P29: =OFFSET('Anhang 3 – Tore je Gruppe'!$C$13,(INDEX('Anhang 1 – Mannschaftsdaten'!$C$13:$F$112, MATCH(E29,'Anhang 1 – Mannschaftsdaten'!$C$13:$C$112,0),4)/10), (INDEX('Anhang 1 – Mannschaftsdaten'!$C$13:$F$112, MATCH(G29, 'Anhang 1 – Mannschaftsdaten'!$C$13:$C$112,0),4)/10)) -> 0.38 | Q29: =_xlfn.IFNA(MATCH(RAND(), _xlfn.POISSON.DIST({0,1,2,3,4,5,6,7,8,9},$O29, TRUE),1), 0) -> 3 | R29: =_xlfn.IFNA(MATCH(RAND(), _xlfn.POISSON.DIST({0,1,2,3,4,5,6,7,8,9},$O29, TRUE),1), 0) -> 1 | S29: =_xlfn.IFNA(MATCH(RAND(), _xlfn.POISSON.DIST({0,1,2,3,4,5,6,7,8,9},$O29, TRUE),1), 0) -> 5 | T29: =_xlfn.IFNA(MATCH(RAND(), _xlfn.POISSON.DIST({0,1,2,3,4,5,6,7,8,9},$O29, TRUE),1), 0) -> 2 | U29: =_xlfn.IFNA(MATCH(RAND(), _xlfn.POISSON.DIST({0,1,2,3,4,5,6,7,8,9},$O29, TRUE),1), 0) -> 1 | V29: =_xlfn.IFNA(MATCH(RAND(), _xlfn.POISSON.DIST({0,1,2,3,4,5,6,7,8,9},$O29, TRUE),1), 0) -> 4 | W29: =_xlfn.IFNA(MATCH(RAND(), _xlfn.POISSON.DIST({0,1,2,3,4,5,6,7,8,9},$O29, TRUE),1), 0) -> 5 | X29: =_xlfn.IFNA(MATCH(RAND(), _xlfn.POISSON.DIST({0,1,2,3,4,5,6,7,8,9},$O29, TRUE),1), 0) -> 3 | Y29: =_xlfn.IFNA(MATCH(RAND(), _xlfn.POISSON.DIST({0,1,2,3,4,5,6,7,8,9},$O29, TRUE),1), 0) -> 4 | Z29: =_xlfn.IFNA(MATCH(RAND(), _xlfn.POISSON.DIST({0,1,2,3,4,5,6,7,8,9},$O29, TRUE),1), 0) -> 3 | AA29: =_xlfn.IFNA(MATCH(RAND(), _xlfn.POISSON.DIST({0,1,2,3,4,5,6,7,8,9},$O29, TRUE),1), 0) -> 4 | AB29: =_xlfn.IFNA(MATCH(RAND(), _xlfn.POISSON.DIST({0,1,2,3,4,5,6,7,8,9},$O29, TRUE),1), 0) -> 3 | AC29: =_xlfn.IFNA(MATCH(RAND(), _xlfn.POISSON.DIST({0,1,2,3,4,5,6,7,8,9},$O29, TRUE),1), 0) -> 0 | AD29: =_xlfn.IFNA(MATCH(RAND(), _xlfn.POISSON.DIST({0,1,2,3,4,5,6,7,8,9},$O29, TRUE),1), 0) -> 0 | AE29: =_xlfn.IFNA(MATCH(RAND(), _xlfn.POISSON.DIST({0,1,2,3,4,5,6,7,8,9},$O29, TRUE),1), 0) -> 3 | AF29: =_xlfn.IFNA(MATCH(RAND(), _xlfn.POISSON.DIST({0,1,2,3,4,5,6,7,8,9},$O29, TRUE),1), 0) -> 3 | AG29: =_xlfn.IFNA(MATCH(RAND(), _xlfn.POISSON.DIST({0,1,2,3,4,5,6,7,8,9},$O29, TRUE),1), 0) -> 1 | AH29: =_xlfn.IFNA(MATCH(RAND(), _xlfn.POISSON.DIST({0,1,2,3,4,5,6,7,8,9},$O29, TRUE),1), 0) -> 1 | AI29: =_xlfn.IFNA(MATCH(RAND(), _xlfn.POISSON.DIST({0,1,2,3,4,5,6,7,8,9},$O29, TRUE),1), 0) -> 2 | AJ29: =_xlfn.IFNA(MATCH(RAND(), _xlfn.POISSON.DIST({0,1,2,3,4,5,6,7,8,9},$O29, TRUE),1), 0) -> 3 | AK29: =_xlfn.IFNA(MATCH(RAND(), _xlfn.POISSON.DIST({0,1,2,3,4,5,6,7,8,9},$O29, TRUE),1), 0) -> 2 | AL29: =_xlfn.IFNA(MATCH(RAND(), _xlfn.POISSON.DIST({0,1,2,3,4,5,6,7,8,9},$O29, TRUE),1), 0) -> 4 | AM29: =_xlfn.IFNA(MATCH(RAND(), _xlfn.POISSON.DIST({0,1,2,3,4,5,6,7,8,9},$O29, TRUE),1), 0) -> 2 | AN29: =_xlfn.IFNA(MATCH(RAND(), _xlfn.POISSON.DIST({0,1,2,3,4,5,6,7,8,9},$O29, TRUE),1), 0) -> 6 | AO29: =_xlfn.IFNA(MATCH(RAND(), _xlfn.POISSON.DIST({0,1,2,3,4,5,6,7,8,9},$O29, TRUE),1), 0) -> 5 | AP29: =_xlfn.IFNA(MATCH(RAND(), _xlfn.POISSON.DIST({0,1,2,3,4,5,6,7,8,9},$O29, TRUE),1), 0) -> 3 | AQ29: =_xlfn.IFNA(MATCH(RAND(), _xlfn.POISSON.DIST({0,1,2,3,4,5,6,7,8,9},$O29, TRUE),1), 0) -> 3 | AR29: =_xlfn.IFNA(MATCH(RAND(), _xlfn.POISSON.DIST({0,1,2,3,4,5,6,7,8,9},$O29, TRUE),1), 0) -> 6 | AS29: =_xlfn.IFNA(MATCH(RAND(), _xlfn.POISSON.DIST({0,1,2,3,4,5,6,7,8,9},$O29, TRUE),1), 0) -> 4 | AT29: =_xlfn.IFNA(MATCH(RAND(), _xlfn.POISSON.DIST({0,1,2,3,4,5,6,7,8,9},$O29, TRUE),1), 0) -> 2 | AU29: =_xlfn.IFNA(MATCH(RAND(), _xlfn.POISSON.DIST({0,1,2,3,4,5,6,7,8,9},$O29, TRUE),1), 0) -> 3 | AV29: =_xlfn.IFNA(MATCH(RAND(), _xlfn.POISSON.DIST({0,1,2,3,4,5,6,7,8,9},$O29, TRUE),1), 0) -> 6 | AW29: =_xlfn.IFNA(MATCH(RAND(), _xlfn.POISSON.DIST({0,1,2,3,4,5,6,7,8,9},$O29, TRUE),1), 0) -> 3 | AX29: =_xlfn.IFNA(MATCH(RAND(), _xlfn.POISSON.DIST({0,1,2,3,4,5,6,7,8,9},$O29, TRUE),1), 0) -> 3 | AY29: =_xlfn.IFNA(MATCH(RAND(), _xlfn.POISSON.DIST({0,1,2,3,4,5,6,7,8,9},$O29, TRUE),1), 0) -> 2 | AZ29: =_xlfn.IFNA(MATCH(RAND(), _xlfn.POISSON.DIST({0,1,2,3,4,5,6,7,8,9},$O29, TRUE),1), 0) -> 3 | BA29: =_xlfn.IFNA(MATCH(RAND(), _xlfn.POISSON.DIST({0,1,2,3,4,5,6,7,8,9},$O29, TRUE),1), 0) -> 2 | BB29: =_xlfn.IFNA(MATCH(RAND(), _xlfn.POISSON.DIST({0,1,2,3,4,5,6,7,8,9},$O29, TRUE),1), 0) -> 1 | BC29: =_xlfn.IFNA(MATCH(RAND(), _xlfn.POISSON.DIST({0,1,2,3,4,5,6,7,8,9},$O29, TRUE),1), 0) -> 5 | BD29: =_xlfn.IFNA(MATCH(RAND(), _xlfn.POISSON.DIST({0,1,2,3,4,5,6,7,8,9},$O29, TRUE),1), 0) -> 5 | BE29: =_xlfn.IFNA(MATCH(RAND(), _xlfn.POISSON.DIST({0,1,2,3,4,5,6,7,8,9},$O29, TRUE),1), 0) -> 3 | BF29: =_xlfn.IFNA(MATCH(RAND(), _xlfn.POISSON.DIST({0,1,2,3,4,5,6,7,8,9},$O29, TRUE),1), 0) -> 2 | BG29: =_xlfn.IFNA(MATCH(RAND(), _xlfn.POISSON.DIST({0,1,2,3,4,5,6,7,8,9},$O29, TRUE),1), 0) -> 4 | BH29: =_xlfn.IFNA(MATCH(RAND(), _xlfn.POISSON.DIST({0,1,2,3,4,5,6,7,8,9},$O29, TRUE),1), 0) -> 5 | BI29: =_xlfn.IFNA(MATCH(RAND(), _xlfn.POISSON.DIST({0,1,2,3,4,5,6,7,8,9},$O29, TRUE),1), 0) -> 5 | BJ29: =_xlfn.IFNA(MATCH(RAND(), _xlfn.POISSON.DIST({0,1,2,3,4,5,6,7,8,9},$O29, TRUE),1), 0) -> 4 | BK29: =_xlfn.IFNA(MATCH(RAND(), _xlfn.POISSON.DIST({0,1,2,3,4,5,6,7,8,9},$O29, TRUE),1), 0) -> 4 | BL29: =_xlfn.IFNA(MATCH(RAND(), _xlfn.POISSON.DIST({0,1,2,3,4,5,6,7,8,9},$O29, TRUE),1), 0) -> 3 | BM29: =_xlfn.IFNA(MATCH(RAND(), _xlfn.POISSON.DIST({0,1,2,3,4,5,6,7,8,9},$O29, TRUE),1), 0) -> 1 | BN29: =_xlfn.IFNA(MATCH(RAND(), _xlfn.POISSON.DIST({0,1,2,3,4,5,6,7,8,9},$O29, TRUE),1), 0) -> 2 | BP29: =_xlfn.IFNA(MATCH(RAND(), _xlfn.POISSON.DIST({0,1,2,3,4,5,6,7,8,9},$P29, TRUE),1), 0) -> 0 | BQ29: =_xlfn.IFNA(MATCH(RAND(), _xlfn.POISSON.DIST({0,1,2,3,4,5,6,7,8,9},$P29, TRUE),1), 0) -> 0 | BR29: =_xlfn.IFNA(MATCH(RAND(), _xlfn.POISSON.DIST({0,1,2,3,4,5,6,7,8,9},$P29, TRUE),1), 0) -> 0 | BS29: =_xlfn.IFNA(MATCH(RAND(), _xlfn.POISSON.DIST({0,1,2,3,4,5,6,7,8,9},$P29, TRUE),1), 0) -> 0 | BT29: =_xlfn.IFNA(MATCH(RAND(), _xlfn.POISSON.DIST({0,1,2,3,4,5,6,7,8,9},$P29, TRUE),1), 0) -> 1 | BU29: =_xlfn.IFNA(MATCH(RAND(), _xlfn.POISSON.DIST({0,1,2,3,4,5,6,7,8,9},$P29, TRUE),1), 0) -> 1 | BV29: =_xlfn.IFNA(MATCH(RAND(), _xlfn.POISSON.DIST({0,1,2,3,4,5,6,7,8,9},$P29, TRUE),1), 0) -> 0 | BW29: =_xlfn.IFNA(MATCH(RAND(), _xlfn.POISSON.DIST({0,1,2,3,4,5,6,7,8,9},$P29, TRUE),1), 0) -> 1 | BX29: =_xlfn.IFNA(MATCH(RAND(), _xlfn.POISSON.DIST({0,1,2,3,4,5,6,7,8,9},$P29, TRUE),1), 0) -> 1 | BY29: =_xlfn.IFNA(MATCH(RAND(), _xlfn.POISSON.DIST({0,1,2,3,4,5,6,7,8,9},$P29, TRUE),1), 0) -> 0 | BZ29: =_xlfn.IFNA(MATCH(RAND(), _xlfn.POISSON.DIST({0,1,2,3,4,5,6,7,8,9},$P29, TRUE),1), 0) -> 0 | CA29: =_xlfn.IFNA(MATCH(RAND(), _xlfn.POISSON.DIST({0,1,2,3,4,5,6,7,8,9},$P29, TRUE),1), 0) -> 0 | CB29: =_xlfn.IFNA(MATCH(RAND(), _xlfn.POISSON.DIST({0,1,2,3,4,5,6,7,8,9},$P29, TRUE),1), 0) -> 0 | CC29: =_xlfn.IFNA(MATCH(RAND(), _xlfn.POISSON.DIST({0,1,2,3,4,5,6,7,8,9},$P29, TRUE),1), 0) -> 0 | CD29: =_xlfn.IFNA(MATCH(RAND(), _xlfn.POISSON.DIST({0,1,2,3,4,5,6,7,8,9},$P29, TRUE),1), 0) -> 0 | CE29: =_xlfn.IFNA(MATCH(RAND(), _xlfn.POISSON.DIST({0,1,2,3,4,5,6,7,8,9},$P29, TRUE),1), 0) -> 0 | CF29: =_xlfn.IFNA(MATCH(RAND(), _xlfn.POISSON.DIST({0,1,2,3,4,5,6,7,8,9},$P29, TRUE),1), 0) -> 1 | CG29: =_xlfn.IFNA(MATCH(RAND(), _xlfn.POISSON.DIST({0,1,2,3,4,5,6,7,8,9},$P29, TRUE),1), 0) -> 0 | CH29: =_xlfn.IFNA(MATCH(RAND(), _xlfn.POISSON.DIST({0,1,2,3,4,5,6,7,8,9},$P29, TRUE),1), 0) -> 0 | CI29: =_xlfn.IFNA(MATCH(RAND(), _xlfn.POISSON.DIST({0,1,2,3,4,5,6,7,8,9},$P29, TRUE),1), 0) -> 1 | CJ29: =_xlfn.IFNA(MATCH(RAND(), _xlfn.POISSON.DIST({0,1,2,3,4,5,6,7,8,9},$P29, TRUE),1), 0) -> 0 | CK29: =_xlfn.IFNA(MATCH(RAND(), _xlfn.POISSON.DIST({0,1,2,3,4,5,6,7,8,9},$P29, TRUE),1), 0) -> 0 | CL29: =_xlfn.IFNA(MATCH(RAND(), _xlfn.POISSON.DIST({0,1,2,3,4,5,6,7,8,9},$P29, TRUE),1), 0) -> 2 | CM29: =_xlfn.IFNA(MATCH(RAND(), _xlfn.POISSON.DIST({0,1,2,3,4,5,6,7,8,9},$P29, TRUE),1), 0) -> 0 | CN29: =_xlfn.IFNA(MATCH(RAND(), _xlfn.POISSON.DIST({0,1,2,3,4,5,6,7,8,9},$P29, TRUE),1), 0) -> 0 | CO29: =_xlfn.IFNA(MATCH(RAND(), _xlfn.POISSON.DIST({0,1,2,3,4,5,6,7,8,9},$P29, TRUE),1), 0) -> 1 | CP29: =_xlfn.IFNA(MATCH(RAND(), _xlfn.POISSON.DIST({0,1,2,3,4,5,6,7,8,9},$P29, TRUE),1), 0) -> 0 | CQ29: =_xlfn.IFNA(MATCH(RAND(), _xlfn.POISSON.DIST({0,1,2,3,4,5,6,7,8,9},$P29, TRUE),1), 0) -> 0 | CR29: =_xlfn.IFNA(MATCH(RAND(), _xlfn.POISSON.DIST({0,1,2,3,4,5,6,7,8,9},$P29, TRUE),1), 0) -> 1 | CS29: =_xlfn.IFNA(MATCH(RAND(), _xlfn.POISSON.DIST({0,1,2,3,4,5,6,7,8,9},$P29, TRUE),1), 0) -> 1 | CT29: =_xlfn.IFNA(MATCH(RAND(), _xlfn.POISSON.DIST({0,1,2,3,4,5,6,7,8,9},$P29, TRUE),1), 0) -> 0 | CU29: =_xlfn.IFNA(MATCH(RAND(), _xlfn.POISSON.DIST({0,1,2,3,4,5,6,7,8,9},$P29, TRUE),1), 0) -> 0 | CV29: =_xlfn.IFNA(MATCH(RAND(), _xlfn.POISSON.DIST({0,1,2,3,4,5,6,7,8,9},$P29, TRUE),1), 0) -> 0 | CW29: =_xlfn.IFNA(MATCH(RAND(), _xlfn.POISSON.DIST({0,1,2,3,4,5,6,7,8,9},$P29, TRUE),1), 0) -> 0 | CX29: =_xlfn.IFNA(MATCH(RAND(), _xlfn.POISSON.DIST({0,1,2,3,4,5,6,7,8,9},$P29, TRUE),1), 0) -> 0 | CY29: =_xlfn.IFNA(MATCH(RAND(), _xlfn.POISSON.DIST({0,1,2,3,4,5,6,7,8,9},$P29, TRUE),1), 0) -> 0 | CZ29: =_xlfn.IFNA(MATCH(RAND(), _xlfn.POISSON.DIST({0,1,2,3,4,5,6,7,8,9},$P29, TRUE),1), 0) -> 0 | DA29: =_xlfn.IFNA(MATCH(RAND(), _xlfn.POISSON.DIST({0,1,2,3,4,5,6,7,8,9},$P29, TRUE),1), 0) -> 1 | DB29: =_xlfn.IFNA(MATCH(RAND(), _xlfn.POISSON.DIST({0,1,2,3,4,5,6,7,8,9},$P29, TRUE),1), 0) -> 1 | DC29: =_xlfn.IFNA(MATCH(RAND(), _xlfn.POISSON.DIST({0,1,2,3,4,5,6,7,8,9},$P29, TRUE),1), 0) -> 2 | DD29: =_xlfn.IFNA(MATCH(RAND(), _xlfn.POISSON.DIST({0,1,2,3,4,5,6,7,8,9},$P29, TRUE),1), 0) -> 0 | DE29: =_xlfn.IFNA(MATCH(RAND(), _xlfn.POISSON.DIST({0,1,2,3,4,5,6,7,8,9},$P29, TRUE),1), 0) -> 0 | DF29: =_xlfn.IFNA(MATCH(RAND(), _xlfn.POISSON.DIST({0,1,2,3,4,5,6,7,8,9},$P29, TRUE),1), 0) -> 0 | DG29: =_xlfn.IFNA(MATCH(RAND(), _xlfn.POISSON.DIST({0,1,2,3,4,5,6,7,8,9},$P29, TRUE),1), 0) -> 0 | DH29: =_xlfn.IFNA(MATCH(RAND(), _xlfn.POISSON.DIST({0,1,2,3,4,5,6,7,8,9},$P29, TRUE),1), 0) -> 0 | DI29: =_xlfn.IFNA(MATCH(RAND(), _xlfn.POISSON.DIST({0,1,2,3,4,5,6,7,8,9},$P29, TRUE),1), 0) -> 0 | DJ29: =_xlfn.IFNA(MATCH(RAND(), _xlfn.POISSON.DIST({0,1,2,3,4,5,6,7,8,9},$P29, TRUE),1), 0) -> 0 | DK29: =_xlfn.IFNA(MATCH(RAND(), _xlfn.POISSON.DIST({0,1,2,3,4,5,6,7,8,9},$P29, TRUE),1), 0) -> 0 | DL29: =_xlfn.IFNA(MATCH(RAND(), _xlfn.POISSON.DIST({0,1,2,3,4,5,6,7,8,9},$P29, TRUE),1), 0) -> 1 | DM29: =_xlfn.IFNA(MATCH(RAND(), _xlfn.POISSON.DIST({0,1,2,3,4,5,6,7,8,9},$P29, TRUE),1), 0) -> 1
C30: 2019-06-17 | D30: B | E30: China VR | F30: =(AVERAGE(Q30:BN30))*(1+INDEX('Prognosen für die Gruppenphase'!$C$4:$O$28, MATCH('Spiele in diesem Jahr'!E30,'Prognosen für die Gruppenphase'!$D$4:$D$28,0),3)) -> 1.38 | G30: Spanien | H30: =(AVERAGE(BP30:DM30))*(1+INDEX('Prognosen für die Gruppenphase'!$C$4:$O$28, MATCH('Spiele in diesem Jahr'!G30,'Prognosen für die Gruppenphase'!$D$4:$D$28,0),3)) -> 1.52 | I30: Spanien | L30: 1.38 | M30: 1.52 | N30: Spanien | O30: =(OFFSET('Anhang 3 – Tore je Gruppe'!$C$13,(INDEX('Anhang 1 – Mannschaftsdaten'!$C$13:$F$112,MATCH(G30,'Anhang 1 – Mannschaftsdaten'!$C$13:$C$112,0),4)/10),(INDEX('Anhang 1 – Mannschaftsdaten'!$C$13:$F$112,MATCH(E30,'Anhang 1 – Mannschaftsdaten'!$C$13:$C$112,0),4)/10))) -> 1.50 | P30: =OFFSET('Anhang 3 – Tore je Gruppe'!$C$13,(INDEX('Anhang 1 – Mannschaftsdaten'!$C$13:$F$112, MATCH(E30,'Anhang 1 – Mannschaftsdaten'!$C$13:$C$112,0),4)/10), (INDEX('Anhang 1 – Mannschaftsdaten'!$C$13:$F$112, MATCH(G30, 'Anhang 1 – Mannschaftsdaten'!$C$13:$C$112,0),4)/10)) -> 1.50 | Q30: =_xlfn.IFNA(MATCH(RAND(), _xlfn.POISSON.DIST({0,1,2,3,4,5,6,7,8,9},$O30, TRUE),1), 0) -> 3 | R30: =_xlfn.IFNA(MATCH(RAND(), _xlfn.POISSON.DIST({0,1,2,3,4,5,6,7,8,9},$O30, TRUE),1), 0) -> 1 | S30: =_xlfn.IFNA(MATCH(RAND(), _xlfn.POISSON.DIST({0,1,2,3,4,5,6,7,8,9},$O30, TRUE),1), 0) -> 3 | T30: =_xlfn.IFNA(MATCH(RAND(), _xlfn.POISSON.DIST({0,1,2,3,4,5,6,7,8,9},$O30, TRUE),1), 0) -> 1 | U30: =_xlfn.IFNA(MATCH(RAND(), _xlfn.POISSON.DIST({0,1,2,3,4,5,6,7,8,9},$O30, TRUE),1), 0) -> 0 | V30: =_xlfn.IFNA(MATCH(RAND(), _xlfn.POISSON.DIST({0,1,2,3,4,5,6,7,8,9},$O30, TRUE),1), 0) -> 1 | W30: =_xlfn.IFNA(MATCH(RAND(), _xlfn.POISSON.DIST({0,1,2,3,4,5,6,7,8,9},$O30, TRUE),1), 0) -> 1 | X30: =_xlfn.IFNA(MATCH(RAND(), _xlfn.POISSON.DIST({0,1,2,3,4,5,6,7,8,9},$O30, TRUE),1), 0) -> 0 | Y30: =_xlfn.IFNA(MATCH(RAND(), _xlfn.POISSON.DIST({0,1,2,3,4,5,6,7,8,9},$O30, TRUE),1), 0) -> 0 | Z30: =_xlfn.IFNA(MATCH(RAND(), _xlfn.POISSON.DIST({0,1,2,3,4,5,6,7,8,9},$O30, TRUE),1), 0) -> 2 | AA30: =_xlfn.IFNA(MATCH(RAND(), _xlfn.POISSON.DIST({0,1,2,3,4,5,6,7,8,9},$O30, TRUE),1), 0) -> 1 | AB30: =_xlfn.IFNA(MATCH(RAND(), _xlfn.POISSON.DIST({0,1,2,3,4,5,6,7,8,9},$O30, TRUE),1), 0) -> 2 | AC30: =_xlfn.IFNA(MATCH(RAND(), _xlfn.POISSON.DIST({0,1,2,3,4,5,6,7,8,9},$O30, TRUE),1), 0) -> 5 | AD30: =_xlfn.IFNA(MATCH(RAND(), _xlfn.POISSON.DIST({0,1,2,3,4,5,6,7,8,9},$O30, TRUE),1), 0) -> 3 | AE30: =_xlfn.IFNA(MATCH(RAND(), _xlfn.POISSON.DIST({0,1,2,3,4,5,6,7,8,9},$O30, TRUE),1), 0) -> 3 | AF30: =_xlfn.IFNA(MATCH(RAND(), _xlfn.POISSON.DIST({0,1,2,3,4,5,6,7,8,9},$O30, TRUE),1), 0) -> 1 | AG30: =_xlfn.IFNA(MATCH(RAND(), _xlfn.POISSON.DIST({0,1,2,3,4,5,6,7,8,9},$O30, TRUE),1), 0) -> 3 | AH30: =_xlfn.IFNA(MATCH(RAND(), _xlfn.POISSON.DIST({0,1,2,3,4,5,6,7,8,9},$O30, TRUE),1), 0) -> 3 | AI30: =_xlfn.IFNA(MATCH(RAND(), _xlfn.POISSON.DIST({0,1,2,3,4,5,6,7,8,9},$O30, TRUE),1), 0) -> 0 | AJ30: =_xlfn.IFNA(MATCH(RAND(), _xlfn.POISSON.DIST({0,1,2,3,4,5,6,7,8,9},$O30, TRUE),1), 0) -> 0 | AK30: =_xlfn.IFNA(MATCH(RAND(), _xlfn.POISSON.DIST({0,1,2,3,4,5,6,7,8,9},$O30, TRUE),1), 0) -> 2 | AL30: =_xlfn.IFNA(MATCH(RAND(), _xlfn.POISSON.DIST({0,1,2,3,4,5,6,7,8,9},$O30, TRUE),1), 0) -> 1 | AM30: =_xlfn.IFNA(MATCH(RAND(), _xlfn.POISSON.DIST({0,1,2,3,4,5,6,7,8,9},$O30, TRUE),1), 0) -> 1 | AN30: =_xlfn.IFNA(MATCH(RAND(), _xlfn.POISSON.DIST({0,1,2,3,4,5,6,7,8,9},$O30, TRUE),1), 0) -> 2 | AO30: =_xlfn.IFNA(MATCH(RAND(), _xlfn.POISSON.DIST({0,1,2,3,4,5,6,7,8,9},$O30, TRUE),1), 0) -> 1 | AP30: =_xlfn.IFNA(MATCH(RAND(), _xlfn.POISSON.DIST({0,1,2,3,4,5,6,7,8,9},$O30, TRUE),1), 0) -> 2 | AQ30: =_xlfn.IFNA(MATCH(RAND(), _xlfn.POISSON.DIST({0,1,2,3,4,5,6,7,8,9},$O30, TRUE),1), 0) -> 2 | AR30: =_xlfn.IFNA(MATCH(RAND(), _xlfn.POISSON.DIST({0,1,2,3,4,5,6,7,8,9},$O30, TRUE),1), 0) -> 0 | AS30: =_xlfn.IFNA(MATCH(RAND(), _xlfn.POISSON.DIST({0,1,2,3,4,5,6,7,8,9},$O30, TRUE),1), 0) -> 0 | AT30: =_xlfn.IFNA(MATCH(RAND(), _xlfn.POISSON.DIST({0,1,2,3,4,5,6,7,8,9},$O30, TRUE),1), 0) -> 3 | AU30: =_xlfn.IFNA(MATCH(RAND(), _xlfn.POISSON.DIST({0,1,2,3,4,5,6,7,8,9},$O30, TRUE),1), 0) -> 0 | AV30: =_xlfn.IFNA(MATCH(RAND(), _xlfn.POISSON.DIST({0,1,2,3,4,5,6,7,8,9},$O30, TRUE),1), 0) -> 2 | AW30: =_xlfn.IFNA(MATCH(RAND(), _xlfn.POISSON.DIST({0,1,2,3,4,5,6,7,8,9},$O30, TRUE),1), 0) -> 2 | AX30: =_xlfn.IFNA(MATCH(RAND(), _xlfn.POISSON.DIST({0,1,2,3,4,5,6,7,8,9},$O30, TRUE),1), 0) -> 0 | AY30: =_xlfn.IFNA(MATCH(RAND(), _xlfn.POISSON.DIST({0,1,2,3,4,5,6,7,8,9},$O30, TRUE),1), 0) -> 0 | AZ30: =_xlfn.IFNA(MATCH(RAND(), _xlfn.POISSON.DIST({0,1,2,3,4,5,6,7,8,9},$O30, TRUE),1), 0) -> 1 | BA30: =_xlfn.IFNA(MATCH(RAND(), _xlfn.POISSON.DIST({0,1,2,3,4,5,6,7,8,9},$O30, TRUE),1), 0) -> 1 | BB30: =_xlfn.IFNA(MATCH(RAND(), _xlfn.POISSON.DIST({0,1,2,3,4,5,6,7,8,9},$O30, TRUE),1), 0) -> 2 | BC30: =_xlfn.IFNA(MATCH(RAND(), _xlfn.POISSON.DIST({0,1,2,3,4,5,6,7,8,9},$O30, TRUE),1), 0) -> 1 | BD30: =_xlfn.IFNA(MATCH(RAND(), _xlfn.POISSON.DIST({0,1,2,3,4,5,6,7,8,9},$O30, TRUE),1), 0) -> 0 | BE30: =_xlfn.IFNA(MATCH(RAND(), _xlfn.POISSON.DIST({0,1,2,3,4,5,6,7,8,9},$O30, TRUE),1), 0) -> 3 | BF30: =_xlfn.IFNA(MATCH(RAND(), _xlfn.POISSON.DIST({0,1,2,3,4,5,6,7,8,9},$O30, TRUE),1), 0) -> 1 | BG30: =_xlfn.IFNA(MATCH(RAND(), _xlfn.POISSON.DIST({0,1,2,3,4,5,6,7,8,9},$O30, TRUE),1), 0) -> 5 | BH30: =_xlfn.IFNA(MATCH(RAND(), _xlfn.POISSON.DIST({0,1,2,3,4,5,6,7,8,9},$O30, TRUE),1), 0) -> 1 | BI30: =_xlfn.IFNA(MATCH(RAND(), _xlfn.POISSON.DIST({0,1,2,3,4,5,6,7,8,9},$O30, TRUE),1), 0) -> 1 | BJ30: =_xlfn.IFNA(MATCH(RAND(), _xlfn.POISSON.DIST({0,1,2,3,4,5,6,7,8,9},$O30, TRUE),1), 0) -> 0 | BK30: =_xlfn.IFNA(MATCH(RAND(), _xlfn.POISSON.DIST({0,1,2,3,4,5,6,7,8,9},$O30, TRUE),1), 0) -> 0 | BL30: =_xlfn.IFNA(MATCH(RAND(), _xlfn.POISSON.DIST({0,1,2,3,4,5,6,7,8,9},$O30, TRUE),1), 0) -> 1 | BM30: =_xlfn.IFNA(MATCH(RAND(), _xlfn.POISSON.DIST({0,1,2,3,4,5,6,7,8,9},$O30, TRUE),1), 0) -> 1 | BN30: =_xlfn.IFNA(MATCH(RAND(), _xlfn.POISSON.DIST({0,1,2,3,4,5,6,7,8,9},$O30, TRUE),1), 0) -> 0 | BP30: =_xlfn.IFNA(MATCH(RAND(), _xlfn.POISSON.DIST({0,1,2,3,4,5,6,7,8,9},$P30, TRUE),1), 0) -> 1 | BQ30: =_xlfn.IFNA(MATCH(RAND(), _xlfn.POISSON.DIST({0,1,2,3,4,5,6,7,8,9},$P30, TRUE),1), 0) -> 4 | BR30: =_xlfn.IFNA(MATCH(RAND(), _xlfn.POISSON.DIST({0,1,2,3,4,5,6,7,8,9},$P30, TRUE),1), 0) -> 0 | BS30: =_xlfn.IFNA(MATCH(RAND(), _xlfn.POISSON.DIST({0,1,2,3,4,5,6,7,8,9},$P30, TRUE),1), 0) -> 1 | BT30: =_xlfn.IFNA(MATCH(RAND(), _xlfn.POISSON.DIST({0,1,2,3,4,5,6,7,8,9},$P30, TRUE),1), 0) -> 1 | BU30: =_xlfn.IFNA(MATCH(RAND(), _xlfn.POISSON.DIST({0,1,2,3,4,5,6,7,8,9},$P30, TRUE),1), 0) -> 1 | BV30: =_xlfn.IFNA(MATCH(RAND(), _xlfn.POISSON.DIST({0,1,2,3,4,5,6,7,8,9},$P30, TRUE),1), 0) -> 1 | BW30: =_xlfn.IFNA(MATCH(RAND(), _xlfn.POISSON.DIST({0,1,2,3,4,5,6,7,8,9},$P30, TRUE),1), 0) -> 2 | BX30: =_xlfn.IFNA(MATCH(RAND(), _xlfn.POISSON.DIST({0,1,2,3,4,5,6,7,8,9},$P30, TRUE),1), 0) -> 3 | BY30: =_xlfn.IFNA(MATCH(RAND(), _xlfn.POISSON.DIST({0,1,2,3,4,5,6,7,8,9},$P30, TRUE),1), 0) -> 1 | BZ30: =_xlfn.IFNA(MATCH(RAND(), _xlfn.POISSON.DIST({0,1,2,3,4,5,6,7,8,9},$P30, TRUE),1), 0) -> 3 | CA30: =_xlfn.IFNA(MATCH(RAND(), _xlfn.POISSON.DIST({0,1,2,3,4,5,6,7,8,9},$P30, TRUE),1), 0) -> 0 | CB30: =_xlfn.IFNA(MATCH(RAND(), _xlfn.POISSON.DIST({0,1,2,3,4,5,6,7,8,9},$P30, TRUE),1), 0) -> 1 | CC30: =_xlfn.IFNA(MATCH(RAND(), _xlfn.POISSON.DIST({0,1,2,3,4,5,6,7,8,9},$P30, TRUE),1), 0) -> 0 | CD30: =_xlfn.IFNA(MATCH(RAND(), _xlfn.POISSON.DIST({0,1,2,3,4,5,6,7,8,9},$P30, TRUE),1), 0) -> 1 | CE30: =_xlfn.IFNA(MATCH(RAND(), _xlfn.POISSON.DIST({0,1,2,3,4,5,6,7,8,9},$P30, TRUE),1), 0) -> 3 | CF30: =_xlfn.IFNA(MATCH(RAND(), _xlfn.POISSON.DIST({0,1,2,3,4,5,6,7,8,9},$P30, TRUE),1), 0) -> 1 | CG30: =_xlfn.IFNA(MATCH(RAND(), _xlfn.POISSON.DIST({0,1,2,3,4,5,6,7,8,9},$P30, TRUE),1), 0) -> 0 | CH30: =_xlfn.IFNA(MATCH(RAND(), _xlfn.POISSON.DIST({0,1,2,3,4,5,6,7,8,9},$P30, TRUE),1), 0) -> 0 | CI30: =_xlfn.IFNA(MATCH(RAND(), _xlfn.POISSON.DIST({0,1,2,3,4,5,6,7,8,9},$P30, TRUE),1), 0) -> 3 | CJ30: =_xlfn.IFNA(MATCH(RAND(), _xlfn.POISSON.DIST({0,1,2,3,4,5,6,7,8,9},$P30, TRUE),1), 0) -> 4 | CK30: =_xlfn.IFNA(MATCH(RAND(), _xlfn.POISSON.DIST({0,1,2,3,4,5,6,7,8,9},$P30, TRUE),1), 0) -> 4 | CL30: =_xlfn.IFNA(MATCH(RAND(), _xlfn.POISSON.DIST({0,1,2,3,4,5,6,7,8,9},$P30, TRUE),1), 0) -> 0 | CM30: =_xlfn.IFNA(MATCH(RAND(), _xlfn.POISSON.DIST({0,1,2,3,4,5,6,7,8,9},$P30, TRUE),1), 0) -> 1 | CN30: =_xlfn.IFNA(MATCH(RAND(), _xlfn.POISSON.DIST({0,1,2,3,4,5,6,7,8,9},$P30, TRUE),1), 0) -> 3 | CO30: =_xlfn.IFNA(MATCH(RAND(), _xlfn.POISSON.DIST({0,1,2,3,4,5,6,7,8,9},$P30, TRUE),1), 0) -> 0 | CP30: =_xlfn.IFNA(MATCH(RAND(), _xlfn.POISSON.DIST({0,1,2,3,4,5,6,7,8,9},$P30, TRUE),1), 0) -> 3 | CQ30: =_xlfn.IFNA(MATCH(RAND(), _xlfn.POISSON.DIST({0,1,2,3,4,5,6,7,8,9},$P30, TRUE),1), 0) -> 0 | CR30: =_xlfn.IFNA(MATCH(RAND(), _xlfn.POISSON.DIST({0,1,2,3,4,5,6,7,8,9},$P30, TRUE),1), 0) -> 1 | CS30: =_xlfn.IFNA(MATCH(RAND(), _xlfn.POISSON.DIST({0,1,2,3,4,5,6,7,8,9},$P30, TRUE),1), 0) -> 0 | CT30: =_xlfn.IFNA(MATCH(RAND(), _xlfn.POISSON.DIST({0,1,2,3,4,5,6,7,8,9},$P30, TRUE),1), 0) -> 4 | CU30: =_xlfn.IFNA(MATCH(RAND(), _xlfn.POISSON.DIST({0,1,2,3,4,5,6,7,8,9},$P30, TRUE),1), 0) -> 0 | CV30: =_xlfn.IFNA(MATCH(RAND(), _xlfn.POISSON.DIST({0,1,2,3,4,5,6,7,8,9},$P30, TRUE),1), 0) -> 2 | CW30: =_xlfn.IFNA(MATCH(RAND(), _xlfn.POISSON.DIST({0,1,2,3,4,5,6,7,8,9},$P30, TRUE),1), 0) -> 2 | CX30: =_xlfn.IFNA(MATCH(RAND(), _xlfn.POISSON.DIST({0,1,2,3,4,5,6,7,8,9},$P30, TRUE),1), 0) -> 2 | CY30: =_xlfn.IFNA(MATCH(RAND(), _xlfn.POISSON.DIST({0,1,2,3,4,5,6,7,8,9},$P30, TRUE),1), 0) -> 0 | CZ30: =_xlfn.IFNA(MATCH(RAND(), _xlfn.POISSON.DIST({0,1,2,3,4,5,6,7,8,9},$P30, TRUE),1), 0) -> 2 | DA30: =_xlfn.IFNA(MATCH(RAND(), _xlfn.POISSON.DIST({0,1,2,3,4,5,6,7,8,9},$P30, TRUE),1), 0) -> 0 | DB30: =_xlfn.IFNA(MATCH(RAND(), _xlfn.POISSON.DIST({0,1,2,3,4,5,6,7,8,9},$P30, TRUE),1), 0) -> 2 | DC30: =_xlfn.IFNA(MATCH(RAND(), _xlfn.POISSON.DIST({0,1,2,3,4,5,6,7,8,9},$P30, TRUE),1), 0) -> 1 | DD30: =_xlfn.IFNA(MATCH(RAND(), _xlfn.POISSON.DIST({0,1,2,3,4,5,6,7,8,9},$P30, TRUE),1), 0) -> 1 | DE30: =_xlfn.IFNA(MATCH(RAND(), _xlfn.POISSON.DIST({0,1,2,3,4,5,6,7,8,9},$P30, TRUE),1), 0) -> 0 | DF30: =_xlfn.IFNA(MATCH(RAND(), _xlfn.POISSON.DIST({0,1,2,3,4,5,6,7,8,9},$P30, TRUE),1), 0) -> 1 | DG30: =_xlfn.IFNA(MATCH(RAND(), _xlfn.POISSON.DIST({0,1,2,3,4,5,6,7,8,9},$P30, TRUE),1), 0) -> 3 | DH30: =_xlfn.IFNA(MATCH(RAND(), _xlfn.POISSON.DIST({0,1,2,3,4,5,6,7,8,9},$P30, TRUE),1), 0) -> 4 | DI30: =_xlfn.IFNA(MATCH(RAND(), _xlfn.POISSON.DIST({0,1,2,3,4,5,6,7,8,9},$P30, TRUE),1), 0) -> 4 | DJ30: =_xlfn.IFNA(MATCH(RAND(), _xlfn.POISSON.DIST({0,1,2,3,4,5,6,7,8,9},$P30, TRUE),1), 0) -> 1 | DK30: =_xlfn.IFNA(MATCH(RAND(), _xlfn.POISSON.DIST({0,1,2,3,4,5,6,7,8,9},$P30, TRUE),1), 0) -> 1 | DL30: =_xlfn.IFNA(MATCH(RAND(), _xlfn.POISSON.DIST({0,1,2,3,4,5,6,7,8,9},$P30, TRUE),1), 0) -> 2 | DM30: =_xlfn.IFNA(MATCH(RAND(), _xlfn.POISSON.DIST({0,1,2,3,4,5,6,7,8,9},$P30, TRUE),1), 0) -> 1
